Workbook

Sheet Tab List (hidden)
A2: List of the Tab in the Inputs Sheet
A4: 1. Electricity
A5: 2. NG
A6: 3. Petroleum
A7: 4. Coal
A8: 5. Uranium
A9: 6. Ag_Inputs
A10: 7. Enzymes and Yeast
A11: 8. Fuel Specifications
A12: 9. Loss Factors
A13: 10. User Defined Parameters
A14: 11. Ethanol
A15: 12. RNG
A16: 13. BD RD Feedstock Production
A17: 14. BD RD Production
A18: 15. Bio Oil
A19: 16. Flow Chart
A20: 17. Report
A21: 18. References

Sheet EtOH Summary (hidden)
C1: Summary of the Starch Ethanol Pathway for the California Low Carbon Fuel Standard Program
C3: Applicant: | D3: =EtOH!E6 -> ABC Company | G3: =CONCATENATE("Location: ",EtOH!I6) -> Location: U.S.
C4: Description: | D4: =EtOH!E7 -> Corn, Sorghum, and Corn Fiber Ethanol from Midwest, transported 1,800 miles to California to be used as transportation fuel in California
C6: Feedstock Production Electricity Mix | E6: 1- U.S Ave Mix | G6: Fuel Production Electricity Mix | H6: =EtOH!L16 -> 7-MROW Mix
C7: Feedstock Production | G7: Fuel Production | J7: Different Scenarios of Starch Ethanol Production | L7: Carbon Intensity (gCO2e/MJ) | M7: Correspondent Volumes (gallons)
C8: Feedstock Production | D8: Column2 | E8: Column1 | G8: Fuel Production | H8: Column1 | J8: Different Scenarios of Ethanol Production | K8: Column1 | L8: Carbon Intensity, g/MJ | M8: Correspondent Volumes, gallons
C9: Corn Use, bushels | E9: =EtOH!C46 -> 7679004 | G9: Total Undenatured Ethanol, gallons | H9: =EtOH!AT46+EtOH!BA46 -> 103532237 | K9: Dry DG | L9: =EtOH!H217 -> 0 | M9: =EtOH!I169 -> 0
C10: Sorghum Use, bushels | E10: =EtOH!J46 -> 16531829.38 | G10: Total Undenatured Starch Ethanol, gallons | H10: =EtOH!AT46 -> 103532237 | J10: Corn Ethanol | K10: Modified DG | L10: =EtOH!H218 -> 0 | M10: =EtOH!I176 -> 0
C11: Ethanol Yield, gal/bu | E11: =EtOH!D58 -> 4.276277292 | G11: Total Undenatured Fiber Ethanol, gallons | H11: =EtOH!BA46 -> 0 | K11: Wet DG | L11: =EtOH!H219 -> 0 | M11: =EtOH!I182 -> 0
J12: Subtotal | M12: =SUBTOTAL(109,M9:M11) -> 0
C13: Feedstock Transport (Weighted Average) | G13: Energy Consumption | K13: Dry DG | L13: =EtOH!H221 -> 0 | M13: =EtOH!I221 -> 0
C14: Corn Transport by HD Truck, miles | E14: =EtOH!F46 -> 80 | G14: Natural, HHV in MMBtu | H14: =EtOH!BB47 -> 2154680 | J14: Sorghum Ethanol | K14: Modified DG | L14: =EtOH!H222 -> 0 | M14: =EtOH!I222 -> 
C15: Corn Transport by Rail, miles | E15: =EtOH!G46 -> 0 | G15: Coal, HHV in tons | H15: =EtOH!BH46 -> 0 | K15: Wet DG | L15: =EtOH!H223 -> 0 | M15: =EtOH!I223 -> 0
C16: Corn Transport by Barge, miles | E16: =EtOH!H46 -> 0 | G16: Biomass, HHV in dry tons | H16: =EtOH!BE46 -> 0 | J16: Subtotal | M16: =SUBTOTAL(109,M13:M15) -> 
C17: Sorghum Transport by HD Truck, miles | E17: =EtOH!M46 -> 80 | G17: Biomethane, HHV in MMBtu | H17: =EtOH!BC46 -> 0 | J17: Corn Fiber Ethanol | L17: =EtOH!H224 -> 0 | M17: =EtOH!BA46 -> 0
C18: Sorghum Transport by Rail, miles | E18: =EtOH!N46 -> 0 | G18: Electricity, kWh | H18: =EtOH!BI46 -> 50828240 | J18: Subtotal | M18: =SUBTOTAL(109,M17) -> 0
C19: Sorghum Transport by Barge, miles | E19: =EtOH!O46 -> 0 | G19: Other Electricity, kWh | H19: =EtOH!BJ46 -> 0 | J19: Corn Ethanol | K19: Composite DG | L19: =EtOH!H216 ->  | M19: =EtOH!M169 -> 32837550.43
J20: Sorghum Ethanol | K20: Composite DG | L20: =EtOH!M171 ->  | M20: =EtOH!M176 -> 70694686.57
C21: Co-Product Yield, bone-dry lb./gal | E21: =(E22*(1-E23)+E25*(1-E26)+E28*(1-E29)+E30*(1-#REF!)+E31*(1-#REF!))*2000/H9 ->  | G21: Chemical Usage for Cellulosic | J21: Subtotal | M21: =SUBTOTAL(109,M19:M20) -> 103532237
C22: Dry Distiller Grains, tons | E22: =EtOH!Q46 -> 78262.61 | G22: Cellulosic Enzyme, lbs. | H22: =EtOH!AX46 -> 0 | J22: Other Ethanol | M22: 0
C23: Moisture, % | E23: =EtOH!T46 -> 0.1132583333 | M23: =SUBTOTAL(109,M22) -> 0
C24: Drying Energy, HHV in MMBtu | E24: =EtOH!U46 -> 0 | G24: Fuel Transport
C25: Modified Distiller Grains, tons | E25: =EtOH!W46 -> 0 | G25: By HD Truck, miles | H25: =EtOH!BL24 -> 100 | J25: Total Undenatured Ethanol Production, gallons | M25: =M12+M16+M18+M21+M23 -> 
C26: Moisture, % | E26: =EtOH!Z46 -> 0.55 | G26: By Rail, miles | H26: =EtOH!BL22 -> 1800
C27: Drying Energy, HHV in MMBtu | E27: =EtOH!AA46 -> 0 | G27: By Barge, miles | H27: =EtOH!BL26 -> 0
C28: Wet Distiller Grains, tons | E28: =EtOH!AC46 -> 520172.49
C29: Moisture, % | E29: =EtOH!AF46 -> 0.6636375 | G29: Denaturant Usage
C30: Syrup DGS, tons | E30: =EtOH!AH46 -> 0 | G30: Denaturant, gallons | H30: =EtOH!AU46 -> 2400000
C31: Corn Oil, tons | E31: =EtOH!AL46/2000 -> 5275

Sheet Summary old (hidden)
A1: Summary of the Fuel Pathway (For ARB Staff Use Only)
A2: Applicant: | D2: Fuel | E2: CNG | G2: Fuel Production Electricity Mix | I2: =EtOH!L16 -> 7-MROW Mix
A3: Description:
A4: Feedstock Production | D4: Fuel Production | G4: Different Scenarios of Ethanol Production | I4: Carbon Intensity, g/MJ | J4: Correspondent Volumes, gallons
A5: Corn Use, bushels | B5: =EtOH!C46 -> 7679004 | D5: Total Undenatured Ethanol, gallons | E5: =EtOH!AT46+EtOH!BA46 -> 103532237 | G5: Corn Ethanol | H5: Dry DG | I5: =EtOH!H217 -> 0 | J5: =EtOH!I169 -> 0
A6: Sorghum Use, bushels | B6: =EtOH!J46 -> 16531829.38 | D6: Starch Ethanol, gallons | E6: =EtOH!AT46 -> 103532237 | H6: Modified DG | I6: =EtOH!H218 -> 0 | J6: =EtOH!I176 -> 0
A7: Ethanol Yield, gal/bu | B7: =EtOH!D58 -> 4.276277292 | D7: Fiber Ethanol, gallons | E7: =EtOH!BA46 -> 0 | H7: Wet DG | I7: =EtOH!H219 -> 0 | J7: =EtOH!I182 -> 0
A8: Feedstock Transport | D8: Energy Consumption | G8: Sorghum Ethanol | H8: Dry DG | I8: =EtOH!H221 -> 0 | J8: =EtOH!I221 -> 0
D9: Natural, HHV in MMBtu | E9: =EtOH!BB46 -> 2154680 | H9: Modified DG | I9: =EtOH!H222 -> 0 | J9: =EtOH!I222 -> 
A10: Corn Transport by HD Truck, miles | B10: =EtOH!F46 -> 80 | D10: Coal, HHV in tons | E10: =EtOH!BH46 -> 0 | H10: Wet DG | I10: =EtOH!H223 -> 0 | J10: =EtOH!I223 -> 0
A11: Corn Transport by Rail, miles | B11: =EtOH!H46 -> 0 | D11: Electricity, kWh | E11: =EtOH!BI46 -> 50828240 | G11: Corn Fiber Ethanol | I11: =EtOH!#REF! ->  | J11: =EtOH!BA46 -> 0
G12: Corn Ethanol | H12: Composite DG | I12: =EtOH!H216 ->  | J12: =EtOH!E169+EtOH!BA46 -> 103532237
A13: Sorghum Transport by HD Truck, miles | B13: =EtOH!M46 -> 80 | G13: Sorghum Ethanol | H13: Composite DG | I13: =EtOH!M171 ->  | J13: =EtOH!M176 -> 70694686.57
A14: Sorghum Transport by Rail, miles | B14: =EtOH!O46 -> 0
D15: Chemical Usage for Cellulosic
A16: Other Feedstock Transport by HD Truck, miles | D16: Cellulosic Enzyme, lbs | E16: =EtOH!AX46 -> 0
A17: Other Feedstock Transport by Rail, miles
A18: Co-Product Yield, bone-dry lb/gal | B18: =(B19*(1-B20)+B22*(1-B23)+B25*(1-B26)+B27*(1-#REF!)+B28*(1-#REF!))*2000/E5 -> 
A19: Dry Distiller Grains, tons | B19: =EtOH!Q46 -> 78262.61 | D19: Fuel Transport
A20: Moisture, % | B20: =EtOH!T46 -> 0.1132583333 | D20: By HD Truck, miles | E20: =EtOH!BL24 -> 100
A21: Drying Energy, HHV in MMBtu | B21: =EtOH!U46 -> 0 | D21: By Rail, miles | E21: =EtOH!BL22 -> 1800
A22: Modified Distiller Grains, tons | B22: =EtOH!W46 -> 0 | D22: By Barge, miles | E22: =EtOH!BL26 -> 0
A23: Moisture, % | B23: =EtOH!Z46 -> 0.55
A24: Drying Energy, HHV in MMBtu | B24: =EtOH!AA46 -> 0
A25: Wet Distiller Grains, tons | B25: =EtOH!AC46 -> 520172.49
A26: Moisture, % | B26: =EtOH!AF46 -> 0.6636375
A27: Syrup DGS, tons | B27: =EtOH!AH46 -> 0
A28: Corn Oil, tons | B28: =EtOH!AL46/2000 -> 5275
A29: Select Feedstock | B29: Feedstock 1 | C29: Feedstock 2 | D29: Feedstock 3 | E29: Feedstock 4 | F29: Feedstock 5 | G29: Feedstock 6 | H29: Feedstock 7 | I29: Feedstock 8 | J29: Feedstock 9 | K29: Feedstock 10 | L29: Feedstock 11 | M29: Feedstock 12
B30: Corn | C30: Corn | D30: Corn | E30: Corn | F30: Cellulosic (Fiber) | G30: Grain Sorghum | H30: Grain Sorghum | I30: Grain Sorghum | J30: Grain Sorghum | K30: None | L30: None | M30: None
A31: Feedstock Production Electricity Mix Resources | B31: 1-U.S Ave Mix | C31: 1-U.S Ave Mix | D31: 1-U.S Ave Mix | E31: 1-U.S Ave Mix | F31: 1-U.S Ave Mix | G31: 1-U.S Ave Mix | H31: 1-U.S Ave Mix | I31: 1-U.S Ave Mix | J31: 1-U.S Ave Mix
A32: Crude Sources | B32: U.S Crude | C32: U.S Crude | D32: U.S Crude | E32: U.S Crude | F32: U.S Crude | G32: U.S Crude | H32: U.S Crude | I32: U.S Crude | J32: U.S Crude | K32: U.S Crude | L32: U.S Crude | M32: U.S Crude | R32: Position | S32: ID
A33: Natural Gas Sources | B33: North American NG | C33: North American NG | D33: North American NG | E33: North American NG | F33: North American NG | G33: North American NG | H33: North American NG | I33: North American NG | J33: North American NG | K33: North American NG | L33: North American NG | M33: North American NG | R33: 1 | S33: =B30&" "&R33 -> Corn 1
A34: Types of Co-products | B34: =B127 -> Composite DGS | C34: =C127 -> Wet DGS | D34: Modified DGS | E34: Dry DGS | G34: Composite DGS | H34: Wet DGS | I34: Modified DGS | J34: Dry DGS | R34: 2 | S34: =C30&" "&R34 -> Corn 2
A35: Composite Distiller Grains CI | B35: =B152 ->  | F35: =F152 ->  | G35: =G152 ->  | R35: 3 | S35: =D30&" "&R35 -> Corn 3
A36: Fuel Volumes, gallons | B36: =E48 -> 66778004 | F36: =E58 -> 307870 | R36: 4 | S36: =E30&" "&R36 -> Corn 4
A37: Dry Distiller Grains | E37: =E152 ->  | J37: =J152 ->  | R37: 5 | S37: =F30&" "&R37 -> Cellulosic (Fiber) 5
A38: Fuel Volumes, gallons | E38: =E48*C104 -> 3506074.56 | R38: 6 | S38: =G30&" "&R38 -> Grain Sorghum 6
A39: Modified Distiller Grains | D39: =D152 -> N/A | I39: =I152 ->  | R39: 7 | S39: =H30&" "&R39 -> Grain Sorghum 7
A40: Fuel Volumes, gallons | D40: =E48*C106 -> 0 | R40: 8 | S40: =I30&" "&R40 -> Grain Sorghum 8
A41: Wet Distiller Grains | C41: =C152 ->  | H41: =H152 ->  | R41: 9 | S41: =J30&" "&R41 -> Grain Sorghum 9
A42: Fuel Volumes, gallons | C42: =E48*C108 -> 1488116.105 | R42: 10 | S42: =K30&" "&R42 -> None 10
A43: Feedstock Use, bushels | B43: =B5 -> 7679004 | G43: =B6 -> 16531829.38 | R43: 11 | S43: =L30&" "&R43 -> None 11
R44: 12 | S44: =M30&" "&R44 -> None 12
A46: Feedstock Production | D46: Fuel Production
A47: Feedstock 1 Transport | C47: Shares | D47: Fuel Yield | E47: =E49/(B43+G43)*0+2.75 -> 2.75 | F47: =CONCATENATE(F48,"/bushels") -> Gallons/bushels
A48: By Heavy Duty Truck, miles | B48: =B10 -> 80 | C48: 0.5 | D48: Total Ethanol Production | E48: =E49+E58 -> 66778004 | F48: Gallons
A49: By Rail, miles | B49: =B11 -> 0 | C49: 0.5 | D49: Corn Ethanol (Composite DG) | E49: 66470134 | F49: Gallons
A50: By Barge, miles | B50: 0 | C50: 0 | D50: Corn Ethanol (Wet DG) | E50: =E49*C104 -> 3489910.327 | F50: Gallons
A51: Feedstock 2 Transport | D51: Corn Ethanol (Modified DG) | E51: =E49*C106 -> 0 | F51: Gallons
A52: By Heavy Duty Truck, miles | B52: 0 | D52: Corn Ethanol (Dry DG) | E52: =E49*C108 -> 1481255.368 | F52: Gallons
A53: By Rail, miles | B53: 0 | D53: Sorghum Ethanol (Composite DG) | F53: Gallons
A54: By Barge, miles | B54: 0 | D54: Sorghum Ethanol (Wet DG) | F54: Gallons
A55: Feedstock 3 Transport | D55: Sorghum Ethanol (Modified DG) | F55: Gallons
A56: By Heavy Duty Truck, miles | B56: 0 | D56: Sorghum Ethanol (Dry DG) | F56: Gallons
A57: By Rail, miles | B57: 0
A58: By Barge, miles | B58: 0 | D58: Cellulosic Ethanol | E58: 307870 | F58: Gallons
A59: Feedstock 4 Transport
A60: By Heavy Duty Truck, miles | B60: 0
A61: By Rail, miles | B61: 0
A62: By Barge, miles | B62: 0
D64: Energy Usage (in High Heating Values)
D65: Residual oil | E65: 0 | F65: Gallons
D66: Diesel fuel | E66: 0 | F66: Gallons
D67: Gasoline | E67: 0 | F67: Gallons
D68: Natural gas | E68: =E9 -> 2154680 | F68: MMBtu | G68: =E68*Reference!F15*10^6/E48 -> 29133.66154
D69: Coal | E69: =EtOH!BH46 -> 0 | F69: Dry Tons | G69: =E69*Reference!#REF!/E48 -> 
D70: Liquefied petroleum gas | E70: 0 | F70: Gallons
D71: Biomass | E71: 0 | F71: Dry Tons
D72: Electricity | E72: =E11 -> 50828240 | F72: kWh | G72: =E72*Reference!F48/E48 -> 2597.159901
D73: Renewable natural gas | E73: 0 | F73: MMBtu
D74: Other | F74: Gallons
D75: Drying Energy
D76: NG use for Mod. DGS | E76: 500000 | F76: MMBtu
D77: NG use for Dry DGS | E77: 1000000 | F77: MMBtu
D78: Chemicals Usage
D79: Alpha Amylase | E79: 2.612692051 | F79: grams
D80: Gluco Amylase | E80: 5.621246534 | F80: grams
D81: Cellulase | E81: 0 | F81: grams
D82: Yeast | E82: 2.85020951 | F82: grams
D83: Sulfuric acid (H2SO4 | E83: 4.835380434 | F83: grams
D84: Urea | E84: 18.52636182 | F84: grams
D85: NaOH | E85: 23.23712476 | F85: grams
D86: CaO | E86: 11.0841481 | F86: grams
D91: Other - Specify here (grams)
A100: Corn Oil Displaced Soy Oil | B100: 14750000
A102: Co-Product Credit | B102: =(B103*(1-B104)+B105*(1-B106)+(B107+B109+B110/2000)*(1-B108))*2000/E48 -> 3.486562731 | C102: Bone-dry lbs.
A103: Wet DGS, ton | B103: 232019 | C103: =B103*(1-B104) -> 81206.65
A104: Moisture Content, % | B104: 0.65 | C104: =C103/($C$103+$C$105+$C$107+$C$109+$C$110) -> 0.05250343451
A105: Medium DGS, ton | B105: 0 | C105: =B105*(1-B106) -> 0
A106: Moisture Content, % | B106: 0.55 | C106: =C105/($C$103+$C$105+$C$107+$C$109+$C$110) -> 0
A107: Dry DGS, ton | B107: 38297 | C107: =B107*(1-B108) -> 34467.3
A108: Moisture Content, % | B108: 0.1 | C108: =C107/($C$103+$C$105+$C$107+$C$109+$C$110) -> 0.02228452508
A109: Syrup DGS, ton | B109: 26 | C109: =B109*(1-30%) -> 18.2
A110: Corn Oil,lbs | B110: 1590000 | C110: =B110*(1-10%) -> 1431000
A111: Ethanol Transport
A112: By Heavy Duty Truck, miles | B112: 100 | C112: 1
A113: By Rail, miles | B113: 1000 | C113: 1
A114: By Barge, miles | B114: 0 | C114: 1
A115: By Ocean Tanker, miles | B115: 0 | C115: 1
A116: By Pipeline, miles | B116: 0 | C116: 1
A118: Indirect Land Use
A120: Denaturant
A122: Tailpipe Emissions
B124: Feedstock 1 | C124: Feedstock 2 | D124: Feedstock 3 | E124: Feedstock 4 | F124: Feedstock 5 | G124: Feedstock 6 | H124: Feedstock 7 | I124: Feedstock 8 | J124: Feedstock 9 | K124: Feedstock 10 | L124: Feedstock 11 | M124: Feedstock 12
A125: Fuel | B125: =E2 -> CNG
A126: Feedstock | B126: =B30 -> Corn | C126: =IF(B107=0,"None",C30) -> Corn | D126: =IF(B105=0,"None",D30) -> None | E126: =IF(B107=0,"None",E30) -> Corn | F126: =F30 -> Cellulosic (Fiber) | G126: Grain Sorghum | H126: Grain Sorghum | I126: Grain Sorghum | J126: Grain Sorghum | K126: None | L126: None | M126: None
A127: Co-product Types | B127: Composite DGS | C127: Wet DGS | D127: Modified DGS | E127: Dry DGS | G127: Composite DGS | H127: Wet DGS | I127: Modified DGS | J127: Dry DGS
A128: Farming | B128: =HLOOKUP(#REF!,'EF Table'!$C$3:$AF$3,3,FALSE)*$E$47/2.75 ->  | C128: =HLOOKUP(#REF!,'EF Table'!$C$3:$AF$3,3,FALSE)*$E$47/2.75 ->  | D128: =HLOOKUP(#REF!,'EF Table'!$C$3:$AF$3,3,FALSE)*$E$47/2.75 ->  | E128: =HLOOKUP(#REF!,'EF Table'!$C$3:$AF$3,3,FALSE)*$E$47/2.75 ->  | F128: 0 | G128: =HLOOKUP(#REF!,'EF Table'!$C$3:$AF$3,38,FALSE)*$E$47/2.75 ->  | H128: =HLOOKUP(#REF!,'EF Table'!$C$3:$AF$3,38,FALSE)*$E$47/2.75 ->  | I128: =HLOOKUP(#REF!,'EF Table'!$C$3:$AF$3,38,FALSE)*$E$47/2.75 ->  | J128: =HLOOKUP(#REF!,'EF Table'!$C$3:$AF$3,38,FALSE)*$E$47/2.75 -> 
A129: Fertilizers | B129: =HLOOKUP(#REF!,'EF Table'!$C$3:$AF$3,4,FALSE)*$E$47/2.75 ->  | C129: =HLOOKUP(#REF!,'EF Table'!$C$3:$AF$3,4,FALSE)*$E$47/2.75 ->  | D129: =HLOOKUP(#REF!,'EF Table'!$C$3:$AF$3,4,FALSE)*$E$47/2.75 ->  | E129: =HLOOKUP(#REF!,'EF Table'!$C$3:$AF$3,4,FALSE)*$E$47/2.75 ->  | F129: 0 | G129: =HLOOKUP(#REF!,'EF Table'!$C$3:$AF$3,39,FALSE)*$E$47/2.75 ->  | H129: =HLOOKUP(#REF!,'EF Table'!$C$3:$AF$3,39,FALSE)*$E$47/2.75 ->  | I129: =HLOOKUP(#REF!,'EF Table'!$C$3:$AF$3,39,FALSE)*$E$47/2.75 ->  | J129: =HLOOKUP(#REF!,'EF Table'!$C$3:$AF$3,39,FALSE)*$E$47/2.75 -> 
A130: N2O in Soil | B130: =HLOOKUP(#REF!,'EF Table'!$C$3:$AF$3,5,FALSE)*$E$47/2.75 ->  | C130: =HLOOKUP(#REF!,'EF Table'!$C$3:$AF$3,5,FALSE)*$E$47/2.75 ->  | D130: =HLOOKUP(#REF!,'EF Table'!$C$3:$AF$3,5,FALSE)*$E$47/2.75 ->  | E130: =HLOOKUP(#REF!,'EF Table'!$C$3:$AF$3,5,FALSE)*$E$47/2.75 ->  | F130: 0 | G130: =HLOOKUP(#REF!,'EF Table'!$C$3:$AF$3,40,FALSE)*$E$47/2.75 ->  | H130: =HLOOKUP(#REF!,'EF Table'!$C$3:$AF$3,40,FALSE)*$E$47/2.75 ->  | I130: =HLOOKUP(#REF!,'EF Table'!$C$3:$AF$3,40,FALSE)*$E$47/2.75 ->  | J130: =HLOOKUP(#REF!,'EF Table'!$C$3:$AF$3,40,FALSE)*$E$47/2.75 -> 
A131: Feedstock Transport | B131: =HLOOKUP(#REF!,'EF Table'!$C$3:$AF$3,7,FALSE)+HLOOKUP(#REF!,'EF Table'!$C$3:$AF$3,8,FALSE)*$B$48/50*$C$48+HLOOKUP(#REF!,'EF Table'!$C$3:$AF$3,9,FALSE)*$B$49/500*$C$49+HLOOKUP(#REF!,'EF Table'!$C$3:$AF$3,10,FALSE)*$B$50/500*$C$50 ->  | C131: =HLOOKUP(#REF!,'EF Table'!$C$3:$AF$3,7,FALSE)+HLOOKUP(#REF!,'EF Table'!$C$3:$AF$3,8,FALSE)*$B$48/50+HLOOKUP(#REF!,'EF Table'!$C$3:$AF$3,9,FALSE)*$B$49/1000 ->  | D131: =HLOOKUP(#REF!,'EF Table'!$C$3:$AF$3,7,FALSE)+HLOOKUP(#REF!,'EF Table'!$C$3:$AF$3,8,FALSE)*$B$48/50+HLOOKUP(#REF!,'EF Table'!$C$3:$AF$3,9,FALSE)*$B$49/1000 ->  | E131: =HLOOKUP(#REF!,'EF Table'!$C$3:$AF$3,7,FALSE)+HLOOKUP(#REF!,'EF Table'!$C$3:$AF$3,8,FALSE)*$B$48/50+HLOOKUP(#REF!,'EF Table'!$C$3:$AF$3,9,FALSE)*$B$49/1000 ->  | F131: 0 | G131: =HLOOKUP(#REF!,'EF Table'!$C$3:$AF$3,7,FALSE)+HLOOKUP(#REF!,'EF Table'!$C$3:$AF$3,8,FALSE)*$B$52/50+HLOOKUP(#REF!,'EF Table'!$C$3:$AF$3,9,FALSE)*$B$49/1000 ->  | H131: =HLOOKUP(#REF!,'EF Table'!$C$3:$AF$3,7,FALSE)+HLOOKUP(#REF!,'EF Table'!$C$3:$AF$3,8,FALSE)*$B$52/50+HLOOKUP(#REF!,'EF Table'!$C$3:$AF$3,9,FALSE)*$B$49/1000 ->  | I131: =HLOOKUP(#REF!,'EF Table'!$C$3:$AF$3,7,FALSE)+HLOOKUP(#REF!,'EF Table'!$C$3:$AF$3,8,FALSE)*$B$52/50+HLOOKUP(#REF!,'EF Table'!$C$3:$AF$3,9,FALSE)*$B$49/1000 ->  | J131: =HLOOKUP(#REF!,'EF Table'!$C$3:$AF$3,7,FALSE)+HLOOKUP(#REF!,'EF Table'!$C$3:$AF$3,8,FALSE)*$B$52/50+HLOOKUP(#REF!,'EF Table'!$C$3:$AF$3,9,FALSE)*$B$49/1000 -> 
A132: Co-product Credits | B132: =HLOOKUP(#REF!,'EF Table'!$C$3:$AF$3,11,FALSE)*$B$102/5.5636 ->  | C132: 0
A133: Soy Oil Displacement Credit
A134: Ethanol Production | B134: =SUM(B135:B143) ->  | C134: =SUM(C135:C143) ->  | D134: =SUM(D135:D143) ->  | E134: =SUM(E135:E143) ->  | F134: =B134 ->  | G134: =SUM(G135:G143) ->  | H134: =SUM(H135:H143) ->  | I134: =SUM(I135:I143) ->  | J134: =SUM(J135:J143) -> 
A135: Residual oil | B135: =($E$65*Reference!#REF!/$E$48*(100%*EF!$L16+'EF Table'!#REF!*#REF!+'EF Table'!#REF!))/10^6 ->  | C135: =(E65*Reference!#REF!/$E$49*(100%*EF!$L$16+'EF Table'!#REF!*#REF!+'EF Table'!#REF!))/10^6 ->  | D135: =($E65*Reference!#REF!/$E$49*(100%*EF!$L$16+'EF Table'!#REF!*#REF!+'EF Table'!#REF!))/10^6 ->  | E135: =($E65*Reference!#REF!/$E$49*(100%*EF!$L$16+'EF Table'!#REF!*#REF!+'EF Table'!#REF!))/10^6 ->  | G135: =($E$65*Reference!#REF!/$E$49*(100%*EF!$L16+'EF Table'!#REF!*#REF!+'EF Table'!#REF!))/10^6 ->  | H135: =($E$65*Reference!#REF!/$E$49*(100%*EF!$L16+'EF Table'!#REF!*#REF!+'EF Table'!#REF!))/10^6 ->  | I135: =($E$65*Reference!#REF!/$E$49*(100%*EF!$L16+'EF Table'!#REF!*#REF!+'EF Table'!#REF!))/10^6 ->  | J135: =($E$65*Reference!#REF!/$E$49*(100%*EF!$L16+'EF Table'!#REF!*#REF!+'EF Table'!#REF!))/10^6 -> 
A136: Diesel fuel | B136: =($E$66*Reference!$B$9/$E$48*(20%*EF!$R6+80%*EF!$S6+'EF Table'!#REF!*#REF!+HLOOKUP(#REF!,'EF Table'!$C$3:$AF$3,16,FALSE)))/10^6 ->  | C136: =(E66*Reference!$B$9/$E$49*(20%*EF!$R$6+80%*EF!$S6+'EF Table'!#REF!*#REF!+HLOOKUP(#REF!,'EF Table'!$C$3:$AF$3,16,FALSE)))/10^6 ->  | D136: =($E66*Reference!$B$9/$E$49*(20%*EF!$R$6+80%*EF!$S6+'EF Table'!#REF!*#REF!+HLOOKUP(#REF!,'EF Table'!$C$3:$AF$3,16,FALSE)))/10^6 ->  | E136: =($E66*Reference!$B$9/$E$49*(20%*EF!$R$6+80%*EF!$S6+'EF Table'!#REF!*#REF!+HLOOKUP(#REF!,'EF Table'!$C$3:$AF$3,16,FALSE)))/10^6 ->  | G136: =($E$66*Reference!$B$9/$E$49*(20%*EF!$R6+80%*EF!$S6+'EF Table'!#REF!*#REF!+HLOOKUP(#REF!,'EF Table'!$C$3:$AF$3,16,FALSE)))/10^6 ->  | H136: =($E$66*Reference!$B$9/$E$49*(20%*EF!$R6+80%*EF!$S6+'EF Table'!#REF!*#REF!+HLOOKUP(#REF!,'EF Table'!$C$3:$AF$3,16,FALSE)))/10^6 ->  | I136: =($E$66*Reference!$B$9/$E$49*(20%*EF!$R6+80%*EF!$S6+'EF Table'!#REF!*#REF!+HLOOKUP(#REF!,'EF Table'!$C$3:$AF$3,16,FALSE)))/10^6 ->  | J136: =($E$66*Reference!$B$9/$E$49*(20%*EF!$R6+80%*EF!$S6+'EF Table'!#REF!*#REF!+HLOOKUP(#REF!,'EF Table'!$C$3:$AF$3,16,FALSE)))/10^6 -> 
A137: Gasoline | B137: =$E$67*Reference!#REF!/$E$48*(EF!$U6+'EF Table'!#REF!*#REF!+HLOOKUP(#REF!,'EF Table'!$C$3:$AF$3,17,FALSE))/10^6 ->  | C137: =E67*Reference!#REF!/$E$49*(EF!$U6+'EF Table'!#REF!*#REF!+HLOOKUP(#REF!,'EF Table'!$C$3:$AF$3,17,FALSE))/10^6 ->  | D137: =$E67*Reference!#REF!/$E$49*(EF!$U6+'EF Table'!#REF!*#REF!+HLOOKUP(#REF!,'EF Table'!$C$3:$AF$3,17,FALSE))/10^6 ->  | E137: =$E67*Reference!#REF!/$E$49*(EF!$U6+'EF Table'!#REF!*#REF!+HLOOKUP(#REF!,'EF Table'!$C$3:$AF$3,17,FALSE))/10^6 ->  | G137: =$E$67*Reference!#REF!/$E$49*(EF!$U6+'EF Table'!#REF!*#REF!+HLOOKUP(#REF!,'EF Table'!$C$3:$AF$3,17,FALSE))/10^6 ->  | H137: =$E$67*Reference!#REF!/$E$49*(EF!$U6+'EF Table'!#REF!*#REF!+HLOOKUP(#REF!,'EF Table'!$C$3:$AF$3,17,FALSE))/10^6 ->  | I137: =$E$67*Reference!#REF!/$E$49*(EF!$U6+'EF Table'!#REF!*#REF!+HLOOKUP(#REF!,'EF Table'!$C$3:$AF$3,17,FALSE))/10^6 ->  | J137: =$E$67*Reference!#REF!/$E$49*(EF!$U6+'EF Table'!#REF!*#REF!+HLOOKUP(#REF!,'EF Table'!$C$3:$AF$3,17,FALSE))/10^6 -> 
A138: Natural gas | B138: =$E$68*Reference!$F$15*10^6/$E$48*(50%*EF!$B$16+50%*EF!$C$16+HLOOKUP(#REF!,'EF Table'!$C$3:$AF$3,23,FALSE))*#REF!/Reference!#REF! ->  | C138: =(E68-E76-E77)*Reference!$F$15*10^6/$E$49*(50%*EF!$B$16+50%*EF!$C$16+HLOOKUP(#REF!,'EF Table'!$C$3:$AF$3,18,FALSE))/Reference!#REF!*#REF!*#REF! ->  | D138: =($E68-E77)*Reference!$F$15*10^6/$E$49*(50%*EF!$B$16+50%*EF!$C$16+HLOOKUP(#REF!,'EF Table'!$C$3:$AF$3,18,FALSE))/Reference!#REF!*#REF!*#REF! ->  | E138: =($E68-$E76)*Reference!$F$15*10^6/$E$49*(50%*EF!$B$16+50%*EF!$C$16+HLOOKUP(#REF!,'EF Table'!$C$3:$AF$3,18,FALSE))/Reference!#REF!*#REF!*#REF! ->  | G138: =($E$68)*Reference!$F$15*10^6/$E$49*(50%*EF!$B$16+50%*EF!$C$16+HLOOKUP(#REF!,'EF Table'!$C$3:$AF$3,18,FALSE))/Reference!#REF!*#REF!*#REF! ->  | H138: =($E$68-$E$76-$E$77)*Reference!$F$15*10^6/$E$49*(50%*EF!$B$16+50%*EF!$C$16+HLOOKUP(#REF!,'EF Table'!$C$3:$AF$3,18,FALSE))/Reference!#REF!*#REF!*#REF! ->  | I138: =($E$68-$E$77)*Reference!$F$15*10^6/$E$49*(50%*EF!$B$16+50%*EF!$C$16+HLOOKUP(#REF!,'EF Table'!$C$3:$AF$3,18,FALSE))/Reference!#REF!*#REF!*#REF! ->  | J138: =($E$68-$E$76)*Reference!$F$15*10^6/$E$49*(50%*EF!$B$16+50%*EF!$C$16+HLOOKUP(#REF!,'EF Table'!$C$3:$AF$3,18,FALSE))/Reference!#REF!*#REF!*#REF! -> 
A139: Coal | B139: =$E$69*Reference!#REF!/$E$48*(100%*EF!$AC16+HLOOKUP(#REF!,'EF Table'!$C$3:$AF$3,24,FALSE))/Reference!#REF!*#REF! ->  | C139: =E69*Reference!#REF!/$E$49*(100%*EF!$AC6+HLOOKUP(#REF!,'EF Table'!$C$3:$AF$3,19,FALSE))/Reference!#REF!*#REF!*#REF! ->  | D139: =E69*Reference!#REF!/$E$49*(100%*EF!$AC6+HLOOKUP(#REF!,'EF Table'!$C$3:$AF$3,19,FALSE))/Reference!#REF!*#REF!*#REF! ->  | E139: =E69*Reference!#REF!/$E$49*(100%*EF!$AC6+HLOOKUP(#REF!,'EF Table'!$C$3:$AF$3,19,FALSE))/Reference!#REF!*#REF!*#REF! ->  | G139: =$E$69*Reference!#REF!/$E$49*(100%*EF!$AC6+HLOOKUP(#REF!,'EF Table'!$C$3:$AF$3,19,FALSE))/Reference!#REF!*#REF!*#REF! ->  | H139: =$E$69*Reference!#REF!/$E$49*(100%*EF!$AC6+HLOOKUP(#REF!,'EF Table'!$C$3:$AF$3,19,FALSE))/Reference!#REF!*#REF!*#REF! ->  | I139: =$E$69*Reference!#REF!/$E$49*(100%*EF!$AC6+HLOOKUP(#REF!,'EF Table'!$C$3:$AF$3,19,FALSE))/Reference!#REF!*#REF!*#REF! ->  | J139: =$E$69*Reference!#REF!/$E$49*(100%*EF!$AC6+HLOOKUP(#REF!,'EF Table'!$C$3:$AF$3,19,FALSE))/Reference!#REF!*#REF!*#REF! -> 
A140: Liquefied petroleum gas | B140: =$E$70*Reference!$B$12/$E$48*(EF!$Z6+35%*('EF Table'!#REF!*#REF!+'EF Table'!#REF!)+65%*('EF Table'!#REF!))/10^6 ->  | C140: =E70*Reference!$B$12/$E$49*(EF!$Z6+35%*('EF Table'!#REF!*#REF!+'EF Table'!#REF!)+65%*('EF Table'!#REF!))/10^6 ->  | D140: =E70*Reference!$B$12/$E$49*(EF!$Z6+35%*('EF Table'!#REF!*#REF!+'EF Table'!#REF!)+65%*('EF Table'!#REF!))/10^6 ->  | E140: =E70*Reference!$B$12/$E$49*(EF!$Z6+35%*('EF Table'!#REF!*#REF!+'EF Table'!#REF!)+65%*('EF Table'!#REF!))/10^6 ->  | G140: =$E$70*Reference!$B$12/$E$49*(EF!$Z6+35%*('EF Table'!#REF!*#REF!+'EF Table'!#REF!)+65%*('EF Table'!#REF!))/10^6 ->  | H140: =$E$70*Reference!$B$12/$E$49*(EF!$Z6+35%*('EF Table'!#REF!*#REF!+'EF Table'!#REF!)+65%*('EF Table'!#REF!))/10^6 ->  | I140: =$E$70*Reference!$B$12/$E$49*(EF!$Z6+35%*('EF Table'!#REF!*#REF!+'EF Table'!#REF!)+65%*('EF Table'!#REF!))/10^6 ->  | J140: =$E$70*Reference!$B$12/$E$49*(EF!$Z6+35%*('EF Table'!#REF!*#REF!+'EF Table'!#REF!)+65%*('EF Table'!#REF!))/10^6 -> 
A141: Biomass | B141: =$E$71*Reference!#REF!/$E$48*(100%*EF!$AV$16+HLOOKUP(#REF!,'EF Table'!$C$3:$AF$3,21,FALSE)/Reference!#REF!)/Reference!#REF!*#REF! ->  | C141: =E71*Reference!#REF!/$E$49*(100%*EF!$AV$16+HLOOKUP(#REF!,'EF Table'!$C$3:$AF$3,21,FALSE)/Reference!#REF!)/Reference!#REF!*#REF!*#REF! ->  | D141: =E71*Reference!#REF!/$E$49*(100%*EF!$AV$16+HLOOKUP(#REF!,'EF Table'!$C$3:$AF$3,21,FALSE)/Reference!#REF!)/Reference!#REF!*#REF!*#REF! ->  | E141: =E71*Reference!#REF!/$E$49*(100%*EF!$AV$16+HLOOKUP(#REF!,'EF Table'!$C$3:$AF$3,21,FALSE)/Reference!#REF!)/Reference!#REF!*#REF!*#REF! ->  | G141: =$E$71*Reference!#REF!/$E$49*(100%*EF!$AV$16+HLOOKUP(#REF!,'EF Table'!$C$3:$AF$3,21,FALSE)/Reference!#REF!)/Reference!#REF!*#REF!*#REF! ->  | H141: =$E$71*Reference!#REF!/$E$49*(100%*EF!$AV$16+HLOOKUP(#REF!,'EF Table'!$C$3:$AF$3,21,FALSE)/Reference!#REF!)/Reference!#REF!*#REF!*#REF! ->  | I141: =$E$71*Reference!#REF!/$E$49*(100%*EF!$AV$16+HLOOKUP(#REF!,'EF Table'!$C$3:$AF$3,21,FALSE)/Reference!#REF!)/Reference!#REF!*#REF!*#REF! ->  | J141: =$E$71*Reference!#REF!/$E$49*(100%*EF!$AV$16+HLOOKUP(#REF!,'EF Table'!$C$3:$AF$3,21,FALSE)/Reference!#REF!)/Reference!#REF!*#REF!*#REF! -> 
A142: Electricity | B142: =$E$72*Reference!$F$48/$E$48*(HLOOKUP(#REF!,'EF Table'!$C$3:$AF$3,27,FALSE))/Reference!#REF!*#REF! ->  | C142: =E72*Reference!$F$48/$E$49*(HLOOKUP(#REF!,'EF Table'!$C$3:$AF$3,22,FALSE))/Reference!#REF!*#REF!*#REF! ->  | D142: =E72*Reference!$F$48/$E$49*(HLOOKUP(#REF!,'EF Table'!$C$3:$AF$3,22,FALSE))/Reference!#REF!*#REF!*#REF! ->  | E142: =E72*Reference!$F$48/$E$49*(HLOOKUP(#REF!,'EF Table'!$C$3:$AF$3,22,FALSE))/Reference!#REF!*#REF!*#REF! ->  | G142: =$E$72*Reference!$F$48/$E$49*(HLOOKUP(#REF!,'EF Table'!$C$3:$AF$3,22,FALSE))/Reference!#REF!*#REF!*#REF! ->  | H142: =$E$72*Reference!$F$48/$E$49*(HLOOKUP(#REF!,'EF Table'!$C$3:$AF$3,22,FALSE))/Reference!#REF!*#REF!*#REF! ->  | I142: =$E$72*Reference!$F$48/$E$49*(HLOOKUP(#REF!,'EF Table'!$C$3:$AF$3,22,FALSE))/Reference!#REF!*#REF!*#REF! ->  | J142: =$E$72*Reference!$F$48/$E$49*(HLOOKUP(#REF!,'EF Table'!$C$3:$AF$3,22,FALSE))/Reference!#REF!*#REF!*#REF! -> 
A143: Renewable natural gas | B143: =$E$73*Reference!$F$15*10^6/$E$48*(100%*EF!$BH$16+HLOOKUP(#REF!,'EF Table'!$C$3:$AF$3,23,FALSE))/Reference!#REF!*#REF!*#REF! ->  | C143: =E73*Reference!$F$15*10^6/$E$49*(100%*EF!$BH$16+HLOOKUP(#REF!,'EF Table'!$C$3:$AF$3,23,FALSE))/Reference!#REF!*#REF!*#REF! ->  | D143: =E73*Reference!$F$15*10^6/$E$49*(100%*EF!$BH$16+HLOOKUP(#REF!,'EF Table'!$C$3:$AF$3,23,FALSE))/Reference!#REF!*#REF!*#REF! ->  | E143: =E73*Reference!$F$15*10^6/$E$49*(100%*EF!$BH$16+HLOOKUP(#REF!,'EF Table'!$C$3:$AF$3,23,FALSE))/Reference!#REF!*#REF!*#REF! ->  | G143: =$E$73*Reference!$F$15*10^6/$E$49*(100%*EF!$BH$16+HLOOKUP(#REF!,'EF Table'!$C$3:$AF$3,23,FALSE))/Reference!#REF!*#REF!*#REF! ->  | H143: =$E$73*Reference!$F$15*10^6/$E$49*(100%*EF!$BH$16+HLOOKUP(#REF!,'EF Table'!$C$3:$AF$3,23,FALSE))/Reference!#REF!*#REF!*#REF! ->  | I143: =$E$73*Reference!$F$15*10^6/$E$49*(100%*EF!$BH$16+HLOOKUP(#REF!,'EF Table'!$C$3:$AF$3,23,FALSE))/Reference!#REF!*#REF!*#REF! ->  | J143: =$E$73*Reference!$F$15*10^6/$E$49*(100%*EF!$BH$16+HLOOKUP(#REF!,'EF Table'!$C$3:$AF$3,23,FALSE))/Reference!#REF!*#REF!*#REF! -> 
A144: Other
A145: Chemical Use | B145: 1.803353946 | C145: =B145 -> 1.803353946 | D145: 1.803353946 | E145: 1.803353946 | F145: 1.803353946 | G145: 1.803353946 | H145: 1.803353946 | I145: =H145 -> 1.803353946 | J145: =I145 -> 1.803353946
A148: Ethanol Transport | B148: =$B$112*'EF Table'!#REF!/50*$C$112+$B$113/500*'EF Table'!#REF!*$C$113 ->  | C148: =$B$112*'EF Table'!#REF!/50*$C$112+$B$113/500*'EF Table'!#REF!*$C$113 ->  | D148: =$B$112*'EF Table'!#REF!/50*$C$112+$B$113/500*'EF Table'!#REF!*$C$113+$B$114/500*'EF Table'!#REF!*$C$114+B115/5000*'EF Table'!#REF!*$C$115 ->  | E148: =$B$112*'EF Table'!#REF!/50*$C$112+$B$113/500*'EF Table'!#REF!*$C$113+$B$114/500*'EF Table'!#REF!*$C$114+C115/5000*'EF Table'!#REF!*$C$115 ->  | F148: =$B$112*'EF Table'!#REF!/50*$C$112+$B$113/500*'EF Table'!#REF!*$C$113+$B$114/500*'EF Table'!#REF!*$C$114+D115/5000*'EF Table'!#REF!*$C$115 ->  | G148: =$B$112*'EF Table'!#REF!/50*$C$112+$B$113/500*'EF Table'!#REF!*$C$113+$B$114/500*'EF Table'!#REF!*$C$114+E115/5000*'EF Table'!#REF!*$C$115 ->  | H148: =$B$112*'EF Table'!#REF!/50*$C$112+$B$113/500*'EF Table'!#REF!*$C$113+$B$114/500*'EF Table'!#REF!*$C$114+F115/5000*'EF Table'!#REF!*$C$115 ->  | I148: =$B$112*'EF Table'!#REF!/50*$C$112+$B$113/500*'EF Table'!#REF!*$C$113+$B$114/500*'EF Table'!#REF!*$C$114+G115/5000*'EF Table'!#REF!*$C$115 ->  | J148: =$B$112*'EF Table'!#REF!/50*$C$112+$B$113/500*'EF Table'!#REF!*$C$113+$B$114/500*'EF Table'!#REF!*$C$114+H115/5000*'EF Table'!#REF!*$C$115 -> 
A149: Indirect Land Use | B149: 19.8 | C149: 19.8 | D149: 19.8 | E149: 19.8 | F149: 0 | G149: 19.4 | H149: =G149 -> 19.4 | I149: =H149 -> 19.4 | J149: =I149 -> 19.4
A150: Denaturant | B150: =(1-#REF!)*(C128+C129+C130+C131+C132+C134+C148+C149)+#REF!*#REF!-(C128+C129+C130+C131+C132+C134+C148+C149) ->  | C150: =(1-#REF!)*(C128+C129+C130+C131+C132+C134+C148+C149)+#REF!*#REF!-(C128+C129+C130+C131+C132+C134+C148+C149) ->  | D150: =(1-#REF!)*(D128+D129+D130+D131+D132+D134+D148+D149)+#REF!*#REF!-(D128+D129+D130+D131+D132+D134+D148+D149) ->  | E150: =(1-#REF!)*(E128+E129+E130+E131+E132+E134+E148+E149)+#REF!*#REF!-(E128+E129+E130+E131+E132+E134+E148+E149) ->  | F150: =(1-#REF!)*(F128+F129+F130+F131+F132+F134+F148+F149)+#REF!*#REF!-(F128+F129+F130+F131+F132+F134+F148+F149) ->  | G150: =(1-#REF!)*(G128+G129+G130+G131+G132+G134+G148+G149)+#REF!*#REF!-(G128+G129+G130+G131+G132+G134+G148+G149) ->  | H150: =(1-#REF!)*(H128+H129+H130+H131+H132+H134+H148+H149)+#REF!*#REF!-(H128+H129+H130+H131+H132+H134+H148+H149) ->  | I150: =(1-#REF!)*(I128+I129+I130+I131+I132+I134+I148+I149)+#REF!*#REF!-(I128+I129+I130+I131+I132+I134+I148+I149) ->  | J150: =(1-#REF!)*(J128+J129+J130+J131+J132+J134+J148+J149)+#REF!*#REF!-(J128+J129+J130+J131+J132+J134+J148+J149) -> 
A151: Tailpipe Emissions | B151: 0 | C151: =B151 -> 0 | D151: 0 | E151: 0 | F151: 0 | G151: 0 | H151: 0 | I151: 0 | J151: 0
A152: Total CI | B152: =SUM(B128:B134,B145,B148,B149,B150,B151) ->  | C152: =SUM(C128:C134,C145,C148,C149,C150,C151) ->  | D152: =IF(D126="None","N/A",SUM(D128:D134,D145,D148,D149,D150,D151)) -> N/A | E152: =IF(E126="None","N/A",SUM(E128:E134,E145,E148,E149,E150,E151)) ->  | F152: =SUM(F128:F151) ->  | G152: =SUM(G128:G151) ->  | H152: =SUM(H128:H151) ->  | I152: =SUM(I128:I151) ->  | J152: =SUM(J128:J151) -> 
A157: =$E$68*Reference!$F$15*10^6/$E$48*(50%*EF!$B$16+50%*EF!$C$16+HLOOKUP(#REF!,'EF Table'!$C$3:$AF$3,23,FALSE))/Reference!#REF!*#REF!*#REF! ->  | B157: =$E$68*Reference!$F$15*10^6/$E$48 -> 29133.66154 | C157: =(50%*EF!$B$16+50%*EF!$C$16+HLOOKUP(#REF!,'EF Table'!$C$3:$AF$3,23,FALSE))/Reference!#REF!*#REF! ->  | D157: =HLOOKUP(#REF!,'EF Table'!$C$3:$AF$3,23,FALSE) -> 

Sheet EtOH (hidden)
A1: Color Legend: | G1: DRAFT - FOR DISCUSSION ONLY - DO NOT USE
A2: Yellow Cells require user input | D2: Light Blue Cells show CI results
A3: Green Cells show the calculation button | D3: Gray Cells are Calculated Values
D5: Step 1 | E5: Applicant Information
A6: Starch Ethanol Calculator | D6: Applicant: | E6: ABC Company | G6: Feedstock Production Location: | I6: U.S. | J6: Ethanol Production Location: | L6: City, State
D7: Pathway Summary: | E7: Corn, Sorghum, and Corn Fiber Ethanol from Midwest, transported 1,800 miles to California to be used as transportation fuel in California
D8: Corn Ethanol Composite CI, g/MJ | F8: =H216 ->  | G8: Sorghum Ethanol (Composite CI), g/MJ | I8: =IF($J$46=0," ",H220) ->  | J8: Corn Fiber Ethanol CI, g/MJ | L8: =IF(BA46=0," ",H224) -> 
D9: Volume, gal | F9: =I216 -> 32837550.43 | G9: Volume, gal | I9: =IF($J$46=0," ",I220) -> 70694686.57 | J9: Ethanol Volume, gal | L9: =IF(BA46=0," ",I224) -> 
D10: Corn Ethanol (Dry DGS) CI, g/MJ | F10: =IF($U$46=0," ",H217) ->  | G10: Sorghum Ethanol (Dry DGS) CI, g/MJ | I10: =IF($U$46=0," ",H221) -> 
D11: Volume, gal | F11: =IF($U$46=0," ",I217) ->  | G11: Volume, gal | I11: =IF($U$46=0," ",I221) -> 
D12: Corn Ethanol (Modified DGS) CI, g/MJ | F12: =IF($AA$46=0," ",H218) ->  | G12: Sorghum Ethanol (Modified DGS) CI, g/MJ | I12: =IF($AA$46=0," ",H222) -> 
D13: Volume, gal | F13: =IF($UAC$46=0," ",I218) ->  | G13: Volume, gal | I13: =IF($U$46=0," ",I222) -> 
D14: Corn Ethanol (Wet DGS) CI, g/MJ | F14: =IF(H219=0, " ", H219) ->  | G14: Sorghum Ethanol (Wet DGS) CI, g/MJ | I14: =IF(H223=0," ",H223) -> 
D15: Volume, gal | F15: =IF(U46=0," ",I219) ->  | G15: Volume, gal | I15: =IF(U46=0," ",I223) -> 
D16: Electricity Mix Region for Feedstock | G16: 1-U.S Ave Mix | J16: Electricity Mix Region for Fuel | L16: 7-MROW Mix
B18: Corn as Feedstock | F18: Corn Transport | I18: Sorghum as Feedstock | M18: Sorghum Transport | P18: Co-Product Production | AP18: Fuel Production
A19: Step 2 | B19: Corn Inventory | F19: Conditional Default for Corn Transport Outside of CA | I19: Sorghum Inventory | M19: Conditional Default for Sorghum Transport Outside of CA | P19: Co-Products: Dry Distiller Grains | V19: Modified Distiller Grains | AB19: Wet Distiller Grains | AG19: Syrup | AK19: Corn/Sorghum Oil | AP19: Starch Ethanol Production | AV19: Cellulosic Ethanol Production | BB19: Step 3 | BC19: Energy Consumption (Natural Gas, Biomass, Coal, and Electricity) | BK19: Fuel Transport and Distribution
A20: Monthly Data | B20: Beginning Corn Inventory | C20: Corn Used (Calculated) | D20: Corn Received | E20: Ending Corn Inventory | F20: Corn Transport from Collection Center to Ethanol Plant (Monthly weighted average) | I20: Beginning Sorghum Inventory | J20: Sorghum Used (Calculated) | K20: Sorghum Received | L20: Ending Sorghum Inventory | M20: Sorghum Transport from Collection Center to Ethanol Plant (Monthly weighted average) | P20: Dry DG Beginning Inventory | Q20: Dry Distiller Grains Produced | R20: Dry Distiller Grains Sales | S20: Dry DG Ending Inventory | T20: Moisture Content | U20: Drying Energy | V20: Modified DG Beginning Inventory | W20: Modified Distiller Grains Produced | X20: Modified Distiller Grains Sales | Y20: Modified DG Ending Inventory | Z20: Moisture Content | AA20: Drying Energy | AB20: Wet DG Beginning Inventory | AC20: Wet Distiller Grains Produced | AD20: Wet Distiller Grains Sales | AE20: Wet DG Ending Inventory | AF20: Moisture Content | AG20: Syrup Beginning Inventory | AH20: Syrup Produced | AI20: Syrup Sales | AJ20: Syrup Ending Inventory | AK20: Beginning Oil Inventory | AL20: Oil Produced | AM20: Oil Sales | AN20: Ending Oil Inventory | AO20: Co-product Yield | AP20: Beginning Undenatured Ethanol | AQ20: Denatured Ethanol Sales | AR20: Undenatured Ethanol Sales | AS20: Ending Undenatured Ethanol | AT20: Undenatured Ethanol Produced | AU20: Site-Specific Denaturant | AV20: Beginning Cellulosic Enzyme | AW20: Cellulosic Enzyme Purchase | AX20: Cellulosic Enzyme Use | AY20: Ending Cellulosic Enzyme | AZ20: Corn Fiber Allocation | BA20: Undenatured Corn Fiber Ethanol | BB20: NG Use | BC20: Biogas Use | BD20: Biogas Source Distance | BE20: Biomass Use | BF20: Biomass Moisture | BG20: Biomass Transport Distance | BH20: Coal Use from Invoices | BI20: Electricity Use from grid | BJ20: Electricity from Co-located Solar or Wind | BK20: Finished Fuel Transport
A21: Unit | B21: Bushels | C21: Bushels | D21: Bushels | E21: Bushels | F21: By HDDT, miles | G21: By Rail, miles | H21: By Barge, miles | I21: Bushels | J21: Bushels | K21: Bushels | L21: Bushels | M21: By HDDT, miles | N21: By Rail, miles | O21: By Barge, miles | P21: Tons | Q21: Tons | R21: Tons | S21: Tons | T21: % | U21: MMBtu, HHV | V21: Tons | W21: Tons | X21: Tons | Y21: Tons | Z21: % | AA21: MMBtu, HHV | AC21: Tons | AD21: Tons | AE21: Tons | AF21: % | AG21: Tons | AH21: Tons | AI21: Tons | AJ21: Tons | AK21: lbs. | AL21: lbs. | AM21: lbs. | AN21: lbs. | AO21: Dry matter lbs./gal EtOH | AP21: Gallons @ 60o F | AQ21: Gallons @ 60o F | AR21: Gallons @ 60o F | AS21: Gallons @ 60o F | AT21: Gallons @ 60o F | AU21: Gallons | AV21: lbs. | AW21: lbs. | AX21: lbs. | AY21: lbs. | AZ21: % | BA21: Gallons @ 60o F | BB21: MMBtu (HHV) | BC21: MMBtu (HHV) | BD21: miles | BE21: Dry Tons | BF21: % | BG21: miles | BH21: Dry Tons | BI21: kWh | BJ21: kWh | BK21: Mode | BL21: Miles
A22: Month 1 | B22: 1000000 | C22: =B22+D22-E22 -> 0 | D22: 0 | E22: 1000000 | F22: 80 | G22: 0 | I22: 0 | J22: =I22+K22-L22 -> 1063963.75 | K22: 1063963.75 | L22: 0 | M22: 80 | N22: 0 | P22: 100000 | Q22: =R22+S22-P22 -> 4217 | R22: 4217 | S22: 100000 | T22: 0.1089 | U22: 0 | V22: 0 | W22: =X22+Y22-V22 -> 0 | X22: 0 | Y22: 0 | Z22: 0.55 | AA22: 0 | AB22: 100000 | AC22: =AD22+AE22-AB22 -> 21121.12 | AD22: 21121.12 | AE22: 100000 | AF22: 0.6622 | AG22: 8 | AH22: =AI22+AJ22-AG22 -> 0 | AI22: 0 | AJ22: 8 | AK22: 80000 | AL22: =AM22+AN22-AK22 -> 400000 | AM22: 400000 | AN22: 80000 | AO22: =(((Q22*(1-T22)+W22*(1-Z22)+AC22*(1-AF22)+AH22*(1-0.3))*2000))/(AT22+BA22) -> 10.54084569 | AP22: 13000000 | AQ22: 4066719 | AR22: 100000 | AS22: 11000000 | AT22: =AS22-AP22+AQ22+AR22-AU22 -> 2066719 | AU22: 100000 | AV22: 8 | AW22: 0 | AX22: =AV22-AY22+AW22 -> 0 | AY22: 8 | AZ22: 0 | BA22: =AZ22*AT22 -> 0 | BB22: 96481 | BH22: 0 | BI22: 2050883.353 | BK22: By Rail | BL22: 1800
A23: Month 2 | B23: =E22 -> 1000000 | C23: =B23+D23-E23 -> 0 | D23: 0 | E23: 1000000 | F23: 80 | G23: 0 | I23: =L22 -> 0 | J23: =I23+K23-L23 -> 1094237.64 | K23: 1094237.64 | L23: 0 | M23: 80 | N23: 0 | P23: =S22 -> 100000 | Q23: =R23+S23-P23 -> 3600 | R23: 3600 | S23: 100000 | T23: 0.1133 | U23: 0 | V23: =Y22 -> 0 | W23: =X23+Y23-V23 -> 0 | X23: 0 | Y23: 0 | Z23: 0.55 | AA23: 0 | AB23: =AE22 -> 100000 | AC23: =AD23+AE23-AB23 -> 21578.36 | AD23: 21578.36 | AE23: 100000 | AF23: 0.6675 | AG23: =AJ22 -> 8 | AH23: =AI23+AJ23-AG23 -> 0 | AI23: 0 | AJ23: 8 | AK23: =AN22 -> 80000 | AL23: =AM23+AN23-AK23 -> 500000 | AM23: 500000 | AN23: 80000 | AO23: 4.539882878 | AP23: =AS22 -> 11000000 | AQ23: 4167045 | AR23: 500000 | AS23: 11000000 | AT23: =AS23-AP23+AQ23+AR23-AU23 -> 4567045 | AU23: 100000 | AV23: =AY22 -> 8 | AW23: 0 | AX23: =AV23-AY23+AW23 -> 0 | AY23: 8 | AZ23: 0 | BA23: =AZ23*AT23 -> 0 | BB23: 99788 | BH23: 0 | BI23: 2068199.647
A24: Month 3 | B24: =E23 -> 1000000 | C24: 0 | D24: 0 | E24: 1000000 | F24: 80 | G24: 0 | I24: =L23 -> 0 | J24: 876094 | K24: 876094 | L24: 0 | M24: 80 | N24: 0 | P24: =S23 -> 100000 | Q24: =R24+S24-P24 -> 2394 | R24: 2394 | S24: 100000 | T24: 0.1112 | U24: 0 | V24: =Y23 -> 0 | W24: 0 | X24: 0 | Y24: 0 | Z24: 0.55 | AA24: 0 | AB24: =AE23 -> 100000 | AC24: 21204.17 | AD24: 21204.17 | AE24: 100000 | AF24: 0.6697 | AG24: =AJ23 -> 8 | AH24: 0 | AI24: 0 | AJ24: 8 | AK24: =AN23 -> 80000 | AL24: =AM24+AN24-AK24 -> 500000 | AM24: 500000 | AN24: 80000 | AO24: 4.344329622 | AP24: 11000000 | AQ24: 3803882 | AR24: 500000 | AS24: 11000000 | AT24: 4203882 | AU24: 100000 | AV24: =AY23 -> 8 | AW24: 0 | AX24: 0 | AY24: 8 | AZ24: 0 | BA24: 0 | BB24: 90580 | BH24: 0 | BI24: 1946033 | BK24: By HDD Truck | BL24: 100
A25: Month 4 | B25: 1000000 | C25: 0 | D25: 0 | E25: 1000000 | F25: 80 | G25: 0 | I25: 0 | J25: 918330 | K25: 918330 | L25: 0 | M25: 80 | N25: 0 | P25: 100000 | Q25: 2681.25 | R25: 2681.25 | S25: 100000 | T25: 0.1109 | U25: 0 | V25: 0 | W25: 0 | X25: 0 | Y25: 0 | Z25: 0.55 | AA25: 0 | AB25: 100000 | AC25: 20378 | AD25: 20378 | AE25: 100000 | AF25: 0.6677 | AG25: 8 | AH25: 0 | AI25: 0 | AJ25: 8 | AK25: 80000 | AL25: 500000 | AM25: 500000 | AN25: 80000 | AO25: 4.594449468 | AP25: 11000000 | AQ25: 3585465 | AR25: 500000 | AS25: 11000000 | AT25: 3985465 | AU25: 100000 | AV25: 8 | AW25: 0 | AX25: =AV25-AY25+AW25 -> 0 | AY25: 8 | AZ25: 0 | BA25: 0 | BB25: 80188 | BH25: 0 | BI25: 1793837
A26: Month 5 | B26: 1000000 | C26: 0 | D26: 0 | E26: 1000000 | F26: 80 | G26: 0 | I26: 0 | J26: 1094500 | K26: 1094500 | L26: 0 | M26: 80 | N26: 0 | P26: 100000 | Q26: 4014.18 | R26: 4014.18 | S26: 100000 | T26: 0.1227 | U26: 0 | V26: 0 | W26: 0 | X26: 0 | Y26: 0 | Z26: 0.55 | AA26: 0 | AB26: 100000 | AC26: 23102.54 | AD26: 23102.54 | AE26: 100000 | AF26: 0.6669 | AG26: 8 | AH26: 0 | AI26: 0 | AJ26: 8 | AK26: 80000 | AL26: 500000 | AM26: 500000 | AN26: 80000 | AO26: 4.746604976 | AP26: 11000000 | AQ26: 4326366 | AR26: 500000 | AS26: 11000000 | AT26: 4726366 | AU26: 100000 | AV26: 8 | AW26: 0 | AX26: =AV26-AY26+AW26 -> 0 | AY26: 8 | AZ26: 0 | BA26: 0 | BB26: 101860 | BH26: 0 | BI26: 2156354 | BK26: By Barge | BL26: 0
A27: Month 6 | B27: 1000000 | C27: 0 | D27: 0 | E27: 1000000 | F27: 80 | G27: 0 | I27: 0 | J27: 969748 | K27: 969748 | L27: 0 | M27: 80 | N27: 0 | P27: 100000 | Q27: 2730.52 | R27: 2730.52 | S27: 100000 | T27: 0.1239 | U27: 0 | V27: 0 | W27: 0 | X27: 0 | Y27: 0 | Z27: 0.55 | AA27: 0 | AB27: 100000 | AC27: 22923.38 | AD27: 22923.38 | AE27: 100000 | AF27: 0.6675 | AG27: 8 | AH27: 0 | AI27: 0 | AJ27: 8 | AK27: 80000 | AL27: 500000 | AM27: 500000 | AN27: 80000 | AO27: 4.759680643 | AP27: 11000000 | AQ27: 3807943 | AR27: 500000 | AS27: 11000000 | AT27: 4207943 | AU27: 100000 | AV27: 8 | AW27: 0 | AX27: 0 | AY27: 8 | AZ27: 0 | BA27: 0 | BB27: 84541 | BH27: 0 | BI27: 1992869
A28: Month 7 | B28: 1000000 | C28: =B28+D28-E28 -> 0 | D28: 0 | E28: 1000000 | F28: 80 | G28: 0 | I28: 0 | J28: 1124983 | K28: 1124983 | L28: 0 | M28: 80 | N28: 0 | P28: 100000 | Q28: 3576 | R28: 3576 | S28: 100000 | T28: 0.1213 | U28: 0 | V28: 0 | W28: 0 | X28: 0 | Y28: 0 | Z28: 0.55 | AA28: 0 | AB28: 100000 | AC28: 24657 | AD28: 24657 | AE28: 100000 | AF28: 0.6622 | AG28: 8 | AH28: 0 | AI28: 0 | AJ28: 8 | AK28: 80000 | AL28: =AM28+AN28-AK28 -> 500000 | AM28: 500000 | AN28: 80000 | AO28: 4.85716606 | AP28: 11000000 | AQ28: 4323481 | AR28: 500000 | AS28: 11000000 | AT28: 4723481 | AU28: 100000 | AV28: 8 | AW28: 0 | AX28: 0 | AY28: 8 | AZ28: 0 | BA28: 0 | BB28: 95134 | BH28: 0 | BI28: 2150707.581
A29: Month 8 | B29: 1000000 | C29: 0 | D29: 0 | E29: 1000000 | F29: 80 | G29: 0 | I29: 0 | J29: 1118850.04 | K29: 1118850.04 | L29: 0 | M29: 80 | N29: 0 | P29: 100000 | Q29: 4644.04 | R29: 4644.04 | S29: 100000 | T29: 0.1253 | U29: 0 | V29: 0 | W29: 0 | X29: 0 | Y29: 0 | Z29: 0.55 | AA29: 0 | AB29: 100000 | AC29: 22027.77 | AD29: 22027.77 | AE29: 100000 | AF29: 0.6778 | AG29: 8 | AH29: 0 | AI29: 0 | AJ29: 8 | AK29: 80000 | AL29: 500000 | AM29: 500000 | AN29: 80000 | AO29: 4.846520598 | AP29: 11000000 | AQ29: 4205155 | AR29: 500000 | AS29: 11000000 | AT29: 4605155 | AU29: 100000 | AV29: 8 | AW29: 0 | AX29: 0 | AY29: 8 | AZ29: 0 | BA29: 0 | BB29: 96561 | BH29: 0 | BI29: 2344427.419
A30: Month 9 | B30: 1000000 | C30: 0 | D30: 0 | E30: 1000000 | F30: 80 | G30: 0 | I30: 0 | J30: 1060576 | K30: 1060576 | L30: 0 | M30: 80 | N30: 0 | P30: 100000 | Q30: 3595.83 | R30: 3595.83 | S30: 100000 | T30: 0.1247 | U30: 0 | V30: 0 | W30: 0 | X30: 0 | Y30: 0 | Z30: 0.55 | AA30: 0 | AB30: 100000 | AC30: 23277.54 | AD30: 23277.54 | AE30: 100000 | AF30: 0.665 | AG30: 8 | AH30: 0 | AI30: 0 | AJ30: 8 | AK30: 80000 | AL30: 500000 | AM30: 500000 | AN30: 80000 | AO30: 4.863087028 | AP30: 11000000 | AQ30: 4101423 | AR30: 500000 | AS30: 11000000 | AT30: 4501423 | AU30: 100000 | AV30: 8 | AW30: 0 | AX30: 0 | AY30: 8 | AZ30: 0 | BA30: 0 | BB30: 89458 | BH30: 0 | BI30: 2279997 | BK30: Finished Fuel Distribution Standard Value is at 90 miles by HDDT
A31: Month 10 | B31: 1000000 | C31: 0 | D31: 0 | E31: 1000000 | F31: 80 | G31: 0 | I31: 0 | J31: 1058019 | K31: 1058019 | L31: 0 | M31: 80 | N31: 0 | P31: 100000 | Q31: 3661.76 | R31: 3661.76 | S31: 100000 | T31: 0.1176 | U31: 0 | V31: 0 | W31: 0 | X31: 0 | Y31: 0 | Z31: 0.55 | AA31: 0 | AB31: 100000 | AC31: 22562.88 | AD31: 22562.88 | AE31: 100000 | AF31: 0.6647 | AG31: 8 | AH31: 0 | AI31: 0 | AJ31: 8 | AK31: 80000 | AL31: 500000 | AM31: 500000 | AN31: 80000 | AO31: 4.722914119 | AP31: 11000000 | AQ31: 4171953 | AR31: 500000 | AS31: 11000000 | AT31: 4571953 | AU31: 100000 | AV31: 8 | AW31: 0 | AX31: 0 | AY31: 8 | AZ31: 0 | BA31: 0 | BB31: 90515 | BH31: 0 | BI31: 2372708.938
A32: Month 11 | B32: 1000000 | C32: 0 | D32: 0 | E32: 1000000 | F32: 80 | G32: 0 | I32: 0 | J32: 1071557 | K32: 1071557 | L32: 0 | M32: 80 | N32: 0 | P32: 100000 | Q32: 4044.32 | R32: 4044.32 | S32: 100000 | T32: 0.1161 | U32: 0 | V32: 0 | W32: 0 | X32: 0 | Y32: 0 | Z32: 0.55 | AA32: 0 | AB32: 100000 | AC32: 22429.4 | AD32: 22429.4 | AE32: 100000 | AF32: 0.661 | AG32: 8 | AH32: 0 | AI32: 0 | AJ32: 8 | AK32: 80000 | AL32: 500000 | AM32: 500000 | AN32: 80000 | AO32: 4.908373047 | AP32: 11000000 | AQ32: 4154805 | AR32: 500000 | AS32: 11000000 | AT32: 4554805 | AU32: 100000 | AV32: 8 | AW32: 0 | AX32: 0 | AY32: 8 | AZ32: 0 | BA32: 0 | BB32: 94094 | BH32: 0 | BI32: 2269199.062
A33: Month 12 | B33: 1000000 | C33: 94606 | D33: 94606 | E33: 1000000 | F33: 80 | G33: 0 | I33: 0 | J33: 1002691 | K33: 1002691 | L33: 0 | M33: 80 | N33: 0 | P33: 100000 | Q33: 2977.71 | R33: 2977.71 | S33: 100000 | T33: 0.114 | U33: 0 | V33: 0 | W33: 0 | X33: 0 | Y33: 0 | Z33: 0.55 | AA33: 0 | AB33: 100000 | AC33: 25052.33 | AD33: 25052.33 | AE33: 100000 | AF33: 0.6633 | AG33: 8 | AH33: 0 | AI33: 0 | AJ33: 8 | AK33: 80000 | AL33: 500000 | AM33: 500000 | AN33: 80000 | AO33: 4.797914418 | AP33: 11000000 | AQ33: 4215910 | AR33: 500000 | AS33: 11000000 | AT33: 4615910 | AU33: 100000 | AV33: 8 | AW33: 0 | AX33: 0 | AY33: 8 | AZ33: 0 | BA33: 0 | BB33: 92934 | BH33: 0 | BI33: 2105887
A34: Month 13 | B34: 1000000 | C34: 0 | D34: 0 | E34: 1000000 | F34: 80 | G34: 0 | I34: 0 | J34: 1090222 | K34: 1090222 | L34: 0 | M34: 80 | N34: 0 | P34: 100000 | Q34: 1903 | R34: 1903 | S34: 100000 | T34: 0.1015 | U34: 0 | V34: 0 | W34: 0 | X34: 0 | Y34: 0 | Z34: 0 | AA34: 0 | AB34: 100000 | AC34: 25965 | AD34: 25965 | AE34: 100000 | AF34: 0.6685 | AG34: 8 | AH34: 0 | AI34: 0 | AJ34: 8 | AK34: 80000 | AL34: 400000 | AM34: 500000 | AN34: 80000 | AO34: 4.794179927 | AP34: 11000000 | AQ34: 3904070 | AR34: 500000 | AS34: 11000000 | AT34: 4304070 | AU34: 100000 | AV34: 8 | AW34: 0 | AX34: 0 | AY34: 8 | AZ34: 0 | BA34: 0 | BB34: 84293 | BH34: 0 | BI34: 1798943.971
A35: Month 14 | B35: 1000000 | C35: 159050 | D35: 159050 | E35: 1000000 | F35: 80 | G35: 0 | I35: 0 | J35: 910710 | K35: 910710 | L35: 0 | M35: 80 | N35: 0 | P35: 100000 | Q35: 3131 | R35: 3131 | S35: 100000 | T35: 0.1074 | U35: 0 | V35: 0 | W35: 0 | X35: 0 | Y35: 0 | Z35: 0 | AA35: 0 | AB35: 100000 | AC35: 24087 | AD35: 24087 | AE35: 100000 | AF35: 0.669 | AG35: 8 | AH35: 0 | AI35: 0 | AJ35: 8 | AK35: 80000 | AL35: 400000 | AM35: 500000 | AN35: 80000 | AO35: 4.613422572 | AP35: 11000000 | AQ35: 4267913 | AR35: 500000 | AS35: 11000000 | AT35: 4667913 | AU35: 100000 | AV35: 8 | AW35: 0 | AX35: 0 | AY35: 8 | AZ35: 0 | BA35: 0 | BB35: 95261 | BH35: 0 | BI35: 1990626.029
A36: Month 15 | B36: 1000000 | C36: 47706 | D36: 47706 | E36: 1000000 | F36: 80 | G36: 0 | I36: 0 | J36: 980371.29 | K36: 980371.29 | L36: 0 | M36: 80 | N36: 0 | P36: 100000 | Q36: 3670 | R36: 3670 | S36: 100000 | T36: 0.1105 | U36: 0 | V36: 0 | W36: 0 | X36: 0 | Y36: 0 | Z36: 0 | AA36: 0 | AB36: 100000 | AC36: 22103 | AD36: 22103 | AE36: 100000 | AF36: 0.6671 | AG36: 8 | AH36: 0 | AI36: 0 | AJ36: 8 | AK36: 80000 | AL36: 400000 | AM36: 500000 | AN36: 80000 | AO36: 4.657583799 | AP36: 11000000 | AQ36: 4161401 | AR36: 500000 | AS36: 11000000 | AT36: 4561401 | AU36: 100000 | AV36: 8 | AW36: 0 | AX36: 0 | AY36: 8 | AZ36: 0 | BA36: 0 | BB36: 97754 | BI36: 1991064.929
A37: Month 16 | B37: =E36 -> 1000000 | C37: 877972 | D37: 877972 | E37: 1000000 | F37: 80 | G37: 0 | I37: 0 | J37: 18758.76 | K37: 18758.76 | L37: 0 | M37: 80 | N37: 0 | P37: 100000 | Q37: 3183 | R37: 3183 | S37: 100000 | T37: 0.1164 | U37: 0 | V37: 0 | W37: 0 | X37: 0 | Y37: 0 | Z37: 0 | AA37: 0 | AB37: 100000 | AC37: 18134 | AD37: 18134 | AE37: 100000 | AF37: 0.6698 | AG37: 8 | AH37: 0 | AI37: 0 | AJ37: 8 | AK37: 80000 | AL37: 400000 | AM37: 500000 | AN37: 80000 | AO37: 4.297755146 | AP37: 11000000 | AQ37: 3695322 | AR37: 500000 | AS37: 11000000 | AT37: 4095322 | AU37: 100000 | AV37: 8 | AW37: 0 | AX37: 0 | AY37: 8 | AZ37: 0 | BA37: 0 | BB37: 85323 | BI37: 1798256.728
A38: Month 17 | B38: 1000000 | C38: 824493 | D38: 824493 | E38: 1000000 | F38: 80 | G38: 0 | I38: 0 | J38: 0 | K38: 0 | L38: 0 | M38: 80 | N38: 0 | P38: 100000 | Q38: 2339 | R38: 2339 | S38: 100000 | T38: 0.111 | U38: 0 | V38: 0 | W38: 0 | X38: 0 | Y38: 0 | Z38: 0 | AA38: 0 | AB38: 100000 | AC38: 19120 | AD38: 19120 | AE38: 100000 | AF38: 0.6596 | AG38: 8 | AH38: 0 | AI38: 0 | AJ38: 8 | AK38: 80000 | AL38: 400000 | AM38: 500000 | AN38: 80000 | AO38: 4.310394604 | AP38: 11000000 | AQ38: 3584702 | AR38: 500000 | AS38: 11000000 | AT38: 3984702 | AU38: 100000 | AV38: 8 | AW38: 0 | AX38: 0 | AY38: 8 | AZ38: 0 | BA38: 0 | BB38: 81334 | BI38: 1890090.344
A39: Month 18 | B39: 1000000 | C39: 715561 | D39: 715561 | E39: 1000000 | F39: 80 | G39: 0 | I39: 0 | J39: 0 | K39: 0 | L39: 0 | M39: 80 | N39: 0 | P39: 100000 | Q39: 1367 | R39: 1367 | S39: 100000 | T39: 0.1077 | U39: 0 | V39: 0 | W39: 0 | X39: 0 | Y39: 0 | Z39: 0 | AA39: 0 | AB39: 100000 | AC39: 17444 | AD39: 17444 | AE39: 100000 | AF39: 0.6557 | AG39: 8 | AH39: 0 | AI39: 0 | AJ39: 8 | AK39: 80000 | AL39: 400000 | AM39: 500000 | AN39: 80000 | AO39: 4.070105237 | AP39: 11000000 | AQ39: 3150642 | AR39: 500000 | AS39: 11000000 | AT39: 3550642 | AU39: 100000 | AV39: 8 | AW39: 0 | AX39: 0 | AY39: 8 | AZ39: 0 | BA39: 0 | BB39: 68394 | BI39: 1992869
A40: Month 19 | B40: 1000000 | C40: 1021642 | D40: 1021642 | E40: 1000000 | F40: 80 | G40: 0 | I40: 0 | J40: 0 | K40: 0 | L40: 0 | M40: 80 | N40: 0 | P40: 100000 | Q40: 3301 | R40: 3301 | S40: 100000 | T40: 0.1101 | U40: 0 | V40: 0 | W40: 0 | X40: 0 | Y40: 0 | Z40: 0 | AA40: 0 | AB40: 100000 | AC40: 20794 | AD40: 20794 | AE40: 100000 | AF40: 0.6461 | AG40: 8 | AH40: 0 | AI40: 0 | AJ40: 8 | AK40: 80000 | AL40: 400000 | AM40: 500000 | AN40: 80000 | AO40: 4.627760478 | AP40: 11000000 | AQ40: 4049909 | AR40: 500000 | AS40: 11000000 | AT40: 4449909 | AU40: 100000 | AV40: 8 | AW40: 0 | AX40: 0 | AY40: 8 | AZ40: 0 | BA40: 0 | BB40: 89145 | BI40: 2135446.25
A41: Month 20 | B41: 1000000 | C41: 1002586 | D41: 1002586 | E41: 1000000 | F41: 80 | G41: 0 | I41: 0 | J41: 0 | K41: 0 | L41: 0 | M41: 80 | N41: 0 | P41: 100000 | Q41: 2921 | R41: 2921 | S41: 100000 | T41: 0.1102 | U41: 0 | V41: 0 | W41: 0 | X41: 0 | Y41: 0 | Z41: 0 | AA41: 0 | AB41: 100000 | AC41: 20250 | AD41: 20250 | AE41: 100000 | AF41: 0.656 | AG41: 8 | AH41: 0 | AI41: 0 | AJ41: 8 | AK41: 80000 | AL41: 400000 | AM41: 500000 | AN41: 80000 | AO41: 4.321577763 | AP41: 11000000 | AQ41: 4026673 | AR41: 500000 | AS41: 11000000 | AT41: 4426673 | AU41: 100000 | AV41: 8 | AW41: 0 | AX41: 0 | AY41: 8 | AZ41: 0 | BA41: 0 | BB41: 83690 | BI41: 2232048.75
A42: Month 21 | B42: 1000000 | C42: 1082907 | D42: 1082907 | E42: 1000000 | F42: 80 | G42: 0 | I42: 0 | J42: 0 | K42: 0 | L42: 0 | M42: 80 | N42: 0 | P42: 100000 | Q42: 3855 | R42: 3855 | S42: 100000 | T42: 0.1101 | U42: 0 | V42: 0 | W42: 0 | X42: 0 | Y42: 0 | Z42: 0 | AA42: 0 | AB42: 100000 | AC42: 21471 | AD42: 21471 | AE42: 100000 | AF42: 0.6622 | AG42: 8 | AH42: 0 | AI42: 0 | AJ42: 8 | AK42: 80000 | AL42: 400000 | AM42: 500000 | AN42: 80000 | AO42: 4.525365078 | AP42: 11000000 | AQ42: 4321594 | AR42: 500000 | AS42: 11000000 | AT42: 4721594 | AU42: 100000 | AV42: 8 | AW42: 0 | AX42: 0 | AY42: 8 | AZ42: 0 | BA42: 0 | BB42: 92615 | BI42: 2534011
A43: Month 22 | B43: 1000000 | C43: 1007522 | D43: 1007522 | E43: 1000000 | F43: 80 | G43: 0 | I43: 0 | J43: 0 | K43: 0 | L43: 0 | M43: 80 | N43: 0 | P43: 100000 | Q43: 3226 | R43: 3226 | S43: 100000 | T43: 0.1073 | U43: 0 | V43: 0 | W43: 0 | X43: 0 | Y43: 0 | Z43: 0 | AA43: 0 | AB43: 100000 | AC43: 20576 | AD43: 20576 | AE43: 100000 | AF43: 0.6562 | AG43: 8 | AH43: 0 | AI43: 0 | AJ43: 8 | AK43: 80000 | AL43: 400000 | AM43: 500000 | AN43: 80000 | AO43: 4.29530749 | AP43: 11000000 | AQ43: 4234769 | AR43: 500000 | AS43: 11000000 | AT43: 4634769 | AU43: 100000 | AV43: 8 | AW43: 0 | AX43: 0 | AY43: 8 | AZ43: 0 | BA43: 0 | BB43: 90277 | BI43: 2428932
A44: Month 23 | B44: 1000000 | C44: 844959 | D44: 844959 | E44: 1000000 | F44: 80 | G44: 0 | I44: 0 | J44: 105329.9 | K44: 105329.9 | L44: 0 | M44: 80 | N44: 0 | P44: 100000 | Q44: 3090 | R44: 3090 | S44: 100000 | T44: 0.1083 | U44: 0 | V44: 0 | W44: 0 | X44: 0 | Y44: 0 | Z44: 0 | AA44: 0 | AB44: 100000 | AC44: 19860 | AD44: 19860 | AE44: 100000 | AF44: 0.6622 | AG44: 8 | AH44: 0 | AI44: 0 | AJ44: 8 | AK44: 80000 | AL44: 500000 | AM44: 500000 | AN44: 80000 | AO44: 4.373079397 | AP44: 11000000 | AQ44: 3928328 | AR44: 500000 | AS44: 11000000 | AT44: 4328328 | AU44: 100000 | AV44: 8 | AW44: 0 | AX44: 0 | AY44: 8 | AZ44: 0 | BA44: 0 | BB44: 83675 | BI44: 2417237
A45: Month 24 | B45: 1000000 | C45: 0 | D45: 0 | E45: 1000000 | F45: 80 | G45: 0 | I45: 0 | J45: 972888 | K45: 972888 | L45: 0 | M45: 80 | N45: 0 | P45: 100000 | Q45: 4140 | R45: 4140 | S45: 100000 | T45: 0.1078 | U45: 0 | V45: 0 | W45: 0 | X45: 0 | Y45: 0 | Z45: 0 | AA45: 0 | AB45: 100000 | AC45: 20054 | AD45: 20054 | AE45: 100000 | AF45: 0.6594 | AG45: 8 | AH45: 0 | AI45: 0 | AJ45: 8 | AK45: 80000 | AL45: 150000 | AM45: 150000 | AN45: 80000 | AO45: 4.701652063 | AP45: 11000000 | AQ45: 4076767 | AR45: 500000 | AS45: 11000000 | AT45: 4476767 | AU45: 100000 | AV45: 8 | AW45: 0 | AX45: 0 | AY45: 8 | AZ45: 0 | BA45: =AZ45*AT45 -> 0 | BB45: 90785 | BI45: 2087611
A46: Total or Ave. | B46: =SUM(B22:B45) -> 24000000 | C46: =SUM(C22:C45) -> 7679004 | D46: =SUM(D22:D45) -> 7679004 | E46: =SUM(E22:E45) -> 24000000 | F46: =IFERROR(AVERAGE(F22:F45),"0") -> 80 | G46: =IFERROR(AVERAGE(G22:G45),"0") -> 0 | H46: =IFERROR(AVERAGE(H22:H45),"0") -> 0 | I46: 0 | J46: =SUM(J22:J45) -> 16531829.38 | K46: 16531829.38 | L46: 0 | M46: =IF(AND(K46=0,L46=0),"N/A",SUMPRODUCT($K$22:$K$45,M22:M45)/SUM($K$22:$K$45)) -> 80 | N46: =IF(AND(K46=0,L46=0),"N/A",SUMPRODUCT($K$22:$K$45,N22:N45)/SUM($K$22:$K$45)) -> 0 | O46: =IF(AND(K46=0,L46=0),"N/A",SUMPRODUCT($K$22:$K$45,O22:O45)/SUM($K$22:$K$45)) -> 0 | P46: =SUM(P22:P45) -> 2400000 | Q46: =SUM(Q22:Q45) -> 78262.61 | R46: =SUM(R22:R45) -> 78262.61 | S46: =SUM(S22:S45) -> 2400000 | T46: =IF(MAX($T22:$T45)<=0,"No Data",SUMIF($T22:$T45,">0")/COUNTIF($T22:$T45,">0")) -> 0.1132583333 | U46: =SUM(U23:U45) -> 0 | V46: =SUM(V22:V45) -> 0 | W46: =SUM(W22:W45) -> 0 | X46: =SUM(X22:X45) -> 0 | Y46: =SUM(Y22:Y45) -> 0 | Z46: =IF(MAX($Z22:$Z45)<=0,"No Data",SUMIF($Z22:$Z45,">0")/COUNTIF($Z22:$Z45,">0")) -> 0.55 | AA46: =SUM(AA22:AA45) -> 0 | AB46: =SUM(AB22:AB45) -> 2400000 | AC46: =SUM(AC22:AC45) -> 520172.49 | AD46: =SUM(AD22:AD45) -> 520172.49 | AE46: =SUM(AE22:AE45) -> 2400000 | AF46: =IF(MAX($AF22:$AF45)<=0,"No Data",SUMIF($AF22:$AF45,">0")/COUNTIF($AF22:$AF45,">0")) -> 0.6636375 | AG46: =SUM(AG22:AG45) -> 192 | AH46: =SUM(AH22:AH45) -> 0 | AI46: 0 | AJ46: 192 | AK46: =SUM(AK22:AK45) -> 1920000 | AL46: =SUM(AL22:AL45) -> 10550000 | AM46: 11550000 | AN46: =SUM(AN22:AN45) -> 1920000 | AO46: 4.720563246 | AP46: =SUM(AP22:AP45) -> 266000000 | AQ46: 96332237 | AR46: =SUM(AR22:AR45) -> 11600000 | AS46: 264000000 | AT46: =SUM(AT22:AT45) -> 103532237 | AU46: =SUM(AU22:AU45) -> 2400000 | AV46: 192 | AW46: 0 | AX46: 0 | AY46: 192 | AZ46: =AVERAGE(AZ20:AZ45) -> 0 | BA46: =SUM(BA22:BA45) -> 0 | BB46: =SUM(BB22:BB45) -> 2154680 | BC46: =SUM(BC22:BC45) -> 0 | BE46: =SUM(BE22:BE45) -> 0 | BF46: =IFERROR(AVERAGE(BF22:BF45),0) -> 0 | BG46: =IFERROR(AVERAGE(BG22:BG45),0) -> 0 | BH46: =SUM(BH22:BH45) -> 0 | BI46: =SUM(BI22:BI45) -> 50828240 | BJ46: =SUM(BJ22:BJ45) -> 0
A47: Total MMBtu in HHV | U47: =U46 -> 0 | AA47: =AA46 -> 0 | AT47: =AT46*Reference!#REF!/10^6 ->  | BA47: =BA46*Reference!#REF!/10^6 ->  | BB47: =IF(BB21="MMBtu (HHV)",BB46,IF(BB21="SCF (HHV)",BB46*983/10^6,IF(BB21="Therms (HHV)",BB46*10))) -> 2154680 | BE47: =BE46*BF46*Reference!#REF! ->  | BH47: =BH46*Reference!#REF!/10^6 ->  | BI47: =SUM(BI22:BI45)*Reference!$F$48/10^6 -> 173433.1543
A48: Convert to MMBtu, in LHV | U48: =U47*Reference!$F$15 -> 0 | AA48: =AA47*Reference!$F$15 -> 0 | AT48: =AT47*Reference!#REF! ->  | BB48: =BB47*Reference!$F$15 -> 1945487.767 | BC48: =BC46*Reference!$B$15/10^6 -> 0 | BE48: =BE46*BF46*Reference!#REF! ->  | BH48: =BH47*Reference!#REF! ->  | BI48: =BI47 -> 173433.1543
A49: Convert to Btu/gallons fuel throughput | U49: =U48*10^6/$AT$46 -> 0 | AA49: =AA48*10^6/$AT$46 -> 0 | BB49: =BB48*10^6/($AT$46+$BA$46) -> 18791.13041 | BC49: =BC48*10^6/($AT$46+$BA$46) -> 0 | BE49: =BE48*10^6/($AT$46+$BA$46) ->  | BH49: =BH48/($AT$46+BA46)*10^6 ->  | BI49: =BI48*10^6/($AT$46+BA46) -> 1675.16089
A50: Process Shares and Efficiency, % | C50: =C46/($C$46+$J$46) -> 0.3171722295 | J50: =J46/($C$46+$J$46) -> 0.6828277705 | Q50: =Q46/($Q$46+$W$46+$AC$46+$AH$46+$AL$46/2000) -> 0.1296360786 | W50: =W46/($Q$46+$W$46+$AC$46+$AH$46+$AL$46/2000) -> 0 | AC50: =AC46/($Q$46+$W$46+$AC$46+$AH$46+$AL$46/2000) -> 0.8616262839 | AH50: =AH46/($Q$46+$W$46+$AC$46+$AH$46+$AL$46/2000) -> 0 | AL50: =AL46/2000/($Q$46+$W$46+$AC$46+$AH$46+$AL$46/2000) -> 0.008737637485 | AU50: =AU46/AQ46 -> 0.02491377834 | BB50: =BB49/($BB$49+$BC$49+$BE$49+$BI$49+$BH$49+$BJ$49) ->  | BC50: =BC49/($BB$49+$BC$49+$BE$49+$BI$49+$BH$49+$BJ$49) ->  | BE50: =BE49/($BB$49+$BC$49+$BE$49+$BI$49+$BH$49+$BJ$49) ->  | BH50: =BH49/($BB$49+$BC$49+$BE$49+$BI$49+$BH$49+$BJ$49) ->  | BI50: =BI49/($BB$49+$BC$49+$BE$49+$BI$49+$BH$49+$BJ$49) ->  | BJ50: =BJ49/($BB$49+$BC$49+$BE$49+$BI$49+$BH$49+$BJ$49) -> 
BJ51: kWh/gal
BJ52: =BI46/AT46 -> 0.4909411935
A56: Corn Ethanol - Dry Mill | G56: Sorghum Ethanol - Dry Mill | J56: Corn Fiber
A57: eGRID (Electricity Mix) region | D57: =G16 -> 1-U.S Ave Mix | E57: Shares | F57: CI Outputs, g/MJ | G57: =G16 -> 1-U.S Ave Mix | H57: Shares | I57: CI Outputs, g/MJ | J57: =G16 -> 1-U.S Ave Mix | K57: Shares | L57: CI Outputs, g/MJ
A58: Feedstock Production | B58: Ethanol Yield, gal/bu | D58: =IF(C46=0,0,(AT46+BA46)/(C46+J46)) -> 4.276277292 | F58: =F60+F62+F63+F65+F71+F84 ->  | G58: =IF(J46=0,0,(AT46+BA46)/(C46+J46)) -> 4.276277292 | I58: =I60+I62+I63+I65+I71+I84 ->  | J58: =BA46/$C$46 -> 0 | L58: =L60 -> 0
B59: DGS Yield | D59: =AO46 -> 4.720563246 | G59: =IF(J46=0,0,AO46) -> 4.720563246 | J59: 0
B60: Corn or Sorghum Farming | F60: =IFERROR(HLOOKUP($D$57,'EF Table'!$C$3:$AF$3,3,FALSE)*1/$D$58*2.75,0) -> 0 | I60: =IFERROR(HLOOKUP($G$57,'EF Table'!$C$3:$AF$3,38,FALSE)*1/$G$58*2.75,0) -> 0 | L60: 0
B61: Farming Energy, Btu/bu | D61: 9608 | G61: 16741
B62: Fertilizers and Ag Chemicals | F62: =HLOOKUP($D$57,'EF Table'!$C$3:$AF$3,4,FALSE)*1/$D$58*2.75 ->  | I62: =IFERROR(HLOOKUP($G$57,'EF Table'!$C$3:$AF$3,39,FALSE)*1/$G$58*2.75,0) -> 0
B63: N2O in Soil | F63: =HLOOKUP($D$57,'EF Table'!C3:AF3,5,FALSE)*1/D58*2.75 ->  | I63: =IFERROR(HLOOKUP($G$57,'EF Table'!$C$3:$AF$3,40,FALSE)*1/$G$58*2.75,0) -> 0
B64: N content above and below ground, g N2/bu | D64: 141.6 | G64: 141.6
B65: Corn or Sorghum Transport | F65: =(F66+F67+F68+F69) ->  | I65: =IF(G58=0,0,I66+I67+I68) -> 0
C66: Corn or Sorghum transport by MDT, miles | D66: 10 | E66: 1 | F66: =HLOOKUP($D$57,'EF Table'!$C$3:$AF$3,7,FALSE)*D66/10 ->  | G66: 10 | H66: 1 | I66: =IFERROR(HLOOKUP($G$57,'EF Table'!$C$3:$AF$3,7,FALSE)*G66/10,0) -> 0
C67: Corn or Sorghum transport by HDDT, miles | D67: =F46 -> 80 | E67: 1 | F67: =HLOOKUP($D$57,'EF Table'!$C$3:$AF$3,8,FALSE)*E67*D67/50 ->  | G67: =M46 -> 80 | H67: 1 | I67: =IFERROR(HLOOKUP($G$57,'EF Table'!$C$3:$AF$3,8,FALSE)*G67/50,0) -> 0
C68: Corn or Sorghum transport by Rail, miles | D68: =G46 -> 0 | E68: 1 | F68: =HLOOKUP($D$57,'EF Table'!$C$3:$AF$3,9,FALSE)*E68*D68/500 ->  | G68: =N46 -> 0 | H68: 1 | I68: =IFERROR(HLOOKUP($G$57,'EF Table'!$C$3:$AF$3,7,FALSE)*G68/500,0) -> 0
C69: Corn or Sorghum transport by Barge, miles | D69: =H46 -> 0 | E69: 1 | F69: =HLOOKUP($D$57,'EF Table'!$C$3:$AF$3,10,FALSE)*E69*D69/500 ->  | G69: =O46 -> 0 | H69: 1
C70: Corn or Sorghum transport locally, miles | D70: 0 | E70: 1 | H70: 1
B71: Co-product Credit | F71: ='EF Table'!#REF!*$D$59/5.5636 ->  | I71: ='EF Table'!#REF!*$G$59/5.5636 -> 
C72: Dry Distiller Grains (DDGS), tons | D72: =Q46 -> 78262.61 | E72: =D72*(1-D73)/(($D$72*(1-$D$73)+$D$74*(1-$D$75)+$D$76*(1-$D$77)+$D$78/2000*(1-$D$79)+$D$80*(1-$D$81))) ->  | G72: =Q46 -> 78262.61 | H72: =G72*(1-G73)/(($G$72*(1-$G$73)+$G$74*(1-$G$75)+$G$76*(1-$G$77)+$G$78/2000*(1-$G$79)+$G$80*(1-$G$81))) -> 
C73: Moisture content of DDGS, % | D73: =T46 -> 0.1132583333 | G73: =T46 -> 0.1132583333
C74: Modified Distiller Grains (MDGS), tons | D74: =W46 -> 0 | E74: =D74*(1-D75)/(($D$72*(1-$D$73)+$D$74*(1-$D$75)+$D$76*(1-$D$77)+$D$78/2000*(1-$D$79)+$D$80*(1-$D$81))) ->  | G74: =W46 -> 0 | H74: =G74*(1-G75)/(($G$72*(1-$G$73)+$G$74*(1-$G$75)+$G$76*(1-$G$77)+$G$78/2000*(1-$G$79)+$G$80*(1-$G$81))) -> 
C75: Moisture content of MDGS, % | D75: =Z46 -> 0.55 | G75: =Z46 -> 0.55
C76: Wet Distiller Grains (WDGS), tons | D76: =AC46 -> 520172.49 | E76: =D76*(1-D77)/(($D$72*(1-$D$73)+$D$74*(1-$D$75)+$D$76*(1-$D$77)+$D$78/2000*(1-$D$79)+$D$80*(1-$D$81))) ->  | G76: =AC46 -> 520172.49 | H76: =G76*(1-G77)/(($G$72*(1-$G$73)+$G$74*(1-$G$75)+$G$76*(1-$G$77)+$G$78/2000*(1-$G$79)+$G$80*(1-$G$81))) -> 
C77: Moisture content of WDGS, % | D77: =AF46 -> 0.6636375 | G77: =AF46 -> 0.6636375
C78: Corn Oil, lbs. | D78: =AL46 -> 10550000 | E78: =D78/2000*(1-D79)/(($D$72*(1-$D$73)+$D$74*(1-$D$75)+$D$76*(1-$D$77)+$D$78/2000*(1-$D$79)+$D$80*(1-$D$81))) ->  | G78: =D78 -> 10550000 | H78: =G78/2000*(1-G79)/(($G$72*(1-$G$73)+$G$74*(1-$G$75)+$G$76*(1-$G$77)+$G$78/2000*(1-$G$79)+$G$80*(1-$G$81))) -> 
C79: Moisture content of corn oil,% | D79: =#REF! ->  | G79: =#REF! -> 
C80: Syrup, tons | D80: =AH46 -> 0 | E80: =D80*(1-D81)/(($D$72*(1-$D$73)+$D$74*(1-$D$75)+$D$76*(1-$D$77)+$D$78/2000*(1-$D$79)+$D$80*(1-$D$81))) ->  | G80: =AH46 -> 0 | H80: =G80*(1-G81)/(($G$72*(1-$G$73)+$G$74*(1-$G$75)+$G$76*(1-$G$77)+$G$78/2000*(1-$G$79)+$G$80*(1-$G$81))) -> 
C81: Moisture content of syrup, % | D81: =#REF! ->  | G81: 0.01
C82: Total lbs. of bone-dry DGS, lbs. | D82: =(D72*(1-D73)+D74*(1-D75)+D76*(1-D77)+D78*(1-D79)/2000+D80*(1-D81))*2000 ->  | G82: =IF(J46=0,0,(G72*(1-G73)+G74*(1-G75)+G76*(1-G77)+G78*(1-G79)/2000+G80*(1-G81))*2000) -> 
B83: DGS Yield (bone-dry lbs./gal EtOH) | D83: =D82/($AT$46+$BA$46) ->  | G83: =G82/$AT$46 -> 
B84: Corn Oil Displacement Soy Oi, lb./lb | D84: =#REF! ->  | F84: =IF(D86=0,0,F87+F88+F89+F90+F91) -> 
B85: Corn Oil yield, lbs. corn oil/gal EtOH | D85: =D78*D79/(AT46+BA46) -> 
B86: Total pounds of corn oil | D86: =AL46 -> 10550000
B87: Soy Farming | F87: =-('EF Table'!#REF!)/Reference!#REF!*D85/Reference!#REF!*10^6 -> 
C88: Fertilizers | F88: =-('EF Table'!#REF!)/Reference!#REF!*D85/Reference!#REF!*10^6 -> 
C89: Soy Transport | F89: =-('EF Table'!#REF!+'EF Table'!#REF!)/Reference!#REF!*D85/Reference!#REF!*10^6 -> 
C90: Soy Oil extraction | F90: =-('EF Table'!#REF!*Reference!#REF!)/Reference!#REF!*D85/Reference!#REF!*10^6 -> 
C91: Indrirect Land Use | F91: =-EtOH!D86/EtOH!D95/Reference!#REF!*(#REF!/Reference!D48*Reference!#REF!*Reference!#REF!) -> 
A92: Ethanol Production | D92: =L16 -> 7-MROW Mix | F92: =F93+F139 ->  | G92: =L16 -> 7-MROW Mix | I92: =I93+I132+I139 ->  | L92: =IF(BA46=0,0,L93+L132+L139+F92) -> 0 | N92: =0.02*D95 -> 2070644.74
B93: Ethanol Production | F93: =F98+F100+F102+F104+F112+F114+F118+F120+F122+F123+F125+F127+F131+F132 ->  | I93: =IF(G58=0,0,I98+I100+I102+I104+I112+I114+I118+I120+I122+I123+I125+I127+I131+I132) ->  | L93: =L98+L100+L102+L106+L112+L114+L118+L120+L122+L134+L136+L138+L123 -> 
B94: Total feedstock used, bushels | D94: =C46 -> 7679004 | G94: =J46 -> 16531829.38
B95: Total undenatured ethanol, gallons | D95: =AT46+BA46 -> 103532237 | G95: =AT46 -> 103532237
B96: Ethanol Yield, gal ethanol /bushel | D96: =D95/(C46+J46) -> 4.276277292 | G96: =G95/(C46+J46) -> 4.276277292
B97: Residual oil (HHV), gallons | D97: 0 | G97: 0
B98: Convert to Btu/gal EtOH | D98: =D97*Reference!#REF!/$D$95 ->  | F98: =D98*(100%*EF!$L$16+Petroleum!$B$95)/Reference!#REF!*#REF! ->  | G98: =G97*Reference!#REF!/$D$95 ->  | I98: =G98*(100%*EF!$L$16+Petroleum!$B$95)/Reference!#REF!*#REF!*#REF! -> 
B99: Diesel (HHV), gallons | D99: 0 | G99: 0
B100: Convert to Btu/gal EtOH | D100: =D99*Reference!B9/$D$95 -> 0 | F100: =D100*(100%*EF!$P$16+Petroleum!$B$52)/Reference!#REF!*#REF! ->  | G100: =G99*Reference!E9/$D$95 -> 0 | I100: =G100*(100%*EF!$P$16+Petroleum!$B$52)/Reference!#REF!*#REF!*#REF! -> 
B101: Gasoline (HHV), gallons | D101: 0 | G101: 0
B102: Convert to Btu/gal EtOH | D102: =D101*Reference!#REF!/$D$95 ->  | F102: =D102*(100%*EF!$U$16+Petroleum!$B$52)/Reference!#REF!*#REF! ->  | G102: =G101*Reference!#REF!/$D$95 ->  | I102: =G102*(100%*EF!$U$16+Petroleum!$B$52)/Reference!#REF!*#REF!*#REF! -> 
B103: NG use for Composite DGS, (HHV) Btu | D103: =BB47*10^6 -> 2154680000000 | G103: =BB47*10^6 -> 2154680000000
B104: Convert to Btu/gal EtOH | D104: =D103*Reference!$F$15/$D$95 -> 18791.13041 | F104: =D104*(50%*EF!$B$16+50%*EF!$C$16+HLOOKUP($D$92,'EF Table'!$C$3:$AF$3,23,FALSE)*D104/10000)/Reference!#REF!*#REF! ->  | G104: =G103*Reference!$F$15/$D$95 -> 18791.13041 | I104: =G104*(50%*EF!$B$16+50%*EF!$C$16+HLOOKUP($G$92,'EF Table'!$C$3:$AF$3,23,FALSE))/Reference!#REF!*#REF! -> 
B105: NG use for Dry DGS, (HHV) Btu | D105: =U46*10^6+D107 -> 0 | G105: =U46*10^6+D107 -> 0
B106: Convert to Btu/gal EtOH | D106: =D105*Reference!$F$15/$D$95 -> 0 | F106: =D106*(50%*EF!$B$16+50%*EF!$C$16+HLOOKUP($D$92,'EF Table'!$C$3:$AF$3,23,FALSE))/Reference!#REF!*#REF! ->  | G106: =G105*Reference!$F$15/$D$95 -> 0 | I106: =G106*(50%*EF!$B$16+50%*EF!$C$16+HLOOKUP($G$92,'EF Table'!$C$3:$AF$3,23,FALSE))/Reference!#REF!*#REF! -> 
B107: NG use for Modified DGS, (HHV) Btu | D107: =AA46*10^6 -> 0 | G107: =AA46*10^6 -> 0
B108: Convert to Btu/gal EtOH | D108: =D107*Reference!$F$15/$D$95 -> 0 | F108: =D108*(50%*EF!$B$16+50%*EF!$C$16+HLOOKUP($D$92,'EF Table'!$C$3:$AF$3,23,FALSE))/Reference!#REF!*#REF! ->  | G108: =G107*Reference!$F$15/$D$95 -> 0 | I108: =G108*(50%*EF!$B$16+50%*EF!$C$16+HLOOKUP($G$92,'EF Table'!$C$3:$AF$3,23,FALSE))/Reference!#REF!*#REF! -> 
B109: NG use for Wet DGS, (HHV) Btu | D109: =IF(OR(D105=0,D107=0),0,D103-D105-D107) -> 0 | G109: =BB46*10^6-G107-G105 -> 2154680000000
B110: Convert to Btu/gal EtOH | D110: =D109*Reference!$F$15/$D$95 -> 0 | F110: =D110*(50%*EF!$B$16+50%*EF!$C$16+HLOOKUP($D$92,'EF Table'!$C$3:$AF$3,23,FALSE))/Reference!#REF!*#REF! ->  | G110: =G109*Reference!$F$15/$D$95 -> 18791.13041 | I110: =G110*(50%*EF!$B$16+50%*EF!$C$16+HLOOKUP($G$92,'EF Table'!$C$3:$AF$3,23,FALSE))/Reference!#REF!*#REF! -> 
B111: Coal (HHV), tons | D111: =BH46 -> 0 | G111: =BH46 -> 0
B112: Convert to Btu/gal EtOH | D112: =D111*Reference!#REF!/$D$95 ->  | F112: =D112*(100%*EF!$AC$16+HLOOKUP($D$92,'EF Table'!$C$3:$AF$3,24,FALSE)*D112/10000)/Reference!#REF!*#REF! ->  | G112: =G111*Reference!#REF!/$D$95 ->  | I112: =G112*(100%*EF!$AC$16+HLOOKUP($D$92,'EF Table'!$C$3:$AF$3,24,FALSE))/Reference!#REF!*#REF! -> 
B113: Liquefied petroleum gas (HHV), Btu | D113: 0 | G113: 0
B114: Convert to Btu/gal EtOH | D114: =D113/$D$95 -> 0 | F114: =D114*(100%*EF!$Y$16+HLOOKUP($D$92,'EF Table'!$C$3:$AF$3,21,FALSE))/Reference!#REF!*#REF! ->  | G114: =G113/$D$95 -> 0 | I114: =G114*(100%*EF!$Y$16+HLOOKUP($D$92,'EF Table'!$C$3:$AF$3,21,FALSE))/Reference!#REF!*#REF! -> 
B115: Biomass (HHV), tons | D115: =BE46 -> 0 | G115: 0
C116: Average Moisture, % | D116: =BF46 -> 0
C117: Biomass Transport Distance, miles | D117: =BG46 -> 0
B118: Convert to Btu/gal EtOH | D118: =D115*Reference!#REF!/$D$95 ->  | F118: =D118*(100%*EF!$AV$16+HLOOKUP($D$92,'EF Table'!$C$3:$AF$3,26,FALSE))/Reference!#REF!*#REF! ->  | G118: =G115*Reference!#REF!/$D$95 ->  | I118: =G118*(100%*EF!$AV$16+HLOOKUP($G$92,'EF Table'!$C$3:$AF$3,26,FALSE))/Reference!#REF!*#REF! -> 
B119: Electricity, kWh | D119: =BI46 -> 50828240 | G119: =BI46 -> 50828240
B120: Convert to kWh/gal EtOH | D120: =D119/$D$95 -> 0.4909411935 | F120: =D120*Reference!$F$48*(HLOOKUP($D$92,'EF Table'!$C$3:$AF$3,27,FALSE)/Reference!#REF!*#REF!) ->  | G120: =G119*Reference!$F$48/$D$95 -> 1675.16089 | I120: =G120*(HLOOKUP($G$92,'EF Table'!$C$3:$AF$3,27,FALSE)/Reference!#REF!*#REF!) -> 
B121: Renewable Natural gas (HHV), Btu | D121: =BC46 -> 0 | G121: 0
B122: Convert to Btu/gal EtOH | D122: =D121*Reference!$B$15/$D$95 -> 0 | F122: =D122*(100%*EF!$BH$16+HLOOKUP($D$92,'EF Table'!$C$3:$AF$3,28,FALSE)*D122/10000)/Reference!#REF!*#REF! ->  | G122: =G121*Reference!$B$15/$D$95 -> 0 | I122: =G122*(100%*EF!$BH$16+HLOOKUP($G$92,'EF Table'!$C$3:$AF$3,28,FALSE))/Reference!#REF!*#REF! -> 
B123: Non-combustion CI | F123: ='EF Table'!#REF! ->  | I123: ='EF Table'!#REF! -> 
B124: Other Thermal Energy Sources (HHV) | D124: 0 | G124: =BK46 -> 0
B125: Convert to Btu/gal EtOH | D125: =D124/$D$95 -> 0 | G125: =G124/$D$95 -> 0
B126: Other Electricity Sources, kWh | D126: =BJ46 -> 0 | G126: =BM46 -> 0
B127: Convert to kWhgal EtOH | D127: =D126*Reference!$F$48/$D$95 -> 0 | F127: 0 | G127: =G126*Reference!$F$48/$D$95 -> 0 | I127: 0
B128: Total Thermal Energy, Btu/gal EtOH | D128: =D98+D100+D102+D106+D112+D114+D118+D122+D104 ->  | G128: =G98+G100+G102+G106+G112+G114+G118+G122+G125+G104 -> 
B129: Total Electricity Energy, Btu/gal EtOH | D129: =D119*Reference!$F$48/$D$95 -> 1675.16089 | G129: =G119*Reference!$F$48/$D$95 -> 1675.16089
B130: Total Plant Energy Consumption, Btu/gal | D130: =D128+D129 ->  | G130: =G128+G129 -> 
B131: Chemicals Usage (Standard) | F131: =(HLOOKUP($D$92,'EF Table'!$C$3:$AF$3,36,FALSE)) ->  | I131: =IF(J46=0,0,#REF!) -> 
B132: Extra Chemicals Usage | F132: =SUM(F133:F138) ->  | I132: =SUM(I133:I138) -> 
C133: Cellulase, lbs. | G133: =AJ61 -> 0 | J133: =AX46 -> 0
B134: Convert to (grams/gal) | F134: =(D134*Enzymes_Yeast!$J$19)/Reference!$F$29/Reference!#REF!*10^6/Reference!$H$45 ->  | G134: =G133*2000*Reference!$E$29/$D$95 -> 0 | I134: =(G134*Enzymes_Yeast!M19)/Reference!$F$29/Reference!#REF!*10^6/Reference!$H$45 ->  | J134: =J133*Reference!$E$29/$D$95 -> 0 | L134: =(J134*'EF Table'!#REF!/Reference!#REF!*10^6/Reference!$H$45) -> 
C135: Yeast, lbs. | J135: 0
B136: Convert to (grams/gal) | F136: =(D136*Enzymes_Yeast!K19)/Reference!$F$29/Reference!#REF!*10^6/Reference!$H$45 ->  | I136: =(G136*Enzymes_Yeast!N19)/Reference!$F$29/Reference!#REF!*10^6/Reference!$H$45 ->  | J136: =J135*Reference!$E$29/$D$95 -> 0
C137: Urea, lbs. | J137: 0
C138: Convert to (grams/gal) | F138: =(D138*#REF!)/Reference!$F$29/Reference!#REF!*10^6/Reference!$H$45 ->  | I138: =(G138*#REF!)/Reference!$F$29/Reference!#REF!*10^6/Reference!$H$45 ->  | J138: =J137*Reference!$E$29/$D$95 -> 0
B139: Ethanol Transport | F139: =F141+F143+F145+F147+F149 ->  | I139: =IF(J46=0,0,I141+I143+I145+I147+I149) ->  | L139: =IF(BA46=0,0,L141+L143+L145+L147+L149) -> 0
C140: From EtOH Plant to railyard | D140: HDD Truck | E140: 1 | G140: HDD Truck | H140: 1
C141: Miles | D141: =50*E140 -> 50 | F141: =HLOOKUP($D$92,'EF Table'!$C$3:$AF$3,31,FALSE)*(D141/50) ->  | G141: 50 | I141: =HLOOKUP($G$92,'EF Table'!$C$3:$AF$3,31,FALSE)*(G141/100) ->  | L141: =F141 -> 
C142: From railyard to CA railyard | D142: Rail | E142: 1 | G142: Rail | H142: 1
C143: Miles | D143: =BL22*E142 -> 1800 | F143: =HLOOKUP($D$92,'EF Table'!$C$3:$AF$3,32,FALSE)*D143/500 ->  | G143: =BL22*H142 -> 1800 | I143: =HLOOKUP($D$92,'EF Table'!$C$3:$AF$3,31,FALSE)*G143/500 ->  | L143: =F143 -> 
C144: From railyard 80% to blending terminal | D144: HDD Truck | E144: 0.8 | G144: HDD Truck | H144: 0.8
C145: Miles | D145: =BL24*E144 -> 80 | F145: =HLOOKUP($D$92,'EF Table'!$C$3:$AF$3,31,FALSE)*D145/50 ->  | G145: =BL24*H144 -> 80 | I145: =HLOOKUP($D$92,'EF Table'!$C$3:$AF$3,31,FALSE)*G145/100 ->  | L145: =F145 -> 
C146: Other Transport | D146: =BK32 -> 0 | E146: 1 | H146: 1
C147: Miles | D147: =BL32 -> 0 | F147: =D147/100*'T&D'!$BB$43 -> 0 | L147: =F147 -> 0
B148: Ethanol Distribution | C148: From terminal to fuel stations | D148: HDD Truck | E148: 1 | G148: HDD Truck | H148: 1 | J148: HDD Truck | K148: 1
C149: Miles | D149: =#REF! ->  | F149: =D149/100*0.45 ->  | G149: =#REF! ->  | I149: =G149/100*0.45 ->  | J149: =#REF! ->  | L149: =J149/100*0.45 -> 
B150: Denaturant, g/MJ | F150: =#REF! ->  | I150: =IF($J$46=0,0,#REF!) ->  | L150: =IF(BA46=0,0,#REF!) -> 0
B151: Indirect Land Use, g/MJ | F151: =#REF! ->  | I151: =IF($J$46=0,0,#REF!) ->  | L151: 0
B152: Total Well-to-Tank CI, g/MJ | F152: =F58+F92+F150+F151+F84-F106-F108 ->  | I152: =I58+I92+I150+I151 ->  | L152: =L58+L92+L150+L151+L139 -> 0
B153: Feedstock Ratio, %
A154: Feedstock 1 | B154: Corn (Composite DGS) | E154: 1
A155: Feedstock 2 | B155: Corn (Segregated DGS)
A156: Feedstock 3 | B156: Corn and Sorghum (Composite DGS) | E156: =C46/(C46+J46) -> 0.3171722295 | H156: =J46/(C46+J46) -> 0.6828277705
A157: Feedstock 4 | B157: Corn and Sorghum (Segregated DGS) | E157: =C46/(C46+J46) -> 0.3171722295 | H157: =J46/(C46+J46) -> 0.6828277705
A158: Feedstock 5 | B158: Corn and Corn Fiber (Composite DGS) | E158: =1-K158 -> 1 | K158: =$AZ$46 -> 0
A159: Feedstock 6 | B159: Corn and Corn Fiber (Segregated DGS) | E159: =1-K159 -> 1 | K159: =$AZ$46 -> 0
A160: Feedstock 7 | B160: Corn, Sorghum (Composite DGS) and Corn Fiber | E160: =1-K160 -> 1 | H160: =J46/(C46+J46) -> 0.6828277705 | K160: =$AZ$46 -> 0
A161: Feedstock 8 | B161: Corn, Sorghum (Segregated DGS) and Corn Fiber | E161: =1-K161 -> 1 | H161: =J46/(C46+J46) -> 0.6828277705 | K161: =$AZ$46 -> 0
B163: Feedstock 1 | C163: =B154 -> Corn (Composite DGS) | E163: =F216 -> 1 | F163: Feedstock 2 | G163: =B155 -> Corn (Segregated DGS) | J163: Feedstock 3 | K163: Corn and Sorghum (Composite CI) | N163: Feedstock 4 | O163: =B157 -> Corn and Sorghum (Segregated DGS) | R163: Feedstock 5 | S163: =$B$154 -> Corn (Composite DGS) | V163: Feedstock 6 | W163: =B159 -> Corn and Corn Fiber (Segregated DGS) | Z163: Feedstock 7 | AA163: Corn and Sorghum (Composite DGS) | AE163: Feedstock 8 | AF163: =B161 -> Corn, Sorghum (Segregated DGS) and Corn Fiber
B164: Corn Ethanol Composite CI, g/MJ | E164: =SUM(E165:E168) ->  | F164: Corn Ethanol (Dry DGS) CI, g/MJ | I164: =IF($U$46=0,0,SUM(I165:I168)) -> 0 | J164: Corn (Composite CI), g/MJ | M164: =SUM(M165:M168) ->  | N164: Corn (Dry DGS), g/MJ | Q164: =SUM(Q165:Q168) ->  | R164: Corn (Composite CI), g/MJ | U164: =SUM(U165:U168) ->  | V164: Corn (Dry DGS), g/MJ | Y164: =SUM(Y165:Y168) ->  | Z164: Corn (Composite CI), g/MJ | AD164: =SUM(AD165:AD168) ->  | AE164: Corn (Dry DGS), g/MJ | AH164: =SUM(AH165:AH168) -> 
B165: Feedstock Production, gCO2e/MJ | E165: =$F$58 ->  | F165: Feedstock Production, gCO2e/MJ | I165: =$F$58 ->  | J165: Feedstock Production, gCO2e/MJ | M165: =$F$58 ->  | N165: Feedstock Production, gCO2e/MJ | Q165: =$F$58 ->  | R165: Feedstock Production, gCO2e/MJ | U165: =$F$58 ->  | V165: Feedstock Production, gCO2e/MJ | Y165: =$F$58 ->  | Z165: Feedstock Production, gCO2e/MJ | AD165: =$F$58 ->  | AE165: Feedstock Production, gCO2e/MJ | AH165: =$F$58 -> 
B166: Fuel Production, gCO2e/MJ | E166: =$F$92 ->  | F166: Fuel Production, gCO2e/MJ | I166: =$F$92+$F$106-F104+F110 ->  | J166: Fuel Production, gCO2e/MJ | M166: =$F$92 ->  | N166: Fuel Production, gCO2e/MJ | Q166: =$F$92+$F$106 ->  | R166: Fuel Production, gCO2e/MJ | U166: =$F$92 ->  | V166: Fuel Production, gCO2e/MJ | Y166: =$F$92+$F$106 ->  | Z166: Fuel Production, gCO2e/MJ | AD166: =$F$92 ->  | AE166: Fuel Production, gCO2e/MJ | AH166: =$F$92+$F$106 -> 
B167: Indirect Land Use, gCO2e/MJ | E167: =$F$151 ->  | F167: Indirect Land Use, gCO2e/MJ | I167: =$F$151 ->  | J167: Indirect Land Use, gCO2e/MJ | M167: =$F$151 ->  | N167: Indirect Land Use, gCO2e/MJ | Q167: =$F$151 ->  | R167: Indirect Land Use, gCO2e/MJ | U167: =$F$151 ->  | V167: Indirect Land Use, gCO2e/MJ | Y167: =$F$151 ->  | Z167: Indirect Land Use, gCO2e/MJ | AD167: =$F$151 ->  | AE167: Indirect Land Use, gCO2e/MJ | AH167: =$F$151 -> 
B168: Denaturant, gCO2e/MJ | E168: =(1-#REF!)*(EtOH!E165+EtOH!E166+EtOH!E167)+#REF!*#REF!-(EtOH!E165+EtOH!E166+EtOH!E167) ->  | F168: Denaturant, gCO2e/MJ | I168: =(1-#REF!)*(EtOH!I165+EtOH!I166+EtOH!I167)+#REF!*#REF!-(EtOH!I165+EtOH!I166+EtOH!I167) ->  | J168: Denaturant, gCO2e/MJ | M168: =(1-#REF!)*(EtOH!M165+EtOH!M166+EtOH!M167)+#REF!*#REF!-(EtOH!M165+EtOH!M166+EtOH!M167) ->  | N168: Denaturant, gCO2e/MJ | Q168: =(1-#REF!)*(EtOH!Q165+EtOH!Q166+EtOH!Q167)+#REF!*#REF!-(EtOH!Q165+EtOH!Q166+EtOH!Q167) ->  | R168: Denaturant, gCO2e/MJ | U168: =(1-#REF!)*(EtOH!U165+EtOH!U166+EtOH!U167)+#REF!*#REF!-(EtOH!U165+EtOH!U166+EtOH!U167) ->  | V168: Denaturant, gCO2e/MJ | Y168: =(1-#REF!)*(EtOH!Y165+EtOH!Y166+EtOH!Y167)+#REF!*#REF!-(EtOH!Y165+EtOH!Y166+EtOH!Y167) ->  | Z168: Denaturant, gCO2e/MJ | AD168: =(1-#REF!)*(EtOH!AD165+EtOH!AD166+EtOH!AD167)+#REF!*#REF!-(EtOH!AD165+EtOH!AD166+EtOH!AD167) ->  | AE168: Denaturant, gCO2e/MJ | AH168: =(1-#REF!)*(EtOH!AH165+EtOH!AH166+EtOH!AH167)+#REF!*#REF!-(EtOH!AH165+EtOH!AH166+EtOH!AH167) -> 
B169: Ethanol Volume associated with Corn only, gal | E169: =$AT$46 -> 103532237 | F169: Ethanol Volume associated with DDGS, gal | I169: =IF(I164=0,0,($AT$46+$BA$46)*(E72+E78+E80)) -> 0 | J169: Ethanol Volume associated with Corn only, gal | M169: =($AT$46)*$E$156 -> 32837550.43 | N169: Ethanol Volume associated with DDGS, gal | Q169: =($AT$46)*($E$72+$E$78+$E$80)*$E$157 ->  | R169: Ethanol Volume associated with Corn only, gal | U169: =($AT$46)*$E$158 -> 103532237 | V169: Ethanol Volume associated with DDGS, gal | Y169: =($AT$46)*($E$72+$E$78+$E$80)*$E$158 ->  | Z169: Ethanol Volume associated with Corn only, gal | AD169: =($AT$46)*$E$160 -> 103532237 | AE169: Ethanol Volume associated with DDGS, gal | AH169: =($AT$46)*($E$72+$E$78+$E$80)*$E$161 -> 
J170: Feedstock 3 | K170: =B156 -> Corn and Sorghum (Composite DGS) | R170: Feedstock 5 | S170: Corn Fiber | Z170: Feedstock 7 | AA170: Corn and Sorghum (Composite DGS)
F171: Corn Ethanol (Modified DGS) CI, g/MJ | I171: =IF($AA$46=0,0,SUM(I172:I175)) -> 0 | J171: Sorghum Ethanol (Composite CI), g/MJ | M171: =SUM(M172:M175) ->  | N171: Corn (Modified DGS), g/MJ | Q171: =SUM(Q172:Q175) ->  | R171: Corn Fiber, g/MJ | U171: =SUM(U172:U175) ->  | V171: Corn (Modified DGS), g/MJ | Y171: =SUM(Y172:Y175) ->  | Z171: Sorghum (Composite CI), g/MJ | AD171: =SUM(AD172:AD175) ->  | AE171: Corn (Modified DGS), g/MJ | AH171: =SUM(AH172:AH175) -> 
F172: Feedstock Production, gCO2e/MJ | I172: =$F$58 ->  | J172: Feedstock Production, gCO2e/MJ | M172: =$I$58 ->  | N172: Feedstock Production, gCO2e/MJ | Q172: =$F$58 ->  | R172: Feedstock Production, gCO2e/MJ | U172: 0 | V172: Feedstock Production, gCO2e/MJ | Y172: =$F$58 ->  | Z172: Feedstock Production, gCO2e/MJ | AD172: =$I$58 ->  | AE172: Feedstock Production, gCO2e/MJ | AH172: =$F$58 -> 
F173: Fuel Production, gCO2e/MJ | I173: =$F$92+$F$108-F104+F110 ->  | J173: Fuel Production, gCO2e/MJ | M173: =$I$92 ->  | N173: Fuel Production, gCO2e/MJ | Q173: =$F$92+$F$108 ->  | R173: Fuel Production, gCO2e/MJ | U173: =$L$92 -> 0 | V173: Fuel Production, gCO2e/MJ | Y173: =$F$92+$F$108 ->  | Z173: Fuel Production, gCO2e/MJ | AD173: =$I$92 ->  | AE173: Fuel Production, gCO2e/MJ | AH173: =$F$92+$F$108 -> 
F174: Indirect Land Use, gCO2e/MJ | I174: =$F$151 ->  | J174: Indirect Land Use, gCO2e/MJ | M174: =$I$151 ->  | N174: Indirect Land Use, gCO2e/MJ | Q174: =$F$151 ->  | R174: Indirect Land Use, gCO2e/MJ | U174: 0 | V174: Indirect Land Use, gCO2e/MJ | Y174: =$F$151 ->  | Z174: Indirect Land Use, gCO2e/MJ | AD174: =$I$151 ->  | AE174: Indirect Land Use, gCO2e/MJ | AH174: =$F$151 -> 
F175: Denaturant, gCO2e/MJ | I175: =(1-#REF!)*(EtOH!I172+EtOH!I173+EtOH!I174)+#REF!*#REF!-(EtOH!I172+EtOH!I173+EtOH!I174) ->  | J175: Denaturant, gCO2e/MJ | M175: =IF($J$46=0,0,(1-#REF!)*(EtOH!M172+EtOH!M173+EtOH!M174)+#REF!*#REF!-(EtOH!M172+EtOH!M173+EtOH!M174)) ->  | N175: Denaturant, gCO2e/MJ | Q175: =(1-#REF!)*(EtOH!Q172+EtOH!Q173+EtOH!Q174)+#REF!*#REF!-(EtOH!Q172+EtOH!Q173+EtOH!Q174) ->  | R175: Denaturant, gCO2e/MJ | U175: =(1-#REF!)*(EtOH!U172+EtOH!U173+EtOH!U174)+#REF!*#REF!-(EtOH!U172+EtOH!U173+EtOH!U174) ->  | V175: Denaturant, gCO2e/MJ | Y175: =(1-#REF!)*(EtOH!Y172+EtOH!Y173+EtOH!Y174)+#REF!*#REF!-(EtOH!Y172+EtOH!Y173+EtOH!Y174) ->  | Z175: Denaturant, gCO2e/MJ | AD175: =IF($J$46=0,0,(1-#REF!)*(EtOH!AD172+EtOH!AD173+EtOH!AD174)+#REF!*#REF!-(EtOH!AD172+EtOH!AD173+EtOH!AD174)) ->  | AE175: Denaturant, gCO2e/MJ | AH175: =(1-#REF!)*(EtOH!AH172+EtOH!AH173+EtOH!AH174)+#REF!*#REF!-(EtOH!AH172+EtOH!AH173+EtOH!AH174) -> 
F176: Ethanol Volume associated with MDGS, gal | I176: =IF(I171=0,0,($AT$46+$BA$46)*$E$74) -> 0 | J176: Ethanol Volume associated with Sorghum, gal | M176: =($AT$46+$BA$46)*H157 -> 70694686.57 | N176: Ethanol Volume associated with MDGS, gal | Q176: =($AT$46)*$E$74*$E$157 ->  | R176: Ethanol Volume associated with Corn Fiber, gal | U176: =($AT$46)*$K$158 -> 0 | V176: Ethanol Volume associated with MDGS, gal | Y176: =($AT$46)*$E$74*$E$158 ->  | Z176: Ethanol Volume associated with Sorghum, gal | AD176: =($AT$46+$BA$46)*$H$160 -> 70694686.57 | AE176: Ethanol Volume associated with MDGS, gal | AH176: =($AT$46)*$E$74*$E$161 -> 
F177: Corn Ethanol (Wet DGS) CI, g/MJ | I177: =IF(AND($I$164=0,$I$171=0),0,SUM(I178:I181)) -> 0 | J177: Total Ethanol Volume, gal | M177: =M169+M176 -> 103532237 | N177: Corn (Wet DGS), g/MJ | Q177: =SUM(Q178:Q181) ->  | R177: Total Ethanol Volume, gal | U177: =U169+U176 -> 103532237 | V177: Corn (Wet DGS), g/MJ | Y177: =SUM(Y178:Y181) ->  | Z177: Feedstock 7 | AA177: Corn Fiber | AE177: Corn (Wet DGS), g/MJ | AH177: =SUM(AH178:AH181) -> 
F178: Feedstock Production, gCO2e/MJ | I178: =$F$58 ->  | N178: Feedstock Production, gCO2e/MJ | Q178: =$F$58 ->  | V178: Feedstock Production, gCO2e/MJ | Y178: =$F$58 ->  | Z178: Corn Fiber, g/MJ | AD178: =SUM(AD179:AD182) ->  | AE178: Feedstock Production, gCO2e/MJ | AH178: =$F$58 -> 
F179: Fuel Production, gCO2e/MJ | I179: =$F$92+$F$108-F104 ->  | N179: Fuel Production, gCO2e/MJ | Q179: =$F$92 ->  | V179: Fuel Production, gCO2e/MJ | Y179: =$F$92 ->  | Z179: Feedstock Production, gCO2e/MJ | AD179: =L60 -> 0 | AE179: Fuel Production, gCO2e/MJ | AH179: =$F$92 -> 
F180: Indirect Land Use, gCO2e/MJ | I180: =F151 ->  | N180: Indirect Land Use, gCO2e/MJ | Q180: =$F$151 ->  | V180: Indirect Land Use, gCO2e/MJ | Y180: =$F$151 ->  | Z180: Fuel Production, gCO2e/MJ | AD180: =$L$92 -> 0 | AE180: Indirect Land Use, gCO2e/MJ | AH180: =$F$151 -> 
F181: Denaturant, gCO2e/MJ | I181: =(1-#REF!)*(EtOH!I178+EtOH!I179+EtOH!I180)+#REF!*#REF!-(EtOH!I178+EtOH!I179+EtOH!I180) ->  | N181: Denaturant, gCO2e/MJ | Q181: =(1-#REF!)*(EtOH!Q178+EtOH!Q179+EtOH!Q180)+#REF!*#REF!-(EtOH!Q178+EtOH!Q179+EtOH!Q180) ->  | V181: Denaturant, gCO2e/MJ | Y181: =(1-#REF!)*(EtOH!Y178+EtOH!Y179+EtOH!Y180)+#REF!*#REF!-(EtOH!Y178+EtOH!Y179+EtOH!Y180) ->  | Z181: Indirect Land Use, gCO2e/MJ | AD181: 0 | AE181: Denaturant, gCO2e/MJ | AH181: =(1-#REF!)*(EtOH!AH178+EtOH!AH179+EtOH!AH180)+#REF!*#REF!-(EtOH!AH178+EtOH!AH179+EtOH!AH180) -> 
F182: Ethanol Volume associated with WDGS, gal | I182: =IF(I177=0,0,($AT$46+$BA$46)*$E$76) -> 0 | N182: Ethanol Volume associated with WDGS, gal | Q182: =($AT$46)*$E$76*$E$157 ->  | V182: Ethanol Volume associated with WDGS, gal | Y182: =($AT$46)*$E$76*$E$158 ->  | Z182: Denaturant, gCO2e/MJ | AD182: =(1-#REF!)*(EtOH!AD179+EtOH!AD180+EtOH!AD181)+#REF!*#REF!-(EtOH!AD179+EtOH!AD180+EtOH!AD181) ->  | AE182: Ethanol Volume associated with WDGS, gal | AH182: =($AT$46)*$E$76*$E$161 -> 
F183: Total Ethanol Volume, gal | I183: =I169+I176+I182 -> 0 | N183: Sub Total Ethanol Volume, gal | Q183: =Q169+Q176+Q182 ->  | V183: Total Ethanol Volume, gal | Y183: =Y169+Y176+Y182 ->  | Z183: Ethanol Volume, gal | AD183: =($AT$46)*$K$158 -> 0 | AE183: Total Ethanol Volume, gal | AH183: =AH169+AH176+AH182 -> 
N184: Feedstock 4 | O184: =B157 -> Corn and Sorghum (Segregated DGS) | V184: Feedstock 6 | W184: Corn Fiber | Z184: Total Ethanol Volume, gal | AD184: =AD169+AD176+AD183 -> 174226923.6 | AE184: Feedstock 8 | AF184: =B161 -> Corn, Sorghum (Segregated DGS) and Corn Fiber
N185: Sorghum Ethanol (Dry DGS) CI, g/MJ | Q185: =IF($U$46=0,0,SUM(Q186:Q189)) -> 0 | V185: Corn Fiber, g/MJ | Y185: =SUM(Y186:Y189) ->  | AE185: Sorghum Ethanol (Dry DGS) CI, g/MJ | AH185: =SUM(AH186:AH189) -> 
N186: Feedstock Production, gCO2e/MJ | Q186: =$I$58 ->  | V186: Feedstock Production, gCO2e/MJ | Y186: 0 | AE186: Feedstock Production, gCO2e/MJ | AH186: =$I$58 -> 
N187: Fuel Production, gCO2e/MJ | Q187: =$I$92 ->  | V187: Fuel Production, gCO2e/MJ | Y187: =$L$92 -> 0 | AE187: Fuel Production, gCO2e/MJ | AH187: =$I$92+$I$110 -> 
N188: Indirect Land Use, gCO2e/MJ | Q188: =$I$151 ->  | V188: Indirect Land Use, gCO2e/MJ | Y188: =$AH$57 -> 0 | AE188: Indirect Land Use, gCO2e/MJ | AH188: =$I$151 -> 
N189: Denaturant, gCO2e/MJ | Q189: =IF($J$46=0,0,(1-#REF!)*(EtOH!Q186+EtOH!Q187+EtOH!Q188)+#REF!*#REF!-(EtOH!Q186+EtOH!Q187+EtOH!Q188)) ->  | V189: Denaturant, gCO2e/MJ | Y189: =(1-#REF!)*(EtOH!Y186+EtOH!Y187+EtOH!Y188)+#REF!*#REF!-(EtOH!Y186+EtOH!Y187+EtOH!Y188) ->  | AE189: Denaturant, gCO2e/MJ | AH189: =IF($J$46=0,0,(1-#REF!)*(EtOH!AH186+EtOH!AH187+EtOH!AH188)+#REF!*#REF!-(EtOH!AH186+EtOH!AH187+EtOH!AH188)) -> 
N190: Ethanol Volume, gal | Q190: =IF(Q185=0,0,($AT$46)*($E$72+$E$78+$E$80)*$H$157) -> 0 | V190: Ethanol Volume, gal | Y190: =$AT$46*$K$158 -> 0 | AE190: Ethanol Volume, gal | AH190: =($AT$46+$BA$46)*($E$72+$E$78+$E$80)*$H$161 -> 
V191: Total Ethanol Volume, gal | Y191: =Y183+Y190 -> 
N192: Sorghum Ethanol (Modified DGS) CI, g/MJ | Q192: =IF($U$46=0,0,SUM(Q193:Q196)) -> 0 | AE192: Sorghum Ethanol (Modified DGS) CI, g/MJ | AH192: =SUM(AH193:AH196) -> 
N193: Feedstock Production, gCO2e/MJ | Q193: =$I$58 ->  | AE193: Feedstock Production, gCO2e/MJ | AH193: =$I$58 -> 
N194: Fuel Production, gCO2e/MJ | Q194: =$I$92 ->  | AE194: Fuel Production, gCO2e/MJ | AH194: =$I$92+$I$108 -> 
N195: Indirect Land Use, gCO2e/MJ | Q195: =$I$151 ->  | AE195: Indirect Land Use, gCO2e/MJ | AH195: =$I$151 -> 
N196: Denaturant, gCO2e/MJ | Q196: =IF($J$46=0,0,(1-#REF!)*(EtOH!Q193+EtOH!Q194+EtOH!Q195)+#REF!*#REF!-(EtOH!Q193+EtOH!Q194+EtOH!Q195)) ->  | AE196: Denaturant, gCO2e/MJ | AH196: =IF($J$46=0,0,(1-#REF!)*(EtOH!AH193+EtOH!AH194+EtOH!AH195)+#REF!*#REF!-(EtOH!AH193+EtOH!AH194+EtOH!AH195)) -> 
N197: Ethanol Volume, gal | Q197: =($AT$46)*$E$74*$H$157 ->  | AE197: Ethanol Volume, gal | AH197: =($AT$46+$BA$46)*$E$74*$H$161 -> 
N198: Sorghum Ethanol (Wet DGS) CI, g/MJ | Q198: =IF(AND($I$164=0,$I$171=0),0,SUM(Q199:Q202)) -> 0 | AE198: Sorghum Ethanol (Wet DGS) CI, g/MJ | AH198: =SUM(AH199:AH202) -> 
N199: Feedstock Production, gCO2e/MJ | Q199: =$I$58 ->  | AE199: Feedstock Production, gCO2e/MJ | AH199: =$I$58 -> 
N200: Fuel Production, gCO2e/MJ | Q200: =$I$92 ->  | AE200: Fuel Production, gCO2e/MJ | AH200: =$I$92 -> 
N201: Indirect Land Use, gCO2e/MJ | Q201: =$I$151 ->  | AE201: Indirect Land Use, gCO2e/MJ | AH201: =$I$151 -> 
N202: Denaturant, gCO2e/MJ | Q202: =IF($J$46=0,0,(1-#REF!)*(EtOH!Q199+EtOH!Q200+EtOH!Q201)+#REF!*#REF!-(EtOH!Q199+EtOH!Q200+EtOH!Q201)) ->  | AE202: Denaturant, gCO2e/MJ | AH202: =IF($J$46=0,0,(1-#REF!)*(EtOH!AH199+EtOH!AH200+EtOH!AH201)+#REF!*#REF!-(EtOH!AH199+EtOH!AH200+EtOH!AH201)) -> 
N203: Ethanol Volume, gal | Q203: =IF(Q198=0,0,($AT$46)*$E$76*$H$157) -> 0 | AE203: Ethanol Volume, gal | AH203: =($AT$46+$BA$46)*$E$76*$H$161 -> 
N204: Sub Total Ethanol Volume, gal | Q204: =Q190+Q197+Q203 ->  | AE204: Total Ethanol Volume, gal | AH204: =AH190+AH197+AH203 -> 
N205: Total Ethanol Volume, gal | Q205: =Q183+Q204 ->  | AE205: Feedstock 8 | AF205: Corn Fiber
AE206: Corn Fiber, g/MJ | AH206: =SUM(AH207:AH210) -> 
... 15 more rows

Sheet Manure to Biogas
B1: Biogas Carbon Accounting Tool (CAT): Dairy or Swine Manure to Biogas LCA Model v1.0
B4: Applicant Information
B5: Company Name | E5: Application Number | I5: LNG and/or L-CNG Dispensing Station(s) Location (Street, City, State)
B6: Company ID | E6: CNG Dispensing Station(s) Location (Street, City, State)
B7: Facility ID | E7: LNG Dispensing Station(s) Location (Street, City, State)
B8: Digester Location (Street, City, State) | E8: Landfill Location (Street, City, State)
B9: LNG Liquefaction Facility | E9: LNG Liquefaction Facility Location (Street, City, State)
A13: User Dashboard Input | M13: Summary of the Animal Manure Biomethane Pathway
A14: Baseline and Project Herd Characteristics and Manure Management | D14: Herd Specific Entries | J14: Description of Data Point | M14: CI Pathway | N14: =B126 -> CNG Injected | O14: CI Pathway | P14: =IF(OR(B126<>"CNG Injected",B194="No Pathway"),"-",B194) -> LNG
A15: Livestock Category | D15: Dairy cows (on feed) | E15: Non-milking dairy cows (on feed) | F15: Heifers (on feed) | G15: Calves (grazing) | H15: - | I15: - | J15: Selection of herd types | M15: Unit | N15: =IF(B126="Electricity Generation","gCO2e/kWh",B127) -> gCO2e/MJ | O15: Unit | P15: =IF(OR(B126<>"CNG Injected",B194="No Pathway"),"-",B127) -> gCO2e/MJ
M16: =N14&" Composite GREET Score" -> CNG Injected Composite GREET Score | N16: =(N18+N30+N31+N32+N23+N35+N36+N37) -> -291.6061954 | O16: =IF(OR(B126<>"CNG Injected",B194="No Pathway")," Composite GREET Score",P14&" Composite GREET Score") -> LNG Composite GREET Score | P16: =IF(OR(B126<>"CNG Injected",B194="No Pathway"),"-",P18+P41+P35+P38+P39+P23+P42+P30+P31+P32+P40) -> -264.4460051
A17: Reporting Month (MM/YYYY) | B17: Total Days in the Month | C17: Reporting Days in the Month | D17: =D15 -> Dairy cows (on feed) | E17: =E15 -> Non-milking dairy cows (on feed) | F17: Heifers (on feed) | G17: Calves (grazing) | H17: - | I17: - | J17: Description of Data Point | M17: =N14&" Score Breakdown" -> CNG Injected Score Breakdown | O17: =IF(OR(B126<>"CNG Injected",B194="No Pathway"),"",P14&" Score Breakdown") -> LNG Score Breakdown
A18: 2021-05-01 | B18: 31 | C18: 31 | D18: 9232 | E18: 865 | F18: 4422 | G18: 6599 | J18: Enter up to 24 months of herd data with the final month the same as the production data final month. Reporting days in the month are the numbers of days the data was reported; the default value is the same number of days as in that month. | M18: Raw Biogas Production-Digester | N18: =SUM(N19:N22) -> 1.199514855 | O18: Raw Biogas Production-Digester | P18: =IF(OR(B126<>"CNG Injected",B194="No Pathway"),"-",SUM(P19:P22)) -> 1.199131934
A19: 2021-06-01 | B19: 30 | C19: 30 | D19: 8900 | E19: 1200 | F19: 4376 | G19: 6200 | M19: Net-Diesel | N19: ='Biogas-to-RNG'!G64*'EF Table'!L33*IF(B126="Electricity Generation",3.6/'EF Table'!D136,IF(B127="kgCO2e/MMBtu",Reference!G43/Reference!C29,1)) -> 0 | O19: Net-Diesel | P19: =IF(OR($B$126<>"CNG Injected",$B$194="No Pathway"),"-",N19*('EF Table'!L31*'EF Table'!L32*'EF Table'!L34)/'EF Table'!L33) -> 0
A20: 2021-07-01 | B20: 31 | C20: 31 | D20: 8439 | E20: 1740 | F20: 4284 | G20: 5602 | M20: Net-Grid electricity | N20: ='Biogas-to-RNG'!G65*'EF Table'!L33*IF(B126="Electricity Generation",3.6/'EF Table'!D136,IF(B127="kgCO2e/MMBtu",Reference!G43/Reference!C29,1)) -> 0 | O20: Net-Grid electricity | P20: =IF(OR($B$126<>"CNG Injected",$B$194="No Pathway"),"-",N20*('EF Table'!L31*'EF Table'!L32*'EF Table'!L34)/'EF Table'!L33) -> 0
A21: 2021-08-01 | B21: 31 | C21: 31 | D21: 8412 | E21: 1762 | F21: 4099 | G21: 4808 | M21: Utility source NG | N21: ='Biogas-to-RNG'!G66*'EF Table'!L33*IF(B126="Electricity Generation",3.6/'EF Table'!D136,IF(B127="kgCO2e/MMBtu",Reference!G43/Reference!C29,1)) -> 1.199514855 | O21: Utility source NG | P21: =IF(OR($B$126<>"CNG Injected",$B$194="No Pathway"),"-",N21*('EF Table'!L31*'EF Table'!L32*'EF Table'!L34)/'EF Table'!L33) -> 1.199131934
A22: 2021-09-01 | B22: 30 | C22: 30 | D22: 8603 | E22: 1776 | F22: 3730 | G22: 4007 | M22: Biomethane (heat) | N22: ='Biogas-to-RNG'!G67*'EF Table'!L33*IF(B126="Electricity Generation",3.6/'EF Table'!D136,IF(B127="kgCO2e/MMBtu",Reference!G43/Reference!C29,1)) -> 0 | O22: Biomethane (heat) | P22: =IF(OR($B$126<>"CNG Injected",$B$194="No Pathway"),"-",N22*('EF Table'!L31*'EF Table'!L32*'EF Table'!L34)/'EF Table'!L33) -> 0
A23: 2021-10-01 | B23: 31 | C23: 31 | D23: 8846 | E23: 1906 | F23: 3326 | G23: 4487 | M23: Biogas upgrading | N23: =SUM(N24:N29) -> 111.876528 | O23: Biogas upgrading | P23: =IF(OR(B126<>"CNG Injected",B194="No Pathway"),"-",SUM(P24:P29)) -> 111.8408137
A24: 2021-11-01 | B24: 30 | C24: 30 | D24: 8740 | E24: 2212 | F24: 3259 | G24: 4889 | M24: Grid electricity | N24: ='Biogas-to-RNG'!G69*'EF Table'!L33*IF(B126="Electricity Generation",3.6/'EF Table'!D136,IF(B127="kgCO2e/MMBtu",Reference!G43/Reference!C29,1)) -> 23.25118624 | O24: Grid electricity | P24: =IF(OR($B$126<>"CNG Injected",$B$194="No Pathway"),"-",N24*('EF Table'!L31*'EF Table'!L32*'EF Table'!L34)/'EF Table'!L33) -> 23.24376377
A25: 2021-12-01 | B25: 31 | C25: 31 | D25: 9179 | E25: 1807 | F25: 3732 | G25: 5598 | M25: Utility source NG | N25: ='Biogas-to-RNG'!G71*'EF Table'!L33*IF(B126="Electricity Generation",3.6/'EF Table'!D136,IF(B127="kgCO2e/MMBtu",Reference!G43/Reference!C29,1)) -> 0 | O25: Utility source NG | P25: =IF(OR($B$126<>"CNG Injected",$B$194="No Pathway"),"-",N25*('EF Table'!L31*'EF Table'!L32*'EF Table'!L34)/'EF Table'!L33) -> 0
A26: 2022-01-01 | B26: 31 | C26: 31 | D26: 8627 | E26: 1246 | F26: 3840 | G26: 5760 | M26: Biomethane (process fuel) | N26: ='Biogas-to-RNG'!G73*'EF Table'!L33*IF(B126="Electricity Generation",3.6/'EF Table'!D136,IF(B127="kgCO2e/MMBtu",Reference!G43/Reference!C29,1)) -> 0 | O26: Biomethane (process fuel) | P26: =IF(OR($B$126<>"CNG Injected",$B$194="No Pathway"),"-",N26*('EF Table'!L31*'EF Table'!L32*'EF Table'!L34)/'EF Table'!L33) -> 0
A27: 2022-02-01 | B27: 28 | C27: 28 | D27: 10277 | E27: 799 | F27: 3877 | G27: 5815 | M27: Onsite electricity from biomethane | N27: ='Biogas-to-RNG'!G74*'EF Table'!L33*IF(B126="Electricity Generation",3.6/'EF Table'!D136,IF(B127="kgCO2e/MMBtu",Reference!G43/Reference!C29,1)) -> 0 | O27: Onsite electricity from biomethane | P27: =IF(OR($B$126<>"CNG Injected",$B$194="No Pathway"),"-",N27*('EF Table'!L31*'EF Table'!L32*'EF Table'!L34)/'EF Table'!L33) -> 0
A28: 2022-03-01 | B28: 31 | C28: 31 | D28: 10025 | E28: 525 | F28: 3911 | G28: 5866 | M28: Biomethane (flaring) | N28: ='Biogas-to-RNG'!G75*'EF Table'!L33*IF(B126="Electricity Generation",3.6/'EF Table'!D136,IF(B127="kgCO2e/MMBtu",Reference!G43/Reference!C29,1)) -> 4.02598484 | O28: Biomethane (flaring) | P28: =IF(OR($B$126<>"CNG Injected",$B$194="No Pathway"),"-",N28*('EF Table'!L31*'EF Table'!L32*'EF Table'!L34)/'EF Table'!L33) -> 4.024699626
A29: 2022-04-01 | B29: 30 | C29: 30 | D29: 10022 | E29: 419 | F29: 3934 | G29: 5902 | M29: Feed Loss (fugitive methane) | N29: ='Biogas-to-RNG'!G76*'EF Table'!L33*IF(B126="Electricity Generation",3.6/'EF Table'!D136,IF(B127="kgCO2e/MMBtu",Reference!G43/Reference!C29,1)) -> 84.59935692 | O29: Feed Loss (fugitive methane) | P29: =IF(OR($B$126<>"CNG Injected",$B$194="No Pathway"),"-",N29*('EF Table'!L31*'EF Table'!L32*'EF Table'!L34)/'EF Table'!L33) -> 84.5723503
A30: 2022-05-01 | B30: 31 | C30: 31 | D30: 9623 | E30: 664 | F30: 3958 | G30: 5938 | M30: RNG Trucking to Pipeline | N30: =IF(N14="Electricity Generation",0,'Biogas-to-RNG'!G78*IF(B127="kgCO2e/MMBtu",Reference!G43/Reference!C29,1)) -> 0 | O30: RNG Trucking to Pipeline | P30: =IF(OR(B126<>"CNG Injected",B194="No Pathway"),"-",N30*'EF Table'!L31*'EF Table'!L32) -> 0
A31: 2022-06-01 | B31: 30 | C31: 30 | D31: 9062 | E31: 1130 | F31: 3047 | G31: 4571 | M31: Biomethane Transmission | N31: =IF(N14="Electricity Generation",0,'Biogas-to-RNG'!G80*IF(B127="kgCO2e/MMBtu",Reference!G43/Reference!C29,1)) -> 3.019365307 | O31: Biomethane Transmission | P31: =IF(OR(B126<>"CNG Injected",B194="No Pathway"),"-",'Biogas-to-RNG'!G80*'EF Table'!L31*'EF Table'!L32*IF(B127="kgCO2e/MMBtu",Reference!G43/Reference!C29,1)) -> 3.023102006
A32: 2022-07-01 | B32: 31 | C32: 31 | D32: 8647 | E32: 1815 | F32: 2891 | G32: 4337 | M32: Carbon Capture and Sequestration | N32: =IF(B155="No",0,N33+N34) -> -138.8544558 | O32: LNG Production | P32: =IF(OR(B126<>"CNG Injected",B194="No Pathway"),"-",P33+P34) -> 30.50019787
A33: 2022-08-01 | B33: 31 | C33: 31 | D33: 8571 | E33: 1913 | F33: 2950 | G33: 4425 | M33: CO2 Sequestered | N33: =IF(B182="No",0,'EF Table'!D130*IF(B126="Electricity Generation",3.6/'EF Table'!D136,IF(B127="kgCO2e/MMBtu",Reference!G43/Reference!C29,1))) -> -153.400216 | O33: NG used as process fuel | P33: =IF(OR(B126<>"CNG Injected",B194="No Pathway"),"-",'Biogas-to-RNG'!G81*'EF Table'!L31*'EF Table'!L32*IF(B127="kgCO2e/MMBtu",Reference!G43/Reference!C29,1)) -> 18.13568521
A34: 2022-09-01 | B34: 30 | C34: 30 | D34: 8316 | E34: 1837 | F34: 3108 | G34: 4662 | M34: CO2 Sequestration Electricity Use | N34: =IF(B182="No",0,'Biogas-to-RNG'!G70*'EF Table'!L31*IF(B126="Electricity Generation",3.6/'EF Table'!D136,IF(B127="kgCO2e/MMBtu",Reference!G43/Reference!C29,1))) -> 14.54576025 | O34: Electricity | P34: =IF(OR(B126<>"CNG Injected",B194="No Pathway"),"-",'Biogas-to-RNG'!G82*'EF Table'!L31*'EF Table'!L32*IF(B127="kgCO2e/MMBtu",Reference!G43/Reference!C29,1)) -> 12.36451266
A35: 2022-10-01 | B35: 31 | C35: 31 | D35: 8211 | E35: 1917 | F35: 3229 | G35: 4844 | M35: =IF(B126="CNG Injected","Compression of CNG","-") -> Compression of CNG | N35: =(IF(B126="Electricity Generation",0,1)*IF(B126="RNG Thermal",0,1)*'Biogas-to-RNG'!G88)*IF(B127="kgCO2e/MMBtu",Reference!G43/Reference!C29,1) -> 3.496310368 | O35: Carbon Capture and Sequestration | P35: =IFERROR(IF(OR(B126<>"CNG Injected",B194="No Pathway"),"-",P36+P37),0) -> -138.8364543
A36: 2022-11-01 | B36: 30 | C36: 30 | D36: 8747 | E36: 1934 | F36: 3436 | G36: 5154 | M36: =IF(B126="CNG Injected","Tailpipe Emissions","Combustion Emissions") -> Tailpipe Emissions | N36: =IF(B126="Electricity Generation",'EF Table'!D138,IF(B126="RNG Thermal",0,'Biogas-to-RNG'!G89)*IF(B127="kgCO2e/MMBtu",Reference!G43/Reference!C29,1)) -> 60.72964872 | O36: CO2 Sequestered | P36: =IF(OR(B126<>"CNG Injected",B194="No Pathway",B182="No"),"-",'EF Table'!D130*IF(B127="kgCO2e/MMBtu",Reference!G43/Reference!C29,1)) -> -153.400216
A37: 2022-12-01 | B37: 31 | C37: 31 | D37: 9365 | E37: 1675 | F37: 3648 | G37: 5472 | M37: Avoided emissions credits | N37: =('Biogas-to-RNG'!G92+'Biogas-to-RNG'!G93)*'EF Table'!L33*IF(B126="Electricity Generation",3.6/'EF Table'!D136,IF(B127="kgCO2e/MMBtu",Reference!G43/Reference!C29,1)) -> -333.0731069 | O37: CO2 Sequestration Electricity Use | P37: =IF(OR(B126<>"CNG Injected",B194="No Pathway",B182="No"),"-",IF(B182="No",0,'Biogas-to-RNG'!G70*'EF Table'!L32*IF(B126="Electricity Generation",3.6/'EF Table'!D136,IF(B127="kgCO2e/MMBtu",Reference!G43/Reference!C29,1)))) -> 14.56376176
D38: 9829 | E38: 1139 | F38: 6949 | G38: 1617 | O38: LNG Pipeline Transmission to Dispensing | P38: =IF(OR(B126<>"CNG Injected",B194="No Pathway"),"-",'Biogas-to-RNG'!G84*'EF Table'!L32*IF(B127="kgCO2e/MMBtu",Reference!G43/Reference!C29,1)) -> 0.01029487976
D39: 10035 | E39: 690 | F39: 7600 | G39: 1567 | O39: LNG Storage | P39: =IF(OR(B126<>"CNG Injected",B194="No Pathway"),"-",'Biogas-to-RNG'!G85*IF(B127="kgCO2e/MMBtu",Reference!G43/Reference!C29,1)) -> 0.618723766
D40: 10077 | E40: 376 | F40: 8086 | G40: 1328 | O40: Compression of CNG | P40: =IF(OR(B126<>"CNG Injected",B194="No Pathway"),"-",'Biogas-to-RNG'!G88*IF(B127="kgCO2e/MMBtu",Reference!G43/Reference!C29,1)*IF(B194="L-CNG",1,0)) -> 0
D41: 9743 | E41: 394 | F41: 8496 | G41: 930 | O41: =M36 -> Tailpipe Emissions | P41: =IF(OR(B126<>"CNG Injected",B194="No Pathway"),"-",1*IF(B127="kgCO2e/MMBtu",Reference!G43/Reference!C29,1)*IF(B194="LNG",'Biogas-to-RNG'!G91,'Biogas-to-RNG'!G89)) -> 60.68349567
O42: Avoided emissions credits | P42: =IF(OR(B126<>"CNG Injected",B194="No Pathway"),"-",N37*('EF Table'!L31*'EF Table'!L32*'EF Table'!L34)) -> -333.4853107
A43: Baseline Manure Management | C43: Selection of Fate | D43: =D17 -> Dairy cows (on feed) | E43: =E17 -> Non-milking dairy cows (on feed) | F43: Heifers (on feed) | G43: Calves (grazing) | H43: - | I43: - | J43: Description of Data Point
A44: Fraction of Manure Sent to Anaerobic Storage | D44: 0.875 | E44: 0.875 | F44: 0.5 | G44: 1 | H44: 0.6 | I44: 0.6 | J44: Manure sent to anaerobic lagoon storage in the baseline. | M44: CARB 3.0
A45: Manure Sent to Baseline Fate 1 | C45: Dry lot | D45: 0.125 | E45: 0.125 | F45: 0.5 | G45: 0 | H45: 0.4 | I45: 0.4 | J45: Fraction of manure sent to each fate in the baseline. Fates and methane conversion factors provided by CARB are used.
A46: Manure Sent to Baseline Fate 2 | C46: Not Applicable
A47: Manure Sent to Baseline Fate 3 | C47: Not Applicable
A48: Manure Sent to Baseline Fate 4 | C48: Not Applicable
A49: Manure Sent to Baseline Fate 5 | C49: Not Applicable
A50: Manure Sent to Baseline Fate 6 | C50: Not Applicable
A51: Manure Sent to Baseline Fate 7 | C51: Not Applicable
A53: Project Manure Management | B53: Manure or Digestate | C53: Selection of Fate | D53: =D43 -> Dairy cows (on feed) | E53: =E43 -> Non-milking dairy cows (on feed) | F53: Heifers (on feed) | G53: Calves (grazing) | H53: - | I53: - | J53: Description of Data Point
A54: Fraction of Total Manure Collected for Digester Feedstock | B54: Manure | C54: Digester Feedstock | D54: 0.875 | E54: 0.875 | F54: 0.5 | G54: 1 | H54: 0 | I54: 0 | J54: Fraction of maure sent to digester project
A55: Fraction of Digestate Sent to Anaerobic Storage | B55: Digestate | C55: Anaerobic Storage Lagoon | D55: 0.75 | E55: 0.75 | F55: 0.75 | G55: 0.75 | H55: 0 | I55: 0 | J55: Fraction of digestate sent to anerobic storage
A56: Other Anaerobic Systems Manure Fate 1 | B56: Manure | C56: Not Applicable | H56: 0 | I56: 0 | J56: Fraction of manure sent to other anaerobic systems
A57: Other Anaerobic Systems Manure Fate 2 | B57: Manure | C57: Not Applicable | H57: 0 | I57: 0
A58: Non-Anaerobic Storage Systems Fate 1 | B58: Manure | C58: Dry lot | D58: 0.125 | E58: 0.125 | F58: 0.5 | G58: 0 | H58: 0 | I58: 0 | J58: Fraction of manure or digestate sent to other non-anerobic storage systems. Fates and methane conversion factors provided by CARB are used.
A59: Non-Anaerobic Storage Systems Fate 2 | B59: Digestate | C59: Pit storage below animal confinements (<1 month) | D59: 0.25 | E59: 0.25 | F59: 0.25 | G59: 0.25 | H59: 0 | I59: 0
A60: Non-Anaerobic Storage Systems Fate 3 | B60: Not Applicable | C60: Not Applicable
A61: Non-Anaerobic Storage Systems Fate 4 | B61: Not Applicable | C61: Not Applicable
A62: Non-Anaerobic Storage Systems Fate 5 | B62: Not Applicable | C62: Not Applicable
A63: Non-Anaerobic Storage Systems Fate 6 | B63: Not Applicable | C63: Not Applicable
A64: Non-Anaerobic Storage Systems Fate 7 | B64: Not Applicable | C64: Not Applicable
A66: Temperature Data | D66: =D53 -> Dairy cows (on feed) | E66: =E53 -> Non-milking dairy cows (on feed) | F66: Heifers (on feed) | G66: Calves (grazing) | H66: - | I66: -
A67: Reporting Month (MM/YYYY) | B67: Total Days in the Month | C67: Reporting Days in the Month | D67: Average Temp (°C) | E67: Average Temp (°C) | F67: Average Temp (°C) | G67: Average Temp (°C) | H67: Average Temp (°C) | I67: Average Temp (°C) | J67: Description of Data Point
A68: =IF(A18=0,"",A18) -> 2021-05-01 | B68: 31 | C68: 31 | D68: 26.61111111 | E68: 26.61111111 | F68: 26.61111111 | G68: 26.61111111 | J68: Enter the monthly average temperature in Celcius for each herd type.
A69: 2021-06-01 | B69: 30 | C69: 30 | D69: 33.27777778 | E69: 33.27777778 | F69: 33.27777778 | G69: 33.27777778
A70: =IF(A20=0,"",A20) -> 2021-07-01 | B70: 31 | C70: 31 | D70: 34.22222222 | E70: 34.22222222 | F70: 34.22222222 | G70: 34.22222222
A71: 2021-08-01 | B71: 31 | C71: 31 | D71: 33.88888889 | E71: 33.88888889 | F71: 33.88888889 | G71: 33.88888889
A72: 2021-09-01 | B72: 30 | C72: 30 | D72: 31.33333333 | E72: 31.33333333 | F72: 31.33333333 | G72: 31.33333333
A73: 2021-10-01 | B73: 31 | C73: 31 | D73: 22.55555556 | E73: 22.55555556 | F73: 22.55555556 | G73: 22.55555556
A74: 2021-11-01 | B74: 30 | C74: 30 | D74: 19.88888889 | E74: 19.88888889 | F74: 19.88888889 | G74: 19.88888889
A75: 2021-12-01 | B75: 31 | C75: 31 | D75: 14.76111111 | E75: 14.76111111 | F75: 14.76111111 | G75: 14.76111111 | M75: CARB 4.0
A76: 2022-01-01 | B76: 31 | C76: 31 | D76: 13.44444444 | E76: 13.44444444 | F76: 13.44444444 | G76: 13.44444444
A77: 2022-02-01 | B77: 28 | C77: 28 | D77: 14 | E77: 14 | F77: 14 | G77: 14
A78: 2022-03-01 | B78: 31 | C78: 31 | D78: 18.55555556 | E78: 18.55555556 | F78: 18.55555556 | G78: 18.55555556
A79: 2022-04-01 | B79: 30 | C79: 30 | D79: 23.11111111 | E79: 23.11111111 | F79: 23.11111111 | G79: 23.11111111
A80: 2022-05-01 | B80: 31 | C80: 31 | D80: 26.94444444 | E80: 26.94444444 | F80: 26.94444444 | G80: 26.94444444
A81: 2022-06-01 | B81: 30 | C81: 30 | D81: 33.44444444 | E81: 33.44444444 | F81: 33.44444444 | G81: 33.44444444
A82: 2022-07-01 | B82: 31 | C82: 31 | D82: 35.05555556 | E82: 35.05555556 | F82: 35.05555556 | G82: 35.05555556
A83: 2022-08-01 | B83: 31 | C83: 31 | D83: 33.72222222 | E83: 33.72222222 | F83: 33.72222222 | G83: 33.72222222
A84: 2022-09-01 | B84: 30 | C84: 30 | D84: 31.83333333 | E84: 31.83333333 | F84: 31.83333333 | G84: 31.83333333
A85: 2022-10-01 | B85: 31 | C85: 31 | D85: 24.5 | E85: 24.5 | F85: 24.5 | G85: 24.5
A86: 2022-11-01 | B86: 30 | C86: 30 | D86: 14.5 | E86: 14.5 | F86: 14.5 | G86: 14.5
A87: 2022-12-01 | B87: 31 | C87: 31 | D87: 12.27777778 | E87: 12.27777778 | F87: 12.27777778 | G87: 12.27777778
D88: 11.55555556 | E88: 11.55555556 | F88: 11.55555556 | G88: 11.55555556
D89: 13.16666667 | E89: 13.16666667 | F89: 13.16666667 | G89: 13.16666667
D90: 15.83333333 | E90: 15.83333333 | F90: 15.83333333 | G90: 15.83333333
D91: 21.77777778 | E91: 21.77777778 | F91: 21.77777778 | G91: 21.77777778
A93: Baseline Cleanout Occurance | B93: Total Days in the Month | C93: Reporting Days in the Month | D93: =D66 -> Dairy cows (on feed) | E93: =E66 -> Non-milking dairy cows (on feed) | F93: Heifers (on feed) | G93: Calves (grazing) | H93: - | I93: =I66 -> - | J93: Description of Data Point
A94: =A68 -> 2021-05-01 | B94: =B68 -> 31 | C94: =C68 -> 31 | D94: Not Applicable | E94: Not Applicable | F94: Not Applicable | G94: Not Applicable | H94: Not Applicable | I94: Not Applicable | J94: Select the months that the lagoon system was completely emptied.
A95: =A69 -> 2021-06-01 | B95: =B69 -> 30 | C95: =C69 -> 30 | D95: Not Applicable | E95: Not Applicable | F95: Not Applicable | G95: Not Applicable | H95: Not Applicable | I95: Not Applicable
A96: 2021-07-01 | B96: 31 | C96: 31 | D96: Not Applicable | E96: Not Applicable | F96: Not Applicable | G96: Not Applicable | H96: Not Applicable | I96: Not Applicable
A97: 2021-08-01 | B97: 31 | C97: 31 | D97: Not Applicable | E97: Not Applicable | F97: Not Applicable | G97: Not Applicable | H97: Not Applicable | I97: Not Applicable
A98: 2021-09-01 | B98: 30 | C98: 30 | D98: Not Applicable | E98: Not Applicable | F98: Not Applicable | G98: Not Applicable | H98: Not Applicable | I98: Not Applicable
A99: 2021-10-01 | B99: 31 | C99: 31 | D99: Not Applicable | E99: Not Applicable | F99: Not Applicable | G99: Not Applicable | H99: Not Applicable | I99: Not Applicable
A100: 2021-11-01 | B100: 30 | C100: 30 | D100: Not Applicable | E100: Not Applicable | F100: Not Applicable | G100: Not Applicable | H100: Not Applicable | I100: Not Applicable
A101: 2021-12-01 | B101: 31 | C101: 31 | D101: Not Applicable | E101: Not Applicable | F101: Not Applicable | G101: Not Applicable | H101: Not Applicable | I101: Not Applicable
A102: 2022-01-01 | B102: 31 | C102: 31 | D102: Not Applicable | E102: Not Applicable | F102: Not Applicable | G102: Not Applicable | H102: Not Applicable | I102: Not Applicable
A103: 2022-02-01 | B103: 28 | C103: 28 | D103: Not Applicable | E103: Not Applicable | F103: Not Applicable | G103: Not Applicable | H103: Not Applicable | I103: Not Applicable
A104: 2022-03-01 | B104: 31 | C104: 31 | D104: System Emptied | E104: Not Applicable | F104: Not Applicable | G104: Not Applicable | H104: Not Applicable | I104: Not Applicable
A105: 2022-04-01 | B105: 30 | C105: 30 | D105: Not Applicable | E105: Not Applicable | F105: Not Applicable | G105: Not Applicable | H105: Not Applicable | I105: Not Applicable
A106: 2022-05-01 | B106: 31 | C106: 31 | D106: Not Applicable | E106: Not Applicable | F106: Not Applicable | G106: Not Applicable | H106: Not Applicable | I106: Not Applicable
A107: 2022-06-01 | B107: 30 | C107: 30 | D107: Not Applicable | E107: Not Applicable | F107: Not Applicable | G107: Not Applicable | H107: Not Applicable | I107: Not Applicable
A108: 2022-07-01 | B108: 31 | C108: 31 | D108: Not Applicable | E108: Not Applicable | F108: Not Applicable | G108: Not Applicable | H108: Not Applicable | I108: Not Applicable
A109: 2022-08-01 | B109: 31 | C109: 31 | D109: Not Applicable | E109: Not Applicable | F109: Not Applicable | G109: Not Applicable | H109: Not Applicable | I109: Not Applicable
A110: 2022-09-01 | B110: 30 | C110: 30 | D110: Not Applicable | E110: Not Applicable | F110: Not Applicable | G110: Not Applicable | H110: Not Applicable | I110: Not Applicable
A111: 2022-10-01 | B111: 31 | C111: 31 | D111: Not Applicable | E111: Not Applicable | F111: Not Applicable | G111: Not Applicable | H111: Not Applicable | I111: Not Applicable
A112: 2022-11-01 | B112: 30 | C112: 30 | D112: Not Applicable | E112: Not Applicable | F112: Not Applicable | G112: Not Applicable | H112: Not Applicable | I112: Not Applicable
A113: 2022-12-01 | B113: 31 | C113: 31 | D113: Not Applicable | E113: Not Applicable | F113: Not Applicable | G113: Not Applicable | H113: Not Applicable | I113: Not Applicable
D114: Not Applicable | E114: Not Applicable | F114: Not Applicable | G114: Not Applicable | H114: Not Applicable | I114: Not Applicable
D115: Not Applicable | E115: Not Applicable | F115: Not Applicable | G115: Not Applicable | H115: Not Applicable | I115: Not Applicable
D116: Not Applicable | E116: Not Applicable | F116: Not Applicable | G116: Not Applicable | H116: Not Applicable | I116: Not Applicable
D117: Not Applicable | E117: Not Applicable | F117: Not Applicable | G117: Not Applicable | H117: Not Applicable | I117: Not Applicable
A119: DSM to Biomethane Production General Inputs | B119: Data per Unit Time | C119: Unit | D119: Description of Data Point
A120: Source of Digester Leakage | B120: User-Defined | C120: Dropdown | D120: Toggle for default covered lagoon, default enclosed vessel, or user-defined digester leakage.
A121: User-Defined Digester Leakage | B121: 0.05 | C121: % | D121: Percentage of raw gas loss during digestion of the feedstock. Default value is 5% for Covered Lagoon and 2% for Enclosed Vessel.
A122: Source of Digester Efficiency | B122: User-Defined | C122: Dropdown | D122: Toggle for default or user-defined digester efficiency. Default value is 70%.
A123: User-Defined Digester Efficiency | B123: 0.7244 | C123: % | D123: Percentage of feedstock converted to biogas in the digester. Default value is 70%.
A125: Biomethane Production Data | B125: Data per Unit Time | C125: Unit | D125: Description of Data Point
A126: CI Pathway | B126: CNG Injected | C126: Dropdown | D126: Pathway selection for RNG end use.
A127: Unit of CI Pathway | B127: gCO2e/MJ | C127: Dropdown | D127: Unit for modeling CI score.
A128: Total Digester Raw Biogas Production | B128: 97931574.96 | C128: Standard Cubic Feet @ 60°F | D128: Total SCF of raw biogas on a dry basis produced by the digester for the unit time period.
A129: Biomethane Content of Raw Biogas at Digester Outlet | B129: 0.5894034844 | C129: % Methane | D129: Biomethane content of raw biogas produced from the digester.
A130: Total Raw Biogas Flow to Upgrading | B130: 97173191.96 | C130: Standard Cubic Feet @ 60°F | D130: Total SCF of raw biogas on a dry basis entering the upgrading facility for the unit time period.
A131: Biomethane Content of Raw Biogas at Upgrader Inlet | B131: 0.5890886987 | C131: % Methane | D131: Biomethane content of raw biogas entering the upgrading facility.
A132: Flared Gas at Upgrader Including Tailgas | B132: 5236258.825 | C132: Standard Cubic Feet @ 60°F | D132: Total SCF of flared gas at the upgrader facility.
A133: Biomethane Content of Flared Gas at Upgrader | B133: 0.6190371974 | C133: % Methane | D133: Biomethane content of upgrader flare gas.
A134: Upgrading Natural Gas Use to Meet Pipeline Specifications | B134: 0 | C134: MMBtu, HHV | D134: Supplimental natural gas mixed with upgraded biomethane to meet pipeline specificiations. Natural gas attributed here is not consumed by the facility.
A135: Upgrading Propane Use to Meet Pipeline Specifications | B135: 0 | C135: Gallons, HHV | D135: Supplimental propane mixed with upgraded biomethane to meet pipeline specificiations. Propane attributed here is not consumed by the facility.
A136: =IF(B126="CNG Injected","Number of Months of Pipeline Injection",IF(B126="RNG Thermal","Number of Months RNG Used for Thermal Applications", "Number of Months RNG Used for Electricity Generation")) -> Number of Months of Pipeline Injection | B136: 3 | C136: Months | D136: ="Number of months (3-24) the facility has been in operation and "&IF(B126="CNG Injection","injecting into the pipeline.",IF(B126="Electricity Generation","electricity provided to the grid.","RNG has been sent for thermal use.")) -> Number of months (3-24) the facility has been in operation and RNG has been sent for thermal use.
A137: =IF(B126="CNG Injected","Biomethane Injected into Pipeline",IF(B126="RNG Thermal","RNG Used for Thermal Applications", "RNG Used for Electricity Generation")) -> Biomethane Injected into Pipeline | B137: 46671.5 | C137: MMBtu, HHV | D137: =IF(B126="CNG Injected","Upgraded biomethane injected into the pipeline for the unit time period.",IF(B126="RNG Thermal","RNG used for thermal applications for the unit time period.", "RNG used for electricity generation for the unit time period.")) -> Upgraded biomethane injected into the pipeline for the unit time period.
A138: Electricity Generation | B138: 6522826.45 | C138: kWh | D138: Electricity generated from RNG for the unit time period
A140: Venting Emissions
A141: Venting Amount Source | B141: Default | C141: Dropdown | D141: Toggle to provide a user-defined amount of uncontrol vented methane or a default calculation for a venting event.
A142: User Defined Vented Methane | C142: Metric Tons Methane | D142: User-defined calculated value for the amount of metric tons of methane was vented during an uncontrolled venting event.
A143: Maximum Biogas Storage of the Biogas Control System | C143: Standard Cubic Feet @ 60°F | D143: Default calculation assuming that the control system was full at the time of the venting event.
A144: Average Daily Biogas Production for the 7 Days Preceding the Venting | C144: Standard Cubic Feet @ 60°F/Day | D144: Default calculation using previous biogas data to estimate the amount of vented gas.
A145: Number of Days for the Uncontrolled Venting | C145: Days | D145: Default calculation uses number of days venting event occurred to estimate gas vented.
A146: Quarterly Methane Concentration | C146: % Methane | D146: Default calculation uses methane content to calculate metric tons of methane vented during an uncontrolled venting event.
A148: Process Energy Inputs | B148: Data per Unit Time | C148: Unit | D148: Description of Data Point
A149: Source of Natural Gas Emission Factor | B149: Default | C149: Dropdown | D149: Toggle for default or user-defined natural gas emission factor.
A150: User-Defined Natural Gas Emission Factor | B150: 74654.75965 | C150: gCO2e/MMBtu, LHV | D150: CO2 equivalent emissions from natural gas use. Default value is 74654.759650136.
A151: Electricity Emission Factor Source | B151: GREET 3.0 | C151: Dropdown | D151: Source of electricity emission factors. Selection does not impact user-defined electricity emissions.
A152: RNG Production Grid Electricity Mix | B152: 5-AZNM Mix | C152: Dropdown | D152: RNG production grid electricity mix. Please reference the picture to the right or visit the EPA EGrid here: | I152: EPA EGrid Power Profiler
A153: Baseline Energy Use Selection | B153: User-Defined | C153: Dropdown | D153: Toggle for default or user-defined baseline energy use. Default value is 0 and assumes no change in management between baseline and project.
A154: Baseline Diesel Consumption | C154: Gallons, HHV | D154: Total diesel consumption for feedstock handling and manure treatment before AD installation.
A155: Baseline Natural Gas Consumption | C155: MMBtu, HHV | D155: Total natural gas consumption for feedstock handling and manure treatment before AD installation.
A156: Baseline Grid Electricity Consumption | C156: kWh | D156: Total grid electricity consumption for feedstock handling and manure treatment before AD installation.
A157: Total Facility Diesel Consumption | B157: 0 | C157: Gallons, HHV | D157: Total facility diesel consumption for manure management, feedstock transportation, digester heating, and upgrading.
A158: Total Facility Propane Consumption | B158: 0 | C158: Gallons, HHV | D158: Total facility propane consumption for manure management, feedstock transportation, digester heating, and upgrading.
A159: Anaerobic Digester Biomethane Consumption | B159: 0 | C159: MMBtu, HHV | D159: Total biomethane consumption for digester heating.
A160: Anaerobic Digester Natural Gas Consumption | B160: 788.057 | C160: MMBtu, HHV | D160: Total natural gas consumption for digester heating.
A161: Anaerobic Digester Grid Electricity Consumption | B161: 0 | C161: kWh | D161: Total grid electricity consumption for digester heating.
A162: Upgrading and Compression Biomethane Consumption | B162: 0 | C162: MMBtu, HHV | D162: Total biomethane consumption for upgrading and compression.
A163: Upgrading and Compression Natural Gas Consumption | B163: 0 | C163: Gallons, HHV | D163: Total natural gas consumption for upgrading and compression.
A164: Upgrading and Compression Grid Electricity Use | B164: 2234400 | C164: kWh | D164: Total grid electricity consumption for upgrading and compression omitting Carbon Capture and Sequestration electricity Use.
A166: RNG Production User Defined Electricity Emissions (Optional) | B166: Data | C166: Unit | D166: User defined electricity emissions. Percentages represent the sources of the electricity used.
A167: Residual Oil | C167: % Fuel Used | D167: Share of Residual Oil used to generate facility used electricity.
A168: Natural Gas | C168: % Fuel Used | D168: Share of Natural Gas used to generate facility used electricity.
A169: Coal | C169: % Fuel Used | D169: Share of Biomass used to generate facility used electricity.
A170: Biomass | C170: % Fuel Used | D170: Share of Biomass used to generate facility used electricity.
A171: Nuclear Power | C171: % Fuel Used | D171: Share of Nuclear Power used to generate facility used electricity.
A172: Other Sources | C172: % Fuel Used | D172: Share of Other Sources used to generate facility used electricity.
A174: Transportation Distance | B174: Data | C174: Unit | D174: Transportation Distance for Upgraded Biomethane
A175: Trucking Transportation Distance | B175: 0 | C175: Miles | D175: Distance Biomethane is transported via truck.
A176: Source of Capacity of Truck | B176: User-Defined | C176: Dropdown | D176: Toggle for default or user-defined truck capacity.
A177: Capacity of Truck | B177: 497.93 | C177: MMBtu, HHV/load | D177: Amount of Biomethane that can be carried per truck. Default value is 497.93.
A178: Truck Fuel Efficiency | B178: 7.3 | C178: Miles/Gallon of Diesel | D178: Fuel efficiency for diesel use of the truck. Default value is 7.3.
A179: NG Pipeline Transmission from Injection to End Use | B179: 473 | C179: Miles | D179: Distance upgraded biomethane is transported via pipeline for eventual end use.
A181: Carbon Capture and Sequestration | B181: Data | C181: Unit | D181: Scenario for capturing and sequestering CO2 from the LFG.
A182: Consider Carbon Capture and Sequestration? | B182: Yes | C182: Dropdown | D182: Toggle Carbon Capture and Sequestration on or off.
A183: CO2 Sequestration Volume Calculation | B183: User-Defined | C183: Dropdown | D183: Allows either a user-defined value to be entered in the next row or a default value of 97.5%.
A184: CO2 Sequestration Volume | B184: 7500 | C184: Short Tons CO2 | D184: Short Tons of CO2 sequestered for the unit time period.
A185: CO2 Sequestration Electricity Use | B185: 1400000 | C185: kWh | D185: Carbon Capture and Sequestration electricity use from the grid for the unit time period.
A187: Thermal Combustion End Fate | B187: Data | C187: Unit | D187: Percentages represent the sources of generation for thermal energy end fate.
A188: RNG Industrial Boiler (>100 MMBtu/hr Input) | B188: 80 | C188: % Equipment Used | D188: Share of Industrial Boilers used to generate thermal energy.
A189: RNG Small Industrial Boiler (10-100 MMBtu/hr Input) | B189: 4 | C189: % Equipment Used | D189: Share of Small Industrial Boilers used to generate thermal energy.
A190: RNG Small Turbine | B190: 6 | C190: % Equipment Used | D190: Share of Small Turbines used to generate thermal energy.
A191: RNG Reciprocating Engine | B191: 10 | C191: % Equipment Used | D191: Share of Reciprocating Engine used to generate thermal energy.
A193: CNG to LNG/L-CNG Production Inputs | B193: Data per Unit Time | C193: Units | D193: Description of Data Point
A194: Pathway Type | B194: LNG | C194: Dropdown | D194: The production can be set as liquified natural gas (LNG) or as liquified to compressed natural gas (L-CNG).
A195: NG from NG purchase invoices | B195: 100000 | C195: MMBtu, HHV | D195: Natural gas use for the unit time period.
A196: LNG Production from Production Log | B196: 980000 | C196: Gallons, HHV | D196: Total LNG production for the unit time period.
A197: Electricity Emission Factor Source | B197: GREET 4.0 | C197: Dropdown | D197: Source of electricity emission factors. Selection does not impact user-defined electricity emissions.
A198: LNG Production Grid Electricity Mix | B198: 9-SPSO Mix | C198: Dropdown | D198: L-CNG / LNG production grid electricity mix. Please reference the picture to the right or visit the EPA EGrid here: | I198: EPA EGrid Power Profiler
A199: Total Facility Grid Electricity Use | B199: 1200000 | C199: kWh | D199: Total facility electricity use from the grid for the unit time period.
A200: NG Pipeline Transmission from RNG Upgrading Facility to LNG Plant | C200: Miles | D200: Distance upgraded biomethane is transported via pipeline for LNG production.
A201: Are LNG Delivery Trucks Equipped with Boil-Off Recovery? | B201: Yes | C201: Dropdown | D201: Boil off occurs from natural warming once the CNG is liquified. Trucks may be equipped to capture this boil off gas to avoid leakage.
A202: Is the LNG Storage System Equipped with Boil-Off Recovery? | B202: Yes | C202: Dropdown | D202: Boil off occurs from natural warming once the CNG is liquified. Trucks may be equipped to capture this boil off gas to avoid leakage.
A203: Transport Distance from Liquefaction Plant to Dispensing Station by HD Truck | C203: Miles | D203: Distance LNG is transported via truck to dispensing station.
A205: LNG/L-CNG Production User Defined Electricity Emissions (Optional) | B205: Data | C205: Unit | D205: User defined electricity emissions. Percentages represent the sources of the electricity used.
A206: Residual Oil | C206: % Fuel Used | D206: Share of Residual Oil used to generate facility used electricity.
A207: Natural Gas | C207: % Fuel Used | D207: Share of Natural Gas used to generate facility used electricity.
A208: Coal | C208: % Fuel Used | D208: Share of Biomass used to generate facility used electricity.
A209: Biomass | C209: % Fuel Used | D209: Share of Biomass used to generate facility used electricity.
A210: Nuclear Power | C210: % Fuel Used | D210: Share of Nuclear Power used to generate facility used electricity.
A211: Other Sources | C211: % Fuel Used | D211: Share of Other Sources used to generate facility used electricity.

Sheet RNG Summary (hidden)
C1: Summary of the Tier 1 Simplified CI Calculator for Biomethane from Anaerobic Digestion of Dairy and Swine Manure Release date: August 13, 2018 (corrected)
C3: Applicant: | D3: =IF('Biogas-to-RNG'!C15="","",'Biogas-to-RNG'!C15) ->  | G3: =IF('Biogas-to-RNG'!C18="", "", CONCATENATE("Digester Location: ",'Biogas-to-RNG'!C18, ", ", 'Biogas-to-RNG'!C19)) -> 
C6: Manure Biogas Production Electricity Mix | E6: ='Biogas-to-RNG'!D24 -> 5-AZNM Mix | G6: Fuel Production Electricity Mix | H6: See below for each fuel | J6: Pathway Descriptions and Results
C7: Manure biomethane Production | G7: Fuel Production | J7: Finished Fuels | L7: Carbon Intensity from Inputs (gCO2e/MJ) | M7: Conservative Margin of Safety (gCO2e/MJ) | N7: Total Carbon Intensity (gCO2e/MJ)
C8: Feedstock Production | D8: Column2 | E8: Column1 | G8: Fuel Production | H8: Column1 | J8: Different Scenarios of Ethanol Production | K8: Column1 | L8: Carbon Intensity, g/MJ
C9: Manure Transport & Handling | G9: Compressed Natural Gas (CNG) Production | J9: Compressed Natural Gas (CNG) | L9: ='Biogas-to-RNG'!G94 -> -138.1833272 | M9: 0 | N9: =L9+M9 -> -138.1833272
C10: Diesel, Gallons | E10: ='Biogas-to-RNG'!G52 -> 0 | G10: CNG Production Electricity Mix | H10: 3-CAMX Mix | J10: ='Biogas-to-RNG'!D10 -> Pathway Description: RNG produced from livestock manure, pipelined to for Compressed Natural Gas
C11: Electricity, kWh | E11: ='Biogas-to-RNG'!I52 -> 0
C12: Biogas Production | G12: Liquefied Natural Gas (LNG) Production
C13: Raw Inlet Gas as Feedstock, SCF at 60°F | E13: ='Biogas-to-RNG'!E52 -> 97173191.96 | G13: Liquefaction Facility Location | H13: =IF('Biogas-to-RNG'!C20="","",'Biogas-to-RNG'!C20) -> 
C14: Average Methane Content, % CH4 | E14: ='Biogas-to-RNG'!F52 -> 0.5890886987 | G14: LNG Production Electricity Mix | H14: ='Biogas-to-RNG'!AG24 -> 9-SPSO Mix | J14: Liquefied Natural Gas (LNG) | L14: ='Biogas-to-RNG'!G95 -> -113.5503605 | M14: 0 | N14: =L14+M14 -> -113.5503605
C15: Electricity, kWh | E15: ='Biogas-to-RNG'!J52 -> 0 | G15: Total LNG production, gallons | H15: ='Biogas-to-RNG'!AD52 -> 980000 | J15: ='Biogas-to-RNG'!D11 -> Pathway Description: RNG produced from livestock manure, pipelined to for liquefaction, then transported by truck to California LNG stations
C16: Biomethane (for heating), HHV in MMBtu | E16: ='Biogas-to-RNG'!K52 -> 0 | G16: Total Natural Gas Purchase, HHV in MMBtu | H16: ='Biogas-to-RNG'!AC54 -> 100000
C17: Natural Gas, HHV in MMBtu | E17: ='Biogas-to-RNG'!L52 -> 788.057 | G17: Electricity, kWh | H17: ='Biogas-to-RNG'!AF52 -> 1200000
C18: Diesel, Gallons | E18: ='Biogas-to-RNG'!M52 -> 0 | J18: Liquefied CNG (or L-CNG) | L18: ='Biogas-to-RNG'!G96 -> -110.0078971 | M18: 0 | N18: =L18+M18 -> -110.0078971
C19: Biogas Processing | G19: LNG Transport | J19: ='Biogas-to-RNG'!D12 -> Pathway Description: RNG produced from livestock manure, pipelined to for liquefaction, then transported by truck to California LNG stations, re-gasified and compresses to Liquefied CNG
C20: Natural Gas (Facility Use), HHV in MMBtu | E20: ='Biogas-to-RNG'!N52 -> 0 | G20: Truck, miles | H20: ='Biogas-to-RNG'!AH33 -> 0
C21: Biomethane (as process fuel), HHV in MMBtu | E21: ='Biogas-to-RNG'!O52 -> 0
C22: On-site electricity from biogas, kWh | E22: ='Biogas-to-RNG'!P52 -> 0
C23: Electricity, kWh | E23: ='Biogas-to-RNG'!Q52 -> 2234400
C24: Natural Gas (Gas Btu Enhancement), HHV in MMBtu | E24: ='Biogas-to-RNG'!R52 -> 0
C25: Propane (Gas Btu Enhancement), Gallons | E25: ='Biogas-to-RNG'!S52 -> 0
C26: Biomethane Production
C27: Biomethane, HHV in MMBtu | E27: ='Biogas-to-RNG'!V52 -> 46671.5
C28: Natural Gas Transport
C29: NG Transport Electricity Mix | E29: ='Biogas-to-RNG'!B79 -> 1-US Average
C30: Pipeline Distance to Centroid of CNG stations, miles | E30: ='Biogas-to-RNG'!Z34 -> 473
C31: Pipeline Distance to LNG facility, miles | E31: ='Biogas-to-RNG'!Z40 -> 0

Sheet Introduction - In Progress (hidden)
B2: DSM to RNG Calculator
B109: Change log (recent changes first)

Sheet Manure-to-Biogas (LOP Inputs) (hidden)
C2: Calculations Based on Selected Equations from the "Compliance Offset Protocol Livestock Projects" (LOP) | K2: 1991100.025
B5: Section L1: [Equation 5.3 in LOP] Baseline Methane Emissions from Anaerobic Storage/Treatment Systems (BECH4,AS)
B6: L1.1.1 Livestock Category (L) 1 | C6: L1.1.5 Reporting Month (MM/YYYY) | D6: L1.1.6 Livestock Population | E6: L1.1.7 Calendar Days of the Month | F6: L1.1.8 Number of Reporting Days | G6: L1.1.9 Average Temperature | H6: L1.1.10 Van't Hoff-Arrhenius factor | I6: L1.1.11 Fraction of Volatile Solids Sent to Anaerobic Storage/Treatment System | J6: L1.1.12 Volatile Solids Available for Degradation | K6: L1.1.13 Retention Time and Drainage | L6: L1.1.14 Carryover from Previous Month | M6: L1.1.15 Volatile Solids Degraded | N6: L1.1.16 Baseline Methane Emissions, AS | P6: L1.2.1 Livestock Category (L) 2 | Q6: L1.2.5 Reporting Month (MM/YYYY) | R6: L1.2.6 Livestock Population | S6: L1.2.7 Calendar Days of the Month | T6: L1.2.8 Number of Reporting Days | U6: L1.2.9 Average Temperature | V6: L1.2.10 Van't Hoff-Arrhenius factor | W6: L1.2.11 Fraction of Volatile Solids Sent to Anaerobic Storage/Treatment System | X6: L1.2.12 Volatile Solids Available for Degradation | Y6: L1.2.13 Retention Time and Drainage | Z6: L1.2.14 Carryover from Previous Month | AA6: L1.2.15 Volatile Solids Degraded | AB6: L1.2.16 Baseline Methane Emissions, AS | AD6: L1.3.1 Livestock Category (L) 3 | AE6: L1.3.5 Reporting Month (MM/YYYY) | AF6: L1.3.6 Livestock Population | AG6: L1.3.7 Calendar Days of the Month | AH6: L1.3.8 Number of Reporting Days | AI6: L1.3.9 Average Temperature | AJ6: L1.3.10 Van't Hoff-Arrhenius factor | AK6: L1.3.11 Fraction of Volatile Solids Sent to Anaerobic Storage/Treatment System | AL6: L1.3.12 Volatile Solids Available for Degradation | AM6: L1.3.13 Retention Time and Drainage | AN6: L1.3.14 Carryover from Previous Month | AO6: L1.3.15 Volatile Solids Degraded | AP6: L1.3.16 Baseline Methane Emissions, AS | AR6: L1.4.1 Livestock Category (L) 4 | AS6: L1.4.5 Reporting Month (MM/YYYY) | AT6: L1.4.6 Livestock Population | AU6: L1.4.7 Calendar Days of the Month | AV6: L1.4.8 Number of Reporting Days | AW6: L1.4.9 Average Temperature | AX6: L1.4.10 Van't Hoff-Arrhenius factor | AY6: L1.4.11 Fraction of Volatile Solids Sent to Anaerobic Storage/Treatment System | AZ6: L1.4.12 Volatile Solids Available for Degradation | BA6: L1.4.13 Retention Time and Drainage | BB6: L1.4.14 Carryover from Previous Month | BC6: L1.4.15 Volatile Solids Degraded | BD6: L1.4.16 Baseline Methane Emissions, AS | BF6: L1.5.1 Livestock Category (L) 5 | BG6: L1.5.5 Reporting Month (MM/YYYY) | BH6: L1.5.6 Livestock Population | BI6: L1.5.7 Calendar Days of the Month | BJ6: L1.5.8 Number of Reporting Days | BK6: L1.5.9 Average Temperature | BL6: L1.5.10 Van't Hoff-Arrhenius factor | BM6: L1.5.11 Fraction of Volatile Solids Sent to Anaerobic Storage/Treatment System | BN6: L1.5.12 Volatile Solids Available for Degradation | BO6: L1.5.13 Retention Time and Drainage | BP6: L1.5.14 Carryover from Previous Month | BQ6: L1.5.15 Volatile Solids Degraded | BR6: L1.5.16 Baseline Methane Emissions, AS | BT6: L1.6.1 Livestock Category (L) 6 | BU6: L1.6.5 Reporting Month (MM/YYYY) | BV6: L1.6.6 Livestock Population | BW6: L1.6.7 Calendar Days of the Month | BX6: L1.6.8 Number of Reporting Days | BY6: L1.6.9 Average Temperature | BZ6: L1.6.10 Van't Hoff-Arrhenius factor | CA6: L1.6.11 Fraction of Volatile Solids Sent to Anaerobic Storage/Treatment System | CB6: L1.6.12 Volatile Solids Available for Degradation | CC6: L1.6.13 Retention Time and Drainage | CD6: L1.6.14 Carryover from Previous Month | CE6: L1.6.15 Volatile Solids Degraded | CF6: L1.6.16 Baseline Methane Emissions, AS
B7: ='Manure to Biogas'!D15 -> Dairy cows (on feed) | D7: PL | E7: days | F7: RDrm (days) | G7: T2 (°C) | H7: f | I7: MSAS,L (fraction) | J7: VSavail,AS (kg) | L7: (VSavail-1,AS -VSdeg-1,AS) (kg) | M7: VSdeg,AS (kg) | N7: BECH4,AS (MT CH4) | P7: ='Manure to Biogas'!E15 -> Non-milking dairy cows (on feed) | R7: PL | S7: days | T7: RDrm (days) | U7: T2 (°C) | V7: f | W7: MSAS,L (fraction) | X7: VSavail,AS (kg) | Z7: (VSavail-1,AS -VSdeg-1,AS) (kg) | AA7: VSdeg,AS (kg) | AB7: BECH4,AS (MT CH4) | AD7: ='Manure to Biogas'!F15 -> Heifers (on feed) | AF7: PL | AG7: days | AH7: RDrm (days) | AI7: T2 (°C) | AJ7: f | AK7: MSAS,L (fraction) | AL7: VSavail,AS (kg) | AN7: (VSavail-1,AS -VSdeg-1,AS) (kg) | AO7: VSdeg,AS (kg) | AP7: BECH4,AS (MT CH4) | AR7: ='Manure to Biogas'!G15 -> Calves (grazing) | AT7: PL | AU7: days | AV7: RDrm (days) | AW7: T2 (°C) | AX7: f | AY7: MSAS,L (fraction) | AZ7: VSavail,AS (kg) | BB7: (VSavail-1,AS -VSdeg-1,AS) (kg) | BC7: VSdeg,AS (kg) | BD7: BECH4,AS (MT CH4) | BF7: ='Manure to Biogas'!H15 -> - | BH7: PL | BI7: days | BJ7: RDrm (days) | BK7: T2 (°C) | BL7: f | BM7: MSAS,L (fraction) | BN7: VSavail,AS (kg) | BP7: (VSavail-1,AS -VSdeg-1,AS) (kg) | BQ7: VSdeg,AS (kg) | BR7: BECH4,AS (MT CH4) | BT7: ='Manure to Biogas'!I15 -> - | BV7: PL | BW7: days | BX7: RDrm (days) | BY7: T2 (°C) | BZ7: f | CA7: MSAS,L (fraction) | CB7: VSavail,AS (kg) | CD7: (VSavail-1,AS -VSdeg-1,AS) (kg) | CE7: VSdeg,AS (kg) | CF7: BECH4,AS (MT CH4)
C8: ='Manure to Biogas'!A18 -> 2021-05-01 | D8: =IF(C8=0,0,'Manure to Biogas'!D18) -> 9232 | E8: ='Manure to Biogas'!B18 -> 31 | F8: =IF(C8=0,0,'Manure to Biogas'!C18) -> 31 | G8: ='Manure to Biogas'!D68 -> 26.61111111 | H8: =MIN(0.95, MAX(0.104, EXP(15175*((G8+273)-303.16)/(1.987*(G8+273)*303.17)))) -> 0.7420145336 | I8: ='Manure to Biogas'!$D$44 -> 0.875 | J8: =(B$19*D8*I8*E8*0.8)+L8 -> 1585686.843 | K8: ='Manure to Biogas'!D94 -> Not Applicable | L8: 0 | M8: =J8*H8 -> 1176602.683 | N8: =IFERROR(M8*B$15*0.68*0.001*(F8/E8), 0) -> 192.0215579 | Q8: =IF($C8=0, "", $C8) -> 2021-05-01 | R8: ='Manure to Biogas'!E18 -> 865 | S8: =E8 -> 31 | T8: =F8 -> 31 | U8: ='Manure to Biogas'!E68 -> 26.61111111 | V8: =MIN(0.95, MAX(0.104, EXP(15175*((U8+273)-303.16)/(1.987*(U8+273)*303.17)))) -> 0.7420145336 | W8: ='Manure to Biogas'!$E$44 -> 0.875 | X8: =(P$19*R8*W8*S8*0.8)+Z8 -> 71384.96232 | Y8: ='Manure to Biogas'!E94 -> Not Applicable | Z8: 0 | AA8: =X8*V8 -> 52968.67952 | AB8: =IFERROR(AA8*P$15*0.68*0.001*(T8/S8), 0) -> 8.644488498 | AE8: =IF($C8=0, "", $C8) -> 2021-05-01 | AF8: ='Manure to Biogas'!F18 -> 4422 | AG8: =S8 -> 31 | AH8: =T8 -> 31 | AI8: ='Manure to Biogas'!F68 -> 26.61111111 | AJ8: =MIN(0.95, MAX(0.104, EXP(15175*((AI8+273)-303.16)/(1.987*(AI8+273)*303.17)))) -> 0.7420145336 | AK8: ='Manure to Biogas'!$F$44 -> 0.5 | AL8: =(AD$19*AF8*AK8*AG8*0.8)+AN8 -> 188355.0546 | AM8: ='Manure to Biogas'!F94 -> Not Applicable | AN8: 0 | AO8: =AL8*AJ8 -> 139762.188 | AP8: =IFERROR(AO8*AD$15*0.68*0.001*(AH8/AG8), 0) -> 16.15650893 | AS8: =IF($C8=0, "", $C8) -> 2021-05-01 | AT8: ='Manure to Biogas'!G18 -> 6599 | AU8: =AG8 -> 31 | AV8: =AH8 -> 31 | AW8: ='Manure to Biogas'!G68 -> 26.61111111 | AX8: =MIN(0.95, MAX(0.104, EXP(15175*((AW8+273)-303.16)/(1.987*(AW8+273)*303.17)))) -> 0.7420145336 | AY8: ='Manure to Biogas'!$G$44 -> 1 | AZ8: =(AR$19*AT8*AY8*AU8*0.8)+BB8 -> 148697.1147 | BA8: ='Manure to Biogas'!G94 -> Not Applicable | BB8: 0 | BC8: =AZ8*AX8 -> 110335.4202 | BD8: =IFERROR(BC8*AR$15*0.68*0.001*(AV8/AU8), 0) -> 12.75477458 | BG8: =IF($C8=0, "", $C8) -> 2021-05-01 | BH8: ='Manure to Biogas'!H18 -> 0 | BI8: =AU8 -> 31 | BJ8: =AV8 -> 31 | BK8: ='Manure to Biogas'!H68 -> 0 | BL8: =MIN(0.95, MAX(0.104, EXP(15175*((BK8+273)-303.16)/(1.987*(BK8+273)*303.17)))) -> 0.104 | BM8: ='Manure to Biogas'!$H$44 -> 0.6 | BN8: =(BF$19*BH8*BM8*BI8*0.8)+BP8 -> 0 | BO8: ='Manure to Biogas'!H94 -> Not Applicable | BP8: 0 | BQ8: =BN8*BL8 -> 0 | BR8: =IFERROR(BQ8*BF$15*0.68*0.001*(BJ8/BI8), 0) -> 0 | BU8: =IF($C8=0, "", $C8) -> 2021-05-01 | BV8: ='Manure to Biogas'!I18 -> 0 | BW8: =BI8 -> 31 | BX8: =BJ8 -> 31 | BY8: ='Manure to Biogas'!I68 -> 0 | BZ8: =MIN(0.95, MAX(0.104, EXP(15175*((BY8+273)-303.16)/(1.987*(BY8+273)*303.17)))) -> 0.104 | CA8: ='Manure to Biogas'!$G$44 -> 1 | CB8: =(BT$19*BV8*CA8*BW8*0.8)+CD8 -> 0 | CC8: ='Manure to Biogas'!I94 -> Not Applicable | CD8: 0 | CE8: =CB8*BZ8 -> 0 | CF8: =IFERROR(CE8*BT$15*0.68*0.001*(BX8/BW8), 0) -> 0
B9: L1.1.2 Livestock Average Mass | C9: ='Manure to Biogas'!A19 -> 2021-06-01 | D9: =IF(C9=0,0,'Manure to Biogas'!D19) -> 8900 | E9: ='Manure to Biogas'!B19 -> 30 | F9: =IF(C9=0,0,'Manure to Biogas'!C19) -> 30 | G9: ='Manure to Biogas'!D69 -> 33.27777778 | H9: =MIN(0.95, MAX(0.104, EXP(15175*((G9+273)-303.16)/(1.987*(G9+273)*303.17)))) -> 0.95 | I9: =I8 -> 0.875 | J9: =(B$19*D9*I9*E9*0.8)+L9 -> 1888435.04 | K9: ='Manure to Biogas'!D95 -> Not Applicable | L9: =IF(K8="Not Applicable", (J8-M8), 0) -> 409084.1598 | M9: 1794013.288 | N9: =IFERROR(M9*B$15*0.68*0.001*(F9/E9), 0) -> 292.7829686 | P9: L1.2.2 Livestock Average Mass | Q9: =IF($C9=0, "", $C9) -> 2021-06-01 | R9: ='Manure to Biogas'!E19 -> 1200 | S9: =E9 -> 30 | T9: =F9 -> 30 | U9: ='Manure to Biogas'!E69 -> 33.27777778 | V9: =MIN(0.95, MAX(0.104, EXP(15175*((U9+273)-303.16)/(1.987*(U9+273)*303.17)))) -> 0.95 | W9: =W8 -> 0.875 | X9: 114252.8908 | Y9: ='Manure to Biogas'!E95 -> Not Applicable | Z9: =IF(Y8="Not Applicable", (X8-AA8), 0) -> 18416.2828 | AA9: 108540.2463 | AB9: =IFERROR(AA9*P$15*0.68*0.001*(T9/S9), 0) -> 17.71376819 | AD9: L1.3.2 Livestock Average Mass | AE9: =IF($C9=0, "", $C9) -> 2021-06-01 | AF9: ='Manure to Biogas'!F19 -> 4376 | AG9: =S9 -> 30 | AH9: =T9 -> 30 | AI9: ='Manure to Biogas'!F69 -> 33.27777778 | AJ9: =MIN(0.95, MAX(0.104, EXP(15175*((AI9+273)-303.16)/(1.987*(AI9+273)*303.17)))) -> 0.95 | AK9: =AK8 -> 0.5 | AL9: 228975.7876 | AM9: ='Manure to Biogas'!F95 -> Not Applicable | AN9: =IF(AM8="Not Applicable", (AL8-AO8), 0) -> 48592.86662 | AO9: 217526.9982 | AP9: =IFERROR(AO9*AD$15*0.68*0.001*(AH9/AG9), 0) -> 25.14612099 | AR9: L1.4.2 Livestock Average Mass | AS9: =IF($C9=0, "", $C9) -> 2021-06-01 | AT9: ='Manure to Biogas'!G19 -> 6200 | AU9: =AG9 -> 30 | AV9: =AH9 -> 30 | AW9: ='Manure to Biogas'!G69 -> 33.27777778 | AX9: =MIN(0.95, MAX(0.104, EXP(15175*((AW9+273)-303.16)/(1.987*(AW9+273)*303.17)))) -> 0.95 | AY9: =AY8 -> 1 | AZ9: 173561.3745 | BA9: ='Manure to Biogas'!G95 -> Not Applicable | BB9: =IF(BA8="Not Applicable", (AZ8-BC8), 0) -> 38361.6945 | BC9: 164883.3058 | BD9: =IFERROR(BC9*AR$15*0.68*0.001*(AV9/AU9), 0) -> 19.06051015 | BF9: L1.5.2 Livestock Average Mass | BG9: =IF($C9=0, "", $C9) -> 2021-06-01 | BH9: ='Manure to Biogas'!H19 -> 0 | BI9: =AU9 -> 30 | BJ9: =AV9 -> 30 | BK9: ='Manure to Biogas'!H69 -> 0 | BL9: =MIN(0.95, MAX(0.104, EXP(15175*((BK9+273)-303.16)/(1.987*(BK9+273)*303.17)))) -> 0.104 | BM9: =BM8 -> 0.6 | BN9: 0 | BO9: ='Manure to Biogas'!H95 -> Not Applicable | BP9: =IF(BO8="Not Applicable", (BN8-BQ8), 0) -> 0 | BQ9: 0 | BR9: =IFERROR(BQ9*BF$15*0.68*0.001*(BJ9/BI9), 0) -> 0 | BT9: L1.6.2 Livestock Average Mass | BU9: =IF($C9=0, "", $C9) -> 2021-06-01 | BV9: ='Manure to Biogas'!I19 -> 0 | BW9: =BI9 -> 30 | BX9: =BJ9 -> 30 | BY9: ='Manure to Biogas'!I69 -> 0 | BZ9: =MIN(0.95, MAX(0.104, EXP(15175*((BY9+273)-303.16)/(1.987*(BY9+273)*303.17)))) -> 0.104 | CA9: =CA8 -> 1 | CB9: 0 | CC9: ='Manure to Biogas'!I95 -> Not Applicable | CD9: =IF(CC8="Not Applicable", (CB8-CE8), 0) -> 0 | CE9: 0 | CF9: =IFERROR(CE9*BT$15*0.68*0.001*(BX9/BW9), 0) -> 0
B10: (MassL, kg) | C10: ='Manure to Biogas'!A20 -> 2021-07-01 | D10: =IF(C10=0,0,'Manure to Biogas'!D20) -> 8439 | E10: ='Manure to Biogas'!B20 -> 31 | F10: =IF(C10=0,0,'Manure to Biogas'!C20) -> 31 | G10: ='Manure to Biogas'!D70 -> 34.22222222 | H10: 0.95 | I10: =I9 -> 0.875 | J10: 1543903.042 | K10: ='Manure to Biogas'!D96 -> Not Applicable | L10: =IF(K9="Not Applicable", (J9-M9), 0) -> 94421.75199 | M10: 1466707.89 | N10: 239.3667276 | P10: (MassL, kg) | Q10: 2021-07-01 | R10: ='Manure to Biogas'!E20 -> 1740 | S10: 31 | T10: 31 | U10: ='Manure to Biogas'!E70 -> 34.22222222 | V10: 0.95 | W10: =W9 -> 0.875 | X10: 149307.8289 | Y10: ='Manure to Biogas'!E96 -> Not Applicable | Z10: =IF(Y9="Not Applicable", (X9-AA9), 0) -> 5712.64454 | AA10: 141842.4374 | AB10: 23.14868579 | AD10: (MassL, kg) | AE10: 2021-07-01 | AF10: ='Manure to Biogas'!F20 -> 4284 | AG10: 31 | AH10: 31 | AI10: ='Manure to Biogas'!F70 -> 34.22222222 | AJ10: 0.95 | AK10: =AK9 -> 0.5 | AL10: 193925.7351 | AM10: ='Manure to Biogas'!F96 -> Not Applicable | AN10: =IF(AM9="Not Applicable", (AL9-AO9), 0) -> 11448.78938 | AO10: 184229.4484 | AP10: 21.29692423 | AR10: (MassL, kg) | AS10: 2021-07-01 | AT10: ='Manure to Biogas'!G20 -> 5602 | AU10: 31 | AV10: 31 | AW10: ='Manure to Biogas'!G70 -> 34.22222222 | AX10: 0.95 | AY10: =AY9 -> 1 | AZ10: 134909.5033 | BA10: ='Manure to Biogas'!G96 -> Not Applicable | BB10: =IF(BA9="Not Applicable", (AZ9-BC9), 0) -> 8678.068725 | BC10: 128164.0281 | BD10: 14.81576165 | BF10: (MassL, kg) | BG10: 2021-07-01 | BH10: ='Manure to Biogas'!H20 -> 0 | BI10: 31 | BJ10: 31 | BK10: ='Manure to Biogas'!H70 -> 0 | BL10: 0.104 | BM10: =BM9 -> 0.6 | BN10: 0 | BO10: ='Manure to Biogas'!H96 -> Not Applicable | BP10: =IF(BO9="Not Applicable", (BN9-BQ9), 0) -> 0 | BQ10: 0 | BR10: 0 | BT10: (MassL, kg) | BU10: 2021-07-01 | BV10: ='Manure to Biogas'!I20 -> 0 | BW10: 31 | BX10: 31 | BY10: ='Manure to Biogas'!I70 -> 0 | BZ10: 0.104 | CA10: =CA9 -> 1 | CB10: 0 | CC10: ='Manure to Biogas'!I96 -> Not Applicable | CD10: =IF(CC9="Not Applicable", (CB9-CE9), 0) -> 0 | CE10: 0 | CF10: 0
B11: =IFERROR(VLOOKUP(B7, Reference!$A$94:$B$103, 2, FALSE), 0) -> 680 | C11: ='Manure to Biogas'!A21 -> 2021-08-01 | D11: =IF(C11=0,0,'Manure to Biogas'!D21) -> 8412 | E11: ='Manure to Biogas'!B21 -> 31 | F11: =IF(C11=0,0,'Manure to Biogas'!C21) -> 31 | G11: ='Manure to Biogas'!D71 -> 33.88888889 | H11: 0.95 | I11: 0.875 | J11: 1522038.926 | K11: ='Manure to Biogas'!D97 -> Not Applicable | L11: 77195.15209 | M11: 1445936.98 | N11: 235.9769151 | P11: =IFERROR(VLOOKUP(P7, Reference!$A$94:$B$103, 2, FALSE), 0) -> 684 | Q11: 2021-08-01 | R11: ='Manure to Biogas'!E21 -> 1762 | S11: 31 | T11: 31 | U11: ='Manure to Biogas'!E71 -> 33.88888889 | V11: 0.95 | W11: 0.875 | X11: 152876.1471 | Y11: ='Manure to Biogas'!E97 -> Not Applicable | Z11: 7465.391443 | AA11: 145232.3397 | AB11: 23.70191784 | AD11: =IFERROR(VLOOKUP(AD7, Reference!$A$94:$B$103, 2, FALSE), 0) -> 407 | AE11: 2021-08-01 | AF11: ='Manure to Biogas'!F21 -> 4099 | AG11: 31 | AH11: 31 | AI11: ='Manure to Biogas'!F71 -> 33.88888889 | AJ11: 0.95 | AK11: 0.5 | AL11: 184293.159 | AM11: ='Manure to Biogas'!F97 -> Not Applicable | AN11: 9696.286755 | AO11: 175078.501 | AP11: 20.23907472 | AR11: =IFERROR(VLOOKUP(AR7, Reference!$A$94:$B$103, 2, FALSE), 0) -> 118 | AS11: 2021-08-01 | AT11: ='Manure to Biogas'!G21 -> 4808 | AU11: 31 | AV11: 31 | AW11: ='Manure to Biogas'!G71 -> 33.88888889 | AX11: 0.95 | AY11: 1 | AZ11: 115085.4854 | BA11: ='Manure to Biogas'!G97 -> Not Applicable | BB11: 6745.475164 | BC11: 109331.2111 | BD11: 12.63868801 | BF11: =IFERROR(VLOOKUP(BF7, Reference!$A$94:$B$103, 2, FALSE), 0) -> 0 | BG11: 2021-08-01 | BH11: ='Manure to Biogas'!H21 -> 0 | BI11: 31 | BJ11: 31 | BK11: ='Manure to Biogas'!H71 -> 0 | BL11: 0.104 | BM11: 0.6 | BN11: 0 | BO11: ='Manure to Biogas'!H97 -> Not Applicable | BP11: 0 | BQ11: 0 | BR11: 0 | BT11: =IFERROR(VLOOKUP(BT7, Reference!$A$94:$B$103, 2, FALSE), 0) -> 0 | BU11: 2021-08-01 | BV11: ='Manure to Biogas'!I21 -> 0 | BW11: 31 | BX11: 31 | BY11: ='Manure to Biogas'!I71 -> 0 | BZ11: 0.104 | CA11: 1 | CB11: 0 | CC11: ='Manure to Biogas'!I97 -> Not Applicable | CD11: 0 | CE11: 0 | CF11: 0
C12: ='Manure to Biogas'!A22 -> 2021-09-01 | D12: =IF(C12=0,0,'Manure to Biogas'!D22) -> 8603 | E12: ='Manure to Biogas'!B22 -> 30 | F12: =IF(C12=0,0,'Manure to Biogas'!C22) -> 30 | G12: ='Manure to Biogas'!D72 -> 31.33333333 | H12: 0.95 | I12: 0.875 | J12: 1506085.724 | K12: ='Manure to Biogas'!D98 -> Not Applicable | L12: 76101.94631 | M12: 1430781.438 | N12: =IFERROR(M12*B$15*0.68*0.001*(F12/E12), 0) -> 233.5035306 | Q12: 2021-09-01 | R12: ='Manure to Biogas'!E22 -> 1776 | S12: 30 | T12: 30 | U12: ='Manure to Biogas'!E72 -> 31.33333333 | V12: 0.95 | W12: 0.875 | X12: 149481.9872 | Y12: ='Manure to Biogas'!E98 -> Not Applicable | Z12: 7643.807353 | AA12: 142007.8878 | AB12: 23.17568729 | AE12: 2021-09-01 | AF12: ='Manure to Biogas'!F22 -> 3730 | AG12: 30 | AH12: 30 | AI12: ='Manure to Biogas'!F72 -> 31.33333333 | AJ12: 0.95 | AK12: 0.5 | AL12: 162968.8387 | AM12: ='Manure to Biogas'!F98 -> Not Applicable | AN12: 9214.657948 | AO12: 154820.3968 | AP12: 17.89723787 | AS12: 2021-09-01 | AT12: ='Manure to Biogas'!G22 -> 4007 | AU12: 30 | AV12: 30 | AW12: ='Manure to Biogas'!G72 -> 31.33333333 | AX12: 0.95 | AY12: 1 | AZ12: 93132.51907 | BA12: ='Manure to Biogas'!G98 -> Not Applicable | BB12: 5754.27427 | BC12: 88475.89312 | BD12: 10.22781324 | BG12: 2021-09-01 | BH12: ='Manure to Biogas'!H22 -> 0 | BI12: 30 | BJ12: 30 | BK12: ='Manure to Biogas'!H72 -> 0 | BL12: 0.104 | BM12: 0.6 | BN12: 0 | BO12: ='Manure to Biogas'!H98 -> Not Applicable | BP12: 0 | BQ12: 0 | BR12: 0 | BU12: 2021-09-01 | BV12: ='Manure to Biogas'!I22 -> 0 | BW12: 30 | BX12: 30 | BY12: ='Manure to Biogas'!I72 -> 0 | BZ12: 0.104 | CA12: 1 | CB12: 0 | CC12: ='Manure to Biogas'!I98 -> Not Applicable | CD12: 0 | CE12: 0 | CF12: 0
B13: L1.1.3 Maximum CH4 Potential | C13: ='Manure to Biogas'!A23 -> 2021-10-01 | D13: =IF(C13=0,0,'Manure to Biogas'!D23) -> 8846 | E13: ='Manure to Biogas'!B23 -> 31 | F13: =IF(C13=0,0,'Manure to Biogas'!C23) -> 31 | G13: ='Manure to Biogas'!D73 -> 22.55555556 | H13: 0.5230144475 | I13: 0.875 | J13: 1594691.831 | K13: ='Manure to Biogas'!D99 -> Not Applicable | L13: =IF(K12="Not Applicable", (J12-M12), 0) -> 75304.2862 | M13: =J13*H13 -> 834046.8668 | N13: =IFERROR(M13*B$15*0.68*0.001*(F13/E13), 0) -> 136.1164487 | P13: L1.2.3 Maximum CH4 Potential | Q13: 2021-10-01 | R13: ='Manure to Biogas'!E23 -> 1906 | S13: 31 | T13: 31 | U13: ='Manure to Biogas'!E73 -> 22.55555556 | V13: 0.5230144475 | W13: 0.875 | X13: 164768.5944 | Y13: ='Manure to Biogas'!E99 -> Not Applicable | Z13: 7474.09936 | AA13: 86176.35535 | AB13: 14.06398119 | AD13: L1.3.3 Maximum CH4 Potential | AE13: 2021-10-01 | AF13: ='Manure to Biogas'!F23 -> 3326 | AG13: 31 | AH13: 31 | AI13: ='Manure to Biogas'!F73 -> 22.55555556 | AJ13: 0.5230144475 | AK13: 0.5 | AL13: 149819.3853 | AM13: ='Manure to Biogas'!F99 -> Not Applicable | AN13: 8148.441937 | AO13: 78357.70304 | AP13: 9.058150472 | AR13: L1.4.3 Maximum CH4 Potential | AS13: 2021-10-01 | AT13: ='Manure to Biogas'!G23 -> 4487 | AU13: 31 | AV13: 31 | AW13: ='Manure to Biogas'!G73 -> 22.55555556 | AX13: 0.5230144475 | AY13: 1 | AZ13: 105763.4533 | BA13: ='Manure to Biogas'!G99 -> Not Applicable | BB13: 4656.625954 | BC13: 55315.8141 | BD13: 6.39450811 | BF13: L1.5.3 Maximum CH4 Potential | BG13: 2021-10-01 | BH13: ='Manure to Biogas'!H23 -> 0 | BI13: 31 | BJ13: 31 | BK13: ='Manure to Biogas'!H73 -> 0 | BL13: 0.104 | BM13: 0.6 | BN13: 0 | BO13: ='Manure to Biogas'!H99 -> Not Applicable | BP13: 0 | BQ13: 0 | BR13: 0 | BT13: L1.6.3 Maximum CH4 Potential | BU13: 2021-10-01 | BV13: ='Manure to Biogas'!I23 -> 0 | BW13: 31 | BX13: 31 | BY13: ='Manure to Biogas'!I73 -> 0 | BZ13: 0.104 | CA13: 1 | CB13: 0 | CC13: ='Manure to Biogas'!I99 -> Not Applicable | CD13: 0 | CE13: 0 | CF13: 0
B14: (Bo,L , m3 CH4/kg VS) | C14: ='Manure to Biogas'!A24 -> 2021-11-01 | D14: =IF(C14=0,0,'Manure to Biogas'!D24) -> 8740 | E14: ='Manure to Biogas'!B24 -> 30 | F14: =IF(C14=0,0,'Manure to Biogas'!C24) -> 30 | G14: ='Manure to Biogas'!D74 -> 19.88888889 | H14: =MIN(0.95, MAX(0.104, EXP(15175*((G14+273)-303.16)/(1.987*(G14+273)*303.17)))) -> 0.4133735774 | I14: 0.875 | J14: 2213400.772 | K14: ='Manure to Biogas'!D100 -> Not Applicable | L14: 760644.964 | M14: 914961.3952 | N14: 149.3216997 | P14: (Bo,L , m3 CH4/kg VS) | Q14: 2021-11-01 | R14: ='Manure to Biogas'!E24 -> 2212 | S14: 30 | T14: 30 | U14: ='Manure to Biogas'!E74 -> 19.88888889 | V14: 0.4133735774 | W14: 0.875 | X14: 255251.0531 | Y14: ='Manure to Biogas'!E100 -> Not Applicable | Z14: 78592.23902 | AA14: 105514.0409 | AB14: 17.21989148 | AD14: (Bo,L , m3 CH4/kg VS) | AE14: 2021-11-01 | AF14: ='Manure to Biogas'!F24 -> 3259 | AG14: 30 | AH14: 30 | AI14: ='Manure to Biogas'!F74 -> 19.88888889 | AJ14: 0.4133735774 | AK14: 0.5 | AL14: 205800.7909 | AM14: ='Manure to Biogas'!F100 -> Not Applicable | AN14: 71461.68229 | AO14: 85072.60917 | AP14: 9.83439362 | AR14: (Bo,L , m3 CH4/kg VS) | AS14: 2021-11-01 | AT14: ='Manure to Biogas'!G24 -> 4889 | AU14: 30 | AV14: 30 | AW14: ='Manure to Biogas'!G74 -> 19.88888889 | AX14: 0.4133735774 | AY14: 1 | AZ14: 157059.1288 | BA14: ='Manure to Biogas'!G100 -> Not Applicable | BB14: 50447.63921 | BC14: 64924.09393 | BD14: 7.505225259 | BF14: (Bo,L , m3 CH4/kg VS) | BG14: 2021-11-01 | BH14: ='Manure to Biogas'!H24 -> 0 | BI14: 30 | BJ14: 30 | BK14: ='Manure to Biogas'!H74 -> 0 | BL14: 0.104 | BM14: 0.6 | BN14: 0 | BO14: ='Manure to Biogas'!H100 -> Not Applicable | BP14: 0 | BQ14: 0 | BR14: 0 | BT14: (Bo,L , m3 CH4/kg VS) | BU14: 2021-11-01 | BV14: ='Manure to Biogas'!I24 -> 0 | BW14: 30 | BX14: 30 | BY14: ='Manure to Biogas'!I74 -> 0 | BZ14: 0.104 | CA14: 1 | CB14: 0 | CC14: ='Manure to Biogas'!I100 -> Not Applicable | CD14: 0 | CE14: 0 | CF14: 0
B15: =IFERROR(VLOOKUP(B7, Reference!$A$94:$D$103,4, FALSE), 0) -> 0.24 | C15: ='Manure to Biogas'!A25 -> 2021-12-01 | D15: =IF(C15=0,0,'Manure to Biogas'!D25) -> 9179 | E15: ='Manure to Biogas'!B25 -> 31 | F15: =IF(C15=0,0,'Manure to Biogas'!C25) -> 31 | G15: ='Manure to Biogas'!D75 -> 14.76111111 | H15: 0.2597495846 | I15: 0.875 | J15: 2875022.948 | K15: ='Manure to Biogas'!D101 -> Not Applicable | L15: 1298439.377 | M15: 746786.0166 | N15: 121.8754779 | P15: =IFERROR(VLOOKUP(P7, Reference!$A$94:$D$103,4, FALSE), 0) -> 0.24 | Q15: 2021-12-01 | R15: ='Manure to Biogas'!E25 -> 1807 | S15: 31 | T15: 31 | U15: ='Manure to Biogas'!E75 -> 14.76111111 | V15: 0.2597495846 | W15: 0.875 | X15: 298861.4363 | Y15: ='Manure to Biogas'!E101 -> Not Applicable | Z15: 149737.0122 | AA15: 77629.13395 | AB15: 12.66907466 | AD15: =IFERROR(VLOOKUP(AD7, Reference!$A$94:$D$103,4, FALSE), 0) -> 0.17 | AE15: 2021-12-01 | AF15: ='Manure to Biogas'!F25 -> 3732 | AG15: 31 | AH15: 31 | AI15: ='Manure to Biogas'!F75 -> 14.76111111 | AJ15: 0.2597495846 | AK15: 0.5 | AL15: 279692.6919 | AM15: ='Manure to Biogas'!F101 -> Not Applicable | AN15: 120728.1818 | AO15: 72650.06055 | AP15: 8.398347 | AR15: =IFERROR(VLOOKUP(AR7, Reference!$A$94:$D$103,4, FALSE), 0) -> 0.17 | AS15: 2021-12-01 | AT15: ='Manure to Biogas'!G25 -> 5598 | AU15: 31 | AV15: 31 | AW15: ='Manure to Biogas'!G75 -> 14.76111111 | AX15: 0.2597495846 | AY15: 1 | AZ15: 218276.3363 | BA15: ='Manure to Biogas'!G101 -> Not Applicable | BB15: 92135.03488 | BC15: 56697.1877 | BD15: 6.554194898 | BF15: =IFERROR(VLOOKUP(BF7, Reference!$A$94:$D$103,4, FALSE), 0) -> 0 | BG15: 2021-12-01 | BH15: ='Manure to Biogas'!H25 -> 0 | BI15: 31 | BJ15: 31 | BK15: ='Manure to Biogas'!H75 -> 0 | BL15: 0.104 | BM15: 0.6 | BN15: 0 | BO15: ='Manure to Biogas'!H101 -> Not Applicable | BP15: 0 | BQ15: 0 | BR15: 0 | BT15: =IFERROR(VLOOKUP(BT7, Reference!$A$94:$D$103,4, FALSE), 0) -> 0 | BU15: 2021-12-01 | BV15: ='Manure to Biogas'!I25 -> 0 | BW15: 31 | BX15: 31 | BY15: ='Manure to Biogas'!I75 -> 0 | BZ15: 0.104 | CA15: 1 | CB15: 0 | CC15: ='Manure to Biogas'!I101 -> Not Applicable | CD15: 0 | CE15: 0 | CF15: 0
C16: ='Manure to Biogas'!A26 -> 2022-01-01 | D16: =IF(C16=0,0,'Manure to Biogas'!D26) -> 8627 | E16: ='Manure to Biogas'!B26 -> 31 | F16: =IF(C16=0,0,'Manure to Biogas'!C26) -> 31 | G16: ='Manure to Biogas'!D76 -> 13.44444444 | H16: 0.2299195037 | I16: 0.875 | J16: 3610009.071 | K16: ='Manure to Biogas'!D102 -> Not Applicable | L16: 2128236.931 | M16: 830011.4939 | N16: 135.4578758 | Q16: 2022-01-01 | R16: ='Manure to Biogas'!E26 -> 1246 | S16: 31 | T16: 31 | U16: ='Manure to Biogas'!E76 -> 13.44444444 | V16: 0.2299195037 | W16: 0.875 | X16: 324059.6585 | Y16: ='Manure to Biogas'!E102 -> Not Applicable | Z16: 221232.3024 | AA16: 74507.63584 | AB16: 12.15964617 | AE16: 2022-01-01 | AF16: ='Manure to Biogas'!F26 -> 3840 | AG16: 31 | AH16: 31 | AI16: ='Manure to Biogas'!F76 -> 13.44444444 | AJ16: 0.2299195037 | AK16: 0.5 | AL16: 370607.4006 | AM16: ='Manure to Biogas'!F102 -> Not Applicable | AN16: 207042.6314 | AO16: 85209.86961 | AP16: 9.850260927 | AS16: 2022-01-01 | AT16: ='Manure to Biogas'!G26 -> 5760 | AU16: 31 | AV16: 31 | AW16: ='Manure to Biogas'!G76 -> 13.44444444 | AX16: 0.2299195037 | AY16: 1 | AZ16: 291370.8414 | BA16: ='Manure to Biogas'!G102 -> Not Applicable | BB16: 161579.1486 | BC16: 66991.83924 | BD16: 7.744256616 | BG16: 2022-01-01 | BH16: ='Manure to Biogas'!H26 -> 0 | BI16: 31 | BJ16: 31 | BK16: ='Manure to Biogas'!H76 -> 0 | BL16: 0.104 | BM16: 0.6 | BN16: 0 | BO16: ='Manure to Biogas'!H102 -> Not Applicable | BP16: 0 | BQ16: 0 | BR16: 0 | BU16: 2022-01-01 | BV16: ='Manure to Biogas'!I26 -> 0 | BW16: 31 | BX16: 31 | BY16: ='Manure to Biogas'!I76 -> 0 | BZ16: 0.104 | CA16: 1 | CB16: 0 | CC16: ='Manure to Biogas'!I102 -> Not Applicable | CD16: 0 | CE16: 0 | CF16: 0
B17: L1.1.4 Livestock Excretion Rate | C17: ='Manure to Biogas'!A27 -> 2022-02-01 | D17: =IF(C17=0,0,'Manure to Biogas'!D27) -> 10277 | E17: ='Manure to Biogas'!B27 -> 28 | F17: =IF(C17=0,0,'Manure to Biogas'!C27) -> 28 | G17: ='Manure to Biogas'!D77 -> 14 | H17: 0.2420968418 | I17: 0.875 | J17: 4374349.981 | K17: ='Manure to Biogas'!D103 -> Not Applicable | L17: 2779997.577 | M17: 1059016.315 | N17: 172.8314627 | P17: L1.2.4 Livestock Excretion Rate | Q17: 2022-02-01 | R17: ='Manure to Biogas'!E27 -> 799 | S17: 28 | T17: 28 | U17: ='Manure to Biogas'!E77 -> 14 | V17: 0.2420968418 | W17: 0.875 | X17: 309109.1503 | Y17: ='Manure to Biogas'!E103 -> Not Applicable | Z17: 249552.0227 | AA17: 74834.34906 | AB17: 12.21296577 | AD17: L1.3.4 Livestock Excretion Rate | AE17: 2022-02-01 | AF17: ='Manure to Biogas'!F27 -> 3877 | AG17: 28 | AH17: 28 | AI17: ='Manure to Biogas'!F77 -> 14 | AJ17: 0.2420968418 | AK17: 0.5 | AL17: 434556.9488 | AM17: ='Manure to Biogas'!F103 -> Not Applicable | AN17: 285397.531 | AO17: 105204.8649 | AP17: 12.16168238 | AR17: L1.4.4 Livestock Excretion Rate | AS17: 2022-02-01 | AT17: ='Manure to Biogas'!G27 -> 5815 | AU17: 28 | AV17: 28 | AW17: ='Manure to Biogas'!G77 -> 14 | AX17: 0.2420968418 | AY17: 1 | AZ17: 342729.6038 | BA17: ='Manure to Biogas'!G103 -> Not Applicable | BB17: 224379.0022 | BC17: 82973.75467 | BD17: 9.59176604 | BF17: L1.5.4 Livestock Excretion Rate | BG17: 2022-02-01 | BH17: ='Manure to Biogas'!H27 -> 0 | BI17: 28 | BJ17: 28 | BK17: ='Manure to Biogas'!H77 -> 0 | BL17: 0.104 | BM17: 0.6 | BN17: 0 | BO17: ='Manure to Biogas'!H103 -> Not Applicable | BP17: 0 | BQ17: 0 | BR17: 0 | BT17: L1.6.4 Livestock Excretion Rate | BU17: 2022-02-01 | BV17: ='Manure to Biogas'!I27 -> 0 | BW17: 28 | BX17: 28 | BY17: ='Manure to Biogas'!I77 -> 0 | BZ17: 0.104 | CA17: 1 | CB17: 0 | CC17: ='Manure to Biogas'!I103 -> Not Applicable | CD17: 0 | CE17: 0 | CF17: 0
B18: (VSL, dry kg/animal/day) | C18: ='Manure to Biogas'!A28 -> 2022-03-01 | D18: =IF(C18=0,0,'Manure to Biogas'!D28) -> 10025 | E18: ='Manure to Biogas'!B28 -> 31 | F18: =IF(C18=0,0,'Manure to Biogas'!C28) -> 31 | G18: ='Manure to Biogas'!D78 -> 18.55555556 | H18: =MIN(0.95, MAX(0.104, EXP(15175*((G18+273)-303.16)/(1.987*(G18+273)*303.17)))) -> 0.3669073055 | I18: 0.875 | J18: 5037226.062 | K18: ='Manure to Biogas'!D104 -> System Emptied | L18: 3315333.666 | M18: 1848195.041 | N18: 301.6254308 | P18: (VSL, dry kg/animal/day) | Q18: 2022-03-01 | R18: ='Manure to Biogas'!E28 -> 525 | S18: 31 | T18: 31 | U18: ='Manure to Biogas'!E78 -> 18.55555556 | V18: 0.3669073055 | W18: 0.875 | X18: 277600.9344 | Y18: ='Manure to Biogas'!E104 -> Not Applicable | Z18: 234274.8012 | AA18: 101853.8108 | AB18: 16.62254193 | AD18: (VSL, dry kg/animal/day) | AE18: 2022-03-01 | AF18: ='Manure to Biogas'!F28 -> 3911 | AG18: 31 | AH18: 31 | AI18: ='Manure to Biogas'!F78 -> 18.55555556 | AJ18: 0.3669073055 | AK18: 0.5 | AL18: 495941.0976 | AM18: ='Manure to Biogas'!F104 -> Not Applicable | AN18: 329352.0839 | AO18: 181964.4118 | AP18: 21.03508601 | AR18: (VSL, dry kg/animal/day) | AS18: 2022-03-01 | AT18: ='Manure to Biogas'!G28 -> 5866 | AU18: 31 | AV18: 31 | AW18: ='Manure to Biogas'!G78 -> 18.55555556 | AX18: 0.3669073055 | AY18: 1 | AZ18: 391936.0696 | BA18: ='Manure to Biogas'!G104 -> Not Applicable | BB18: 259755.8491 | BC18: 143804.2072 | BD18: 16.62376635 | BF18: (VSL, dry kg/animal/day) | BG18: 2022-03-01 | BH18: ='Manure to Biogas'!H28 -> 0 | BI18: 31 | BJ18: 31 | BK18: ='Manure to Biogas'!H78 -> 0 | BL18: 0.104 | BM18: 0.6 | BN18: 0 | BO18: ='Manure to Biogas'!H104 -> Not Applicable | BP18: 0 | BQ18: 0 | BR18: 0 | BT18: (VSL, dry kg/animal/day) | BU18: 2022-03-01 | BV18: ='Manure to Biogas'!I28 -> 0 | BW18: 31 | BX18: 31 | BY18: ='Manure to Biogas'!I78 -> 0 | BZ18: 0.104 | CA18: 1 | CB18: 0 | CC18: ='Manure to Biogas'!I104 -> Not Applicable | CD18: 0 | CE18: 0 | CF18: 0
B19: =IFERROR(VLOOKUP(B7, Reference!$A$94:$D$103, 3, FALSE)*B11/1000, 0) -> 7.9152 | C19: ='Manure to Biogas'!A29 -> 2022-04-01 | D19: =IF(C19=0,0,'Manure to Biogas'!D29) -> 10022 | E19: ='Manure to Biogas'!B29 -> 30 | F19: =IF(C19=0,0,'Manure to Biogas'!C29) -> 30 | G19: ='Manure to Biogas'!D79 -> 23.11111111 | H19: 0.5489941026 | I19: =I18 -> 0.875 | J19: =(B$19*D19*I19*E19*0.8)+L19 -> 1665848.822 | K19: ='Manure to Biogas'!D105 -> Not Applicable | L19: 0 | M19: 914541.1793 | N19: 149.2531205 | P19: =IFERROR(VLOOKUP(P7, Reference!$A$94:$D$103, 3, FALSE)*P11/1000, 0) -> 3.80304 | Q19: 2022-04-01 | R19: ='Manure to Biogas'!E29 -> 419 | S19: 30 | T19: 30 | U19: ='Manure to Biogas'!E79 -> 23.11111111 | V19: 0.5489941026 | W19: 0.875 | X19: 209210.0725 | Y19: ='Manure to Biogas'!E105 -> Not Applicable | Z19: 175747.1236 | AA19: 114855.096 | AB19: 18.74435167 | AD19: =IFERROR(VLOOKUP(AD7, Reference!$A$94:$D$103, 3, FALSE)*AD11/1000, 0) -> 3.43508 | AE19: 2022-04-01 | AF19: ='Manure to Biogas'!F29 -> 3934 | AG19: 30 | AH19: 30 | AI19: ='Manure to Biogas'!F79 -> 23.11111111 | AJ19: 0.5489941026 | AK19: 0.5 | AL19: 476139.9425 | AM19: ='Manure to Biogas'!F105 -> Not Applicable | AN19: 313976.6858 | AO19: 261398.0204 | AP19: 30.21761116 | AR19: =IFERROR(VLOOKUP(AR7, Reference!$A$94:$D$103, 3, FALSE)*AR11/1000, 0) -> 0.9086 | AS19: 2022-04-01 | AT19: ='Manure to Biogas'!G29 -> 5902 | AU19: 30 | AV19: 30 | AW19: ='Manure to Biogas'!G79 -> 23.11111111 | AX19: 0.5489941026 | AY19: 1 | AZ19: 376833.2352 | BA19: ='Manure to Biogas'!G105 -> Not Applicable | BB19: 248131.8624 | BC19: 206879.2238 | BD19: 23.91523827 | BF19: =IFERROR(VLOOKUP(BF7, Reference!$A$94:$D$103, 3, FALSE)*BF11/1000, 0) -> 0 | BG19: 2022-04-01 | BH19: ='Manure to Biogas'!H29 -> 0 | BI19: 30 | BJ19: 30 | BK19: ='Manure to Biogas'!H79 -> 0 | BL19: 0.104 | BM19: 0.6 | BN19: 0 | BO19: ='Manure to Biogas'!H105 -> Not Applicable | BP19: 0 | BQ19: 0 | BR19: 0 | BT19: =IFERROR(VLOOKUP(BT7, Reference!$A$94:$D$103, 3, FALSE)*BT11/1000, 0) -> 0 | BU19: 2022-04-01 | BV19: ='Manure to Biogas'!I29 -> 0 | BW19: 30 | BX19: 30 | BY19: ='Manure to Biogas'!I79 -> 0 | BZ19: 0.104 | CA19: 1 | CB19: 0 | CC19: ='Manure to Biogas'!I105 -> Not Applicable | CD19: 0 | CE19: 0 | CF19: 0
C20: ='Manure to Biogas'!A30 -> 2022-05-01 | D20: =IF(C20=0,0,'Manure to Biogas'!D30) -> 9623 | E20: ='Manure to Biogas'!B30 -> 31 | F20: =IF(C20=0,0,'Manure to Biogas'!C30) -> 31 | G20: ='Manure to Biogas'!D80 -> 26.94444444 | H20: =MIN(0.95, MAX(0.104, EXP(15175*((G20+273)-303.16)/(1.987*(G20+273)*303.17)))) -> 0.763333911 | I20: =I19 -> 0.875 | J20: =(B$19*D20*I20*E20*0.8)+L20 -> 2404152.583 | K20: ='Manure to Biogas'!D106 -> Not Applicable | L20: 751307.6431 | M20: 1835171.194 | N20: 299.4999389 | Q20: 2022-05-01 | R20: ='Manure to Biogas'!E30 -> 664 | S20: 31 | T20: 31 | U20: ='Manure to Biogas'!E80 -> 26.94444444 | V20: 0.763333911 | W20: 0.875 | X20: 149152.2193 | Y20: ='Manure to Biogas'!E106 -> Not Applicable | Z20: 94354.97651 | AA20: 113852.9469 | AB20: 18.58080093 | AE20: 2022-05-01 | AF20: ='Manure to Biogas'!F30 -> 3958 | AG20: 31 | AH20: 31 | AI20: ='Manure to Biogas'!F80 -> 26.94444444 | AJ20: 0.763333911 | AK20: 0.5 | AL20: 383332.9004 | AM20: ='Manure to Biogas'!F106 -> Not Applicable | AN20: 214741.9221 | AO20: 292611.0021 | AP20: 33.82583184 | AS20: 2022-05-01 | AT20: ='Manure to Biogas'!G30 -> 5938 | AU20: 31 | AV20: 31 | AW20: ='Manure to Biogas'!G80 -> 26.94444444 | AX20: 0.763333911 | AY20: 1 | AZ20: 303756.6281 | BA20: ='Manure to Biogas'!G106 -> Not Applicable | BB20: 169954.0114 | BC20: 231867.7349 | BD20: 26.80391015 | BG20: 2022-05-01 | BH20: ='Manure to Biogas'!H30 -> 0 | BI20: 31 | BJ20: 31 | BK20: ='Manure to Biogas'!H80 -> 0 | BL20: 0.104 | BM20: 0.6 | BN20: 0 | BO20: ='Manure to Biogas'!H106 -> Not Applicable | BP20: 0 | BQ20: 0 | BR20: 0 | BU20: 2022-05-01 | BV20: ='Manure to Biogas'!I30 -> 0 | BW20: 31 | BX20: 31 | BY20: ='Manure to Biogas'!I80 -> 0 | BZ20: 0.104 | CA20: 1 | CB20: 0 | CC20: ='Manure to Biogas'!I106 -> Not Applicable | CD20: 0 | CE20: 0 | CF20: 0
C21: ='Manure to Biogas'!A31 -> 2022-06-01 | D21: =IF(C21=0,0,'Manure to Biogas'!D31) -> 9062 | E21: ='Manure to Biogas'!B31 -> 30 | F21: =IF(C21=0,0,'Manure to Biogas'!C31) -> 30 | G21: ='Manure to Biogas'!D81 -> 33.44444444 | H21: 0.95 | I21: 0.875 | J21: =(B$19*D21*I21*E21*0.8)+L21 -> 2075259.78 | K21: ='Manure to Biogas'!D107 -> Not Applicable | L21: =IF(K20="Not Applicable", (J20-M20), 0) -> 568981.3892 | M21: 1971496.791 | N21: =IFERROR(M21*B$15*0.68*0.001*(F21/E21), 0) -> 321.7482762 | Q21: 2022-06-01 | R21: ='Manure to Biogas'!E31 -> 1130 | S21: 30 | T21: 30 | U21: ='Manure to Biogas'!E81 -> 33.44444444 | V21: 0.95 | W21: 0.875 | X21: 125545.4116 | Y21: ='Manure to Biogas'!E107 -> Not Applicable | Z21: 35299.2724 | AA21: 119268.141 | AB21: 19.46456061 | AE21: 2022-06-01 | AF21: ='Manure to Biogas'!F31 -> 3047 | AG21: 30 | AH21: 30 | AI21: ='Manure to Biogas'!F81 -> 33.44444444 | AJ21: 0.95 | AK21: 0.5 | AL21: 216322.1634 | AM21: ='Manure to Biogas'!F107 -> Not Applicable | AN21: 90721.89831 | AO21: 205506.0553 | AP21: 23.75649999 | AS21: 2022-06-01 | AT21: ='Manure to Biogas'!G31 -> 4571 | AU21: 30 | AV21: 30 | AW21: ='Manure to Biogas'!G81 -> 33.44444444 | AX21: 0.95 | AY21: 1 | AZ21: 171565.9476 | BA21: ='Manure to Biogas'!G107 -> Not Applicable | BB21: 71888.89316 | BC21: 162987.6502 | BD21: 18.84137236 | BG21: 2022-06-01 | BH21: ='Manure to Biogas'!H31 -> 0 | BI21: 30 | BJ21: 30 | BK21: ='Manure to Biogas'!H81 -> 0 | BL21: 0.104 | BM21: 0.6 | BN21: 0 | BO21: ='Manure to Biogas'!H107 -> Not Applicable | BP21: 0 | BQ21: 0 | BR21: 0 | BU21: 2022-06-01 | BV21: ='Manure to Biogas'!I31 -> 0 | BW21: 30 | BX21: 30 | BY21: ='Manure to Biogas'!I81 -> 0 | BZ21: 0.104 | CA21: 1 | CB21: 0 | CC21: ='Manure to Biogas'!I107 -> Not Applicable | CD21: 0 | CE21: 0 | CF21: 0
C22: ='Manure to Biogas'!A32 -> 2022-07-01 | D22: =IF(C22=0,0,'Manure to Biogas'!D32) -> 8647 | E22: ='Manure to Biogas'!B32 -> 31 | F22: =IF(C22=0,0,'Manure to Biogas'!C32) -> 31 | G22: ='Manure to Biogas'!D82 -> 35.05555556 | H22: 0.95 | I22: 0.875 | J22: =(B$19*D22*I22*E22*0.8)+L22 -> 1588970.325 | K22: ='Manure to Biogas'!D108 -> Not Applicable | L22: =IF(K21="Not Applicable", (J21-M21), 0) -> 103762.989 | M22: 1509521.809 | N22: =IFERROR(M22*B$15*0.68*0.001*(F22/E22), 0) -> 246.3539593 | Q22: 2022-07-01 | R22: ='Manure to Biogas'!E32 -> 1815 | S22: 31 | T22: 31 | U22: ='Manure to Biogas'!E82 -> 35.05555556 | V22: 0.95 | W22: 0.875 | X22: 156061.9025 | Y22: ='Manure to Biogas'!E108 -> Not Applicable | Z22: 6277.27058 | AA22: 148258.8074 | AB22: 24.19583736 | AE22: 2022-07-01 | AF22: ='Manure to Biogas'!F32 -> 2891 | AG22: 31 | AH22: 31 | AI22: ='Manure to Biogas'!F82 -> 35.05555556 | AJ22: 0.95 | AK22: 0.5 | AL22: 133958.23 | AM22: ='Manure to Biogas'!F108 -> Not Applicable | AN22: 10816.10817 | AO22: 127260.3185 | AP22: 14.71129282 | AS22: 2022-07-01 | AT22: ='Manure to Biogas'!G32 -> 4337 | AU22: 31 | AV22: 31 | AW22: ='Manure to Biogas'!G82 -> 35.05555556 | AX22: 0.95 | AY22: 1 | AZ22: 106305.1327 | BA22: ='Manure to Biogas'!G108 -> Not Applicable | BB22: 8578.297378 | BC22: 100989.8761 | BD22: 11.67442968 | BG22: 2022-07-01 | BH22: ='Manure to Biogas'!H32 -> 0 | BI22: 31 | BJ22: 31 | BK22: ='Manure to Biogas'!H82 -> 0 | BL22: 0.104 | BM22: 0.6 | BN22: 0 | BO22: ='Manure to Biogas'!H108 -> Not Applicable | BP22: 0 | BQ22: 0 | BR22: 0 | BU22: 2022-07-01 | BV22: ='Manure to Biogas'!I32 -> 0 | BW22: 31 | BX22: 31 | BY22: ='Manure to Biogas'!I82 -> 0 | BZ22: 0.104 | CA22: 1 | CB22: 0 | CC22: ='Manure to Biogas'!I108 -> Not Applicable | CD22: 0 | CE22: 0 | CF22: 0
C23: ='Manure to Biogas'!A33 -> 2022-08-01 | D23: =IF(C23=0,0,'Manure to Biogas'!D33) -> 8571 | E23: ='Manure to Biogas'!B33 -> 31 | F23: =IF(C23=0,0,'Manure to Biogas'!C33) -> 31 | G23: ='Manure to Biogas'!D83 -> 33.72222222 | H23: 0.95 | I23: 0.875 | J23: 1551602.105 | K23: ='Manure to Biogas'!D109 -> Not Applicable | L23: 79448.51627 | M23: 1474022 | N23: 240.5603903 | Q23: 2022-08-01 | R23: ='Manure to Biogas'!E33 -> 1913 | S23: 31 | T23: 31 | U23: ='Manure to Biogas'!E83 -> 33.72222222 | V23: 0.95 | W23: 0.875 | X23: 165675.2719 | Y23: ='Manure to Biogas'!E109 -> Not Applicable | Z23: 7803.095125 | AA23: 157391.5083 | AB23: 25.68629416 | AE23: 2022-08-01 | AF23: ='Manure to Biogas'!F33 -> 2950 | AG23: 31 | AH23: 31 | AI23: ='Manure to Biogas'!F83 -> 33.72222222 | AJ23: 0.95 | AK23: 0.5 | AL23: 132353.1379 | AM23: ='Manure to Biogas'!F109 -> Not Applicable | AN23: 6697.911502 | AO23: 125735.481 | AP23: 14.5350216 | AS23: 2022-08-01 | AT23: ='Manure to Biogas'!G33 -> 4425 | AU23: 31 | AV23: 31 | AW23: ='Manure to Biogas'!G83 -> 33.72222222 | AX23: 0.95 | AY23: 1 | AZ23: 105025.0206 | BA23: ='Manure to Biogas'!G109 -> Not Applicable | BB23: 5315.256637 | BC23: 99773.76961 | BD23: 11.53384777 | BG23: 2022-08-01 | BH23: ='Manure to Biogas'!H33 -> 0 | BI23: 31 | BJ23: 31 | BK23: ='Manure to Biogas'!H83 -> 0 | BL23: 0.104 | BM23: 0.6 | BN23: 0 | BO23: ='Manure to Biogas'!H109 -> Not Applicable | BP23: 0 | BQ23: 0 | BR23: 0 | BU23: 2022-08-01 | BV23: ='Manure to Biogas'!I33 -> 0 | BW23: 31 | BX23: 31 | BY23: ='Manure to Biogas'!I83 -> 0 | BZ23: 0.104 | CA23: 1 | CB23: 0 | CC23: ='Manure to Biogas'!I109 -> Not Applicable | CD23: 0 | CE23: 0 | CF23: 0
C24: ='Manure to Biogas'!A34 -> 2022-09-01 | D24: =IF(C24=0,0,'Manure to Biogas'!D34) -> 8316 | E24: ='Manure to Biogas'!B34 -> 30 | F24: =IF(C24=0,0,'Manure to Biogas'!C34) -> 30 | G24: ='Manure to Biogas'!D84 -> 31.83333333 | H24: 0.95 | I24: 0.875 | J24: 1459858.972 | K24: ='Manure to Biogas'!D110 -> Not Applicable | L24: 77580.10525 | M24: 1386866.024 | N24: 226.3365351 | Q24: 2022-09-01 | R24: ='Manure to Biogas'!E34 -> 1837 | S24: 30 | T24: 30 | U24: ='Manure to Biogas'!E84 -> 31.83333333 | V24: 0.95 | W24: 0.875 | X24: 154993.6377 | Y24: ='Manure to Biogas'!E110 -> Not Applicable | Z24: 8283.763595 | AA24: 147243.9558 | AB24: 24.03021359 | AE24: 2022-09-01 | AF24: ='Manure to Biogas'!F34 -> 3108 | AG24: 30 | AH24: 30 | AI24: ='Manure to Biogas'!F84 -> 31.83333333 | AJ24: 0.95 | AK24: 0.5 | AL24: 134732.4006 | AM24: ='Manure to Biogas'!F110 -> Not Applicable | AN24: 6617.656895 | AO24: 127995.7805 | AP24: 14.79631223 | AS24: 2022-09-01 | AT24: ='Manure to Biogas'!G34 -> 4662 | AU24: 30 | AV24: 30 | AW24: ='Manure to Biogas'!G84 -> 31.83333333 | AX24: 0.95 | AY24: 1 | AZ24: 106912.6878 | BA24: ='Manure to Biogas'!G110 -> Not Applicable | BB24: 5251.251032 | BC24: 101567.0534 | BD24: 11.74115138 | BG24: 2022-09-01 | BH24: ='Manure to Biogas'!H34 -> 0 | BI24: 30 | BJ24: 30 | BK24: ='Manure to Biogas'!H84 -> 0 | BL24: 0.104 | BM24: 0.6 | BN24: 0 | BO24: ='Manure to Biogas'!H110 -> Not Applicable | BP24: 0 | BQ24: 0 | BR24: 0 | BU24: 2022-09-01 | BV24: ='Manure to Biogas'!I34 -> 0 | BW24: 30 | BX24: 30 | BY24: ='Manure to Biogas'!I84 -> 0 | BZ24: 0.104 | CA24: 1 | CB24: 0 | CC24: ='Manure to Biogas'!I110 -> Not Applicable | CD24: 0 | CE24: 0 | CF24: 0
C25: ='Manure to Biogas'!A35 -> 2022-10-01 | D25: =IF(C25=0,0,'Manure to Biogas'!D35) -> 8211 | E25: ='Manure to Biogas'!B35 -> 31 | F25: =IF(C25=0,0,'Manure to Biogas'!C35) -> 31 | G25: ='Manure to Biogas'!D85 -> 24.5 | H25: 0.6192394884 | I25: 0.875 | J25: 1483312.995 | K25: ='Manure to Biogas'!D111 -> Not Applicable | L25: 72992.94862 | M25: 918525.9801 | N25: =IFERROR(M25*B$15*0.68*0.001*(F25/E25), 0) -> 149.9034399 | Q25: 2022-10-01 | R25: ='Manure to Biogas'!E35 -> 1917 | S25: 31 | T25: 31 | U25: ='Manure to Biogas'!E85 -> 24.5 | V25: 0.6192394884 | W25: 0.875 | X25: 165951.9625 | Y25: ='Manure to Biogas'!E111 -> Not Applicable | Z25: 7749.681884 | AA25: 102764.0084 | AB25: 16.77108617 | AE25: 2022-10-01 | AF25: ='Manure to Biogas'!F35 -> 3229 | AG25: 31 | AH25: 31 | AI25: ='Manure to Biogas'!F85 -> 24.5 | AJ25: 0.6192394884 | AK25: 0.5 | AL25: 144275.8492 | AM25: ='Manure to Biogas'!F111 -> Not Applicable | AN25: 6736.620029 | AO25: 89341.30305 | AP25: 10.32785463 | AS25: 2022-10-01 | AT25: ='Manure to Biogas'!G35 -> 4844 | AU25: 31 | AV25: 31 | AW25: ='Manure to Biogas'!G85 -> 24.5 | AX25: 0.6192394884 | AY25: 1 | AZ25: 114496.8427 | BA25: ='Manure to Biogas'!G111 -> Not Applicable | BB25: 5345.634392 | BC25: 70900.9663 | BD25: 8.196151705 | BG25: 2022-10-01 | BH25: ='Manure to Biogas'!H35 -> 0 | BI25: 31 | BJ25: 31 | BK25: ='Manure to Biogas'!H85 -> 0 | BL25: 0.104 | BM25: 0.6 | BN25: 0 | BO25: ='Manure to Biogas'!H111 -> Not Applicable | BP25: 0 | BQ25: 0 | BR25: 0 | BU25: 2022-10-01 | BV25: ='Manure to Biogas'!I35 -> 0 | BW25: 31 | BX25: 31 | BY25: ='Manure to Biogas'!I85 -> 0 | BZ25: 0.104 | CA25: 1 | CB25: 0 | CC25: ='Manure to Biogas'!I111 -> Not Applicable | CD25: 0 | CE25: 0 | CF25: 0
C26: ='Manure to Biogas'!A36 -> 2022-11-01 | D26: =IF(C26=0,0,'Manure to Biogas'!D36) -> 8747 | E26: ='Manure to Biogas'!B36 -> 30 | F26: =IF(C26=0,0,'Manure to Biogas'!C36) -> 30 | G26: ='Manure to Biogas'!D86 -> 14.5 | H26: 0.2535636778 | I26: 0.875 | J26: 2018706.357 | K26: ='Manure to Biogas'!D112 -> Not Applicable | L26: =IF(K25="Not Applicable", (J25-M25), 0) -> 564787.0148 | M26: 511870.6084 | N26: =IFERROR(M26*B$15*0.68*0.001*(F26/E26), 0) -> 83.53728329 | Q26: 2022-11-01 | R26: ='Manure to Biogas'!E36 -> 1934 | S26: 30 | T26: 30 | U26: ='Manure to Biogas'!E86 -> 14.5 | V26: 0.2535636778 | W26: 0.875 | X26: 217644.6207 | Y26: ='Manure to Biogas'!E112 -> Not Applicable | Z26: 63187.95416 | AA26: 55186.77049 | AB26: 9.006480943 | AE26: 2022-11-01 | AF26: ='Manure to Biogas'!F36 -> 3436 | AG26: 30 | AH26: 30 | AI26: ='Manure to Biogas'!F86 -> 14.5 | AJ26: 0.2535636778 | AK26: 0.5 | AL26: 196569.7647 | AM26: ='Manure to Biogas'!F112 -> Not Applicable | AN26: 54934.54615 | AO26: 49842.95249 | AP26: 5.761845308 | AS26: 2022-11-01 | AT26: ='Manure to Biogas'!G36 -> 5154 | AU26: 30 | AV26: 30 | AW26: ='Manure to Biogas'!G86 -> 14.5 | AX26: 0.2535636778 | AY26: 1 | AZ26: 155986.062 | BA26: ='Manure to Biogas'!G112 -> Not Applicable | BB26: 43595.87641 | BC26: 39552.39957 | BD26: 4.57225739 | BG26: 2022-11-01 | BH26: ='Manure to Biogas'!H36 -> 0 | BI26: 30 | BJ26: 30 | BK26: ='Manure to Biogas'!H86 -> 0 | BL26: 0.104 | BM26: 0.6 | BN26: 0 | BO26: ='Manure to Biogas'!H112 -> Not Applicable | BP26: 0 | BQ26: 0 | BR26: 0 | BU26: 2022-11-01 | BV26: ='Manure to Biogas'!I36 -> 0 | BW26: 30 | BX26: 30 | BY26: ='Manure to Biogas'!I86 -> 0 | BZ26: 0.104 | CA26: 1 | CB26: 0 | CC26: ='Manure to Biogas'!I112 -> Not Applicable | CD26: 0 | CE26: 0 | CF26: 0
C27: ='Manure to Biogas'!A37 -> 2022-12-01 | D27: =IF(C27=0,0,'Manure to Biogas'!D37) -> 9365 | E27: ='Manure to Biogas'!B37 -> 31 | F27: =IF(C27=0,0,'Manure to Biogas'!C37) -> 31 | G27: ='Manure to Biogas'!D87 -> 12.27777778 | H27: 0.2061691647 | I27: 0.875 | J27: 3115366.65 | K27: ='Manure to Biogas'!D113 -> Not Applicable | L27: 1506835.749 | M27: 642292.54 | N27: 104.8221425 | Q27: 2022-12-01 | R27: ='Manure to Biogas'!E37 -> 1675 | S27: 31 | T27: 31 | U27: ='Manure to Biogas'!E87 -> 12.27777778 | V27: 0.2061691647 | W27: 0.875 | X27: 300688.8466 | Y27: ='Manure to Biogas'!E113 -> Not Applicable | Z27: 162457.8502 | AA27: 61992.76834 | AB27: 10.11721979 | AE27: 2022-12-01 | AF27: ='Manure to Biogas'!F37 -> 3648 | AG27: 31 | AH27: 31 | AI27: ='Manure to Biogas'!F87 -> 12.27777778 | AJ27: 0.2061691647 | AK27: 0.5 | AL27: 302113.343 | AM27: ='Manure to Biogas'!F113 -> Not Applicable | AN27: 146726.8122 | AO27: 62286.45557 | AP27: 7.200314264 | AS27: 2022-12-01 | AT27: ='Manure to Biogas'!G37 -> 5472 | AU27: 31 | AV27: 31 | AW27: ='Manure to Biogas'!G87 -> 12.27777778 | AX27: 0.2061691647 | AY27: 1 | AZ27: 239735.7706 | BA27: ='Manure to Biogas'!G113 -> Not Applicable | BB27: 116433.6624 | BC27: 49426.12357 | BD27: 5.713659884 | BG27: 2022-12-01 | BH27: ='Manure to Biogas'!H37 -> 0 | BI27: 31 | BJ27: 31 | BK27: ='Manure to Biogas'!H87 -> 0 | BL27: 0.104 | BM27: 0.6 | BN27: 0 | BO27: ='Manure to Biogas'!H113 -> Not Applicable | BP27: 0 | BQ27: 0 | BR27: 0 | BU27: 2022-12-01 | BV27: ='Manure to Biogas'!I37 -> 0 | BW27: 31 | BX27: 31 | BY27: ='Manure to Biogas'!I87 -> 0 | BZ27: 0.104 | CA27: 1 | CB27: 0 | CC27: ='Manure to Biogas'!I113 -> Not Applicable | CD27: 0 | CE27: 0 | CF27: 0
C28: ='Manure to Biogas'!A38 -> 00:00:00 | D28: =IF(C28=0,0,'Manure to Biogas'!D38) -> 0 | E28: ='Manure to Biogas'!B38 -> 0 | F28: =IF(C28=0,0,'Manure to Biogas'!C38) -> 0 | G28: ='Manure to Biogas'!D88 -> 11.55555556 | H28: 0.1926264511 | I28: 0.875 | J28: 2473074.11 | K28: ='Manure to Biogas'!D114 -> Not Applicable | L28: 2473074.11 | M28: 476379.4892 | N28: 0 | R28: ='Manure to Biogas'!E38 -> 1139 | S28: 0 | T28: 0 | U28: ='Manure to Biogas'!E88 -> 11.55555556 | V28: 0.1926264511 | W28: 0.875 | X28: 238696.0783 | Y28: ='Manure to Biogas'!E114 -> Not Applicable | Z28: 238696.0783 | AA28: 45979.17845 | AB28: 0 | AF28: ='Manure to Biogas'!F38 -> 6949 | AG28: 0 | AH28: 0 | AI28: ='Manure to Biogas'!F88 -> 11.55555556 | AJ28: 0.1926264511 | AK28: 0.5 | AL28: 239826.8875 | AM28: ='Manure to Biogas'!F114 -> Not Applicable | AN28: 239826.8875 | AO28: 46197.00221 | AP28: 0 | AT28: ='Manure to Biogas'!G38 -> 1617 | AU28: 0 | AV28: 0 | AW28: ='Manure to Biogas'!G88 -> 11.55555556 | AX28: 0.1926264511 | AY28: 1 | AZ28: 190309.647 | BA28: ='Manure to Biogas'!G114 -> Not Applicable | BB28: 190309.647 | BC28: 36658.67192 | BD28: 0 | BH28: ='Manure to Biogas'!H38 -> 0 | BI28: 0 | BJ28: 0 | BK28: ='Manure to Biogas'!H88 -> 0 | BL28: 0.104 | BM28: 0.6 | BN28: 0 | BO28: ='Manure to Biogas'!H114 -> Not Applicable | BP28: 0 | BQ28: 0 | BR28: 0 | BV28: ='Manure to Biogas'!I38 -> 0 | BW28: 0 | BX28: 0 | BY28: ='Manure to Biogas'!I88 -> 0 | BZ28: 0.104 | CA28: 1 | CB28: 0 | CC28: ='Manure to Biogas'!I114 -> Not Applicable | CD28: 0 | CE28: 0 | CF28: 0
C29: ='Manure to Biogas'!A39 -> 00:00:00 | D29: =IF(C29=0,0,'Manure to Biogas'!D39) -> 0 | E29: ='Manure to Biogas'!B39 -> 0 | F29: =IF(C29=0,0,'Manure to Biogas'!C39) -> 0 | G29: ='Manure to Biogas'!D89 -> 13.16666667 | H29: 0.2240456537 | I29: 0.875 | J29: 1996694.621 | K29: ='Manure to Biogas'!D115 -> Not Applicable | L29: 1996694.621 | M29: 447350.7517 | N29: 0 | R29: ='Manure to Biogas'!E39 -> 690 | S29: 0 | T29: 0 | U29: ='Manure to Biogas'!E89 -> 13.16666667 | V29: 0.2240456537 | W29: 0.875 | X29: 192716.8998 | Y29: ='Manure to Biogas'!E115 -> Not Applicable | Z29: 192716.8998 | AA29: 43177.38381 | AB29: 0 | AF29: ='Manure to Biogas'!F39 -> 7600 | AG29: 0 | AH29: 0 | AI29: ='Manure to Biogas'!F89 -> 13.16666667 | AJ29: 0.2240456537 | AK29: 0.5 | AL29: 193629.8853 | AM29: ='Manure to Biogas'!F115 -> Not Applicable | AN29: 193629.8853 | AO29: 43381.93423 | AP29: 0 | AT29: ='Manure to Biogas'!G39 -> 1567 | AU29: 0 | AV29: 0 | AW29: ='Manure to Biogas'!G89 -> 13.16666667 | AX29: 0.2240456537 | AY29: 1 | AZ29: 153650.9751 | BA29: ='Manure to Biogas'!G115 -> Not Applicable | BB29: 153650.9751 | BC29: 34424.83317 | BD29: 0 | BH29: ='Manure to Biogas'!H39 -> 0 | BI29: 0 | BJ29: 0 | BK29: ='Manure to Biogas'!H89 -> 0 | BL29: 0.104 | BM29: 0.6 | BN29: 0 | BO29: ='Manure to Biogas'!H115 -> Not Applicable | BP29: 0 | BQ29: 0 | BR29: 0 | BV29: ='Manure to Biogas'!I39 -> 0 | BW29: 0 | BX29: 0 | BY29: ='Manure to Biogas'!I89 -> 0 | BZ29: 0.104 | CA29: 1 | CB29: 0 | CC29: ='Manure to Biogas'!I115 -> Not Applicable | CD29: 0 | CE29: 0 | CF29: 0
C30: ='Manure to Biogas'!A40 -> 00:00:00 | D30: =IF(C30=0,0,'Manure to Biogas'!D40) -> 0 | E30: ='Manure to Biogas'!B40 -> 0 | F30: =IF(C30=0,0,'Manure to Biogas'!C40) -> 0 | G30: ='Manure to Biogas'!D90 -> 15.83333333 | H30: 0.286642978 | I30: 0.875 | J30: 1549343.869 | K30: ='Manure to Biogas'!D116 -> Not Applicable | L30: 1549343.869 | M30: 444108.5408 | N30: =IFERROR(M30*B$15*0.68*0.001*(F30/E30), 0) -> 0 | R30: ='Manure to Biogas'!E40 -> 376 | S30: 0 | T30: 0 | U30: ='Manure to Biogas'!E90 -> 15.83333333 | V30: 0.286642978 | W30: 0.875 | X30: 149539.516 | Y30: ='Manure to Biogas'!E116 -> Not Applicable | Z30: 149539.516 | AA30: 42864.45221 | AB30: 0 | AF30: ='Manure to Biogas'!F40 -> 8086 | AG30: 0 | AH30: 0 | AI30: ='Manure to Biogas'!F90 -> 15.83333333 | AJ30: 0.286642978 | AK30: 0.5 | AL30: 150247.951 | AM30: ='Manure to Biogas'!F116 -> Not Applicable | AN30: 150247.951 | AO30: 43067.52013 | AP30: 0 | AT30: ='Manure to Biogas'!G40 -> 1328 | AU30: 0 | AV30: 0 | AW30: ='Manure to Biogas'!G90 -> 15.83333333 | AX30: 0.286642978 | AY30: 1 | AZ30: 119226.1419 | BA30: ='Manure to Biogas'!G116 -> Not Applicable | BB30: 119226.1419 | BC30: 34175.33639 | BD30: 0 | BH30: ='Manure to Biogas'!H40 -> 0 | BI30: 0 | BJ30: 0 | BK30: ='Manure to Biogas'!H90 -> 0 | BL30: 0.104 | BM30: 0.6 | BN30: 0 | BO30: ='Manure to Biogas'!H116 -> Not Applicable | BP30: 0 | BQ30: 0 | BR30: 0 | BV30: ='Manure to Biogas'!I40 -> 0 | BW30: 0 | BX30: 0 | BY30: ='Manure to Biogas'!I90 -> 0 | BZ30: 0.104 | CA30: 1 | CB30: 0 | CC30: ='Manure to Biogas'!I116 -> Not Applicable | CD30: 0 | CE30: 0 | CF30: 0
C31: ='Manure to Biogas'!A41 -> 00:00:00 | D31: =IF(C31=0,0,'Manure to Biogas'!D41) -> 0 | E31: ='Manure to Biogas'!B41 -> 0 | F31: =IF(C31=0,0,'Manure to Biogas'!C41) -> 0 | G31: ='Manure to Biogas'!D91 -> 21.77777778 | H31: 0.4885452235 | I31: 0.875 | J31: 1105235.329 | K31: ='Manure to Biogas'!D117 -> Not Applicable | L31: 1105235.329 | M31: 539957.4407 | N31: 0 | R31: ='Manure to Biogas'!E41 -> 394 | S31: 0 | T31: 0 | U31: ='Manure to Biogas'!E91 -> 21.77777778 | V31: 0.4885452235 | W31: 0.875 | X31: 106675.0638 | Y31: ='Manure to Biogas'!E117 -> Not Applicable | Z31: 106675.0638 | AA31: 52115.5929 | AB31: 0 | AF31: ='Manure to Biogas'!F41 -> 8496 | AG31: 0 | AH31: 0 | AI31: ='Manure to Biogas'!F91 -> 21.77777778 | AJ31: 0.4885452235 | AK31: 0.5 | AL31: 107180.4309 | AM31: ='Manure to Biogas'!F117 -> Not Applicable | AN31: 107180.4309 | AO31: 52362.48757 | AP31: 0 | AT31: ='Manure to Biogas'!G41 -> 930 | AU31: 0 | AV31: 0 | AW31: ='Manure to Biogas'!G91 -> 21.77777778 | AX31: 0.4885452235 | AY31: 1 | AZ31: 85050.80556 | BA31: ='Manure to Biogas'!G117 -> Not Applicable | BB31: 85050.80556 | BC31: 41551.16481 | BD31: 0 | BH31: ='Manure to Biogas'!H41 -> 0 | BI31: 0 | BJ31: 0 | BK31: ='Manure to Biogas'!H91 -> 0 | BL31: 0.104 | BM31: 0.6 | BN31: 0 | BO31: ='Manure to Biogas'!H117 -> Not Applicable | BP31: 0 | BQ31: 0 | BR31: 0 | BV31: ='Manure to Biogas'!I41 -> 0 | BW31: 0 | BX31: 0 | BY31: ='Manure to Biogas'!I91 -> 0 | BZ31: 0.104 | CA31: 1 | CB31: 0 | CC31: ='Manure to Biogas'!I117 -> Not Applicable | CD31: 0 | CE31: 0 | CF31: 0
C32: Total | N32: =SUM(N8:N31) -> 4032.895181 | Q32: Total | AB32: =SUM(AB8:AB31) -> 347.929494 | AE32: Total | AP32: =SUM(AP8:AP31) -> 326.206371 | AS32: Total | BD32: =SUM(BD8:BD31) -> 246.9032835 | BG32: Total | BR32: =SUM(BR8:BR31) -> 0 | BU32: Total | CF32: =SUM(CF8:CF31) -> 0
G33: =ROUND(AVERAGE(G8:G31),0) -> 23 | H33: ≤10
B35: Section L2: [Equation 5.4 in LOP] Baseline Methane Emissions from Non-Anaerobic Storage/Treatment Systems (BECH4,nAS)
C36: L2.2 Methane Conversion Factor (MCFnAS, fraction) | D36: L2.3 Manure Managed in Non-Anaerobic Storage/Treatment System (MSL,nAS, fraction)
B37: Livestock Category (L) | D37: =$B$7 -> Dairy cows (on feed) | E37: =$P$7 -> Non-milking dairy cows (on feed) | F37: =$AD$7 -> Heifers (on feed) | G37: =$AR$7 -> Calves (grazing) | H37: =$BF$7 -> - | I37: =$BT$7 -> -
B38: L2.1 Non-anaerobic Storage/Treatment Systems
B39: ='Manure to Biogas'!C45 -> Dry lot | C39: =IFERROR(IF(B39>0, VLOOKUP(B39, Reference!$A$168:$T$184, MATCH('Biogas-to-RNG'!$F$20, Reference!$A$168:$T$168), FALSE),0),0) -> 0.015 | D39: ='Manure to Biogas'!D45 -> 0.125 | E39: ='Manure to Biogas'!E45 -> 0.125 | F39: ='Manure to Biogas'!F45 -> 0.5 | G39: ='Manure to Biogas'!G45 -> 0 | H39: ='Manure to Biogas'!H45 -> 0.4 | I39: ='Manure to Biogas'!I45 -> 0.4
B40: ='Manure to Biogas'!C46 -> Not Applicable | C40: =IFERROR(IF(B40>0, VLOOKUP(B40, Reference!$A$168:$T$184, MATCH('Biogas-to-RNG'!$F$20, Reference!$A$168:$T$168), FALSE),0),0) -> 0 | D40: ='Manure to Biogas'!D46 -> 0 | E40: ='Manure to Biogas'!E46 -> 0 | F40: ='Manure to Biogas'!F46 -> 0 | G40: ='Manure to Biogas'!G46 -> 0 | H40: ='Manure to Biogas'!H46 -> 0 | I40: ='Manure to Biogas'!I46 -> 0
B41: ='Manure to Biogas'!C47 -> Not Applicable | C41: =IFERROR(IF(B41>0, VLOOKUP(B41, Reference!$A$168:$T$184, MATCH('Biogas-to-RNG'!$F$20, Reference!$A$168:$T$168), FALSE),0),0) -> 0 | D41: ='Manure to Biogas'!D47 -> 0 | E41: ='Manure to Biogas'!E47 -> 0 | F41: ='Manure to Biogas'!F47 -> 0 | G41: ='Manure to Biogas'!G47 -> 0 | H41: ='Manure to Biogas'!H47 -> 0 | I41: ='Manure to Biogas'!I47 -> 0
B42: ='Manure to Biogas'!C48 -> Not Applicable | C42: =IFERROR(IF(B42>0, VLOOKUP(B42, Reference!$A$168:$T$184, MATCH('Biogas-to-RNG'!$F$20, Reference!$A$168:$T$168), FALSE),0),0) -> 0 | D42: ='Manure to Biogas'!D48 -> 0 | E42: ='Manure to Biogas'!E48 -> 0 | F42: ='Manure to Biogas'!F48 -> 0 | G42: ='Manure to Biogas'!G48 -> 0 | H42: ='Manure to Biogas'!H48 -> 0 | I42: ='Manure to Biogas'!I48 -> 0
B43: ='Manure to Biogas'!C49 -> Not Applicable | C43: =IFERROR(IF(B43>0, VLOOKUP(B43, Reference!$A$168:$T$184, MATCH('Biogas-to-RNG'!$F$20, Reference!$A$168:$T$168), FALSE),0),0) -> 0 | D43: ='Manure to Biogas'!D49 -> 0 | E43: ='Manure to Biogas'!E49 -> 0 | F43: ='Manure to Biogas'!F49 -> 0 | G43: ='Manure to Biogas'!G49 -> 0 | H43: ='Manure to Biogas'!H49 -> 0 | I43: ='Manure to Biogas'!I49 -> 0
B44: ='Manure to Biogas'!C50 -> Not Applicable | C44: =IFERROR(IF(B44>0, VLOOKUP(B44, Reference!$A$168:$T$184, MATCH('Biogas-to-RNG'!$F$20, Reference!$A$168:$T$168), FALSE),0),0) -> 0 | D44: ='Manure to Biogas'!D50 -> 0 | E44: ='Manure to Biogas'!E50 -> 0 | F44: ='Manure to Biogas'!F50 -> 0 | G44: ='Manure to Biogas'!G50 -> 0 | H44: ='Manure to Biogas'!H50 -> 0 | I44: ='Manure to Biogas'!I50 -> 0
B45: ='Manure to Biogas'!C51 -> Not Applicable | C45: =IFERROR(IF(B45>0, VLOOKUP(B45, Reference!$A$168:$T$184, MATCH('Biogas-to-RNG'!$F$20, Reference!$A$168:$T$168), FALSE),0),0) -> 0 | D45: ='Manure to Biogas'!D51 -> 0 | E45: ='Manure to Biogas'!E51 -> 0 | F45: ='Manure to Biogas'!F51 -> 0 | G45: ='Manure to Biogas'!G51 -> 0 | H45: ='Manure to Biogas'!H51 -> 0 | I45: ='Manure to Biogas'!I51 -> 0 | J45: Total (BECH4,nAS , MT CH4)
B46: L2.4 Baseline Methane Emissions, non-AS (BECH4,L,nAS , MT CH4) | D46: =IFERROR(($D$82*$E$82*$H$82*0.68)*SUMPRODUCT($C$39:$C$45,D39:D45)*$C$82*0.001, 0) -> 13.27754662 | E46: =IFERROR(($D$83*$E$83*$H$82*0.68)*SUMPRODUCT($C$39:$C$45,E39:E45)*$C$83*0.001,0) -> 1.036298288 | F46: =IFERROR(($D$84*$E$84*$H$82*0.68)*SUMPRODUCT($C$39:$C$45,F39:F45)*$C$84*0.001,0) -> 6.636194235 | G46: =IFERROR(($D$85*$E$85*$H$82*0.68)*SUMPRODUCT($C$39:$C$45,G39:G45)*$C$85*0.001,0) -> 0 | H46: =IFERROR(($D$86*$E$86*$H$82*0.68)*SUMPRODUCT($C$39:$C$45,H39:H45)*$C$86*0.001,0) -> 0 | I46: =IFERROR(($D$87*$E$87*$H$82*0.68)*SUMPRODUCT($C$39:$C$45,I39:I45)*$C$87*0.001,0) -> 0 | J46: =SUM(D46:I46) -> 20.95003914
B49: Section L3: [Equation 5.6-Venting in LOP] Project Methane Emissions from Venting Events (CH4 vent) in the Biogas Control System (BCS)
B50: L3.1 Reporting Month (MM/YYYY) | C50: L3.2 Maximum Biogas Storage of the BCS System | D50: L3.3 Average Daily Biogas Production for the 7 Days Preceding the Venting | E50: L3.4 Number of Days for the Uncontrolled Venting | F50: L3.5 Quarterly Methane Concentration | G50: L3.6 Project Methane Emissions from Venting
C51: MSBCS (scf) | D51: Fpw (scf/day) | E51: t (days) | F51: CCH4 (fraction) | G51: CH4 vent (MT)
B52: 2021-05-01 | C52: ='Manure to Biogas'!B143 -> 0 | D52: ='Manure to Biogas'!B144 -> 0 | E52: ='Manure to Biogas'!B145 -> 0 | F52: ='Manure to Biogas'!B146 -> 0 | G52: =IF('Manure to Biogas'!B141="User-Defined",'Manure to Biogas'!B142,((D52*E52+C52)*F52)*0.0423*0.000454) -> 0
B53: 2021-06-01 | G53: =((D53*E53+C53)*F53)*0.0423*0.000454 -> 0
B54: 2021-07-01 | G54: 0
B55: 2021-08-01 | G55: 0
B56: 2021-09-01 | G56: 0
B57: 2021-10-01 | G57: 0
B58: 2021-11-01 | G58: =((D58*E58+C58)*F58)*0.0423*0.000454 -> 0
B59: 2021-12-01 | G59: 0
B60: 2022-01-01 | G60: 0
B61: 2022-02-01 | G61: 0
B62: 2022-03-01 | G62: 0
B63: 2022-04-01 | G63: 0
B64: 2022-05-01 | G64: 0
B65: 2022-06-01 | G65: 0
B66: 2022-07-01 | G66: 0
B67: 2022-08-01 | G67: 0
B68: 2022-09-01 | G68: 0
B69: 2022-10-01 | G69: 0
B70: 2022-11-01 | G70: 0
B71: 2022-12-01 | G71: 0
B72: 2023-01-01 | G72: 0
B73: 2023-02-01 | G73: 0
B74: 2023-03-01 | G74: 0
B75: 2023-04-01 | G75: 0
B76: Total | G76: =SUM(G52:G75) -> 0
B79: Section L4: [Equation 5.8 in LOP] Project Methane Emissions from the BCS Effluent Pond(s) (PECH4,EP)
B80: L4.1 Livestock Category | C80: L4.2 Average Population | D80: L4.3 Livestock Excretion Rate | E80: L4.4 Maximum CH4 Potential | F80: L4.5 Fraction of Volatile Solids Sent to BCS System | G80: L4.6 Volatile Solids to Effluent Ponds | H80: L4.7 Number of Reporting Days | I80: L4.8 Methane Conversion Factor | J80: L4.9 Project Methane Emission from Effluent Ponds
B81: L | C81: PL | D81: VSL (dry kg/animal/day) | E81: Bo,L (m3 CH4/kg VS) | F81: MSL,BCS (fraction) | G81: VSep,L (kg/day) | H81: RDrp (days) | I81: MCFep (fraction) | J81: PECH4,EP (MT CH4)
B82: =B7 -> Dairy cows (on feed) | C82: =IF(B7="-", 0, SUMPRODUCT(D8:D31,F8:F31)/SUM(F8:F31)) -> 8986.791803 | D82: =B19 -> 7.9152 | E82: =B15 -> 0.24 | F82: ='Manure to Biogas'!D54*'Manure to Biogas'!D55 -> 0.65625 | G82: =C82*D82*E82*F82*IF('Manure to Biogas'!B122="Default",0.3,1-'Manure to Biogas'!B123) -> 3087.63777 | H82: =SUM(F8:F31) -> 610 | I82: =HLOOKUP('Biogas-to-RNG'!F20,Reference!A168:T174,7,FALSE) -> 0.55 | J82: =IF(I82=" ", 0, SUM(G82:G87)*H82*0.68*I82*0.001) -> 847.9009382
B83: =P7 -> Non-milking dairy cows (on feed) | C83: =IF(P7="-", 0, SUMPRODUCT(R8:R31,T8:T31)/SUM(T8:T31)) -> 1459.831148 | D83: =P19 -> 3.80304 | E83: =P15 -> 0.24 | F83: ='Manure to Biogas'!E55*'Manure to Biogas'!E54 -> 0.65625 | G83: =C83*D83*E83*F83*IF('Manure to Biogas'!B122="Default",0.3,1-'Manure to Biogas'!B123) -> 240.9868197
B84: =AD7 -> Heifers (on feed) | C84: =IF(AD7="-", 0, SUMPRODUCT(AF8:AF31,AH8:AH31)/SUM(AH8:AH31)) -> 3652.862295 | D84: =AD19 -> 3.43508 | E84: =AD15 -> 0.17 | F84: ='Manure to Biogas'!F55*'Manure to Biogas'!F54 -> 0.375 | G84: =C84*D84*E84*F84*IF('Manure to Biogas'!B122="Default",0.3,1-'Manure to Biogas'!B123) -> 220.459876
B85: =AR7 -> Calves (grazing) | C85: =IF(AR7="-", 0, SUMPRODUCT(AT8:AT31,AV8:AV31)/SUM(AV8:AV31)) -> 5246.206557 | D85: =AR19 -> 0.9086 | E85: =AR15 -> 0.17 | F85: ='Manure to Biogas'!G55*'Manure to Biogas'!G54 -> 0.75 | G85: =C85*D85*E85*F85*IF('Manure to Biogas'!B122="Default",0.3,1-'Manure to Biogas'!B123) -> 167.4971865
B86: =BF7 -> - | C86: =IF(BF7="-", 0, SUMPRODUCT(BH8:BH31,BJ8:BJ31)/SUM(BJ8:BJ31)) -> 0 | D86: =BF19 -> 0 | E86: =BF15 -> 0 | F86: ='Manure to Biogas'!H55*'Manure to Biogas'!H54 -> 0 | G86: =C86*D86*E86*F86*IF('Manure to Biogas'!B122="Default",0.3,1-'Manure to Biogas'!B123) -> 0
B87: =BT7 -> - | C87: =IF(BT7="-", 0, SUMPRODUCT(BV8:BV31,BX8:BX31)/SUM(BX8:BX31)) -> 0 | D87: =BT19 -> 0 | E87: =BT15 -> 0 | F87: ='Manure to Biogas'!I55*'Manure to Biogas'!I54 -> 0 | G87: =C87*D87*E87*F87*IF('Manure to Biogas'!B122="Default",0.3,1-'Manure to Biogas'!B123) -> 0
B90: Section L5: [Equation 5.9 in LOP] Project Methane Emissions from Non-BCS Related Sources (PECH4,nBCS)
C91: L5.2 Methane Conversion Factor (MCFS, fraction) | D91: L5.3 Manure Managed in Non-BCS (Other) Systems (MSL,S, fraction)
B92: Livestock Category (L) | D92: =$B$7 -> Dairy cows (on feed) | E92: =$P$7 -> Non-milking dairy cows (on feed) | F92: =$AD$7 -> Heifers (on feed) | G92: =$AR$7 -> Calves (grazing) | H92: =$BF$7 -> - | I92: =$BT$7 -> -
B93: L5.1.a Other Anaerobic Storage/Treatment Systems
B94: ='Manure to Biogas'!C56 -> Not Applicable | C94: =IFERROR(IF(B94>0, VLOOKUP(B94, Reference!$A$168:$T$184, MATCH('Biogas-to-RNG'!$F$20, Reference!$A$168:$T$168), FALSE),0),0) -> 0 | D94: ='Manure to Biogas'!D56 -> 0 | E94: ='Manure to Biogas'!E56 -> 0 | F94: ='Manure to Biogas'!F56 -> 0 | G94: ='Manure to Biogas'!G56 -> 0 | H94: ='Manure to Biogas'!H56 -> 0 | I94: ='Manure to Biogas'!I56 -> 0
B95: ='Manure to Biogas'!C57 -> Not Applicable | C95: =IFERROR(IF(B95>0, VLOOKUP(B95, Reference!$A$168:$T$184, MATCH('Biogas-to-RNG'!$F$20, Reference!$A$168:$T$168), FALSE),0),0) -> 0 | D95: ='Manure to Biogas'!D57 -> 0 | E95: ='Manure to Biogas'!E57 -> 0 | F95: ='Manure to Biogas'!F57 -> 0 | G95: ='Manure to Biogas'!G57 -> 0 | H95: ='Manure to Biogas'!H57 -> 0 | I95: ='Manure to Biogas'!I57 -> 0
B96: L5.1.b Non-anaerobic Storage/Treatment Systems
B97: ='Manure to Biogas'!C58 -> Dry lot | C97: =IFERROR(IF(B97>0, VLOOKUP(B97, Reference!$A$168:$T$184, MATCH('Biogas-to-RNG'!$F$20, Reference!$A$168:$T$168), FALSE),0),0) -> 0.015 | D97: ='Manure to Biogas'!D58*IF('Manure to Biogas'!$B$58="Manure",1,IF('Manure to Biogas'!$B$122="Default",0.3,1-'Manure to Biogas'!$B$123)*'Manure to Biogas'!$D$54) -> 0.125 | E97: ='Manure to Biogas'!E58*IF('Manure to Biogas'!$B$58="Manure",1,IF('Manure to Biogas'!$B$122="Default",0.3,1-'Manure to Biogas'!$B$123)*'Manure to Biogas'!$E$54) -> 0.125 | F97: ='Manure to Biogas'!F58*IF('Manure to Biogas'!$B$58="Manure",1,IF('Manure to Biogas'!$B$122="Default",0.3,1-'Manure to Biogas'!$B$123)*'Manure to Biogas'!$F$54) -> 0.5 | G97: ='Manure to Biogas'!G58*IF('Manure to Biogas'!$B$58="Manure",1,IF('Manure to Biogas'!$B$122="Default",0.3,1-'Manure to Biogas'!$B$123)*'Manure to Biogas'!$G$54) -> 0 | H97: ='Manure to Biogas'!H58*IF('Manure to Biogas'!$B$58="Manure",1,IF('Manure to Biogas'!$B$122="Default",0.3,1-'Manure to Biogas'!$B$123)*'Manure to Biogas'!$H$54) -> 0 | I97: ='Manure to Biogas'!I58*IF('Manure to Biogas'!$B$58="Manure",1,IF('Manure to Biogas'!$B$122="Default",0.3,1-'Manure to Biogas'!$B$123)*'Manure to Biogas'!$H$54) -> 0
B98: ='Manure to Biogas'!C59 -> Pit storage below animal confinements (<1 month) | C98: =IFERROR(IF(B98>0, VLOOKUP(B98, Reference!$A$168:$T$184, MATCH('Biogas-to-RNG'!$F$20, Reference!$A$168:$T$168), FALSE),0),0) -> 0.03 | D98: ='Manure to Biogas'!D59*IF('Manure to Biogas'!$B$59="Manure",1,IF('Manure to Biogas'!$B$122="Default",0.3,1-'Manure to Biogas'!$B$123)*'Manure to Biogas'!$D$54) -> 0.0602875 | E98: ='Manure to Biogas'!E59*IF('Manure to Biogas'!$B$59="Manure",1,IF('Manure to Biogas'!$B$122="Default",0.3,1-'Manure to Biogas'!$B$123)*'Manure to Biogas'!$E$54) -> 0.0602875 | F98: ='Manure to Biogas'!F59*IF('Manure to Biogas'!$B$59="Manure",1,IF('Manure to Biogas'!$B$122="Default",0.3,1-'Manure to Biogas'!$B$123)*'Manure to Biogas'!$F$54) -> 0.03445 | G98: ='Manure to Biogas'!G59*IF('Manure to Biogas'!$B$59="Manure",1,IF('Manure to Biogas'!$B$122="Default",0.3,1-'Manure to Biogas'!$B$123)*'Manure to Biogas'!$G$54) -> 0.0689 | H98: ='Manure to Biogas'!H59*IF('Manure to Biogas'!$B$59="Manure",1,IF('Manure to Biogas'!$B$122="Default",0.3,1-'Manure to Biogas'!$B$123)*'Manure to Biogas'!$H$54) -> 0 | I98: ='Manure to Biogas'!I59*IF('Manure to Biogas'!$B$59="Manure",1,IF('Manure to Biogas'!$B$122="Default",0.3,1-'Manure to Biogas'!$B$123)*'Manure to Biogas'!$H$54) -> 0
B99: ='Manure to Biogas'!C60 -> Not Applicable | C99: =IFERROR(IF(B99>0, VLOOKUP(B99, Reference!$A$168:$T$184, MATCH('Biogas-to-RNG'!$F$20, Reference!$A$168:$T$168), FALSE),0),0) -> 0 | D99: ='Manure to Biogas'!D60*IF('Manure to Biogas'!$B$60="Manure",1,IF('Manure to Biogas'!$B$122="Default",0.3,1-'Manure to Biogas'!$B$123)*'Manure to Biogas'!$D$54) -> 0 | E99: ='Manure to Biogas'!E60*IF('Manure to Biogas'!$B$60="Manure",1,IF('Manure to Biogas'!$B$122="Default",0.3,1-'Manure to Biogas'!$B$123)*'Manure to Biogas'!$E$54) -> 0 | F99: ='Manure to Biogas'!F60*IF('Manure to Biogas'!$B$60="Manure",1,IF('Manure to Biogas'!$B$122="Default",0.3,1-'Manure to Biogas'!$B$123)*'Manure to Biogas'!$F$54) -> 0 | G99: ='Manure to Biogas'!G60*IF('Manure to Biogas'!$B$60="Manure",1,IF('Manure to Biogas'!$B$122="Default",0.3,1-'Manure to Biogas'!$B$123)*'Manure to Biogas'!$G$54) -> 0 | H99: ='Manure to Biogas'!H60*IF('Manure to Biogas'!$B$60="Manure",1,IF('Manure to Biogas'!$B$122="Default",0.3,1-'Manure to Biogas'!$B$123)*'Manure to Biogas'!$H$54) -> 0 | I99: ='Manure to Biogas'!I60*IF('Manure to Biogas'!$B$60="Manure",1,IF('Manure to Biogas'!$B$122="Default",0.3,1-'Manure to Biogas'!$B$123)*'Manure to Biogas'!$H$54) -> 0
B100: ='Manure to Biogas'!C61 -> Not Applicable | C100: =IFERROR(IF(B100>0, VLOOKUP(B100, Reference!$A$168:$T$184, MATCH('Biogas-to-RNG'!$F$20, Reference!$A$168:$T$168), FALSE),0),0) -> 0 | D100: ='Manure to Biogas'!D61*IF('Manure to Biogas'!$B$61="Manure",1,IF('Manure to Biogas'!$B$122="Default",0.3,1-'Manure to Biogas'!$B$123)*'Manure to Biogas'!$D$54) -> 0 | E100: ='Manure to Biogas'!E61*IF('Manure to Biogas'!$B$61="Manure",1,IF('Manure to Biogas'!$B$122="Default",0.3,1-'Manure to Biogas'!$B$123)*'Manure to Biogas'!$E$54) -> 0 | F100: ='Manure to Biogas'!F61*IF('Manure to Biogas'!$B$61="Manure",1,IF('Manure to Biogas'!$B$122="Default",0.3,1-'Manure to Biogas'!$B$123)*'Manure to Biogas'!$F$54) -> 0 | G100: ='Manure to Biogas'!G61*IF('Manure to Biogas'!$B$61="Manure",1,IF('Manure to Biogas'!$B$122="Default",0.3,1-'Manure to Biogas'!$B$123)*'Manure to Biogas'!$G$54) -> 0 | H100: ='Manure to Biogas'!H61*IF('Manure to Biogas'!$B$61="Manure",1,IF('Manure to Biogas'!$B$122="Default",0.3,1-'Manure to Biogas'!$B$123)*'Manure to Biogas'!$H$54) -> 0 | I100: ='Manure to Biogas'!I61*IF('Manure to Biogas'!$B$61="Manure",1,IF('Manure to Biogas'!$B$122="Default",0.3,1-'Manure to Biogas'!$B$123)*'Manure to Biogas'!$H$54) -> 0
B101: ='Manure to Biogas'!C62 -> Not Applicable | C101: =IFERROR(IF(B101>0, VLOOKUP(B101, Reference!$A$168:$T$184, MATCH('Biogas-to-RNG'!$F$20, Reference!$A$168:$T$168), FALSE),0),0) -> 0 | D101: ='Manure to Biogas'!D62*IF('Manure to Biogas'!$B$62="Manure",1,IF('Manure to Biogas'!$B$122="Default",0.3,1-'Manure to Biogas'!$B$123)*'Manure to Biogas'!$D$54) -> 0 | E101: ='Manure to Biogas'!E62*IF('Manure to Biogas'!$B$62="Manure",1,IF('Manure to Biogas'!$B$122="Default",0.3,1-'Manure to Biogas'!$B$123)*'Manure to Biogas'!$E$54) -> 0 | F101: ='Manure to Biogas'!F62*IF('Manure to Biogas'!$B$62="Manure",1,IF('Manure to Biogas'!$B$122="Default",0.3,1-'Manure to Biogas'!$B$123)*'Manure to Biogas'!$F$54) -> 0 | G101: ='Manure to Biogas'!G62*IF('Manure to Biogas'!$B$62="Manure",1,IF('Manure to Biogas'!$B$122="Default",0.3,1-'Manure to Biogas'!$B$123)*'Manure to Biogas'!$G$54) -> 0 | H101: ='Manure to Biogas'!H62*IF('Manure to Biogas'!$B$62="Manure",1,IF('Manure to Biogas'!$B$122="Default",0.3,1-'Manure to Biogas'!$B$123)*'Manure to Biogas'!$H$54) -> 0 | I101: ='Manure to Biogas'!I62*IF('Manure to Biogas'!$B$62="Manure",1,IF('Manure to Biogas'!$B$122="Default",0.3,1-'Manure to Biogas'!$B$123)*'Manure to Biogas'!$H$54) -> 0
B102: ='Manure to Biogas'!C63 -> Not Applicable | C102: =IFERROR(IF(B102>0, VLOOKUP(B102, Reference!$A$168:$T$184, MATCH('Biogas-to-RNG'!$F$20, Reference!$A$168:$T$168), FALSE),0),0) -> 0 | D102: ='Manure to Biogas'!D63*IF('Manure to Biogas'!$B$63="Manure",1,IF('Manure to Biogas'!$B$122="Default",0.3,1-'Manure to Biogas'!$B$123)*'Manure to Biogas'!$D$54) -> 0 | E102: ='Manure to Biogas'!E63*IF('Manure to Biogas'!$B$63="Manure",1,IF('Manure to Biogas'!$B$122="Default",0.3,1-'Manure to Biogas'!$B$123)*'Manure to Biogas'!$E$54) -> 0 | F102: ='Manure to Biogas'!F63*IF('Manure to Biogas'!$B$63="Manure",1,IF('Manure to Biogas'!$B$122="Default",0.3,1-'Manure to Biogas'!$B$123)*'Manure to Biogas'!$F$54) -> 0 | G102: ='Manure to Biogas'!G63*IF('Manure to Biogas'!$B$63="Manure",1,IF('Manure to Biogas'!$B$122="Default",0.3,1-'Manure to Biogas'!$B$123)*'Manure to Biogas'!$G$54) -> 0 | H102: ='Manure to Biogas'!H63*IF('Manure to Biogas'!$B$63="Manure",1,IF('Manure to Biogas'!$B$122="Default",0.3,1-'Manure to Biogas'!$B$123)*'Manure to Biogas'!$H$54) -> 0 | I102: ='Manure to Biogas'!I63*IF('Manure to Biogas'!$B$63="Manure",1,IF('Manure to Biogas'!$B$122="Default",0.3,1-'Manure to Biogas'!$B$123)*'Manure to Biogas'!$H$54) -> 0
B103: ='Manure to Biogas'!C64 -> Not Applicable | C103: =IFERROR(IF(B103>0, VLOOKUP(B103, Reference!$A$168:$T$184, MATCH('Biogas-to-RNG'!$F$20, Reference!$A$168:$T$168), FALSE),0),0) -> 0 | D103: ='Manure to Biogas'!D64*IF('Manure to Biogas'!$B$64="Manure",1,IF('Manure to Biogas'!$B$122="Default",0.3,1-'Manure to Biogas'!$B$123)*'Manure to Biogas'!$D$54) -> 0 | E103: ='Manure to Biogas'!E64*IF('Manure to Biogas'!$B$64="Manure",1,IF('Manure to Biogas'!$B$122="Default",0.3,1-'Manure to Biogas'!$B$123)*'Manure to Biogas'!$E$54) -> 0 | F103: ='Manure to Biogas'!F64*IF('Manure to Biogas'!$B$64="Manure",1,IF('Manure to Biogas'!$B$122="Default",0.3,1-'Manure to Biogas'!$B$123)*'Manure to Biogas'!$F$54) -> 0 | G103: ='Manure to Biogas'!G64*IF('Manure to Biogas'!$B$64="Manure",1,IF('Manure to Biogas'!$B$122="Default",0.3,1-'Manure to Biogas'!$B$123)*'Manure to Biogas'!$G$54) -> 0 | H103: ='Manure to Biogas'!H64*IF('Manure to Biogas'!$B$64="Manure",1,IF('Manure to Biogas'!$B$122="Default",0.3,1-'Manure to Biogas'!$B$123)*'Manure to Biogas'!$H$54) -> 0 | I103: ='Manure to Biogas'!I64*IF('Manure to Biogas'!$B$64="Manure",1,IF('Manure to Biogas'!$B$122="Default",0.3,1-'Manure to Biogas'!$B$123)*'Manure to Biogas'!$H$54) -> 0
B104: L5.4 CH4 Emission Factor, non-BCS (EFCH4,L,nBCSs , kg CH4/head) | D104: =($D$82*$E$82*$H$82*0.68)*SUMPRODUCT($C$94:$C$103,D94:D103) -> 2.90260069 | E104: =($D$83*$E$83*$H$82*0.68)*SUMPRODUCT($C$94:$C$103,E94:E103) -> 1.394621302 | F104: =($D$84*$E$84*$H$82*0.68)*SUMPRODUCT($C$94:$C$103,F94:F103) -> 2.067053502 | G104: =($D$85*$E$85*$H$82*0.68)*SUMPRODUCT($C$94:$C$103,G94:G103) -> 0.1324344213 | H104: =($D$86*$E$86*$H$82*0.68)*SUMPRODUCT($C$94:$C$103,H94:H103) -> 0 | I104: =($D$87*$E$87*$H$82*0.68)*SUMPRODUCT($C$94:$C$103,I94:I103) -> 0 | J104: Total (PECH4,non-BCS , MT CH4)
B105: L5.5 Project Methane Emissions, non-BSC (PECH4,L,nBCS , MT CH4) | D105: =D104*$C$82*0.001 -> 26.08506809 | E105: =E104*$C$83*0.001 -> 2.035911616 | F105: =F104*$C$84*0.001 -> 7.5506618 | G105: =G104*$C$85*0.001 -> 0.6947783295 | H105: =H104*$C$86*0.001 -> 0 | I105: =I104*$C$87*0.001 -> 0 | J105: =SUM(D105:I105) -> 36.36641984

Sheet Avoided Emissions (hidden)
C1: Calculations of the Avoided Emissions
B3: Section P1. Results from the "Manure-to-Biogas (LOP Inputs)" tab
B4: P1.1 Select Digester Type | C4: ='Manure to Biogas'!B120 -> User-Defined
B5: P1.2 Reporting Month (MM/YYYY) | C5: P1.3 Baseline methane emissions (BECH4 Mod) | D5: P1.4 Project methane emissions
D6: P1.4.a Venting methane (CH4 vent) | E6: P1.4.b Effluent ponds methane (PECH4,EP) | F6: P1.4.c Storage/Treatment methane (PECH4,nBCS) | G6: P1.4.d Digester leakage
C7: Metric Ton | D7: Metric Ton | E7: Metric Ton | F7: Metric Ton | G7: Metric Ton
B8: =IF('Manure-to-Biogas (LOP Inputs)'!C8=0, " ", 'Manure-to-Biogas (LOP Inputs)'!C8) -> 2021-05-01 | C8: ='Manure-to-Biogas (LOP Inputs)'!N8+'Manure-to-Biogas (LOP Inputs)'!AB8+'Manure-to-Biogas (LOP Inputs)'!AP8+'Manure-to-Biogas (LOP Inputs)'!BD8+'Manure-to-Biogas (LOP Inputs)'!BR8+'Manure-to-Biogas (LOP Inputs)'!CF8 -> 229.5773299 | D8: ='Manure-to-Biogas (LOP Inputs)'!G52 -> 0 | G8: =(('Biogas-to-RNG'!C28*'Biogas-to-RNG'!D28)*Reference!$E$16/(10^6)/(IF('Avoided Emissions'!$C$4="Covered Lagoon Default",(100%-Reference!$D$107),IF('Avoided Emissions'!$C$4="Enclosed Vessel Default",(100%-Reference!$D$109),100%-'Manure to Biogas'!$B$121))))-('Biogas-to-RNG'!C28*'Biogas-to-RNG'!D28*Reference!$E$16/10^6) -> 58.32880322
B9: =IF('Manure-to-Biogas (LOP Inputs)'!C9=0, " ", 'Manure-to-Biogas (LOP Inputs)'!C9) -> 2021-06-01 | C9: ='Manure-to-Biogas (LOP Inputs)'!N9+'Manure-to-Biogas (LOP Inputs)'!AB9+'Manure-to-Biogas (LOP Inputs)'!AP9+'Manure-to-Biogas (LOP Inputs)'!BD9+'Manure-to-Biogas (LOP Inputs)'!BR9+'Manure-to-Biogas (LOP Inputs)'!CF9 -> 354.7033679 | D9: ='Manure-to-Biogas (LOP Inputs)'!G53 -> 0 | G9: =(('Biogas-to-RNG'!C29*'Biogas-to-RNG'!D29)*Reference!$E$16/(10^6)/(IF('Avoided Emissions'!$C$4="Covered Lagoon Default",(100%-Reference!$D$107),IF('Avoided Emissions'!$C$4="Enclosed Vessel Default",(100%-Reference!$D$109),'Manure to Biogas'!$B$121))))-('Biogas-to-RNG'!C29*'Biogas-to-RNG'!D29*Reference!$E$16/10^6) -> 0
B10: =IF('Manure-to-Biogas (LOP Inputs)'!C10=0, " ", 'Manure-to-Biogas (LOP Inputs)'!C10) -> 2021-07-01 | C10: ='Manure-to-Biogas (LOP Inputs)'!N10+'Manure-to-Biogas (LOP Inputs)'!AB10+'Manure-to-Biogas (LOP Inputs)'!AP10+'Manure-to-Biogas (LOP Inputs)'!BD10+'Manure-to-Biogas (LOP Inputs)'!BR10+'Manure-to-Biogas (LOP Inputs)'!CF10 -> 298.6280993 | D10: ='Manure-to-Biogas (LOP Inputs)'!G54 -> 0 | G10: =(('Biogas-to-RNG'!C30*'Biogas-to-RNG'!D30)*Reference!$E$16/(10^6)/(IF('Avoided Emissions'!$C$4="Covered Lagoon Default",(100%-Reference!$D$107),IF('Avoided Emissions'!$C$4="Enclosed Vessel Default",(100%-Reference!$D$109),'Manure to Biogas'!$B$121))))-('Biogas-to-RNG'!C30*'Biogas-to-RNG'!D30*Reference!$E$16/10^6) -> 0
B11: =IF('Manure-to-Biogas (LOP Inputs)'!C11=0, " ", 'Manure-to-Biogas (LOP Inputs)'!C11) -> 2021-08-01 | C11: ='Manure-to-Biogas (LOP Inputs)'!N11+'Manure-to-Biogas (LOP Inputs)'!AB11+'Manure-to-Biogas (LOP Inputs)'!AP11+'Manure-to-Biogas (LOP Inputs)'!BD11+'Manure-to-Biogas (LOP Inputs)'!BR11+'Manure-to-Biogas (LOP Inputs)'!CF11 -> 292.5565957 | D11: ='Manure-to-Biogas (LOP Inputs)'!G55 -> 0 | G11: =(('Biogas-to-RNG'!C31*'Biogas-to-RNG'!D31)*Reference!$E$16/(10^6)/(IF('Avoided Emissions'!$C$4="Covered Lagoon Default",(100%-Reference!$D$107),IF('Avoided Emissions'!$C$4="Enclosed Vessel Default",(100%-Reference!$D$109),'Manure to Biogas'!$B$121))))-('Biogas-to-RNG'!C31*'Biogas-to-RNG'!D31*Reference!$E$16/10^6) -> 0
B12: =IF('Manure-to-Biogas (LOP Inputs)'!C12=0, " ", 'Manure-to-Biogas (LOP Inputs)'!C12) -> 2021-09-01 | C12: ='Manure-to-Biogas (LOP Inputs)'!N12+'Manure-to-Biogas (LOP Inputs)'!AB12+'Manure-to-Biogas (LOP Inputs)'!AP12+'Manure-to-Biogas (LOP Inputs)'!BD12+'Manure-to-Biogas (LOP Inputs)'!BR12+'Manure-to-Biogas (LOP Inputs)'!CF12 -> 284.804269 | D12: ='Manure-to-Biogas (LOP Inputs)'!G56 -> 0 | G12: =(('Biogas-to-RNG'!C32*'Biogas-to-RNG'!D32)*Reference!$E$16/(10^6)/(IF('Avoided Emissions'!$C$4="Covered Lagoon Default",(100%-Reference!$D$107),IF('Avoided Emissions'!$C$4="Enclosed Vessel Default",(100%-Reference!$D$109),'Manure to Biogas'!$B$121))))-('Biogas-to-RNG'!C32*'Biogas-to-RNG'!D32*Reference!$E$16/10^6) -> 0
B13: =IF('Manure-to-Biogas (LOP Inputs)'!C13=0, " ", 'Manure-to-Biogas (LOP Inputs)'!C13) -> 2021-10-01 | C13: ='Manure-to-Biogas (LOP Inputs)'!N13+'Manure-to-Biogas (LOP Inputs)'!AB13+'Manure-to-Biogas (LOP Inputs)'!AP13+'Manure-to-Biogas (LOP Inputs)'!BD13+'Manure-to-Biogas (LOP Inputs)'!BR13+'Manure-to-Biogas (LOP Inputs)'!CF13 -> 165.6330884 | D13: ='Manure-to-Biogas (LOP Inputs)'!G57 -> 0 | G13: =(('Biogas-to-RNG'!C33*'Biogas-to-RNG'!D33)*Reference!$E$16/(10^6)/(IF('Avoided Emissions'!$C$4="Covered Lagoon Default",(100%-Reference!$D$107),IF('Avoided Emissions'!$C$4="Enclosed Vessel Default",(100%-Reference!$D$109),'Manure to Biogas'!$B$121))))-('Biogas-to-RNG'!C33*'Biogas-to-RNG'!D33*Reference!$E$16/10^6) -> 0
B14: =IF('Manure-to-Biogas (LOP Inputs)'!C14=0, " ", 'Manure-to-Biogas (LOP Inputs)'!C14) -> 2021-11-01 | C14: ='Manure-to-Biogas (LOP Inputs)'!N14+'Manure-to-Biogas (LOP Inputs)'!AB14+'Manure-to-Biogas (LOP Inputs)'!AP14+'Manure-to-Biogas (LOP Inputs)'!BD14+'Manure-to-Biogas (LOP Inputs)'!BR14+'Manure-to-Biogas (LOP Inputs)'!CF14 -> 183.8812101 | D14: ='Manure-to-Biogas (LOP Inputs)'!G58 -> 0 | G14: =(('Biogas-to-RNG'!C34*'Biogas-to-RNG'!D34)*Reference!$E$16/(10^6)/(IF('Avoided Emissions'!$C$4="Covered Lagoon Default",(100%-Reference!$D$107),IF('Avoided Emissions'!$C$4="Enclosed Vessel Default",(100%-Reference!$D$109),'Manure to Biogas'!$B$121))))-('Biogas-to-RNG'!C34*'Biogas-to-RNG'!D34*Reference!$E$16/10^6) -> 0
B15: =IF('Manure-to-Biogas (LOP Inputs)'!C15=0, " ", 'Manure-to-Biogas (LOP Inputs)'!C15) -> 2021-12-01 | C15: ='Manure-to-Biogas (LOP Inputs)'!N15+'Manure-to-Biogas (LOP Inputs)'!AB15+'Manure-to-Biogas (LOP Inputs)'!AP15+'Manure-to-Biogas (LOP Inputs)'!BD15+'Manure-to-Biogas (LOP Inputs)'!BR15+'Manure-to-Biogas (LOP Inputs)'!CF15 -> 149.4970945 | D15: ='Manure-to-Biogas (LOP Inputs)'!G59 -> 0 | G15: =(('Biogas-to-RNG'!C35*'Biogas-to-RNG'!D35)*Reference!$E$16/(10^6)/(IF('Avoided Emissions'!$C$4="Covered Lagoon Default",(100%-Reference!$D$107),IF('Avoided Emissions'!$C$4="Enclosed Vessel Default",(100%-Reference!$D$109),'Manure to Biogas'!$B$121))))-('Biogas-to-RNG'!C35*'Biogas-to-RNG'!D35*Reference!$E$16/10^6) -> 0
B16: =IF('Manure-to-Biogas (LOP Inputs)'!C16=0, " ", 'Manure-to-Biogas (LOP Inputs)'!C16) -> 2022-01-01 | C16: ='Manure-to-Biogas (LOP Inputs)'!N16+'Manure-to-Biogas (LOP Inputs)'!AB16+'Manure-to-Biogas (LOP Inputs)'!AP16+'Manure-to-Biogas (LOP Inputs)'!BD16+'Manure-to-Biogas (LOP Inputs)'!BR16+'Manure-to-Biogas (LOP Inputs)'!CF16 -> 165.2120395 | D16: ='Manure-to-Biogas (LOP Inputs)'!G60 -> 0 | G16: =(('Biogas-to-RNG'!C36*'Biogas-to-RNG'!D36)*Reference!$E$16/(10^6)/(IF('Avoided Emissions'!$C$4="Covered Lagoon Default",(100%-Reference!$D$107),IF('Avoided Emissions'!$C$4="Enclosed Vessel Default",(100%-Reference!$D$109),'Manure to Biogas'!$B$121))))-('Biogas-to-RNG'!C36*'Biogas-to-RNG'!D36*Reference!$E$16/10^6) -> 0
B17: =IF('Manure-to-Biogas (LOP Inputs)'!C17=0, " ", 'Manure-to-Biogas (LOP Inputs)'!C17) -> 2022-02-01 | C17: ='Manure-to-Biogas (LOP Inputs)'!N17+'Manure-to-Biogas (LOP Inputs)'!AB17+'Manure-to-Biogas (LOP Inputs)'!AP17+'Manure-to-Biogas (LOP Inputs)'!BD17+'Manure-to-Biogas (LOP Inputs)'!BR17+'Manure-to-Biogas (LOP Inputs)'!CF17 -> 206.7978769 | D17: ='Manure-to-Biogas (LOP Inputs)'!G61 -> 0 | G17: =(('Biogas-to-RNG'!C37*'Biogas-to-RNG'!D37)*Reference!$E$16/(10^6)/(IF('Avoided Emissions'!$C$4="Covered Lagoon Default",(100%-Reference!$D$107),IF('Avoided Emissions'!$C$4="Enclosed Vessel Default",(100%-Reference!$D$109),'Manure to Biogas'!$B$121))))-('Biogas-to-RNG'!C37*'Biogas-to-RNG'!D37*Reference!$E$16/10^6) -> 0
B18: =IF('Manure-to-Biogas (LOP Inputs)'!C18=0, " ", 'Manure-to-Biogas (LOP Inputs)'!C18) -> 2022-03-01 | C18: ='Manure-to-Biogas (LOP Inputs)'!N18+'Manure-to-Biogas (LOP Inputs)'!AB18+'Manure-to-Biogas (LOP Inputs)'!AP18+'Manure-to-Biogas (LOP Inputs)'!BD18+'Manure-to-Biogas (LOP Inputs)'!BR18+'Manure-to-Biogas (LOP Inputs)'!CF18 -> 355.9068251 | D18: ='Manure-to-Biogas (LOP Inputs)'!G62 -> 0 | G18: =(('Biogas-to-RNG'!C38*'Biogas-to-RNG'!D38)*Reference!$E$16/(10^6)/(IF('Avoided Emissions'!$C$4="Covered Lagoon Default",(100%-Reference!$D$107),IF('Avoided Emissions'!$C$4="Enclosed Vessel Default",(100%-Reference!$D$109),'Manure to Biogas'!$B$121))))-('Biogas-to-RNG'!C38*'Biogas-to-RNG'!D38*Reference!$E$16/10^6) -> 0
B19: =IF('Manure-to-Biogas (LOP Inputs)'!C19=0, " ", 'Manure-to-Biogas (LOP Inputs)'!C19) -> 2022-04-01 | C19: ='Manure-to-Biogas (LOP Inputs)'!N19+'Manure-to-Biogas (LOP Inputs)'!AB19+'Manure-to-Biogas (LOP Inputs)'!AP19+'Manure-to-Biogas (LOP Inputs)'!BD19+'Manure-to-Biogas (LOP Inputs)'!BR19+'Manure-to-Biogas (LOP Inputs)'!CF19 -> 222.1303216 | D19: ='Manure-to-Biogas (LOP Inputs)'!G63 -> 0 | G19: =(('Biogas-to-RNG'!C39*'Biogas-to-RNG'!D39)*Reference!$E$16/(10^6)/(IF('Avoided Emissions'!$C$4="Covered Lagoon Default",(100%-Reference!$D$107),IF('Avoided Emissions'!$C$4="Enclosed Vessel Default",(100%-Reference!$D$109),'Manure to Biogas'!$B$121))))-('Biogas-to-RNG'!C39*'Biogas-to-RNG'!D39*Reference!$E$16/10^6) -> 0
B20: =IF('Manure-to-Biogas (LOP Inputs)'!C20=0, " ", 'Manure-to-Biogas (LOP Inputs)'!C20) -> 2022-05-01 | C20: ='Manure-to-Biogas (LOP Inputs)'!N20+'Manure-to-Biogas (LOP Inputs)'!AB20+'Manure-to-Biogas (LOP Inputs)'!AP20+'Manure-to-Biogas (LOP Inputs)'!BD20+'Manure-to-Biogas (LOP Inputs)'!BR20+'Manure-to-Biogas (LOP Inputs)'!CF20 -> 378.7104818 | D20: ='Manure-to-Biogas (LOP Inputs)'!G64 -> 0 | G20: =(('Biogas-to-RNG'!C40*'Biogas-to-RNG'!D40)*Reference!$E$16/(10^6)/(IF('Avoided Emissions'!$C$4="Covered Lagoon Default",(100%-Reference!$D$107),IF('Avoided Emissions'!$C$4="Enclosed Vessel Default",(100%-Reference!$D$109),'Manure to Biogas'!$B$121))))-('Biogas-to-RNG'!C40*'Biogas-to-RNG'!D40*Reference!$E$16/10^6) -> 0
B21: =IF('Manure-to-Biogas (LOP Inputs)'!C21=0, " ", 'Manure-to-Biogas (LOP Inputs)'!C21) -> 2022-06-01 | C21: ='Manure-to-Biogas (LOP Inputs)'!N21+'Manure-to-Biogas (LOP Inputs)'!AB21+'Manure-to-Biogas (LOP Inputs)'!AP21+'Manure-to-Biogas (LOP Inputs)'!BD21+'Manure-to-Biogas (LOP Inputs)'!BR21+'Manure-to-Biogas (LOP Inputs)'!CF21 -> 383.8107092 | D21: ='Manure-to-Biogas (LOP Inputs)'!G65 -> 0 | G21: =(('Biogas-to-RNG'!C41*'Biogas-to-RNG'!D41)*Reference!$E$16/(10^6)/(IF('Avoided Emissions'!$C$4="Covered Lagoon Default",(100%-Reference!$D$107),IF('Avoided Emissions'!$C$4="Enclosed Vessel Default",(100%-Reference!$D$109),'Manure to Biogas'!$B$121))))-('Biogas-to-RNG'!C41*'Biogas-to-RNG'!D41*Reference!$E$16/10^6) -> 0
B22: =IF('Manure-to-Biogas (LOP Inputs)'!C22=0, " ", 'Manure-to-Biogas (LOP Inputs)'!C22) -> 2022-07-01 | C22: ='Manure-to-Biogas (LOP Inputs)'!N22+'Manure-to-Biogas (LOP Inputs)'!AB22+'Manure-to-Biogas (LOP Inputs)'!AP22+'Manure-to-Biogas (LOP Inputs)'!BD22+'Manure-to-Biogas (LOP Inputs)'!BR22+'Manure-to-Biogas (LOP Inputs)'!CF22 -> 296.9355191 | D22: ='Manure-to-Biogas (LOP Inputs)'!G66 -> 0 | G22: =(('Biogas-to-RNG'!C42*'Biogas-to-RNG'!D42)*Reference!$E$16/(10^6)/(IF('Avoided Emissions'!$C$4="Covered Lagoon Default",(100%-Reference!$D$107),IF('Avoided Emissions'!$C$4="Enclosed Vessel Default",(100%-Reference!$D$109),'Manure to Biogas'!$B$121))))-('Biogas-to-RNG'!C42*'Biogas-to-RNG'!D42*Reference!$E$16/10^6) -> 0
B23: =IF('Manure-to-Biogas (LOP Inputs)'!C23=0, " ", 'Manure-to-Biogas (LOP Inputs)'!C23) -> 2022-08-01 | C23: ='Manure-to-Biogas (LOP Inputs)'!N23+'Manure-to-Biogas (LOP Inputs)'!AB23+'Manure-to-Biogas (LOP Inputs)'!AP23+'Manure-to-Biogas (LOP Inputs)'!BD23+'Manure-to-Biogas (LOP Inputs)'!BR23+'Manure-to-Biogas (LOP Inputs)'!CF23 -> 292.3155539 | D23: ='Manure-to-Biogas (LOP Inputs)'!G67 -> 0 | G23: =(('Biogas-to-RNG'!C43*'Biogas-to-RNG'!D43)*Reference!$E$16/(10^6)/(IF('Avoided Emissions'!$C$4="Covered Lagoon Default",(100%-Reference!$D$107),IF('Avoided Emissions'!$C$4="Enclosed Vessel Default",(100%-Reference!$D$109),'Manure to Biogas'!$B$121))))-('Biogas-to-RNG'!C43*'Biogas-to-RNG'!D43*Reference!$E$16/10^6) -> 0
B24: =IF('Manure-to-Biogas (LOP Inputs)'!C24=0, " ", 'Manure-to-Biogas (LOP Inputs)'!C24) -> 2022-09-01 | C24: ='Manure-to-Biogas (LOP Inputs)'!N24+'Manure-to-Biogas (LOP Inputs)'!AB24+'Manure-to-Biogas (LOP Inputs)'!AP24+'Manure-to-Biogas (LOP Inputs)'!BD24+'Manure-to-Biogas (LOP Inputs)'!BR24+'Manure-to-Biogas (LOP Inputs)'!CF24 -> 276.9042123 | D24: ='Manure-to-Biogas (LOP Inputs)'!G68 -> 0 | G24: =(('Biogas-to-RNG'!C44*'Biogas-to-RNG'!D44)*Reference!$E$16/(10^6)/(IF('Avoided Emissions'!$C$4="Covered Lagoon Default",(100%-Reference!$D$107),IF('Avoided Emissions'!$C$4="Enclosed Vessel Default",(100%-Reference!$D$109),'Manure to Biogas'!$B$121))))-('Biogas-to-RNG'!C44*'Biogas-to-RNG'!D44*Reference!$E$16/10^6) -> 0
B25: =IF('Manure-to-Biogas (LOP Inputs)'!C25=0, " ", 'Manure-to-Biogas (LOP Inputs)'!C25) -> 2022-10-01 | C25: ='Manure-to-Biogas (LOP Inputs)'!N25+'Manure-to-Biogas (LOP Inputs)'!AB25+'Manure-to-Biogas (LOP Inputs)'!AP25+'Manure-to-Biogas (LOP Inputs)'!BD25+'Manure-to-Biogas (LOP Inputs)'!BR25+'Manure-to-Biogas (LOP Inputs)'!CF25 -> 185.1985325 | D25: ='Manure-to-Biogas (LOP Inputs)'!G69 -> 0 | G25: =(('Biogas-to-RNG'!C45*'Biogas-to-RNG'!D45)*Reference!$E$16/(10^6)/(IF('Avoided Emissions'!$C$4="Covered Lagoon Default",(100%-Reference!$D$107),IF('Avoided Emissions'!$C$4="Enclosed Vessel Default",(100%-Reference!$D$109),'Manure to Biogas'!$B$121))))-('Biogas-to-RNG'!C45*'Biogas-to-RNG'!D45*Reference!$E$16/10^6) -> 0
B26: =IF('Manure-to-Biogas (LOP Inputs)'!C26=0, " ", 'Manure-to-Biogas (LOP Inputs)'!C26) -> 2022-11-01 | C26: ='Manure-to-Biogas (LOP Inputs)'!N26+'Manure-to-Biogas (LOP Inputs)'!AB26+'Manure-to-Biogas (LOP Inputs)'!AP26+'Manure-to-Biogas (LOP Inputs)'!BD26+'Manure-to-Biogas (LOP Inputs)'!BR26+'Manure-to-Biogas (LOP Inputs)'!CF26 -> 102.8778669 | D26: ='Manure-to-Biogas (LOP Inputs)'!G70 -> 0 | G26: =(('Biogas-to-RNG'!C46*'Biogas-to-RNG'!D46)*Reference!$E$16/(10^6)/(IF('Avoided Emissions'!$C$4="Covered Lagoon Default",(100%-Reference!$D$107),IF('Avoided Emissions'!$C$4="Enclosed Vessel Default",(100%-Reference!$D$109),'Manure to Biogas'!$B$121))))-('Biogas-to-RNG'!C46*'Biogas-to-RNG'!D46*Reference!$E$16/10^6) -> 0
B27: =IF('Manure-to-Biogas (LOP Inputs)'!C27=0, " ", 'Manure-to-Biogas (LOP Inputs)'!C27) -> 2022-12-01 | C27: ='Manure-to-Biogas (LOP Inputs)'!N27+'Manure-to-Biogas (LOP Inputs)'!AB27+'Manure-to-Biogas (LOP Inputs)'!AP27+'Manure-to-Biogas (LOP Inputs)'!BD27+'Manure-to-Biogas (LOP Inputs)'!BR27+'Manure-to-Biogas (LOP Inputs)'!CF27 -> 127.8533365 | D27: ='Manure-to-Biogas (LOP Inputs)'!G71 -> 0 | G27: =(('Biogas-to-RNG'!C47*'Biogas-to-RNG'!D47)*Reference!$E$16/(10^6)/(IF('Avoided Emissions'!$C$4="Covered Lagoon Default",(100%-Reference!$D$107),IF('Avoided Emissions'!$C$4="Enclosed Vessel Default",(100%-Reference!$D$109),'Manure to Biogas'!$B$121))))-('Biogas-to-RNG'!C47*'Biogas-to-RNG'!D47*Reference!$E$16/10^6) -> 0
B28: =IF('Manure-to-Biogas (LOP Inputs)'!C28=0, " ", 'Manure-to-Biogas (LOP Inputs)'!C28) ->  | C28: ='Manure-to-Biogas (LOP Inputs)'!N28+'Manure-to-Biogas (LOP Inputs)'!AB28+'Manure-to-Biogas (LOP Inputs)'!AP28+'Manure-to-Biogas (LOP Inputs)'!BD28+'Manure-to-Biogas (LOP Inputs)'!BR28+'Manure-to-Biogas (LOP Inputs)'!CF28 -> 0 | D28: ='Manure-to-Biogas (LOP Inputs)'!G72 -> 0 | G28: =(('Biogas-to-RNG'!C48*'Biogas-to-RNG'!D48)*Reference!$E$16/(10^6)/(IF('Avoided Emissions'!$C$4="Covered Lagoon Default",(100%-Reference!$D$107),IF('Avoided Emissions'!$C$4="Enclosed Vessel Default",(100%-Reference!$D$109),'Manure to Biogas'!$B$121))))-('Biogas-to-RNG'!C48*'Biogas-to-RNG'!D48*Reference!$E$16/10^6) -> 0
B29: =IF('Manure-to-Biogas (LOP Inputs)'!C29=0, " ", 'Manure-to-Biogas (LOP Inputs)'!C29) ->  | C29: ='Manure-to-Biogas (LOP Inputs)'!N29+'Manure-to-Biogas (LOP Inputs)'!AB29+'Manure-to-Biogas (LOP Inputs)'!AP29+'Manure-to-Biogas (LOP Inputs)'!BD29+'Manure-to-Biogas (LOP Inputs)'!BR29+'Manure-to-Biogas (LOP Inputs)'!CF29 -> 0 | D29: ='Manure-to-Biogas (LOP Inputs)'!G73 -> 0 | G29: =(('Biogas-to-RNG'!C49*'Biogas-to-RNG'!D49)*Reference!$E$16/(10^6)/(IF('Avoided Emissions'!$C$4="Covered Lagoon Default",(100%-Reference!$D$107),IF('Avoided Emissions'!$C$4="Enclosed Vessel Default",(100%-Reference!$D$109),'Manure to Biogas'!$B$121))))-('Biogas-to-RNG'!C49*'Biogas-to-RNG'!D49*Reference!$E$16/10^6) -> 0
B30: =IF('Manure-to-Biogas (LOP Inputs)'!C30=0, " ", 'Manure-to-Biogas (LOP Inputs)'!C30) ->  | C30: ='Manure-to-Biogas (LOP Inputs)'!N30+'Manure-to-Biogas (LOP Inputs)'!AB30+'Manure-to-Biogas (LOP Inputs)'!AP30+'Manure-to-Biogas (LOP Inputs)'!BD30+'Manure-to-Biogas (LOP Inputs)'!BR30+'Manure-to-Biogas (LOP Inputs)'!CF30 -> 0 | D30: ='Manure-to-Biogas (LOP Inputs)'!G74 -> 0 | G30: =(('Biogas-to-RNG'!C50*'Biogas-to-RNG'!D50)*Reference!$E$16/(10^6)/(IF('Avoided Emissions'!$C$4="Covered Lagoon Default",(100%-Reference!$D$107),IF('Avoided Emissions'!$C$4="Enclosed Vessel Default",(100%-Reference!$D$109),'Manure to Biogas'!$B$121))))-('Biogas-to-RNG'!C50*'Biogas-to-RNG'!D50*Reference!$E$16/10^6) -> 0
B31: =IF('Manure-to-Biogas (LOP Inputs)'!C31=0, " ", 'Manure-to-Biogas (LOP Inputs)'!C31) ->  | C31: ='Manure-to-Biogas (LOP Inputs)'!N31+'Manure-to-Biogas (LOP Inputs)'!AB31+'Manure-to-Biogas (LOP Inputs)'!AP31+'Manure-to-Biogas (LOP Inputs)'!BD31+'Manure-to-Biogas (LOP Inputs)'!BR31+'Manure-to-Biogas (LOP Inputs)'!CF31 -> 0 | D31: ='Manure-to-Biogas (LOP Inputs)'!G75 -> 0 | G31: =(('Biogas-to-RNG'!C51*'Biogas-to-RNG'!D51)*Reference!$E$16/(10^6)/(IF('Avoided Emissions'!$C$4="Covered Lagoon Default",(100%-Reference!$D$107),IF('Avoided Emissions'!$C$4="Enclosed Vessel Default",(100%-Reference!$D$109),'Manure to Biogas'!$B$121))))-('Biogas-to-RNG'!C51*'Biogas-to-RNG'!D51*Reference!$E$16/10^6) -> 0
B32: Monthly Average | C32: =IFERROR(SUM(C8:C31)/COUNTIF('Manure-to-Biogas (LOP Inputs)'!C8:C31, ">0")+'Manure-to-Biogas (LOP Inputs)'!J46/COUNTIF('Manure-to-Biogas (LOP Inputs)'!C8:C31, ">0"), 0) -> 248.7442185 | D32: =IFERROR(SUM(D8:D31)/COUNTIF('Manure-to-Biogas (LOP Inputs)'!C8:C31, ">0"),0) -> 0 | E32: ='Manure-to-Biogas (LOP Inputs)'!J82/COUNTIF('Manure-to-Biogas (LOP Inputs)'!C8:C31, ">0") -> 42.39504691 | F32: ='Manure-to-Biogas (LOP Inputs)'!J105/COUNTIF('Manure-to-Biogas (LOP Inputs)'!C8:C31, ">0") -> 1.818320992 | G32: =IFERROR(SUM(G8:G31)/'Manure to Biogas'!B136,0) -> 19.44293441 | H32: =IF(C37-C32*3<-C40,-C40,(C37-C32*3)) -> -555.2637484
B35: Section P2. Avoided CH4 Emissions Calculation Detail | F35: Section P3. Avoided CO2 Emissions Calculation Detail
C36: Value | D36: Unit (of Methane) | G36: Value | H36: Unit
B37: Subtotal Project Methane emissions (Calculation) | C37: =(D32+E32+F32+G32)*'Manure to Biogas'!B136 -> 190.9689069 | D37: MT CH4 | F37: Avoided CO2 diverted from land application | G37: =-(C40-C32*'Manure to Biogas'!B136)*(44/16) -> -995.5401659 | H37: MT CO2
B38: Net methane emissions avoided (Calculation) | C38: =IF(C37-C32*'Manure to Biogas'!B136<-C40,-C40,(C37-C32*'Manure to Biogas'!B136)) -> -555.2637484 | D38: MT CH4 | F38: This is avoided emissions from carbon that was not converted to CH4 in the Baseline case. This carbon would remain in solids removed from lagoon, land applied, and oxidized to CO2. In the project case, this carbon is converted to fuel (Excess CH4 x 44 g/mol CO2:16 g/mol CH4)
B39: Metered Methane Quantities (project monitoring parameter, metered)
B40: Total methane produced from digester (metered) | C40: ='Biogas-to-RNG'!C52*'Biogas-to-RNG'!D52*Reference!$E$16/1000000 -> 1108.247261 | D40: MT CH4
B41: Methane at inlet to cleanup/upgrading facility | C41: ='Biogas-to-RNG'!E52*'Biogas-to-RNG'!F52*Reference!$E$16/1000000 -> 1099.077681 | D41: MT CH4
B42: Directly flared biogas (excluded from LCFS pathway system boundary) | C42: =C40-C41 -> 9.169580428 | D42: MT CH4
B43: Biomethane Sales Gas (delivered to pipeline/qualifying end use) | C43: ='Biogas-to-RNG'!V52/Reference!$D$16*Reference!$E$16 -> 887.2205941 | D43: MT CH4
B44: RNG in Tailgas flared (from upgrading) | C44: ='Biogas-to-RNG'!U53*Reference!$E$16/1000000 -> 62.23562857 | D44: MT CH4
B45: RNG associated with onsite electricity production | C45: ='Biogas-to-RNG'!W52/Reference!D16*Reference!E16 -> 0 | D45: MT CH4
B46: Avoided Methane and CO2 calculations
B47: % alloc. factor for CH4 avoided - RNG (vehicle use) | C47: =(C41-C45*IF('Biogas-to-RNG'!X52=0, 0, 'Biogas-to-RNG'!Y52/'Biogas-to-RNG'!X52))/(C40) -> 0.9917260518 | D47: %
B48: % alloc. factor for diverted CO2 - RNG | C48: =C47 -> 0.9917260518 | D48: %
B49: Net CH4 avoided, allocated to RNG (vehicle use) | C49: =C38*C47 -> -550.6695249 | D49: MT CH4
B50: Net allocated MT CH4 avoided per MT sales gas | C50: =C49/C43 -> -0.6206681051 | D50: MT avoided/MT produced | F50: Diverted CO2 allocated to RNG (vehicle use) | G50: =G37*C48 -> -987.3031181 | H50: MT CO2
B51: Avoided (g CH4) per MJ sales gas | C51: =C50*1000000/Reference!B16*Reference!E16/Reference!H45 -> -12.41205853 | D51: g CH4/MJ | F51: Diverted CO2 emissions from land application | G51: =G50/C43 -> -1.112804555 | H51: MT CO2/MT CH4 produced
B52: Avoided (g CO2e) per Sales gas output (MJ fuel): | C52: =IFERROR(C51*Reference!B20,0) -> -310.3014633 | D52: g CO2e/MJ | G52: =IFERROR(G51*1000000/Reference!B16*Reference!E16/Reference!H45,0) -> -22.25375391 | H52: g CO2e/MJ

Sheet Biogas-to-RNG (hidden)
C5: Tier 1 Simplified CI Calculator for Biomethane from Anaerobic Digestion of Dairy and Swine Manure
B9: Pathway Summary and Estimated CI (g/MJ) | L9: Yellow cells require user input
B10: CNG CI | C10: =G94 -> -138.1833272 | D10: =CONCATENATE("Pathway Description: RNG produced from livestock manure, pipelined to ",F15, " for Compressed Natural Gas") -> Pathway Description: RNG produced from livestock manure, pipelined to for Compressed Natural Gas | L10: Light Blue cells show CI results
B11: LNG CI | C11: =G95 -> -113.5503605 | D11: =CONCATENATE("Pathway Description: RNG produced from livestock manure, pipelined to ",C20, " for liquefaction, then transported by truck to California LNG stations") -> Pathway Description: RNG produced from livestock manure, pipelined to for liquefaction, then transported by truck to California LNG stations | L11: Green Cells show the calculation button
B12: L-CNG CI | C12: =G96 -> -110.0078971 | D12: =CONCATENATE("Pathway Description: RNG produced from livestock manure, pipelined to ",C20, " for liquefaction, then transported by truck to California LNG stations, re-gasified and compresses to Liquefied CNG") -> Pathway Description: RNG produced from livestock manure, pipelined to for liquefaction, then transported by truck to California LNG stations, re-gasified and compresses to Liquefied CNG | L12: Gray Cells are calculated values
B14: Section 1. Applicant Information
B15: 1.1 Company Name | E15: 1.6 CNG Dispensing Station(s) Location (Street, City, State)
B16: 1.2 Company ID | E16: 1.7 LNG Dispensing Station(s) Location (Street, City, State)
B17: 1.3 Facility ID | E17: 1.8 LNG and/or L-CNG Dispensing Station(s) Location (Street, City, State)
B18: 1.4 Digester Location (Street, City, State) | E18: 1.9 Digester Type | F18: ='Avoided Emissions'!C4 -> User-Defined
C19: Arizona
B20: 1.5 LNG Liquefaction Facility Location (Street, City, State) | E20: 1.10 Average Annual Temperature (°C) | F20: =IF('Manure-to-Biogas (LOP Inputs)'!G33<=10,'Manure-to-Biogas (LOP Inputs)'!H33,'Manure-to-Biogas (LOP Inputs)'!G33) -> 23
B23: Section 2. Biomethane Production Data | AC23: Section 3. CNG, LNG, and L-CNG Production and Transport Data
B24: Data Years | C24: 2.1 Select Electricity Mix for Biomethane | D24: ='Manure to Biogas'!B152 -> 5-AZNM Mix | F24: =IF(D24="2-User Defined Mix", "Enter User Defined Electricity GHG EF in cell AA28","") ->  | G24: 2.2 Provisional Pathway? | H24: Yes | AC24: 3.1 Select Electricity Mix for LNG Production | AG24: ='Manure to Biogas'!B198 -> 9-SPSO Mix | AI24: =IF($AG$24="2-User Defined Mix", "Enter User Defined Electricity GHG EF in cell AI28","") -> 
B25: Process | C25: Raw Biogas Production | E25: Raw Biogas Feedstock (at Inlet to cleanup/upgrading) | G25: Baseline energy use | J25: Digester energy use (Project) | N25: Upgrading and compression energy use (Project) | W25: On-site Electricity Production From RNG | Z25: Biomethane Transport | AA25: =IF($D$24="2-User Defined Mix", "User-Defined Electricity EF","") ->  | AC25: Energy Consumption for Liquefaction and Fuel Transport
B26: 2.3 Reporting Month (MM/YYYY) | C26: 2.4 Total Raw Biogas Flow, (metered) | D26: 2.5 Biomethane Content (% Methane) | E26: 2.6 Raw Biogas Flow to Upgrading, (metered) | F26: 2.7 Biomethane Content (% Methane) | G26: 2.8 Diesel (baseline manure transport and handling) | H26: 2.9 Utility Sourced NG (baseline) | I26: 2.10 Grid Electricity (baseline manure pumping and solids separation) | J26: 2.11 Grid Electricity (for digester heating) | K26: 2.12 Biomethane (for digester heating) | L26: 2.13 Utility Sourced NG (digester project) | M26: 2.14 Diesel (digester project manure transport and handling) | N26: 2.15 Utility Sourced NG (upgrading and compression) | O26: 2.16 Biomethane (as Process Fuel for upgrading and compression) | P26: 2.17 On-Site Electricity from Biogas (upgrading and compression) | Q26: 2.18 Grid Electricity (upgrading and compression) | R26: 2.19 Buy back fossil NG to boost Btu prior to pipeline injection | S26: 2.20 Propane used to boost Btu prior to pipeline injection | T26: 2.21 Flared gas including tailgas from upgrading, (metered biogas) | U26: 2.22 Biomethane Content (% Methane in Flared Gas) | V26: 2.23 Biomethane Injected into Pipeline for Transportation Fuel Production (metered), (subtract buyback NG and Propane if used to boost Btu) | W26: 2.24 Biomethane to Electricity Production | X26: 2.25 On-site Electricity Production | Y26: 2.26 Export Electricity | Z26: 2.27 NG pipeline Transmission | AA26: =IF(D24="2-User Defined Mix", "2.28 Specify GHG Emission Factor for Electricity Mix","User Defined Parameters ") -> User Defined Parameters | AC26: 3.2 NG from NG purchase invoices | AD26: 3.3 LNG production from Production Log | AE26: 3.4 NG as process fuel (Calculated) | AF26: 3.5 Electricity from Utility Invoices | AG26: 3.6 LNG Transport and Distribution | AI26: =IF($AG$24="2-User Defined Mix", "3.7 Specify GHG Emission Factor for Electricity Mix","User Defined Parameters") -> User Defined Parameters
C27: Standard Cubic Feet @ 60oF, 1 atm | E27: Standard Cubic Feet @ 60oF, 1 atm | G27: Gallons, HHV | H27: MMBtu, HHV | I27: kWh | J27: kWh | K27: MMBtu, HHV | L27: MMBtu, HHV | M27: Gallons, HHV | N27: MMBtu, HHV | O27: MMBtu, HHV | P27: kWh | Q27: kWh | R27: MMBtu, HHV | S27: Gallons, HHV | T27: Standard Cubic Feet @ 60oF, 1 atm | V27: MMBtu, HHV | W27: MMBtu, HHV | X27: kWh | Y27: kWh | Z27: Miles | AA27: =IF($D$24="2-User Defined Mix", "gCO2e/kWh","") ->  | AC27: MMBtu, HHV | AD27: Gallons, HHV | AE27: MMBtu, LHV | AF27: kWh | AH27: miles | AI27: =IF($AG$24="2-User Defined Mix", "gCO2e/kWh","") -> 
B28: =IF('Manure-to-Biogas (LOP Inputs)'!C8=0, " ", 'Manure-to-Biogas (LOP Inputs)'!C8) -> 2021-05-01 | C28: ='Manure to Biogas'!B128 -> 97931574.96 | D28: ='Manure to Biogas'!B129 -> 0.5894034844 | E28: ='Manure to Biogas'!B130 -> 97173191.96 | F28: ='Manure to Biogas'!B131 -> 0.5890886987 | G28: =IF('Manure to Biogas'!B153="Default",0,'Manure to Biogas'!B154) -> 0 | H28: =IF('Manure to Biogas'!B153="Default",0,'Manure to Biogas'!B155) -> 0 | I28: =IF('Manure to Biogas'!B153="Default",0,'Manure to Biogas'!B156) -> 0 | J28: ='Manure to Biogas'!B161 -> 0 | K28: ='Manure to Biogas'!B159 -> 0 | L28: ='Manure to Biogas'!B160 -> 788.057 | M28: ='Manure to Biogas'!B157 -> 0 | N28: ='Manure to Biogas'!B163 -> 0 | O28: ='Manure to Biogas'!B162 -> 0 | P28: =X28-Y28 -> 0 | Q28: ='Manure to Biogas'!B164 -> 2234400 | R28: ='Manure to Biogas'!B134 -> 0 | S28: ='Manure to Biogas'!B135 -> 0 | T28: ='Manure to Biogas'!B132 -> 5236258.825 | U28: ='Manure to Biogas'!B133 -> 0.6190371974 | V28: ='Manure to Biogas'!B137 -> 46671.5 | AA28: ='EF Table'!K109 -> 0 | AC28: =IF('Manure to Biogas'!B194="No Pathway",0,'Manure to Biogas'!B195) -> 100000 | AD28: =IF('Manure to Biogas'!B194="No Pathway",0,'Manure to Biogas'!B196) -> 980000 | AE28: =AC28*Reference!$F$15-AD28*Reference!$D$13*Reference!$F$13/Reference!$H$48 -> 17065.66214 | AF28: =IF('Manure to Biogas'!B194="No Pathway",0,'Manure to Biogas'!B199) -> 1200000 | AG28: 3.6.a Select to affirm LNG delivery trucks are equipped with Boil-Off Recovery | AH28: ='Manure to Biogas'!B201 -> Yes | AI28: =IF(AG24="2-User Defined Mix", " ","N/A") -> N/A
B29: =IF('Manure-to-Biogas (LOP Inputs)'!C9=0, " ", 'Manure-to-Biogas (LOP Inputs)'!C9) -> 2021-06-01 | AE29: =AC29*Reference!$F$15-AD29*Reference!$D$13*Reference!$F$13/Reference!$H$48 -> 0
B30: =IF('Manure-to-Biogas (LOP Inputs)'!C10=0, " ", 'Manure-to-Biogas (LOP Inputs)'!C10) -> 2021-07-01 | Z30: 2.27.a From upgrading facility to CNG station. | AA30: =IF(D24="2-User Defined Mix", "","N/A") -> N/A | AE30: =AC30*Reference!$F$15-AD30*Reference!$D$13*Reference!$F$13/Reference!$H$48 -> 0 | AI30: ='EF Table'!L109 -> 0
B31: =IF('Manure-to-Biogas (LOP Inputs)'!C11=0, " ", 'Manure-to-Biogas (LOP Inputs)'!C11) -> 2021-08-01 | AE31: =AC31*Reference!$F$15-AD31*Reference!$D$13*Reference!$F$13/Reference!$H$48 -> 0
B32: =IF('Manure-to-Biogas (LOP Inputs)'!C12=0, " ", 'Manure-to-Biogas (LOP Inputs)'!C12) -> 2021-09-01 | AE32: =AC32*Reference!$F$15-AD32*Reference!$D$13*Reference!$F$13/Reference!$H$48 -> 0
B33: =IF('Manure-to-Biogas (LOP Inputs)'!C13=0, " ", 'Manure-to-Biogas (LOP Inputs)'!C13) -> 2021-10-01 | AE33: =AC33*Reference!$F$15-AD33*Reference!$D$13*Reference!$F$13/Reference!$H$48 -> 0 | AG33: 3.6.b Enter Transport Distance from Liquefaction Plant to station by HD Truck | AH33: =IF('Manure to Biogas'!B194="No Pathway",0,'Manure to Biogas'!B203) -> 0
B34: =IF('Manure-to-Biogas (LOP Inputs)'!C14=0, " ", 'Manure-to-Biogas (LOP Inputs)'!C14) -> 2021-11-01 | Z34: ='Manure to Biogas'!B179 -> 473 | AE34: =AC34*Reference!$F$15-AD34*Reference!$D$13*Reference!$F$13/Reference!$H$48 -> 0
B35: =IF('Manure-to-Biogas (LOP Inputs)'!C15=0, " ", 'Manure-to-Biogas (LOP Inputs)'!C15) -> 2021-12-01 | AE35: =AC35*Reference!$F$15-AD35*Reference!$D$13*Reference!$F$13/Reference!$H$48 -> 0
B36: =IF('Manure-to-Biogas (LOP Inputs)'!C16=0, " ", 'Manure-to-Biogas (LOP Inputs)'!C16) -> 2022-01-01 | Z36: 2.27.b From upgrading facility to LNG plant | AE36: =AC36*Reference!$F$15-AD36*Reference!$D$13*Reference!$F$13/Reference!$H$48 -> 0
B37: =IF('Manure-to-Biogas (LOP Inputs)'!C17=0, " ", 'Manure-to-Biogas (LOP Inputs)'!C17) -> 2022-02-01 | AE37: =AC37*Reference!$F$15-AD37*Reference!$D$13*Reference!$F$13/Reference!$H$48 -> 0
B38: =IF('Manure-to-Biogas (LOP Inputs)'!C18=0, " ", 'Manure-to-Biogas (LOP Inputs)'!C18) -> 2022-03-01 | AE38: =AC38*Reference!$F$15-AD38*Reference!$D$13*Reference!$F$13/Reference!$H$48 -> 0
B39: =IF('Manure-to-Biogas (LOP Inputs)'!C19=0, " ", 'Manure-to-Biogas (LOP Inputs)'!C19) -> 2022-04-01 | AE39: =AC39*Reference!$F$15-AD39*Reference!$D$13*Reference!$F$13/Reference!$H$48 -> 0 | AG39: 3.6.c Select to affirm the LNG storage system is equipped with Boil-Off Recovery | AH39: ='Manure to Biogas'!B202 -> Yes
B40: =IF('Manure-to-Biogas (LOP Inputs)'!C20=0, " ", 'Manure-to-Biogas (LOP Inputs)'!C20) -> 2022-05-01 | Z40: ='Manure to Biogas'!B200 -> 0 | AE40: =AC40*Reference!$F$15-AD40*Reference!$D$13*Reference!$F$13/Reference!$H$48 -> 0
B41: =IF('Manure-to-Biogas (LOP Inputs)'!C21=0, " ", 'Manure-to-Biogas (LOP Inputs)'!C21) -> 2022-06-01 | AE41: =AC41*Reference!$F$15-AD41*Reference!$D$13*Reference!$F$13/Reference!$H$48 -> 0
B42: =IF('Manure-to-Biogas (LOP Inputs)'!C22=0, " ", 'Manure-to-Biogas (LOP Inputs)'!C22) -> 2022-07-01 | AE42: =AC42*Reference!$F$15-AD42*Reference!$D$13*Reference!$F$13/Reference!$H$48 -> 0
B43: =IF('Manure-to-Biogas (LOP Inputs)'!C23=0, " ", 'Manure-to-Biogas (LOP Inputs)'!C23) -> 2022-08-01 | AE43: =AC43*Reference!$F$15-AD43*Reference!$D$13*Reference!$F$13/Reference!$H$48 -> 0
B44: =IF('Manure-to-Biogas (LOP Inputs)'!C24=0, " ", 'Manure-to-Biogas (LOP Inputs)'!C24) -> 2022-09-01 | AE44: =AC44*Reference!$F$15-AD44*Reference!$D$13*Reference!$F$13/Reference!$H$48 -> 0
B45: =IF('Manure-to-Biogas (LOP Inputs)'!C25=0, " ", 'Manure-to-Biogas (LOP Inputs)'!C25) -> 2022-10-01 | AE45: =AC45*Reference!$F$15-AD45*Reference!$D$13*Reference!$F$13/Reference!$H$48 -> 0
B46: =IF('Manure-to-Biogas (LOP Inputs)'!C26=0, " ", 'Manure-to-Biogas (LOP Inputs)'!C26) -> 2022-11-01 | AE46: =AC46*Reference!$F$15-AD46*Reference!$D$13*Reference!$F$13/Reference!$H$48 -> 0 | AG46: Standard values of compression efficiency, energy consumption, and transport are applied to fueling facilities for all CNG, LNG, and L-CNG pathways
B47: =IF('Manure-to-Biogas (LOP Inputs)'!C27=0, " ", 'Manure-to-Biogas (LOP Inputs)'!C27) -> 2022-12-01 | AE47: =AC47*Reference!$F$15-AD47*Reference!$D$13*Reference!$F$13/Reference!$H$48 -> 0
B48: =IF('Manure-to-Biogas (LOP Inputs)'!C28=0, " ", 'Manure-to-Biogas (LOP Inputs)'!C28) ->  | AE48: =AC48*Reference!$F$15-AD48*Reference!$D$13*Reference!$F$13/Reference!$H$48 -> 0
B49: =IF('Manure-to-Biogas (LOP Inputs)'!C29=0, " ", 'Manure-to-Biogas (LOP Inputs)'!C29) ->  | AE49: =AC49*Reference!$F$15-AD49*Reference!$D$13*Reference!$F$13/Reference!$H$48 -> 0
B50: =IF('Manure-to-Biogas (LOP Inputs)'!C30=0, " ", 'Manure-to-Biogas (LOP Inputs)'!C30) ->  | AE50: =AC50*Reference!$F$15-AD50*Reference!$D$13*Reference!$F$13/Reference!$H$48 -> 0
B51: =IF('Manure-to-Biogas (LOP Inputs)'!C31=0, " ", 'Manure-to-Biogas (LOP Inputs)'!C31) ->  | AE51: =AC51*Reference!$F$15-AD51*Reference!$D$13*Reference!$F$13/Reference!$H$48 -> 0
B52: Total | C52: =SUM(C28:C51) -> 97931574.96 | D52: =IFERROR(AVERAGE(D28:D51),0) -> 0.5894034844 | E52: =SUM(E28:E51) -> 97173191.96 | F52: =IFERROR(AVERAGE(F28:F51),0) -> 0.5890886987 | G52: =SUM(G28:G51) -> 0 | H52: =SUM(H28:H51) -> 0 | I52: =SUM(I28:I51) -> 0 | J52: =SUM(J28:J51) -> 0 | K52: 0 | L52: 788.057 | M52: 0 | N52: 0 | O52: 0 | P52: 0 | Q52: 2234400 | R52: 0 | S52: 0 | T52: 5236258.825 | U52: =IFERROR(AVERAGE(U28:U51),0) -> 0.6190371974 | V52: =SUM(V28:V51) -> 46671.5 | W52: =SUM(W28:W51) -> 0 | X52: =SUM(X28:X51) -> 0 | Y52: =IFERROR(AVERAGE(Y28:Y51),0) -> 0 | AB52: Total | AC52: =SUM(AC28:AC51) -> 100000 | AD52: =SUM(AD28:AD51) -> 980000 | AE52: =SUM(AE28:AE51) -> 17065.66214 | AF52: =SUM(AF28:AF51) -> 1200000
B53: Methane, SCF | D53: =C52*D52 -> 57721211.52 | F53: =E52*F52 -> 57243629.2 | U53: =T52*U52 -> 3241438.988
B54: MMBtu, HHV | D54: =D53*Reference!D16/1000000 -> 58298.42363 | F54: =F53*Reference!$D$16/10^6 -> 57816.06549 | H54: =H52 -> 0 | K54: =K52 -> 0 | L54: =L52 -> 788.057 | N54: =N52 -> 0 | O54: =O52 -> 0 | U54: =U53*Reference!$D$16/10^6 -> 3273.853378 | V54: =V52 -> 46671.5 | W54: =W52 -> 0 | AB54: MMBtu, HHV | AC54: =AC52 -> 100000 | AD54: =AD52*Reference!$D$13/Reference!H48 -> 83123.6
B55: MMBtu, LHV | D55: =D53*Reference!$C$16/1000000 -> 52526.30248 | F55: =F53*Reference!$C$16/1000000 -> 52091.70257 | H55: =H54*Reference!F15 -> 0 | J55: =J52 -> 0 | K55: =K54*Reference!F16 -> 0 | L55: =L52*Reference!F15 -> 711.5466117 | N55: =N54*Reference!$C$15/Reference!$D$15 -> 0 | O55: =O54*Reference!$F$16 -> 0 | U55: =U53*Reference!$C$16/1000000 -> 2949.709479 | V55: =V52*Reference!F16 -> 42039.30993 | W55: =W54*Reference!F16 -> 0 | Z55: Biomethane Transport - CNG Station | AB55: MMBtu, LHV | AC55: =AC54*Reference!F15 -> 90291.26214 | AD55: =AD54*Reference!F13 -> 73225.6 | AE55: =AC55-AD55 -> 17065.66214 | AG55: Biomethane Transport - Liquefaction Plant | AI55: LNG Transportation
B56: EF Units | G56: gCO2e/gal | H56: gCO2e/MMBtu | I56: gCO2e/kWh | J56: =I56 -> gCO2e/kWh | K56: gCO2e/MMBtu | L56: gCO2e/MMBtu | M56: =G56 -> gCO2e/gal | N56: gCO2e/MMBtu | O56: gCO2e/MMBtu | P56: gCO2e/kWh | Q56: gCO2e/kWh | U56: gCO2e/MMBtu | Z56: gCO2e/MMBtu-mile | AA56: CH4 Leakage in gCO2e/MMBtu-mile | AB56: EF Units | AE56: gCO2e/MMBtu | AF56: gCO2e/kWh | AG56: gCO2e/MMBtu-mile | AH56: CH4 Leakage | AI56: gCO2e/MMBtu-mile with boil off recovery | AJ56: gCO2e/MMBtu with boil off recovery | AK56: gCO2e/MMBtu without boil off recovery
B57: EF | G57: 12765.873 | H57: =IF('Manure to Biogas'!B149="User-Defined",'Manure to Biogas'!B150,H59) -> 74654.75965 | I57: =HLOOKUP(D24,'EF Table'!C3:AF9,5,FALSE) -> 460.828593 | J57: =HLOOKUP(D24,'EF Table'!C3:AF9,IF('Manure to Biogas'!B151="GREET 4.0",2,5),FALSE) -> 460.828593 | K57: ='EF Table'!I159*Reference!H45 -> 59540.56727 | L57: =H57 -> 74654.75965 | M57: 12765.873 | N57: 74654.75965 | O57: ='EF Table'!$I$159*Reference!$H$45 -> 59540.56727 | P57: ='EF Table'!$D$180 -> 641.7926149 | Q57: =HLOOKUP(D24,'EF Table'!C3:AF9,IF('Manure to Biogas'!B151="GREET 4.0",2,5),FALSE) -> 460.828593 | U57: ='EF Table'!D170*Reference!H45 -> 60443.29302 | Z57: ='EF Table'!D25 -> 4.082483279 | AA57: ='EF Table'!E25* IF(Z34=0,0,1) -> 1.716911765 | AB57: EF | AE57: 81999.66414 | AF57: =HLOOKUP(AG24,'EF Table'!C3:AF9,IF('Manure to Biogas'!B151="GREET 4.0",2,5),FALSE) -> 795.0546932 | AG57: ='EF Table'!D17 -> 4.082483279 | AH57: ='EF Table'!E17*IF(Z40=0,0,1) -> 0 | AI57: ='EF Table'!C31 -> 5.004990384 | AJ57: 10.84824757 | AK57: 54.24123783
B58: GHG Emissions, gCO2e | N58: =N55*N57 -> 0 | O58: =O52*O57 -> 0 | Z58: =$V$55*Z57*$Z$34 -> 81178520.87 | AA58: =(AA57*$Z$34+'EF Table'!E26)*$V$55 -> 52741864.08 | AB58: GHG Emissions, gCO2e | AE58: =AE57*AE55 -> 1399378564 | AF58: =AF57*AF52 -> 954065631.9 | AG58: =AG57*$AC$55*$Z$40 -> 0 | AH58: =AH57*$Z$40*$AC$55 -> 0 | AI58: =AI57*AH33*AD55*'EF Table'!I38 -> 0 | AJ58: =AD55*AJ57 -> 794369.4369 | AK58: =AD55*AK57 -> 3971847.185
H59: 74654.75965
B61: Section 4. CI Calculation Details
M62: ='EF Table'!L32*'EF Table'!L34 -> 1.001237577
B63: Manure to LNG | E63: GHG emissions CO2e | F63: CI, gCO2e/MMBtu | G63: gCO2e/MJ | L63: CNG Transportation (CNG-pathway) | M63: ='EF Table'!L33 -> 1.001557304
B64: =D24 -> 5-AZNM Mix | C64: Raw Biogas Production-Digester | D64: Net-Diesel | E64: =IF(G52>M52,0,M52-G52)*G57 -> 0 | F64: =IFERROR(E64/$V$55,0) -> 0 | G64: =F64/Reference!$H$45 -> 0 | L64: Stage of life-cycle
D65: Net-Grid electricity | E65: =IF(I52>J52,0,J52-I52)*I57 -> 0 | F65: =IFERROR(E65/$V$55,0) -> 0 | G65: =F65/Reference!$H$45 -> 0 | L65: Manure handling and AD | M65: =G68*M63 -> 1.199514855
D66: Utility source NG | E66: =L55*L57 -> 53120341.27 | F66: =IFERROR(E66/$V$55,0) -> 1263.587375 | G66: =F66/Reference!$H$45 -> 1.19764975 | L66: Biogas production and upgrading | M66: =(G69+G71)*M63 -> 23.25118624
D67: Biomethane (heat) | E67: =K55*K57 -> 0 | F67: =IFERROR(E67/$V$55,0) -> 0 | G67: =F67/Reference!$H$45 -> 0 | L67: Biomethane flaring | M67: =G75*M63 -> 4.02598484
D68: Subtotal | G68: =SUM(G64:G67) -> 1.19764975 | H68: *'EF Table'!L33 | I68: *('EF Table'!L31*'EF Table'!L32*'EF Table'!L34) | J68: =('EF Table'!L31*'EF Table'!L32*'EF Table'!L34)/'EF Table'!L33 -> 0.9996807704 | L68: Fugitive | M68: =G76*M63 -> 84.59935692 | N68: 1.199514855
C69: Biogas upgrading | D69: Grid electricity | E69: =Q52*Q57 -> 1029675408 | F69: =IFERROR(E69/$V$55,0) -> 24493.15676 | G69: =F69/Reference!$H$45 -> 23.21503337 | L69: Truck transport | M69: =G78 -> 0
D70: CCS Electricity | E70: ='EF Table'!D133 -> 645160030.2 | F70: =IFERROR(E70/$V$55,0) -> 15346.58945 | G70: =F70/Reference!$H$45 -> 14.54576025
D71: Utility source NG | E71: =N55*N57 -> 0 | F71: =IFERROR(E71/$V$55,0) -> 0 | G71: =F71/Reference!$H$45 -> 0 | L71: Transmission | M71: =G80 -> 3.019365307
D72: Propane | E72: ='EF Table'!C189 -> 0 | F72: =E72/V55 -> 0 | G72: =F72/Reference!$H$45 -> 0
D73: Biomethane (process fuel) | E73: =O55*O57 -> 0 | F73: 0 | G73: =F73/Reference!$H$45 -> 0 | L73: Compression | M73: =G88 -> 3.496310368
D74: Onsite electricity from biomethane | E74: =P52*P57 -> 0 | F74: 0 | G74: =F74/Reference!$H$45 -> 0 | L74: Tailpipe | M74: =G89 -> 60.72964872
D75: Biomethane (flaring) | E75: =U55*U57 -> 178290154.3 | F75: 4241.034276 | G75: =F75/Reference!$H$45 -> 4.019724905 | L75: Avoided emissions credits | M75: =(G93+G92)*M63 -> -333.0731069
D76: Feed Loss (fugitive methane) (Fugitive Emissions), % | E76: =F53*'EF Table'!E183*Reference!E16*Reference!B20 -> 3746470244 | F76: 89118.26218 | G76: =F76/Reference!$H$45 -> 84.46781484 | L76: Total | M76: =SUM(M65:M75) -> -152.7517396
D77: Subtotal | G77: =SUM(G69:G76) -> 126.2483334 | H77: *'EF Table'!L33 | I77: *('EF Table'!L31*'EF Table'!L32*'EF Table'!L34) | J77: =('EF Table'!L31*'EF Table'!L32*'EF Table'!L34)/'EF Table'!L33 -> 0.9996807704 | L77: Check | M77: =M76-G94 -> -14.56841243 | N77: 112.0507538
C78: RNG transport to pipeline | D78: Truck transport | G78: ='RNG Transport'!B81 -> 0 | H78: *'EF Table'!L33 | I78: *('EF Table'!L31*'EF Table'!L32*'EF Table'!L34) | J78: =('EF Table'!L31*'EF Table'!L32*'EF Table'!L34)/'EF Table'!L33 -> 0.9996807704
B79: 1-US Average | C79: Biomethane Transmission | D79: by pipeline to LNG Plant | E79: =AG58+AH58 -> 0 | F79: =IFERROR(E79/$V$55,0) -> 0 | G79: =F79/Reference!$H$45 -> 0 | I79: *'EF Table'!L31*'EF Table'!L32
D80: by pipeline to CNG Plant | E80: =Z58+AA58 -> 133920385 | F80: =IFERROR(E80/$V$55,0) -> 3185.599031 | G80: =F80/Reference!$H$45 -> 3.019365307 | H80: -
B81: =AG24 -> 9-SPSO Mix | C81: LNG Production | D81: NG used as process fuel | E81: =AE58 -> 1399378564 | F81: =IFERROR(E81/$AD$55,0) -> 19110.51003 | G81: =F81/Reference!$H$45 -> 18.11326863
D82: Electricity | E82: =AF58 -> 954065631.9 | F82: =IFERROR(E82/$AD$55,0) -> 13029.12686 | G82: =F82/Reference!$H$45 -> 12.34922953
D83: Subtotal | G83: =SUM(G81:G82) -> 30.46249817 | I83: *'EF Table'!L31*'EF Table'!L32
C84: LNG Transport and Distribution | D84: By Truck | E84: =IF(AH28="No",AI58+AK58,AI58+AJ58) -> 794369.4369 | F84: =IFERROR(E84/$AD$55,0) -> 10.84824757 | G84: =F84/Reference!$H$45 -> 0.01028215479 | I84: *'EF Table'!L32
C85: LNG Storage | E85: =IF(AH39="No",'EF Table'!C37,'EF Table'!E37)*AD55 -> 47800802.41 | F85: =IFERROR(E85/$AD$55,0) -> 652.7881288 | G85: =F85/Reference!$H$45 -> 0.618723766
D86: Subtotal | G86: =G84+G85 -> 0.6290059208
B87: Manure to CNG/LNG | E87: GHG emissions CO2e | F87: CI, gCO2e/MMBtu | G87: gCO2e/MJ
B88: 3-CAMX Mix | C88: L-CNG and CNG Production | D88: CI for Compression of CNG (standard Value) | F88: =G88/Reference!D49 -> 3688.802707 | G88: 3.496310368 | H88: -
C89: Tailpipe Emissions | D89: CNG Vehicles | F89: =(Reference!C59+Reference!C60+Reference!C61)*Reference!H45 -> 64073.17115 | G89: =F89/Reference!$H$45 -> 60.72964872 | H89: -
D91: LNG Vehicles | F91: =(Reference!E59+Reference!E60+Reference!E61)*Reference!H45 -> 64024.47711 | G91: =F91/Reference!$H$45 -> 60.68349567
C92: Credits | F92: Methane avoided | G92: ='Avoided Emissions'!C52 -> -310.3014633 | H92: *'EF Table'!L33 | I92: *('EF Table'!L31*'EF Table'!L32*'EF Table'!L34) | J92: =('EF Table'!L31*'EF Table'!L32*'EF Table'!L34)/'EF Table'!L33 -> 0.9996807704
F93: CO2 diverted | G93: ='Avoided Emissions'!G52 -> -22.25375391 | H93: *'EF Table'!L33 | I93: *('EF Table'!L31*'EF Table'!L32*'EF Table'!L34) | J93: =('EF Table'!L31*'EF Table'!L32*'EF Table'!L34)/'EF Table'!L33 -> 0.9996807704
F94: Final CNG CI, g/MJ | G94: =IF(V52=0,0,(G68+G77+ G92+G93+G78)*'EF Table'!L33+G80+G88+G89) -> -138.1833272
F95: Final LNG CI, g/MJ | G95: =IF(AD52=0,0,(G68+G77+G92+G93+G78)*('EF Table'!L31*'EF Table'!L32*'EF Table'!L34)+ (G79+G83)*'EF Table'!L31*'EF Table'!L32+G84*'EF Table'!L32+G85+G91) -> -113.5503605 | H95: =G95*$M$63 -> -113.727193
F96: Final L-CNG CI, g/MJ | G96: =IF(AD52=0,0,(G68+G77+G92+G93+G78)*('EF Table'!L31*'EF Table'!L32*'EF Table'!L34)+(G79+G83)*'EF Table'!L31*'EF Table'!L32+G84*'EF Table'!L32+G85+G88+G89) -> -110.0078971 | H96: =G96*$M$63 -> -110.1792128

Sheet RNG Transport (hidden)
J1: Draft under development
B2: Sources of life cycle GHG emissions associated with RNG truck transport | J2: This is not an officially approved version.
B3: (1) fugitive methane during loading (filling the tube trailer) and offloading
B4: (2) energy use in truck transport
B5: (3) energy use associated with compression
B6: (4) fugitive methane during compression
B7: (5) Describe any additional life cycle stages, processes, energy use or other emission sources that are associated with this pathway's RNG transport and pipeline injection
B11: Point of Origin: Biogas upgrading facility
C12: Physical Address
C13: GPS Coordinates
B15: Destination: Pipeline Injection Point
C16: Physical Address
C17: GPS Coordinates
C19: Describe the origin if it is not the fuel production facility registered for this pathway application
C20: Describe the destination if it is not a common carrier natural gas pipeline injection point
B23: Enter the total quantity of RNG pipeline injected over the operational data period. This quantity must be supported by monthly meter records from the utility or pipeline operator.
B24: ='Biogas-to-RNG'!V52 -> 46671.5 | C24: MMBtu (HHV)
B26: Enter the distance traveled per trip from point of origin to destination (one-way).
B27: ='Manure to Biogas'!B175 -> 0 | C27: miles
B29: Enter the total capacity of the tube trailer. If multiple trucks or various numbers of tubes are used in each trip, enter the lowest capacity.
B30: =IF('Manure to Biogas'!B176="Default",493000*1010/1000000,'Manure to Biogas'!B177) -> 497.93 | C30: MMBtu
B32: (1) Fugitive methane during loading (filling the tube trailer) and offloading
B33: Default methane venting rate = 0.03% for combined venting during loading and offloading
B34: =0.0003*1000000*Reference!E16/Reference!B16*0 -> 0 | C34: g CH4 per MMBtu RNG
B35: =B34/[12]Reference!H45*[12]Reference!B20 -> 0 | C35: g CO2e per MJ
C37: If a quantity of methane greater than the default methane venting calculated above is known, likely, or suspected, enter that value here (in gCO2e/MJ).
C38: Describe the method used to derive the estimate below.
B41: (2) Energy use in truck transport
B42: User-Defined Option? | D42: No
C43: Enter actual gallons of diesel consumed in transport of RNG over the operational data period, as evidenced by purchase records, invoices, or manifest
B44: =(B43*[12]Reference!H45)/B24 -> 0 | C44: gCO2e per MMBtu
B45: =B44/[12]Reference!H45 -> 0 | C45: gCO2e per MJ
B47: Standard default fuel economy method
B48: If actual gallons of diesel consumed in transport is not documented by verifiable evidence, use the following result:
B49: =B24/B30*(B27*2)/'Manure to Biogas'!B178 -> 0 | C49: gallons of diesel
B50: =(B49*12765.873001628)/B24 -> 0 | C50: gCO2e per MMBtu | F50: =B49*E50/B24 -> 0
B51: =B50/[12]Reference!H45 -> 0 | C51: gCO2e per MJ
B53: (3) Energy use associated with compression and pipeline injection
B54: User-Defined Option
B55: If the energy use in compression at the pipeline injection point is metered, enter the type and quantity of energy.
B56: Electricity | E56: Energy Type
B57: 11-MROE Mix | E57: Choose electricity mix if electricity is selected above
B58: =9*B24 -> 420043.5 | C58: =IF(B56="Electricity","kWh",IF(B56="NG","MMBtu","gallon")) -> kWh | E58: Quantity consumed over the operational data period
B59: 0 | C59: gCO2e per MJ
B60: If all energy use for compression and injection is accounted for elsewhere in the applicant's model, enter zero above
B62: Default Option
B63: If actual energy consumption for compression and pipeline injection is not documented by verifiable evidence, use the following conservative default:
B64: Use default? | C64: No
B65: =IF(C64="Yes",[12]Reference!B241,0) -> 0 | C65: gCO2e/MJ
B68: (4) Fugitive methane during compression and pipeline injection
B69: Default methane venting rate = 0.32% for venting during compression
B70: =0.0032*1000000*[12]Reference!E16/[12]Reference!B16*0 -> 0 | C70: g CH4 per MMBtu RNG
B71: =B70/[12]Reference!H45*[12]Reference!B20 -> 0 | C71: g CO2e per MJ
B74: (5) Other
B80: Result: Subtotal CI for RNG transport-related life cycle stages
B81: =B35+IF(D42="Yes",B45,B51)+IF(C64 ="Yes",B65,B59)+B71 -> 0 | C81: g CO2e per MJ
B82: If any user-defined inputs are used in this template, modify the above calculation to reference the user-defined result in place of the standard value
K92: Options: for CA CNG stations we assume 9 kWh electricity per MMBtu CNG is used for compression. Here this assumed to be NG and 33% efficiency (conservative). Alternatively assume diesel generator (8.92 g/MJ)
K94: Natural gas | Q94: Diesel
K95: 30996 | L95: Btu/MMBtu | M95: from 2017 LCFS discussion paper | Q95: 9.084030868 | R95: kWh/MMBtu
K96: 9.084030868 | L96: kWh | Q96: 32.70251113 | R96: MJ/MMBtu
K97: 93927.27273 | L97: Btu consumed per MMBtu throughput | Q97: 99.09851857 | R97: MJ diesel per MMBtu (at 33% effic.)
K98: 74654.75965 | L98: gCO2e/MMBtu NG consumed | Q98: 0.7369563365 | R98: gal diesel per MMBtu
K99: 7012.11797 | L99: gCO2e/MMBtu RNG throughput | Q99: 8.916925103 | R99: gCO2e/MJ
K100: 6.646205478 | L100: gCO2e/MJRNG throughput

Sheet EF Table (hidden)
B2: Greenhouse Gases Emissions Factors Used in CA-GREET 3.0 for Carbon Intensity Calculations (see "CA-GREET 3.0 for EF Table")
C3: 1-U.S Ave Mix | D3: 2-User Defined Mix | E3: 3-CAMX Mix | F3: 4-NWPP Mix | G3: 5-AZNM Mix | H3: 6-RMPA Mix | I3: 7-MROW Mix | J3: 8-SPNO Mix | K3: 9-SPSO Mix | L3: 10-ERCT Mix | M3: 11-MROE Mix | N3: 12-SRMW Mix | O3: 13-SRMV Mix | P3: 14-RFCM Mix | Q3: 15-RFCW Mix | R3: 16-SRTV Mix | S3: 17-SRSO Mix | T3: 18-NEWE Mix | U3: 19-NYUP Mix | V3: 20-RFCE Mix | W3: 21-NYLI Mix | X3: 22-NYCW Mix | Y3: 23-SRVC Mix | Z3: 24-FRCC Mix | AA3: 25-AKMS Mix | AB3: 26-AKGD Mix | AC3: 27-HIOA Mix | AD3: 28-HIMS Mix | AE3: 29-Brazilian Mix | AF3: 30-Canadian Mix | AG3: None
B4: GREET 4.0 Values | C4: 474.1481811 | D4: =D6 -> 0 | E4: 329.315509 | F4: 341.7320862 | G4: 452.5979964 | H4: 581.2447114 | I4: 522.2755266 | J4: 518.5779611 | K4: 538.184671 | L4: 470.4603747 | M4: 835.1729646 | N4: 820.1296942 | O4: 480.1475905 | P4: 647.6560142 | Q4: 571.7384883 | R4: 503.5619942 | S4: 508.7158303 | T4: 343.9333755 | U4: 153.9203041 | V4: 403.0232799 | W4: 603.0605646 | X4: 522.5910041 | Y4: 370.789402 | Z4: 500.0897813 | AA4: 305.0595453 | AB4: 739.3736966 | AC4: 993.0409075 | AD4: 729.769644 | AE4: 110.5727336 | AF4: 142.5873345
B6: Emissions from Electricity use (gCO2e/kWh) For Feedstock Production | C6: 610.3418915 | D6: ='Biogas-to-RNG'!AA28 -> 0 | E6: 370.2153615 | F6: 476.6675589 | G6: 460.828593 | H6: 851.0302066 | I6: 684.3534391 | J6: 792.60226 | K6: 795.0546932 | L6: 638.5930168 | M6: 892.006906 | N6: 924.3059717 | O6: 614.2474033 | P6: 785.9173014 | Q6: 738.4269048 | R6: 682.1417198 | S6: 628.5383725 | T6: 356.8984902 | U6: 231.0811543 | V6: 462.5107826 | W6: 627.0563909 | X6: 356.8338354 | Y6: 493.6181335 | Z6: 601.6503365 | AA6: 161.9571553 | AB6: 747.5726312 | AC6: 1127.536138 | AD6: 680.4957247 | AE6: 193.692493 | AF6: 176.2324788
B7: Emissions from Electricity use (gCO2e/kWh) for Fuel Production | C7: 610.3418915 | D7: =D6 -> 0 | E7: 370.2153615 | F7: 476.6675589 | G7: 460.828593 | H7: 851.0302066 | I7: 684.3534391 | J7: 792.60226 | K7: 795.0546932 | L7: 638.5930168 | M7: 892.006906 | N7: 924.3059717 | O7: 614.2474033 | P7: 785.9173014 | Q7: 738.4269048 | R7: 682.1417198 | S7: 628.5383725 | T7: 356.8984902 | U7: 231.0811543 | V7: 462.5107826 | W7: 627.0563909 | X7: 356.8338354 | Y7: 493.6181335 | Z7: 601.6503365 | AA7: 161.9571553 | AB7: 747.5726312 | AC7: 1127.536138 | AD7: 680.4957247 | AE7: 193.692493 | AF7: 176.2324788
C9: BiomethaneTransportation
C10: to LNG Plant | D10: Pipeline (g/MMBtu) | E10: CH4 leakage (g/MMBtu)
D11: 20.5767737
D12: 105.6682465
D13: 109.6323629 | E13: 247.2352941
D14: 7.353760424
D15: 9534.529082
C16: Subtotal gCO2e/MMBtu | D16: =(D11*Reference!$B$22+D12*Reference!$B$23+D13*Reference!$B$20+D14*Reference!$B$21+D15) -> 14696.93981 | E16: =E13*Reference!$B$20 -> 6180.882353
C17: Subtotal gCO2e/MMBtu-mile | D17: =D16/3600 -> 4.082483279 | E17: =E16/3600 -> 1.716911765
C18: to CNG Stations | D18: Pipeline (g/MMBtu) | E18: CH4 leakage (g/MMBtu)
D19: 20.5767737
D20: 105.6682465
D21: 109.6323629 | E21: 247.2352941
D22: 7.353760424
D23: 9534.529082
C24: gCO2e/MMBtu | D24: =(D19*Reference!$B$22+D20*Reference!$B$23+D21*Reference!$B$20+D22*Reference!$B$21+D23) -> 14696.93981 | E24: =E21*Reference!$B$20 -> 6180.882353
C25: gCO2e/MMBtu-mile | D25: =D24/3600 -> 4.082483279 | E25: =E24/3600 -> 1.716911765
C26: CNG Distribution gCO2e/MMBtu | E26: =17.6994069935957*Reference!$B$20 -> 442.4851748
C28: LNG Transportation (truck)
H29: Loss Factors for LNG Transportation
C30: gCO2e/mmBTU-mile with boil off recovery | H30: g/mmbtu methane Recovery | I30: g/mmbtu methane without Recovery | K30: Loss factors for use in CI calculation
C31: =(0.00180794618601673*Reference!$B$22+0.00626802188024803*Reference!$B$23+0.0114445611623481*Reference!$B$20+0.000025719544585849*Reference!$B$21+4.69572741610927) -> 5.004990384 | H31: 0.4339299026 | I31: 2.1696495 | K31: LNG Transportation | L31: =(IF('Biogas-to-RNG'!AH28="Yes",('EF Table'!H32-1)*'Biogas-to-RNG'!AH33,('EF Table'!I32-1)*'Biogas-to-RNG'!AH33)+1) -> 1
C32: =C31*'Biogas-to-RNG'!AD55*'Biogas-to-RNG'!AH33 -> 0 | D32: gCO2e | G32: per mile | H32: =H31/(10^6/Reference!$B$16*Reference!$E$16)+1 -> 1.000020566 | I32: =I31/(10^6/Reference!$B$16*Reference!$E$16)+1 -> 1.000102832 | K32: LNG storage | L32: =IF('Biogas-to-RNG'!AH39="Yes",'EF Table'!I38,'EF Table'!H38) -> 1.001237577
K33: CNG Transportation (CNG-pathway) | L33: =(E25/25*'Biogas-to-RNG'!Z34/Reference!E16*Reference!B16+E26/25)/10^6+1 -> 1.001557304
C34: LNG Storage | D34: Yes | K34: CNG Transportation (LNG Pathway) | L34: =(E17/25*'Biogas-to-RNG'!Z40/Reference!E16)/10^6+1 -> 1
D35: No | H35: Loss Factors for LNG Storage
C36: Without recovery - gCO2e/mmBTU | E36: With recovery - gCO2e/mmBTU | H36: g/mmbtu without Recovery | I36: g/mmbtu Recovery
C37: 3263.940644 | E37: 652.7881288 | H37: =C37/25 -> 130.5576258 | I37: =E37/25 -> 26.11152515
C38: =C37*'Biogas-to-RNG'!AD55 -> 239004012 | D38: gCO2e | E38: =E37*'Biogas-to-RNG'!AD55 -> 47800802.41 | F38: gCO2e | H38: =H37/(10^6/Reference!$B$16*Reference!$E$16)+1 -> 1.006187887 | I38: =I37/(10^6/Reference!$B$16*Reference!$E$16)+1 -> 1.001237577
C43: Example of EF for CAMX
C44: Average Electricity from | D44: 3-CAMX Mix | L44: 3-CAMX Mix
C45: Details Breakdown of CI for Electricity Resources | D45: Residual Oil | E45: NG | F45: Coal | G45: Biomass | H45: Nuclear | I45: Other renewable energy sources | J45: Total, g/MMBtu | K45: Electricity Prod For Stationary Use | L45: Total, g/MMBtu | M45: Final CI, g/MJ
C46: VOC | D46: 0.1493773445 | E46: 14.45377752 | F46: 0.100932095 | G46: 0.1989238281 | H46: 0.1036127004 | I46: 0 | J46: 15.00662349 | K46: 4.393964694 | L46: 4.393964694
C47: CO | D47: 0.3217186296 | E47: 45.00613051 | F47: 0.04894244771 | G47: 0.885031735 | H47: 0.4362147643 | I47: 0 | J47: 46.69803808 | K47: 82.69388432 | L47: 82.69388432
C48: CH4 | D48: 4.244394793 | E48: 363.4110616 | F48: 1.95771476 | G48: 0.7973597969 | H48: 0.8293826291 | I48: 0 | J48: 371.2399136 | K48: 6.70139799 | L48: 6.70139799
C49: N2O | D49: 0.005200756962 | E49: 1.990299879 | F49: 0.0004771910125 | G49: 0.004217755406 | H49: 0.006326665119 | I49: 0 | J49: 2.006522247 | K49: 0.9214110304 | L49: 0.9214110304
C50: CO2 | D50: 264.3688352 | E50: 9502.20949 | F50: 22.83387918 | G50: 340.5136052 | H50: 324.4810347 | I50: 0 | J50: 10454.40684 | K50: 87460.15284 | L50: 87460.15284
C51: Convert to gCO2e/MMBtu | D51: 372.9996478 | E51: 19296.36692 | F51: 72.31043236 | G51: 363.7152346 | H51: 348.1093532 | I51: 0 | J51: 20453.50159 | K51: 88045.91034 | L51: 88045.91034
C52: g/MJ | D52: 0.3535354529 | E52: 18.28942697 | F52: 0.06853706594 | G52: 0.3447355272 | H52: 0.3299440056 | I52: 0 | J52: 19.38617902 | K52: 83.4514214 | L52: 83.4514214 | M52: 102.8376004
M53: =M52*Reference!F45 -> 370.2153615 | N53: g/kWh
C56: GHG From Vehicle Combustion (g/MMbtu) | D56: Feedstock | E56: Fuel | F56: Vehicle Operation | G56: Total
C57: GHG | D57: 14442.97951 | E57: 3143.964025 | F57: 60526.40625 | G57: 78113.34979
C58: CH4 | D58: 238.4754643 | E58: 16.71698953 | F58: 32.43418933 | G58: 287.6266432
C60: Heating Value
C61: Calculation: LHV | D61: LHV | E61: HHV | F61: Density (g/ft3) | G61: LHV/HHV
C62: Natural gas | D62: 983 | E62: 1089 | F62: 22 | G62: 0.9026629936
C63: Pure Methane | D63: 962.1850492 | E63: 1068.025405 | F63: 20.3031793 | G63: 0.9009009009
C64: Pure CO2 | F64: 55.97783
C66: AR Edition/Type | D66: AR4/GWP
C67: Time Horizon (YR) | D67: 100
C68: CO2 | D68: 1
C69: CH4 | D69: 25
C70: N2O | D70: 298
C76: Natural Gas (g/MMBtu) | D76: RNG industrial boiler | E76: RNG small industrial boiler | F76: RNG small turbine | G76: RNG reciprocating engine | H76: RNG Flaring
C77: Units | J77: Thermal Combustion Emissions
C78: VOC | D78: 2.54 | E78: 2.54 | F78: 1.056 | G78: 62.701 | H78: 23.666 | J78: =('Manure to Biogas'!B188*'EF Table'!D87+'Manure to Biogas'!B189*'EF Table'!E87+'EF Table'!F87*'Manure to Biogas'!B190+'Manure to Biogas'!B191*'EF Table'!G87)/100-Reference!J22 -> -0.3931800238 | K78: N2O
C79: CO | D79: 22.21 | E79: 24.97 | F79: 41.286 | G79: 273.497 | H79: 41.469 | J79: =('Manure to Biogas'!B188*'EF Table'!D86+'Manure to Biogas'!B189*'EF Table'!E86+'EF Table'!F86*'Manure to Biogas'!B190+'Manure to Biogas'!B191*'EF Table'!G86)/100-Reference!J19 -> 43.04956 | K79: CH4
C80: NOx | D80: 36.4 | E80: 41.05 | F80: 31.969 | G80: 20.137 | H80: 16.204 | J80: =IF((J79*D69+J78*D70)<0,0,J79*D69+J78*D70) -> 959.0713529 | K80: Total
C81: PM10 | D81: 3.507 | E81: 3.507 | F81: 3.575 | G81: 8.496 | H81: 5.041
C82: PM2.5 | D82: 3.507 | E82: 3.507 | F82: 3.575 | G82: 8.496 | H82: 5.041 | J82: Vehical Combustion Emissions
C83: SOx | D83: 0.2685656155 | E83: 0.2685656155 | F83: 0.2685656155 | G83: 0.2685656155 | H83: 0.2685656155 | J83: =(F57+D93)/Reference!H45 -> 1.055606661
C84: BC | D84: 0.578655 | E84: 0.578655 | F84: 0.103675 | G84: 1.6992 | H84: 4.78895
C85: OC | D85: 1.500996 | E85: 1.500996 | F85: 2.431 | G85: 3.636288 | H85: 0.25205
C86: CH4 | D86: 1.06 | E86: 1.06 | F86: 1.056 | G86: 445.958 | H86: 31.587
C87: N2O | D87: 0.75 | E87: 0.35 | F87: 0.102 | G87: 0.867 | H87: 1.1
C88: CO2 | D88: 59366.9495 | E88: 59362.61236 | F88: 59341.60907 | G88: 57561.09865 | H88: 59186.89341
C89: CO2 (w/ C in VOC & CO) | D89: =D88+D78*$D$112/$D$115+D79*$D$113/$D$115 -> 59367.03895 | E89: 59409.76727 | F89: 59409.77827 | G89: 58186.29777 | H89: 59325.81802
C90: GHGs | D90: =D89+D86*$D$69+D87*$D$70 -> 59617.03895 | E90: =E89+E86*$D$69+E87*$D$70 -> 59540.56727 | F90: 59466.57427 | G90: =G89+G86*$D$69+G87*$D$70 -> 69593.61377 | H90: 60443.29302
C91: NG Upstream Emissions | D91: 13740.26607
C92: Total Emissions | D92: 73386.37134 | E92: 73277.17134 | F92: 73209.35914 | G92: 85452.80324
C93: Biogenic CO2 emission credits | D93: -59412.68227 | E93: (gCO2e/mmBtu biogas combustion)
C95: [GREET1_2023.xlsm]Electric!$D$120
D96: Residual oil | E96: Natural gas | F96: Coal | G96: Nuclear power | H96: Biomass | I96: Other | K96: User Defined Electricity Emissions
C97: VOC | D97: 0.09601508596 | E97: 0.008304723778 | F97: 0.01404931492 | G97: 0 | H97: 0.03351958589 | I97: 0 | K97: ='Manure to Biogas'!B167/100*D109 -> 0 | L97: ='Manure to Biogas'!B206/100*D109 -> 0
C98: CO | D98: 0.5342457649 | E98: 0.07050079611 | F98: 0.3120854235 | G98: 0 | H98: 1.242720491 | I98: 0 | K98: ='Manure to Biogas'!B168/100*E109 -> 0 | L98: ='Manure to Biogas'!B207/100*E109 -> 0
C99: NOx | D99: 3.88477747 | E99: 0.1185551492 | F99: 0.7446171957 | G99: 0 | H99: 0.7136567041 | I99: 0 | K99: ='Manure to Biogas'!B169/100*F109 -> 0 | L99: ='Manure to Biogas'!B208/100*F109 -> 0
C100: PM10 | D100: 0.2548370625 | E100: 0.02195942171 | F100: 0.08040111326 | G100: 0 | H100: 0.07719713053 | I100: 0 | K100: ='Manure to Biogas'!B170/100*G109 -> 0 | L100: ='Manure to Biogas'!B209/100*G109 -> 0
C101: PM2.5 | D101: 0.2273424027 | E101: 0.0213982109 | F101: 0.06255422636 | G101: 0 | H101: 0.07240507047 | I101: 0 | K101: ='Manure to Biogas'!B171/100*H109 -> 0 | L101: ='Manure to Biogas'!B210/100*H109 -> 0
C102: SOx | D102: 2.40670685 | E102: 0.007613262176 | F102: 0.9901252574 | G102: 0 | H102: 0.6953594447 | I102: 0 | K102: ='Manure to Biogas'!B172/100*I109 -> 0 | L102: ='Manure to Biogas'!B211/100*I109 -> 0
C103: BC | D103: 0.0217505866 | E103: 0.001078901103 | F103: 0.002689831734 | G103: 0 | H103: 0.009991899725 | I103: 0
C104: OC | D104: 0.03966098439 | E104: 0.01373908836 | F104: 0.005066892335 | G104: 0 | H104: 0.02360405297 | I104: 0
C105: CH4 | D105: 0.0377035624 | E105: 0.01151322331 | F105: 0.1657564426 | G105: 0 | H105: 0.1187675539 | I105: 0
C106: N2O | D106: 0.01333697094 | E106: 0.001559397865 | F106: 0.02410739887 | G106: 0 | H106: 0.06321852642 | I106: 0
C107: CO2 | D107: 954.6119221 | E107: 449.9525323 | F107: 1037.619792 | G107: 0 | H107: -2.383926634 | I107: 1.699064536
C108: CO2 (w/ C in VOC & CO) | D108: =D107+D97*$D$112/$D$115+D98*$D$113/$D$115 -> 954.6143009 | E108: =E107+E97*$D$112/$D$115+E98*$D$113/$D$115 -> 449.9528178 | F108: 1037.620908 | G108: 0 | H108: -2.379629021 | I108: 1.699064536
C109: GHGs | D109: =D108+D105*$D$69+D106*$D$70 -> 959.5313073 | E109: =E108+E105*$D$69+E106*$D$70 -> 450.705349 | F109: 1048.948824 | G109: 0 | H109: 19.4286807 | I109: 1.699064536 | K109: =SUM(K97:K102) -> 0 | L109: =SUM(L97:L102) -> 0
C111: 3) Carbon and Sulfur Ratios of Pollutants | E111: [GREET1_2023.xlsm]Fuel_Specs!$A$160
C112: Carbon ratio of VOC | D112: 0.85
C113: Carbon ratio of CO | D113: =12/28 -> 0.4285714286
C114: Carbon ratio of CH4 | D114: =12/16 -> 0.75
C115: Carbon ratio of CO2 | D115: =H37 -> 130.5576258
C116: Sulfur ratio of SO2 | D116: =32/64 -> 0.5
C118: Truck Transport
C119: Trips | D119: ='Manure to Biogas'!B137/'Manure to Biogas'!B177 -> 93.73104653
C120: Distance | D120: ='Manure to Biogas'!B175 -> 0
C121: Disel Use | D121: =D119*D120/'Manure to Biogas'!B178 -> 0
C123: CO2 Sequestration
C124: User-Defined CO2 Sequestered | D124: ='Manure to Biogas'!B184 -> 7500 | E124: Tons
C125: Default CO2 Capture Rate | D125: 97.5 | E125: %
C126: Default CO2 in Raw Biogas | D126: =100-'Manure to Biogas'!B131-5 -> 94.4109113 | E126: %
C127: Default Electricity Requirement | D127: 180 | E127: kWh/ton CO2
C128: Density CO2 | D128: 55.97783 | E128: g/ft3
C129: Total CO2 Sequestered | D129: =IF(AND('Manure to Biogas'!B183="User-Defined",'Manure to Biogas'!B182="Yes"),D124/Reference!B33,'Manure to Biogas'!B130*D125/100*D126/100*D128) -> 6803885550 | E129: g
C130: CCS Impact | D130: =D129/'Biogas-to-RNG'!V55/Reference!H45*(-1) -> -153.400216 | E130: gCO2e/MJ
C131: Electricity Use | D131: =IF('Manure to Biogas'!B182="No",0,IF('Manure to Biogas'!B183="Default",D127*D129*Reference!B33,'Manure to Biogas'!B185)) -> 1400000 | E131: kWh
C132: Grid EF | D132: ='Biogas-to-RNG'!Q57 -> 460.828593 | E132: ='Biogas-to-RNG'!Q56 -> gCO2e/kWh
C133: Electricity Emissions | D133: =IF('Manure to Biogas'!B183="Default",D127/1000000*D129*D132,D132*D131) -> 645160030.2 | E133: gCO2e
C135: Electricity Generation | F135: Natural Gas | G135: RNG reciprocating engine (g/MMBtu)
C136: Electrical Efficiency (LHV) | D136: ='Manure to Biogas'!B138*Reference!F49/('Manure to Biogas'!B137*Reference!F16) -> 0.5294284751 | F136: Units
C137: Electrical Efficiency (HHV) | D137: ='Manure to Biogas'!B138*Reference!F49/'Manure to Biogas'!B137 -> 0.4768822033 | F137: VOC | G137: 62.701
C138: Electricity Production Emissions | D138: =((G145-Reference!J21)*D69+(G146-Reference!J22)*D70)/Reference!H47 -> 33.62500438 | E138: gCO2e/kWh | F138: CO | G138: 273.497
F139: NOx | G139: 20.137
F140: PM10 | G140: 8.496
F141: PM2.5 | G141: 8.496
F142: SOx | G142: 0.2685656155
F143: BC | G143: 1.6992
F144: OC | G144: 3.636288
F145: CH4 | G145: 445.958
F146: N2O | G146: 0.867
F147: CO2 | G147: 57561.09865
F148: CO2 (w/ C in VOC & CO) | G148: 58186.29777
F149: GHGs | G149: =G148+G145*$D$69+G146*$D$70 -> 69593.61377
C152: Natural Gas EF for Stationary/Facility Use
C153: Details in g/MMBtu of NG | D153: NG Extraction | E153: NG Processing | F153: NG Transport, 680 miles pipeline | G153: Feedstock CI Total | H153: Natural Gas Flaring | I153: Small Industrial Boiler (10-100 mmBtu/hr input) | J153: Final CI, gCO2e/MJ
C154: VOC | D154: 1.823503418 | E154: 4.648120936 | F154: 3.852039357 | G154: =SUM(D154:F154) -> 10.32366371 | H154: 2.5 | I154: 2.54
C155: CO | D155: 9.798000784 | E155: 2.486567155 | F155: 19.78143299 | G155: =SUM(D155:F155) -> 32.06600093 | H155: 26 | I155: 24.97
C156: CH4 | D156: 161.357029 | E156: 31.73060301 | F156: 84.92293522 | G156: =SUM(D156:F156) -> 278.0105673 | H156: 49 | I156: 1.06
C157: N2O | D157: 0.02142426679 | E157: 0.01484442754 | F157: 1.376647422 | G157: =SUM(D157:F157) -> 1.412916116 | H157: 1.100000024 | I157: 0.35
C158: CO2 | D158: 2339.67529 | E158: 2670.155256 | F158: 1784.894275 | G158: =SUM(D158:F158) -> 6794.72482 | H158: 59229.28346 | I158: 59362.61236
C159: Subtotal gCO2e/MJ | D159: =(D154*Reference!$B$22+D155*Reference!$B$23+D156*Reference!$B$20+D157*Reference!$B$21+D158)/Reference!$H$45 -> 6.067039539 | E159: =(E154*Reference!$B$22+E155*Reference!$B$23+E156*Reference!$B$20+E157*Reference!$B$21+E158)/Reference!$H$45 -> 3.304316143 | F159: =(F154*Reference!$B$22+F155*Reference!$B$23+F156*Reference!$B$20+F157*Reference!$B$21+F158)/Reference!$H$45 -> 4.133714077 | G159: =(G154*Reference!$B$22+G155*Reference!$B$23+G156*Reference!$B$20+G157*Reference!$B$21+G158)/Reference!$H$45 -> 13.50506976 | H159: =(H154*Reference!$B$22+H155*Reference!$B$23+H156*Reference!$B$20+H157*Reference!$B$21+H158)/Reference!$H$45 -> 57.65640963 | I159: =(I154*Reference!$B$22+I155*Reference!$B$23+I156*Reference!$B$20+I157*Reference!$B$21+I158)/Reference!$H$45 -> 56.43356915 | J159: =G159+H159 -> 71.16147939
G160: Biomethane (gCO2e/MJ) | H160: =(H154*Reference!$B$22+H155*Reference!$B$23+H156*Reference!$B$20+H157*Reference!$B$21)/Reference!$H$45 -> 1.517880609 | I160: =(I154*Reference!$B$22+I155*Reference!$B$23+I156*Reference!$B$20+I157*Reference!$B$21)/Reference!$H$45 -> 0.1686687058
C163: RNG flaring
C164: Details in g/MMBtu
C165: VOC | D165: 23.666
C166: CO | D166: 41.469
C167: CH4 | D167: 31.587
C168: N2O | D168: 1.1
C169: CO2 | D169: 59186.89341
C170: Subtotal gCO2e/MJ | D170: =(D165*Reference!$B$22+D166*Reference!$B$23+D167*Reference!$B$20+D168*Reference!$B$21+D169)/Reference!$H$45 -> 57.28918807
C172: Biogas electricity production
C173: Stationary Reciprocating Engine
C174: VOC | D174: 62.701
C175: CO | D175: 273.497
C176: CH4 | D176: 445.958
C177: N2O | D177: 0.867
C178: CO2 | D178: 57561.09865
C179: Subtotal gCO2e/MJ | D179: =(D174*Reference!$B$22+D175*Reference!$B$23+D176*Reference!$B$20+D177*Reference!$B$21+D178)/Reference!$H$45 -> 65.96201875
C180: gCO2e/kWh | D180: =D179*3.6/(0.37) -> 641.7926149 | E180: Assuming 37% efficiency
C183: Fugitive methane from upgrading (%) | E183: =MAX(IFERROR(1-(('Biogas-to-RNG'!V55+'Biogas-to-RNG'!W55+'Biogas-to-RNG'!U55)/('Biogas-to-RNG'!F55)),0),0.02) -> 0.1363496069
C185: Propane Use
C186: gCO2e/gal
C187: 7422.329797
C188: ='Manure to Biogas'!B158 -> 0
C189: =C187*C188 -> 0

Sheet BD RD Feedstock (hidden)
A1: Feedstock Production Data Summary | D1: Applicant: | E1: ABC Energy | G1: Facility Location: | I1: City, State | Q1: =IF(F3="None",0,1) -> 1 | AG1: Soy Oil | AH1: 1 | AI1: DNAVSO | AO1: Assumptions or Defaults
A2: Feedstock Production | C2: Feedstock 1 | D2: Feedstock 2 | E2: Feedstock 3 | F2: Feedstock 4 | G2: Feedstock 5 | H2: Feedstock 6 | I2: Feedstock 7 | J2: Feedstock 8 | K2: Feedstock 9 | L2: Feedstock 10 | M2: Feedstock 11 | N2: Feedstock 12 | AG2: Canola Oil | AH2: 2 | AI2: DNAVCAO | AO2: 1) Soybean Farming | AP2: Values | AQ2: 1) Canola Farming | AR2: Values | AS2: Note
B3: Step 1) Click to Select Feedstock | C3: Tallow | D3: Tallow | E3: Corn Oil | F3: Other | G3: None | H3: None | I3: None | J3: None | K3: None | L3: None | M3: None | N3: None | AG3: Corn Oil | AH3: 3 | AI3: DNAVDCO | AO3: a) Electricity Mix - US Ave | AQ3: a) Electricity Mix - US Ave
A4: For the same feedstock, specify each unique features (location, process…) | AG4: Used Cooking Oil | AH4: 4 | AI4: DNAVUCO | AO4: b) Energy Consumption (Btu/bushel) | AQ4: b) Energy Consumption (Btu/MT of rapeseed)
A5: If Other selected, specify feedstock type here | F5: Palm Oil | AG5: Tallow | AH5: 5 | AI5: DNAVTAL | AO5: Residual oil | AP5: 0 | AQ5: Residual oil | AR5: 0
B6: Step 2) Click to Select Oil Extraction | C6: Standard Values | D6: Site-Specific | E6: Site-Specific | F6: Site-Specific | G6: None | H6: None | I6: None | J6: None | K6: None | L6: None | M6: None | N6: None
A7: Step 3) Click to Select Feedstock and Electricity Source(s) | B7: Feedstock Sources | C7: User Defined | D7: California | E7: None | F7: U.S | G7: None | H7: None | I7: None | J7: None | K7: None | L7: None | M7: None | N7: None | AG7: Other | AH7: 6 | AI7: DNAVOTHER2 | AO7: Diesel fuel | AP7: 10766 | AQ7: Diesel fuel | AR7: 505339
B8: Electricity Sources | C8: 2-User Defined Mix | D8: 3-CAMX Mix | E8: None | F8: 2-User Defined Mix | G8: None | H8: None | I8: None | J8: None | K8: None | L8: None | M8: None | N8: None | AG8: Other | AH8: 7 | AI8: DNAVOTHER3 | AO8: Gasoline | AP8: 2976 | AQ8: Gasoline | AR8: 0
B9: Crude Sources | C9: User Defined Crude | D9: U.S. Ave Crude | E9: None | F9: U.S. Ave Crude | G9: None | H9: None | I9: None | J9: None | K9: None | L9: None | M9: None | N9: None | AG9: Other | AH9: 8 | AI9: DNAVOTHER4 | AO9: Natural gas | AP9: 1220 | AQ9: Natural gas | AR9: 1090 | CQ9: User Defined NG
B10: Natural Gas Sources | C10: User Defined NG | D10: U.S. Ave NG | E10: None | F10: U.S. Ave NG | G10: None | H10: None | I10: None | J10: None | K10: None | L10: None | M10: None | N10: None | AG10: Other | AH10: 9 | AI10: DNAVOTHER5 | AO10: Coal | AP10: 0 | AQ10: Coal | AR10: 0
A11: Step 4) Click Enter Data button to navigate to the selected feedstock for entering data | R11: Feedstock Transport (weighted average) | AE11: Other | AH11: 10 | AI11: DNAVOTHER6 | AL11: Liquefied petroleum gas | AM11: 1271 | AN11: Liquefied petroleum gas | AO11: 0
A12: Monthly Data Feedstock 1 | B12: Beginning Tallow Oil Inventory | C12: Oil Received | D12: Oil Used (Calculated) | E12: Ending Tallow Oil Inventory | F12: Moisture Content | G12: Thermal Energy Usage for Oil Extraction | H12: Eletricity Usage | I12: Total Energy for Oil Extraction | R12: by MDDT | S12: by HDDT | T12: by Ocean Tanker | U12: by Rail | V12: by Barge | AF12: Other | AH12: 11 | AI12: DNAVOTHER7 | AM12: Biomass | AN12: 0 | AO12: Biomass | AP12: 0
A13: Unit | B13: lbs. | C13: lbs. | D13: lbs. | E13: lbs. | F13: % | G13: Btu/lb Oil | H13: kWh/lb Oil | I13: Btu/lb Oil | R13: miles | S13: miles | T13: miles | U13: miles | V13: miles | AF13: Other | AH13: 12 | AI13: DNAVOTHER8 | AM13: Electricity | AN13: 485 | AO13: Electricity | AP13: 12771
A14: Month 1 | B14: 100000 | G14: 3500 | H14: 0.13 | I14: 3944 | R14: 0 | S14: 50 | T14: 1000 | U14: 10000 | V14: 1000 | AF14: Other | AH14: 13 | AI14: DNAVOTHER9 | AM14: Renewable natural gas | AN14: 0.3781718709 | AO14: Renewable natural gas | AP14: 0.3781718709
A15: Month 2 | B15: 100000 | C15: 100000 | D15: =B15+C15-E15 -> 155365 | E15: 44635 | F15: 0.05 | R15: 0 | S15: 50 | T15: 1000 | U15: 10000 | V15: 1000 | AM15: c) Fertilizer Use by Nutrient (grams/bushel) | AO15: c) Fertilizer Use by Nutrient (grams/dry MT)
A16: Month 3 | B16: 100000 | C16: 100000 | D16: =B16+C16-E16 -> 198744 | E16: 1256 | F16: 0.08 | R16: 0 | S16: 50 | T16: 1000 | U16: 10000 | V16: 1000 | AM16: Nitrogen | AN16: 49.9 | AO16: Nitrogen | AP16: 54698.9
A17: Month 4 | B17: 100000 | C17: 100000 | D17: 198441 | E17: 1559 | F17: 0.06 | R17: 0 | S17: 50 | T17: 1000 | U17: 10000 | V17: 1000 | AM17: P2O5 | AN17: 206.7 | AO17: P2O5 | AP17: 15298.9
A18: Month 5 | B18: 100000 | C18: 100000 | D18: 100000 | E18: 100000 | F18: 0.04 | R18: 0 | S18: 50 | T18: 1000 | U18: 10000 | V18: 1000 | AM18: K2O | AN18: 344.4 | AO18: K2O | AP18: 2946.15
A19: Month 6 | B19: 100000 | C19: 100000 | D19: 0 | E19: 200000 | F19: 0.08 | R19: 0 | S19: 50 | T19: 1000 | U19: 10000 | V19: 1000 | AM19: CaCO3 | AN19: 0 | AO19: CaCO3 | AP19: 0
A20: Month 7 | B20: 100000 | C20: 100000 | D20: 0 | E20: 200000 | F20: 0.1 | R20: 0 | S20: 50 | T20: 1000 | U20: 10000 | V20: 1000 | AM20: Herbicide | AN20: 20.7 | AO20: Herbicide | AP20: 300
A21: Month 8 | B21: 100000 | C21: 100000 | D21: 0 | E21: 200000 | F21: 0.09 | R21: 0 | S21: 50 | T21: 1000 | U21: 10000 | V21: 1000 | AM21: Insecticide | AN21: 0.6 | AO21: Insecticide | AP21: 42.86
A22: Month 9 | B22: 200000 | C22: 300000 | D22: 480000 | E22: 20000 | F22: 0.07 | R22: 0 | S22: 50 | T22: 1000 | U22: 10000 | V22: 1000 | AM22: d) N2O in Soil | AO22: d) N2O in Soil
A23: Month 10 | B23: 100000 | C23: 300000 | D23: 200000 | E23: 200000 | F23: 0.06 | R23: 0 | S23: 50 | T23: 1000 | U23: 10000 | V23: 1000 | AM23: N2O Emissions: N in N2O as % of N in N fertilizer | AN23: 0.01325 | AO23: N2O Emissions: N in N2O as % of N in N fertilizer | AP23: 0.01325
A24: Month 11 | B24: 100000 | C24: 300000 | D24: 200000 | E24: 200000 | F24: 0.08 | R24: 0 | S24: 50 | T24: 1000 | U24: 10000 | V24: 1000 | AM24: N2O Emissions: N in N2O as % of N biomass | AN24: 0.01225 | AO24: N2O Emissions: N in N2O as % of N biomass | AP24: 0.01225
A25: Month 12 | B25: 100000 | C25: 300000 | D25: 200000 | E25: 200000 | F25: 0.1 | R25: 0 | S25: 50 | T25: 1000 | U25: 10000 | V25: 1000 | AM25: N content of above and below ground biomass: (grams/bushel) | AN25: 200.7 | AO25: N content of above and below ground biomass: (grams/bushel) | AP25: 7125
A26: Month 13 | B26: 100000 | C26: 300000 | D26: 200000 | E26: 200000 | F26: 0.05 | R26: 0 | S26: 50 | T26: 1000 | U26: 10000 | V26: 1000 | AM26: e) Soybean Transport (miles) | AO26: e) Canola Transport (miles)
A27: Month 14 | B27: 100000 | C27: 300000 | D27: 200000 | E27: 200000 | F27: 0.04 | R27: 0 | S27: 50 | T27: 1000 | U27: 10000 | V27: 1000 | AM27: From field to collection center by Medium HD Truck | AN27: 10 | AO27: From field to collection center by Medium HD Truck | AP27: 10
A28: Month 15 | B28: 100000 | C28: 300000 | D28: 200000 | E28: 200000 | F28: 0.05 | R28: 0 | S28: 50 | T28: 1000 | U28: 10000 | V28: 1000 | AM28: From collection center to oil extraction plant HHD Truck | AN28: 50 | AO28: From collection center to oil extraction plant HHD Truck | AP28: 50
A29: Month 16 | B29: 100000 | C29: 300000 | D29: 200000 | E29: 200000 | F29: 0.03 | R29: 0 | S29: 50 | T29: 1000 | U29: 10000 | V29: 1000 | AM29: From oil extraction plant to BD plant by rail | AN29: ? | AO29: From oil extraction plant to BD plant by rail | AP29: ?
A30: Month 17 | B30: 100000 | C30: 300000 | D30: 200000 | E30: 200000 | F30: 0.01 | R30: 0 | S30: 50 | T30: 1000 | U30: 10000 | V30: 1000 | AM30: From oil extraction plant to BD plant by HDD truck | AN30: ? | AO30: From oil extraction plant to BD plant by HDD truck | AP30: ?
A31: Month 18 | B31: 100000 | C31: 300000 | D31: 200000 | E31: 200000 | F31: 0.05 | R31: 0 | S31: 50 | T31: 1000 | U31: 10000 | V31: 1000 | AM31: f) Soy Oil Extraction (BTU/lb oil) | AO31: f) Canola Oil Extraction (BTU/lb oil)
A32: Month 19 | B32: 100000 | C32: 200000 | D32: 100000 | E32: 200000 | F32: 0.08 | R32: 0 | S32: 50 | T32: 1000 | U32: 10000 | V32: 1000 | AM32: Residual Oil | AN32: 32.08 | AO32: Residual Oil | AP32: 0
A33: Month 20 | B33: 100000 | C33: 200000 | D33: 100000 | E33: 200000 | F33: 0.09 | R33: 0 | S33: 50 | T33: 1000 | U33: 10000 | V33: 1000 | AM33: Diesel Fuel | AN33: 15.85 | AO33: Diesel Fuel | AP33: 0
A34: Month 21 | B34: 100000 | C34: 200000 | D34: 100000 | E34: 200000 | F34: 0.04 | R34: 0 | S34: 50 | T34: 1000 | U34: 10000 | V34: 1000 | AM34: Gasoline | AN34: 0 | AO34: Gasoline | AP34: 0
A35: Month 22 | B35: 100000 | C35: 200000 | D35: 100000 | E35: 200000 | F35: 0.03 | R35: 0 | S35: 50 | T35: 1000 | U35: 10000 | V35: 1000 | AM35: Natural Gas | AN35: 2068.04 | AO35: Natural Gas | AP35: 1005
A36: Month 23 | B36: 100000 | C36: 200000 | D36: 100000 | E36: 200000 | F36: 0.02 | R36: 0 | S36: 50 | T36: 1000 | U36: 10000 | V36: 1000 | AM36: Coal | AN36: 1017.98 | AO36: Coal | AP36: 0
A37: Month 24 | B37: 100000 | C37: 200000 | D37: 100000 | E37: 200000 | F37: 0.02 | R37: 0 | S37: 50 | T37: 1000 | U37: 10000 | V37: 1000 | AM37: Liquefied petroleum gas | AN37: 0 | AO37: Liquefied petroleum gas | AP37: 0
A38: Total | B38: =SUM(B14:B37) -> 2500000 | C38: =SUM(C14:C37)*F38 -> 281217.3913 | D38: =SUM(D14:D37) -> 3532550 | E38: =SUM(E14:E37) -> 3767450 | F38: =IF(MAX($F14:$F37)<=0,"No Data",SUMIF($F14:$F37,">0")/COUNTIF($F14:$F37,">0")) -> 0.05739130435 | G38: 1000 | H38: 1000 | I38: =SUM(I14:I37) -> 3944 | J38: 1000 | K38: =SUM(K14:K37) -> 0 | L38: =SUM(L14:L37)+1000 -> 1000 | M38: =SUM(M14:M37) -> 0 | N38: =SUM(N14:N37) -> 0 | O38: =SUM(O14:O37) -> 0 | P38: =SUM(P14:P37) -> 0 | Q38: =SUM(Q14:Q37) -> 0 | R38: =IF(MAX(R14:R37)<=0,"No Data",SUMIF(R14:R37,">0")/COUNTIF(R14:R37,">0")) -> No Data | S38: =IF(MAX(S14:S37)<=0,"No Data",SUMIF(S14:S37,">0")/COUNTIF(S14:S37,">0")) -> 50 | T38: =IF(MAX(T14:T37)<=0,"No Data",SUMIF(T14:T37,">0")/COUNTIF(T14:T37,">0")) -> 1000 | U38: =IF(MAX(U14:U37)<=0,"No Data",SUMIF(U14:U37,">0")/COUNTIF(U14:U37,">0")) -> 10000 | V38: =IF(MAX(V14:V37)<=0,"No Data",SUMIF(V14:V37,">0")/COUNTIF(V14:V37,">0")) -> 1000 | AM38: Biomass | AN38: 32.08 | AO38: Biomass | AP38: 0
A39: Monthly Data Feedstock 2 | B39: Beginning Tallow Oil Inventory | C39: Oil Purchased | D39: Oil Used (Calculated) | E39: Ending Tallow Oil Inventory | F39: Moisture Content | R39: by MDDT | S39: by HDDT | T39: by Ocean Tanker | U39: by Rail | V39: by Barge | AM39: Electricity | AN39: 446.13 | AO39: Electricity | AP39: 178
A40: Unit | B40: lbs. | C40: lbs. | D40: lbs. | E40: lbs. | F40: % | R40: miles | S40: miles | T40: miles | U40: miles | V40: miles | AM40: Renewable gas | AN40: 15.85 | AO40: Renewable gas | AP40: 0
A41: Month 1 | B41: 0 | C41: 0 | D41: =B41+C41-E41 -> 0 | E41: 0 | F41: 0 | AM41: N-Hexane | AN41: 58.99 | AO41: N-Hexane | AP41: 54
A42: Month 2 | B42: 0 | C42: 0 | D42: =B42+C42-E42 -> 0 | E42: 0 | F42: 0 | AM42: g) Co-product displacement credit | AO42: g)Co-product displacement credit
A43: Month 3 | B43: 0 | C43: 0 | D43: =B43+C43-E43 -> 0 | E43: 0 | F43: 0 | AM43: Allocation Method: Hybrid (Mass for soy oil and energy for glycerine) | AO43: Allocation Method: Hybrid (Mass for canoal oil and energy for glycerine)
A44: Month 4 | B44: 0 | C44: 0 | D44: 0 | E44: 0 | F44: 0 | AM44: Soy Oil Mass allocation | AN44: 0.2 | AO44: Canola oil mass allocation | AP44: 0.428
A45: Month 5 | B45: 0 | C45: 0 | D45: 0 | E45: 0 | F45: 0 | H45: Please Use Tier 2 for Oil Extraction CI Calculation | AM45: Glycerine yield, lb/lb BD | AN45: 0.105 | AO45: Glycerine yield, lb/lb BD | AP45: 0.105
A46: Month 6 | B46: 0 | C46: 0 | D46: 0 | E46: 0 | F46: 0
A47: Month 7 | B47: 0 | C47: 0 | D47: 0 | E47: 0 | F47: 0 | S47: 100 | AM47: System energy allocation to BD | AN47: 0.9506 | AO47: System energy allocation to BD | AP47: 0.9506
A48: Month 8 | B48: 0 | C48: 0 | D48: 0 | E48: 0 | F48: 0 | T48: 0 | U48: 1500 | V48: 1000 | AM48: System energy allocation to glycerine | AN48: 0.0494 | AO48: System energy allocation to glycerine | AP48: 0.0494
A49: Month 9 | B49: 0 | C49: 0 | D49: 0 | E49: 0 | F49: 0
A50: Month 10 | B50: 0 | C50: 0 | D50: 0 | E50: 0 | F50: 0 | S50: 0
A51: Month 11 | B51: 0 | C51: 0 | D51: 0 | E51: 0 | F51: 0
A52: Month 12 | B52: 0 | C52: 0 | D52: 0 | E52: 0 | F52: 0
A53: Month 13 | B53: 0 | C53: 0 | D53: 0 | E53: 0 | F53: 0
A54: Month 14 | B54: 0 | C54: 0 | D54: 0 | E54: 0 | F54: 0
A55: Month 15 | B55: 0 | C55: 0 | D55: 0 | E55: 0 | F55: 0
A56: Month 16 | B56: 0 | C56: 0 | D56: 0 | E56: 0 | F56: 0
A57: Month 17 | B57: 0 | C57: 0 | D57: 0 | E57: 0 | F57: 0
A58: Month 18 | B58: 0 | C58: 0 | D58: 0 | E58: 0 | F58: 0
A59: Month 19 | B59: 0 | C59: 0 | D59: 0 | E59: 0 | F59: 0
A60: Month 20 | B60: 0 | C60: 0 | D60: 0 | E60: 0 | F60: 0
A61: Month 21 | B61: 0 | C61: 0 | D61: 0 | E61: 0 | F61: 0
A62: Month 22 | B62: 0 | C62: 0 | D62: 0 | E62: 0 | F62: 0
A63: Month 23 | B63: 0 | C63: 0 | D63: 0 | E63: 0 | F63: 0
A64: Month 24 | B64: 0 | C64: 0 | D64: 0 | E64: 0 | F64: 0
A65: Total | B65: =SUM(B41:B64) -> 0 | C65: =SUM(C41:C64) -> 0 | D65: =SUM(D41:D64) -> 0 | E65: =SUM(E41:E64) -> 0 | F65: =IF(MAX($F41:$F64)<=0,"No Data",SUMIF($F41:$F64,">0")/COUNTIF($F41:$F64,">0")) -> No Data | G65: =SUM(G41:G64) -> 0 | H65: 0 | I65: 0 | J65: 0 | K65: 0 | L65: 0 | M65: 0 | N65: 0 | O65: 0 | P65: 0 | Q65: 0 | R65: =IF(MAX(R41:R64)<=0,"No Data",SUMIF(R41:R64,">0")/COUNTIF(R41:R64,">0")) -> No Data | S65: =IF(MAX(S41:S64)<=0,"No Data",SUMIF(S41:S64,">0")/COUNTIF(S41:S64,">0")) -> 100 | T65: =IF(MAX(T41:T64)<=0,"No Data",SUMIF(T41:T64,">0")/COUNTIF(T41:T64,">0")) -> No Data | U65: =IF(MAX(U41:U64)<=0,"No Data",SUMIF(U41:U64,">0")/COUNTIF(U41:U64,">0")) -> 1500 | V65: =IF(MAX(V41:V64)<=0,"No Data",SUMIF(V41:V64,">0")/COUNTIF(V41:V64,">0")) -> 1000
A66: Monthly Data Feedstock 3 | B66: Beginning Corn Oil Inventory | C66: Oil Purchased | D66: Oil Used (Calculated) | E66: Ending Corn Oil Inventory | F66: Moisture Content | R66: by HDDT | S66: by HDDT | T66: by Ocean Tanker | U66: by Rail | V66: by Barge
A67: Unit | B67: lbs. | C67: lbs. | D67: lbs. | E67: lbs. | F67: % | R67: miles | S67: miles | T67: miles | U67: miles | V67: miles
A68: Month 1 | B68: 0 | C68: 0 | D68: =B68+C68-E68 -> 0 | E68: 0 | F68: 0
A69: Month 2 | B69: 0 | C69: 0 | D69: =B69+C69-E69 -> 0 | E69: 0 | F69: 0
A70: Month 3 | B70: 0 | C70: 0 | D70: =B70+C70-E70 -> 0 | E70: 0 | F70: 0
A71: Month 4 | B71: 0 | C71: 0 | D71: 0 | E71: 0 | F71: 0
A72: Month 5 | B72: 0 | C72: 0 | D72: 0 | E72: 0 | F72: 0 | H72: Please Use Tier 2 for Oil Extraction CI Calculation
A73: Month 6 | B73: 0 | C73: 0 | D73: 0 | E73: 0 | F73: 0
A74: Month 7 | B74: 0 | C74: 0 | D74: 0 | E74: 0 | F74: 0
A75: Month 8 | B75: 0 | C75: 0 | D75: 0 | E75: 0 | F75: 0
A76: Month 9 | B76: 0 | C76: 0 | D76: 0 | E76: 0 | F76: 0
A77: Month 10 | B77: 0 | C77: 0 | D77: 0 | E77: 0 | F77: 0
A78: Month 11 | B78: 0 | C78: 0 | D78: 0 | E78: 0 | F78: 0
A79: Month 12 | B79: 0 | C79: 0 | D79: 0 | E79: 0 | F79: 0
A80: Month 13 | B80: 0 | C80: 0 | D80: 0 | E80: 0 | F80: 0
A81: Month 14 | B81: 0 | C81: 0 | D81: 0 | E81: 0 | F81: 0
A82: Month 15 | B82: 0 | C82: 0 | D82: 0 | E82: 0 | F82: 0
A83: Month 16 | B83: 0 | C83: 0 | D83: 0 | E83: 0 | F83: 0
A84: Month 17 | B84: 0 | C84: 0 | D84: 0 | E84: 0 | F84: 0
A85: Month 18 | B85: 0 | C85: 0 | D85: 0 | E85: 0 | F85: 0
A86: Month 19 | B86: 0 | C86: 0 | D86: 0 | E86: 0 | F86: 0
A87: Month 20 | B87: 0 | C87: 0 | D87: 0 | E87: 0 | F87: 0
A88: Month 21 | B88: 0 | C88: 0 | D88: 0 | E88: 0 | F88: 0
A89: Month 22 | B89: 0 | C89: 0 | D89: 0 | E89: 0 | F89: 0
A90: Month 23 | B90: 0 | C90: 0 | D90: 0 | E90: 0 | F90: 0
A91: Month 24 | B91: 0 | C91: 0 | D91: 0 | E91: 0 | F91: 0
A92: Total | B92: =SUM(B68:B91) -> 0 | C92: =SUM(C68:C91) -> 0 | D92: =SUM(D68:D91) -> 0 | E92: =SUM(E68:E91) -> 0 | F92: =IF(MAX($F68:$F91)<=0,"No Data",SUMIF($F68:$F91,">0")/COUNTIF($F68:$F91,">0")) -> No Data | G92: =SUM(G68:G91) -> 0 | H92: 0 | I92: 0 | J92: 0 | K92: 0 | L92: 0 | M92: 0 | N92: 0 | O92: 0 | P92: 0 | Q92: 0 | R92: =IF(MAX(R68:R91)<=0,"No Data",SUMIF(R68:R91,">0")/COUNTIF(R68:R91,">0")) -> No Data | S92: =IF(MAX(S68:S91)<=0,"No Data",SUMIF(S68:S91,">0")/COUNTIF(S68:S91,">0")) -> No Data | T92: =IF(MAX(T68:T91)<=0,"No Data",SUMIF(T68:T91,">0")/COUNTIF(T68:T91,">0")) -> No Data | U92: =IF(MAX(U68:U91)<=0,"No Data",SUMIF(U68:U91,">0")/COUNTIF(U68:U91,">0")) -> No Data | V92: =IF(MAX(V68:V91)<=0,"No Data",SUMIF(V68:V91,">0")/COUNTIF(V68:V91,">0")) -> No Data
A93: Monthly Data Feedstock 4 | B93: Beginning Palm Oil Inventory | C93: Oil Purchased | D93: Oil Used (Calculated) | E93: Ending Palm Oil Inventory | F93: Moisture Content | G93: NG Use from Invoices for Palm Oil Oil Extraction | H93: Biomass Use for Oil Extraction from Invoices | I93: Biomass Transport | J93: Biogas Use for Oil Extraction from Invoices | K93: Biogas Pipeline Transport | L93: Residual Oil Use for Oil Extraction from Invoices | M93: Diesel Use for Oil Extraction from Invoices | N93: Coal Use for Oil Extraction from Invoices | O93: Electricity Use for Oil Extraction from Invoices | P93: N/A | R93: by HDDT | S93: by HDDT | T93: by Ocean Tanker | U93: by Rail | V93: by Barge
A94: Unit | B94: lbs. | C94: lbs. | D94: lbs. | E94: lbs. | F94: % | G94: MMBtu (HHV) | H94: Tons (HHV) | I94: Miles | J94: MMBtu (HHV) | K94: Miles | L94: MMBtu (HHV) | M94: Gallons (HHV) | N94: Tons (HHV) | O94: kWh (HHV) | R94: miles | S94: miles | T94: miles | U94: miles | V94: miles
A95: Month 1 | B95: 0 | C95: 0 | D95: =B95+C95-E95 -> 0 | E95: 0 | F95: 0
A96: Month 2 | B96: 0 | C96: 0 | D96: =B96+C96-E96 -> 0 | E96: 0 | F96: 0
A97: Month 3 | B97: 0 | C97: 0 | D97: =B97+C97-E97 -> 0 | E97: 0 | F97: 0
A98: Month 4 | B98: 0 | C98: 0 | D98: 0 | E98: 0 | F98: 0
A99: Month 5 | B99: 0 | C99: 0 | D99: 0 | E99: 0 | F99: 0 | S99: 100 | U99: 700 | V99: 4000
A100: Month 6 | B100: 0 | C100: 0 | D100: 0 | E100: 0 | F100: 0
A101: Month 7 | B101: 0 | C101: 0 | D101: 0 | E101: 0 | F101: 0
A102: Month 8 | B102: 0 | C102: 0 | D102: 0 | E102: 0 | F102: 0
A103: Month 9 | B103: 0 | C103: 0 | D103: 0 | E103: 0 | F103: 0
A104: Month 10 | B104: 0 | C104: 0 | D104: 0 | E104: 0 | F104: 0
A105: Month 11 | B105: 0 | C105: 0 | D105: 0 | E105: 0 | F105: 0
A106: Month 12 | B106: 0 | C106: 0 | D106: 0 | E106: 0 | F106: 0
A107: Month 13 | B107: 0 | C107: 0 | D107: 0 | E107: 0 | F107: 0
A108: Month 14 | B108: 0 | C108: 0 | D108: 0 | E108: 0 | F108: 0
A109: Month 15 | B109: 0 | C109: 0 | D109: 0 | E109: 0 | F109: 0
A110: Month 16 | B110: 0 | C110: 0 | D110: 0 | E110: 0 | F110: 0
A111: Month 17 | B111: 0 | C111: 0 | D111: 0 | E111: 0 | F111: 0
A112: Month 18 | B112: 0 | C112: 0 | D112: 0 | E112: 0 | F112: 0
A113: Month 19 | B113: 0 | C113: 0 | D113: 0 | E113: 0 | F113: 0
A114: Month 20 | B114: 0 | C114: 0 | D114: 0 | E114: 0 | F114: 0
A115: Month 21 | B115: 0 | C115: 0 | D115: 0 | E115: 0 | F115: 0
A116: Month 22 | B116: 0 | C116: 0 | D116: 0 | E116: 0 | F116: 0
A117: Month 23 | B117: 0 | C117: 0 | D117: 0 | E117: 0 | F117: 0
A118: Month 24 | B118: 0 | C118: 0 | D118: 0 | E118: 0 | F118: 0
A119: Total | B119: =SUM(B95:B118) -> 0 | C119: =SUM(C95:C118) -> 0 | D119: =SUM(D95:D118) -> 0 | E119: =SUM(E95:E118) -> 0 | F119: =IF(MAX($F95:$F118)<=0,"No Data",SUMIF($F95:$F118,">0")/COUNTIF($F95:$F118,">0")) -> No Data | G119: =SUM(G95:G118) -> 0 | H119: =SUM(H95:H118) -> 0 | I119: 0 | J119: 0 | K119: 0 | L119: 0 | M119: 0 | N119: 0 | O119: 0 | P119: 0 | Q119: 0 | R119: =IF(MAX(R95:R118)<=0,"No Data",SUMIF(R95:R118,">0")/COUNTIF(R95:R118,">0")) -> No Data | S119: =IF(MAX(S95:S118)<=0,"No Data",SUMIF(S95:S118,">0")/COUNTIF(S95:S118,">0")) -> 100 | T119: =IF(MAX(T95:T118)<=0,"No Data",SUMIF(T95:T118,">0")/COUNTIF(T95:T118,">0")) -> No Data | U119: =IF(MAX(U95:U118)<=0,"No Data",SUMIF(U95:U118,">0")/COUNTIF(U95:U118,">0")) -> 700 | V119: =IF(MAX(V95:V118)<=0,"No Data",SUMIF(V95:V118,">0")/COUNTIF(V95:V118,">0")) -> 4000
A120: Monthly Data Feedstock 5 | B120: No Bio-oil Used | C120: Oil Purchased | D120: Oil Used (Calculated) | E120: No Bio-oil Used | F120: Moisture Content | R120: by HDDT | S120: by HDDT | T120: by Ocean Tanker | U120: by Rail | V120: by Barge
A121: Unit | B121: lbs. | C121: lbs. | D121: lbs. | E121: lbs. | F121: % | R121: miles | S121: miles | T121: miles | U121: miles | V121: miles
A122: Month 1 | B122: 0 | C122: 0 | D122: =B122+C122-E122 -> 0 | E122: 0 | F122: 0
A123: Month 2 | B123: 0 | C123: 0 | D123: =B123+C123-E123 -> 0 | E123: 0 | F123: 0
A124: Month 3 | B124: 0 | C124: 0 | D124: =B124+C124-E124 -> 0 | E124: 0 | F124: 0
A125: Month 4 | B125: 0 | C125: 0 | D125: 0 | E125: 0 | F125: 0
A126: Month 5 | B126: 0 | C126: 0 | D126: 0 | E126: 0 | F126: 0 | H126: Please Use Tier 2 for Oil Extraction CI Calculation
A127: Month 6 | B127: 0 | C127: 0 | D127: 0 | E127: 0 | F127: 0
A128: Month 7 | B128: 0 | C128: 0 | D128: 0 | E128: 0 | F128: 0
A129: Month 8 | B129: 0 | C129: 0 | D129: 0 | E129: 0 | F129: 0
A130: Month 9 | B130: 0 | C130: 0 | D130: 0 | E130: 0 | F130: 0
A131: Month 10 | B131: 0 | C131: 0 | D131: 0 | E131: 0 | F131: 0
A132: Month 11 | B132: 0 | C132: 0 | D132: 0 | E132: 0 | F132: 0
A133: Month 12 | B133: 0 | C133: 0 | D133: 0 | E133: 0 | F133: 0
A134: Month 13 | B134: 0 | C134: 0 | D134: 0 | E134: 0 | F134: 0
A135: Month 14 | B135: 0 | C135: 0 | D135: 0 | E135: 0 | F135: 0
A136: Month 15 | B136: 0 | C136: 0 | D136: 0 | E136: 0 | F136: 0
A137: Month 16 | B137: 0 | C137: 0 | D137: 0 | E137: 0 | F137: 0
A138: Month 17 | B138: 0 | C138: 0 | D138: 0 | E138: 0 | F138: 0
A139: Month 18 | B139: 0 | C139: 0 | D139: 0 | E139: 0 | F139: 0
A140: Month 19 | B140: 0 | C140: 0 | D140: 0 | E140: 0 | F140: 0
A141: Month 20 | B141: 0 | C141: 0 | D141: 0 | E141: 0 | F141: 0
A142: Month 21 | B142: 0 | C142: 0 | D142: 0 | E142: 0 | F142: 0
A143: Month 22 | B143: 0 | C143: 0 | D143: 0 | E143: 0 | F143: 0
A144: Month 23 | B144: 0 | C144: 0 | D144: 0 | E144: 0 | F144: 0
A145: Month 24 | B145: 0 | C145: 0 | D145: 0 | E145: 0 | F145: 0
A146: Total | B146: =SUM(B122:B145) -> 0 | C146: =SUM(C122:C145) -> 0 | D146: =SUM(D122:D145) -> 0 | E146: =SUM(E122:E145) -> 0 | F146: =IF(MAX($F122:$F145)<=0,"No Data",SUMIF($F122:$F145,">0")/COUNTIF($F122:$F145,">0")) -> No Data | G146: =SUM(G122:G145) -> 0 | H146: 0 | I146: 0 | J146: 0 | K146: 0 | L146: 0 | M146: 0 | N146: 0 | O146: 0 | P146: 0 | Q146: 0 | R146: =IF(MAX(R122:R145)<=0,"No Data",SUMIF(R122:R145,">0")/COUNTIF(R122:R145,">0")) -> No Data | S146: =IF(MAX(S122:S145)<=0,"No Data",SUMIF(S122:S145,">0")/COUNTIF(S122:S145,">0")) -> No Data | T146: =IF(MAX(T122:T145)<=0,"No Data",SUMIF(T122:T145,">0")/COUNTIF(T122:T145,">0")) -> No Data | U146: =IF(MAX(U122:U145)<=0,"No Data",SUMIF(U122:U145,">0")/COUNTIF(U122:U145,">0")) -> No Data | V146: =IF(MAX(V122:V145)<=0,"No Data",SUMIF(V122:V145,">0")/COUNTIF(V122:V145,">0")) -> No Data
A147: Monthly Data Feedstock 6 | B147: No Bio-oil Used | C147: Oil Purchased | D147: Oil Used (Calculated) | E147: No Bio-oil Used | F147: Moisture Content | R147: by HDDT | S147: by HDDT | T147: by Ocean Tanker | U147: by Rail | V147: by Barge
A148: Unit | B148: lbs. | C148: lbs. | D148: lbs. | E148: lbs. | F148: % | R148: miles | S148: miles | T148: miles | U148: miles | V148: miles
A149: Month 1 | B149: 0 | C149: 0 | D149: =B149+C149-E149 -> 0 | E149: 0 | F149: 0
A150: Month 2 | B150: 0 | C150: 0 | D150: =B150+C150-E150 -> 0 | E150: 0 | F150: 0
A151: Month 3 | B151: 0 | C151: 0 | D151: =B151+C151-E151 -> 0 | E151: 0 | F151: 0
A152: Month 4 | B152: 0 | C152: 0 | D152: 0 | E152: 0 | F152: 0
A153: Month 5 | B153: 0 | C153: 0 | D153: 0 | E153: 0 | F153: 0 | H153: Please Use Tier 2 for Oil Extraction CI Calculation
A154: Month 6 | B154: 0 | C154: 0 | D154: 0 | E154: 0 | F154: 0
A155: Month 7 | B155: 0 | C155: 0 | D155: 0 | E155: 0 | F155: 0
A156: Month 8 | B156: 0 | C156: 0 | D156: 0 | E156: 0 | F156: 0
A157: Month 9 | B157: 0 | C157: 0 | D157: 0 | E157: 0 | F157: 0
A158: Month 10 | B158: 0 | C158: 0 | D158: 0 | E158: 0 | F158: 0
A159: Month 11 | B159: 0 | C159: 0 | D159: 0 | E159: 0 | F159: 0
A160: Month 12 | B160: 0 | C160: 0 | D160: 0 | E160: 0 | F160: 0
A161: Month 13 | B161: 0 | C161: 0 | D161: 0 | E161: 0 | F161: 0
A162: Month 14 | B162: 0 | C162: 0 | D162: 0 | E162: 0 | F162: 0
A163: Month 15 | B163: 0 | C163: 0 | D163: 0 | E163: 0 | F163: 0
A164: Month 16 | B164: 0 | C164: 0 | D164: 0 | E164: 0 | F164: 0
A165: Month 17 | B165: 0 | C165: 0 | D165: =B165+C165-E165 -> 0 | E165: 0 | F165: 0
A166: Month 18 | B166: 0 | C166: 0 | D166: 0 | E166: 0 | F166: 0
A167: Month 19 | B167: 0 | C167: 0 | D167: 0 | E167: 0 | F167: 0
A168: Month 20 | B168: 0 | C168: 0 | D168: 0 | E168: 0 | F168: 0
A169: Month 21 | B169: 0 | C169: 0 | D169: 0 | E169: 0 | F169: 0
A170: Month 22 | B170: 0 | C170: 0 | D170: 0 | E170: 0 | F170: 0
A171: Month 23 | B171: 0 | C171: 0 | D171: =B171+C171-E171 -> 0 | E171: 0 | F171: 0
A172: Month 24 | B172: 0 | C172: 0 | D172: =B172+C172-E172 -> 0 | E172: 0 | F172: 0
A173: Total | B173: =SUM(B149:B172) -> 0 | C173: =SUM(C149:C172) -> 0 | D173: =SUM(D149:D172) -> 0 | E173: =SUM(E149:E172) -> 0 | F173: =IF(MAX($F149:$F172)<=0,"No Data",SUMIF($F149:$F172,">0")/COUNTIF($F149:$F172,">0")) -> No Data | G173: =SUM(G149:G172) -> 0 | H173: =SUM(H149:H172) -> 0 | I173: 0 | J173: 0 | K173: 0 | L173: 0 | M173: 0 | N173: 0 | O173: 0 | P173: 0 | Q173: 0 | R173: =IF(MAX(R149:R172)<=0,"No Data",SUMIF(R149:R172,">0")/COUNTIF(R149:R172,">0")) -> No Data | S173: =IF(MAX(S149:S172)<=0,"No Data",SUMIF(S149:S172,">0")/COUNTIF(S149:S172,">0")) -> No Data | T173: =IF(MAX(T149:T172)<=0,"No Data",SUMIF(T149:T172,">0")/COUNTIF(T149:T172,">0")) -> No Data | U173: =IF(MAX(U149:U172)<=0,"No Data",SUMIF(U149:U172,">0")/COUNTIF(U149:U172,">0")) -> No Data | V173: =IF(MAX(V149:V172)<=0,"No Data",SUMIF(V149:V172,">0")/COUNTIF(V149:V172,">0")) -> No Data
A174: Monthly Data Feedstock 7 | B174: No Bio-oil Used | C174: Oil Purchased | D174: Oil Used (Calculated) | E174: No Bio-oil Used | F174: Moisture Content | R174: by HDDT | S174: by HDDT | T174: by Ocean Tanker | U174: by Rail | V174: by Barge
A175: Unit | B175: lbs. | C175: lbs. | D175: lbs. | E175: lbs. | F175: % | R175: miles | S175: miles | T175: miles | U175: miles | V175: miles
A176: Month 1 | B176: 0 | C176: 0 | D176: =B176+C176-E176 -> 0 | E176: 0 | F176: 0
A177: Month 2 | B177: 0 | C177: 0 | D177: =B177+C177-E177 -> 0 | E177: 0 | F177: 0
A178: Month 3 | B178: 0 | C178: 0 | D178: 0 | E178: 0 | F178: 0
A179: Month 4 | B179: 0 | C179: 0 | D179: 0 | E179: 0 | F179: 0
A180: Month 5 | B180: 0 | C180: 0 | D180: 0 | E180: 0 | F180: 0 | H180: Please Use Tier 2 for Oil Extraction CI Calculation
A181: Month 6 | B181: 0 | C181: 0 | D181: 0 | E181: 0 | F181: 0
A182: Month 7 | B182: 0 | C182: 0 | D182: 0 | E182: 0 | F182: 0
A183: Month 8 | B183: 0 | C183: 0 | D183: 0 | E183: 0 | F183: 0
A184: Month 9 | B184: 0 | C184: 0 | D184: 0 | E184: 0 | F184: 0
A185: Month 10 | B185: 0 | C185: 0 | D185: 0 | E185: 0 | F185: 0
A186: Month 11 | B186: 0 | C186: 0 | D186: 0 | E186: 0 | F186: 0
A187: Month 12 | B187: 0 | C187: 0 | D187: 0 | E187: 0 | F187: 0
A188: Month 13 | B188: 0 | C188: 0 | D188: 0 | E188: 0 | F188: 0
A189: Month 14 | B189: 0 | C189: 0 | D189: 0 | E189: 0 | F189: 0
A190: Month 15 | B190: 0 | C190: 0 | D190: 0 | E190: 0 | F190: 0
A191: Month 16 | B191: 0 | C191: 0 | D191: 0 | E191: 0 | F191: 0
A192: Month 17 | B192: 0 | C192: 0 | D192: 0 | E192: 0 | F192: 0
A193: Month 18 | B193: 0 | C193: 0 | D193: 0 | E193: 0 | F193: 0
A194: Month 19 | B194: 0 | C194: 0 | D194: 0 | E194: 0 | F194: 0
A195: Month 20 | B195: 0 | C195: 0 | D195: 0 | E195: 0 | F195: 0
A196: Month 21 | B196: 0 | C196: 0 | D196: 0 | E196: 0 | F196: 0
A197: Month 22 | B197: 0 | C197: 0 | D197: 0 | E197: 0 | F197: 0
A198: Month 23 | B198: 0 | C198: 0 | D198: 0 | E198: 0 | F198: 0
A199: Month 24 | B199: 0 | C199: 0 | D199: 0 | E199: 0 | F199: 0
A200: Total | B200: =SUM(B176:B199) -> 0 | C200: =SUM(C176:C199) -> 0 | D200: =SUM(D176:D199) -> 0 | E200: =SUM(E176:E199) -> 0 | F200: =IF(MAX($F176:$F199)<=0,"No Data",SUMIF($F176:$F199,">0")/COUNTIF($F176:$F199,">0")) -> No Data | G200: =SUM(G176:G199) -> 0 | H200: 0 | I200: 0 | J200: 0 | K200: 0 | L200: 0 | M200: 0 | N200: 0 | O200: 0 | P200: 0 | Q200: 0 | R200: =IF(MAX(R176:R199)<=0,"No Data",SUMIF(R176:R199,">0")/COUNTIF(R176:R199,">0")) -> No Data | S200: =IF(MAX(S176:S199)<=0,"No Data",SUMIF(S176:S199,">0")/COUNTIF(S176:S199,">0")) -> No Data | T200: =IF(MAX(T176:T199)<=0,"No Data",SUMIF(T176:T199,">0")/COUNTIF(T176:T199,">0")) -> No Data | U200: =IF(MAX(U176:U199)<=0,"No Data",SUMIF(U176:U199,">0")/COUNTIF(U176:U199,">0")) -> No Data | V200: =IF(MAX(V176:V199)<=0,"No Data",SUMIF(V176:V199,">0")/COUNTIF(V176:V199,">0")) -> No Data
... 157 more rows

Sheet BD-Rendering (hidden)
A1: Oil Producer Operational Data Summary | D1: Applicant: | E1: ='BD RD Feedstock'!E1:F1 -> ABC Energy | F1: Rendering Plant Location: | G1: Sac, CA | H1: Feedstock Location: | I1: Sac, CA | J1: Feedstocks: | K1: UCO | L1: Biofuel Plant Location: | M1: Sac,CA
A2: Monthly Data | B2: Beginning Raw UCO Inventory | C2: Purchased | D2: Ending Raw UCO Inventory | E2: NG Use from Utility Invoices | F2: Biomass Use from Invoices | G2: Biomass Transport Distance | H2: Biogas Use from Invoices | I2: Biogas Parameters | J2: Other Thermal Energy Use (Specify) | K2: Other Thermal Energy Use (Specify) | L2: Electricity from Utility Invoices | M2: Electricity from Other Sources (Specify) | N2: Electricity from Other Sources (Specify) | O2: Beginning Raw Tallow Inventory | P2: Purchased | Q2: Ending Raw Tallow Inventory | R2: NG Use from Utility Invoices | S2: Biomass Use from Invoices | T2: Biomass Transport Distance | U2: Biogas Use from Invoices | V2: Biogas Parameters | W2: Other Thermal Energy Use (Specify) | X2: Other Thermal Energy Use (Specify) | Y2: Electricity from Utility Invoices | Z2: Electricity from Other Sources (Specify) | AA2: Electricity from Other Sources (Specify) | AB2: Beginning Other Raw Inventory (Specify) | AC2: Purchased | AD2: Ending Other Raw Inventory (Specify) | AE2: NG Use from Utility Invoices | AF2: Biomass Use from Invoices | AG2: Biomass Transport Distance | AH2: Biogas Use from Invoices | AI2: Biogas Parameters | AJ2: Other Thermal Energy Use (Specify) | AK2: Other Thermal Energy Use (Specify) | AL2: Electricity from Utility Invoices | AM2: Electricity from Other Sources (Specify) | AN2: Electricity from Other Sources (Specify) | AO2: Beginning Other Raw Inventory (Specify) | AP2: Purchased | AQ2: Ending Other Raw Inventory (Specify) | AR2: NG Use from Utility Invoices | AS2: Biomass Use from Invoices | AT2: Biomass Transport Distance | AU2: Biogas Use from Invoices | AV2: Biogas Parameters | AW2: Other Thermal Energy Use | AX2: Other Thermal Energy Use (Specify) | AY2: Electricity from Utility Invoices | AZ2: Electricity from Other Sources | BA2: Electricity from Other Sources (Specify) | BB2: Beginning Other Raw Inventory (Specify) | BC2: Purchased | BD2: Ending Other Raw Inventory (Specify) | BE2: NG Use from Utility Invoices | BF2: Biomass Use from Invoices | BG2: Biomass Transport Distance | BH2: Biogas Use from Invoices | BI2: Biogas Parameters | BJ2: Other Thermal Energy Use | BK2: Other Thermal Energy Use (Specify) | BL2: Electricity from Utility Invoices | BM2: Electricity from Other Sources | BN2: Electricity from Other Sources (Specify) | BO2: Beginning Other Raw Inventory (Specify) | BP2: Purchased | BQ2: Ending Other Raw Inventory (Specify) | BR2: NG Use from Utility Invoices | BS2: Biomass Use from Invoices | BT2: Biomass Transport Distance | BU2: Biogas Use from Invoices | BV2: Biogas Parameters | BW2: Other Thermal Energy Use | BX2: Other Thermal Energy Use (Specify) | BY2: Electricity from Utility Invoices | BZ2: Electricity from Other Sources | CA2: Electricity from Other Sources (Specify) | CB2: Beginning Other Raw Inventory (Specify) | CC2: Purchased | CD2: Ending Other Raw Inventory (Specify) | CE2: NG Use from Utility Invoices | CF2: Biomass Use from Invoices | CG2: Biomass Transport Distance | CH2: Biogas Use from Invoices | CI2: Biogas Parameters | CJ2: Other Thermal Energy Use | CK2: Other Thermal Energy Use (Specify) | CL2: Electricity from Utility Invoices | CM2: Electricity from Other Sources | CN2: Electricity from Other Sources (Specify) | CO2: Beginning Other Raw Inventory (Specify) | CP2: Purchased | CQ2: Ending Other Raw Inventory (Specify) | CR2: NG Use from Utility Invoices | CS2: Biomass Use from Invoices | CT2: Biomass Transport Distance | CU2: Biogas Use from Invoices | CV2: Biogas Parameters | CW2: Other Thermal Energy Use | CX2: Other Thermal Energy Use (Specify) | CY2: Electricity from Utility Invoices | CZ2: Electricity from Other Sources | DA2: Electricity from Other Sources (Specify)
